{"text_format":"1","workbook":"xlsx","n_sheets":6,"sheets":["Survey","Instructions","Sheet1","EntityID","Notepad","Facility_Info"],"not_rendered":{"charts":0,"images":1,"macros":1,"external_links":0,"defined_names":1,"comments":0,"pivot_tables":0},"unopened":[],"bounds":{"document_bytes":16777216,"sheet_cells":100000,"rows_first":2000,"rows_last":500,"rows_between":2000,"halvings":0,"cell_chars":16384,"cell_head_chars":4096},"cells_cut":0,"cells_raw":0,"read":"whole","date_system":"1900"}

{"sheet":"Survey","index":0,"n_rows":177,"n_cols":8,"rows_kept":177,"cut":false,"hidden":false,"merged":[[123,2,123,6],[118,2,118,6],[119,2,119,6],[120,2,120,6],[38,5,38,6],[39,5,39,6],[40,5,40,6],[41,5,41,6],[42,5,42,6],[43,5,43,6],[44,5,44,6],[45,5,45,6],[46,5,46,6],[38,2,38,4],[39,2,39,4],[40,2,40,4],[41,2,41,4],[42,2,42,4],[43,2,43,4],[44,2,44,4],[45,2,45,4],[46,2,46,4],[52,2,52,6],[53,2,53,6],[54,2,54,6],[55,2,55,6],[56,2,56,6],[57,2,57,6],[58,2,58,6],[59,2,59,6],[47,2,47,4],[48,2,48,4],[49,2,49,4],[47,5,47,6],[48,5,48,6],[49,5,49,6],[34,2,34,6],[35,2,35,6],[144,2,144,6],[145,2,145,6],[146,2,146,6],[114,2,114,6],[115,2,115,6],[121,2,121,6],[122,2,122,6],[127,2,127,6],[128,2,128,6],[129,2,129,6],[126,2,126,6],[37,2,37,6],[77,2,77,6],[80,2,80,6],[86,2,86,6],[87,2,87,6],[88,2,88,6],[125,2,125,6],[78,2,78,6],[67,2,67,6],[68,2,68,6],[69,2,69,6],[130,2,130,6],[132,2,132,6],[133,2,133,6],[134,2,134,6],[135,2,135,6],[131,2,131,6],[136,2,136,6],[143,2,143,6],[137,2,137,6],[139,2,139,6],[140,2,140,6],[141,2,141,6],[142,2,142,6],[15,2,15,6],[101,2,101,6],[102,2,102,6],[103,2,103,6],[33,2,33,6],[36,2,36,6],[50,2,50,6],[51,2,51,6],[61,2,61,6],[63,2,63,6],[64,2,64,6],[65,2,65,6],[66,2,66,6],[75,2,75,6],[62,2,62,6],[76,2,76,6],[96,2,96,6],[97,2,97,6],[98,2,98,6],[99,2,99,6],[100,2,100,6],[19,2,19,6],[20,2,20,6],[21,2,21,6],[22,2,22,6],[25,2,25,6],[26,2,26,6],[31,2,31,6],[32,2,32,6],[17,2,17,6],[18,2,18,6],[23,2,23,6],[30,2,30,6],[29,2,29,6],[24,2,24,6],[27,2,27,6],[28,2,28,6],[0,1,0,5],[11,2,11,6],[12,2,12,6],[13,2,13,6],[14,2,14,6],[3,2,3,6],[4,2,4,6],[5,2,5,6],[6,2,6,6],[7,2,7,6],[8,2,8,6],[9,2,9,6],[10,2,10,6],[165,2,165,6],[166,2,166,6],[167,2,167,6],[153,2,153,6],[74,2,74,6],[116,2,116,6],[117,2,117,6],[104,2,104,6],[105,2,105,6],[107,2,107,6],[108,2,108,6],[109,2,109,6],[110,2,110,6],[111,2,111,6],[94,2,94,6],[93,2,93,6],[79,2,79,6],[147,2,147,6],[149,2,149,6],[150,2,150,6],[151,2,151,6],[152,2,152,6],[148,2,148,6],[138,2,138,6],[154,2,154,6],[112,2,112,6],[113,2,113,6],[106,2,106,6],[71,2,71,6],[72,2,72,6],[73,2,73,6],[81,2,81,6],[170,2,170,6],[168,2,168,6],[82,2,82,6],[83,2,83,6],[84,2,84,6],[85,2,85,6],[89,2,89,6],[90,2,90,6],[91,2,91,6],[92,2,92,6],[158,2,158,6],[159,2,159,6],[160,2,160,6],[161,2,161,6],[162,2,162,6],[164,2,164,6]]}
[null,"NEW YORK SURVEY ON HURRICANE SANDY DISASTER"]
[]
[null,"SECTION 1 - FACILITY AND CONTACT INFORMATION"]
[null,"Provider Type:",null,null,null,null,null,"Contacts (If available):"]
[null,"Type of Control",null,null,null,null,null,"FEMA"]
[null,"Entity Name",null,null,null,null,null,"Name:"]
[null,"Address:",null,null,null,null,null,"Phone #:"]
[null,"Operating Certificate Number",null,null,null,null,null,"Email:"]
[null,"MMIS Provider Number",null,null,null,null,null,"SBA"]
[null,"Billing Entity ID",null,null,null,null,null,"Name:"]
[null,"Federal Employee Identification Number (FEIN)",null,null,null,null,null,"Phone #:"]
[null,"Chief Financial Officer or Equivalent",null,null,null,null,null,"Email:"]
[null,"Contact Phone Number"]
[null,"Contact Email Address"]
[]
[null,"SECTION 2 - GENERAL STORM IMPACT/BASIC INFORMATION"]
[null,"Evacuation"]
["1a.","Did you have to evacuate patients/residents/program participants? Yes, No, or N/A"]
["1b.","If yes, how many patients/residents/program participants?"]
["1c."," Did you admit patients/residents/program participants evacuated from other facilities? Enter Yes, No, or N/A"]
["1d.","If yes, how many patients/residents/program participants from each provider type:?"]
["1e.","Hospital"]
["1f.","Nursing Home"]
["1g.","Assisted Living Facility"]
["1h.","Shelter"]
["1i.","Other (please describe):"]
["1j."]
["1k."]
["1l."]
["1m."]
["1n."]
[null,"Service closure"]
["2a.","Did you operate on emergency generator power?  Enter Yes or No"]
["2b.","If 2a is yes, for how long did you operate on a generator? "]
["2c.","Number of Days"]
["2d.","Are you still on Generator?"]
["2e.","Did you have to close some services temporarily? Enter Yes or No"]
["2f.","If 2c is yes, please select which services were affected and specify the duration of closure (estimate if not yet back in service)?"]
["2g.","SERVICES","Affected Services",null,null,"Number of Days"]
[null,"Inpatient"]
[null,"Elective Admissions"]
[null,"Emergency Department"]
[null,"Ambulatory surgery"]
[null,"Clinic"]
[null,"Adult Daycare "]
[null,"Referred Ambulatory"]
[null,"Other - (Please specify in Notepad)"]
["2h."]
["2i."]
["2j."]
["2k.","Are any services at risk for permanent closure due to irreparably damaged structures? Enter Yes or No"]
["2l.","If line 2j is Yes, please identify causes. Enter Yes to indicate all that apply below:"]
[null,"Inpatient"]
[null,"Elective Admissions"]
[null,"Emergency Department"]
[null,"Ambulatory surgery"]
[null,"Clinic"]
[null,"Adult Daycare "]
[null,"Referred Ambulatory"]
[null,"Other - (Please specify in Notepad)"]
[null,"Service/Business Interruption"]
["3a.","Did you have an interruption in clinical, administrative, or business operations? Enter Yes or No"]
["3b.","If 3a is yes, identify the causes.  Enter Yes to indicate all that apply below:"]
["3c.","Flooding"]
["3d.","Structural damage"]
["3e.","Equipment damage"]
["3f.","Had to evacuate"]
["3g.","Loss of power"]
["3h.","Inability to submit claims"]
["3i.","Operating at full/over capacity due to storm"]
[null,"Other - (Please specify)"]
["3j."]
["3k."]
["3l."]
["3m."]
["3n."]
["4a.","Does your facility have Business Interruption Insurance? Select Yes or No"]
["4b.","If 4a is yes, enter the face value of policy ($)"]
["4c.","Enter the amount of the deductible."]
[]
["5a.","Have you reached out to a FEMA contact to date?  Enter Yes, No or Not Eligible.  If yes, be sure to fill out FEMA contact information above."]
["5b.","Select Yes, No, or Not Eligible whether your facility filed a Request for Public Assistance (RFA) with FEMA."]
["5c.","Select Yes, No, or Not Eligible if you have filed a formal application for FEMA assistance?  "]
["5d.","If 5c is yes, what is the amount you requested?"]
["5e. ","If 5c is No, what do you anticipate asking for, if anything?"]
["5f.","Is the amount reported in 5d or 5e net of other insurance dollars? Enter Yes or No"]
["5g. ","What options have FEMA offered? Use Notepad if necessary."]
["6a.","Have you reached out to a SBA contact to date?  Select Yes or No.  If yes, be sure to fill out SBA contact information above."]
["6b.","If 6a is Yes, specify what have you discussed?"]
["6c.","Have you formally filed for an SBA loan? Select Yes or No."]
["6d.","If 6c is Yes, what is the amount you requested?"]
["6e.","If 6c is No, what do you anticipate asking for, if anything?"]
["6f.","Is the amount reported in 6d or 6e net of other insurance dollars? Select Yes or No"]
[]
[null,"SECTION 3 STORM RELATED OPERATING COSTS","DOLLAR VALUE"]
[7,"Overtime"]
["7a.","150% mandate by DOH Commissioner"]
["7b.","Attributable to surge of patients"]
["7c.","Attributable to keeping facility running during storm"]
[8,"Incremental staff"]
[{"$f":"SUM(A100+1)","v":9},"\"In Lieu\" of salary compensation"]
[{"$f":"SUM(A101+1)","v":10},"Contract labor "]
[11,"Incremental Security Costs "]
[12,"Emergency Shelter/Housing Costs "]
["12a.","For Staff"]
["12b.","For community members"]
[{"$f":"A104+1","v":13},"Emergency Food Costs"]
["13a.","For Staff"]
["13b.","For community members"]
[{"$f":"A107+1","v":14},"Emergency Transportation"]
[{"$f":"A110+1","v":15},"Emergency Pharmaceuticals"]
[{"$f":"A111+1","v":16},"Emergency Fuel, Electric, Gas, and Oil "]
[17,"Emergency Supplies"]
[18,"Emergency Telecommunications"]
[19,"Costs of temporary opening of closed units (non-labor)"]
[20,"Costs of Operation of mobile medical services or other alternate care site locations (non-labor)"]
[21,"Additional Operating costs due to storm (please specify):"]
["21a."]
["21b."]
["21c."]
["21d."]
["21e."]
["21f."]
[null,"Total Storm Related Operating Costs",{"$f":"SUM(C97:G103+C105:G106+C108:G116+C118:G123)","v":{"$error":"#VALUE!"}}]
[]
[null,"SECTION 4 STORM RELATED DAMAGE/ CAPITAL COSTS"]
[{"$f":"A117+1","v":22},"Extent of the physical plant damage:  Indicate \"Yes: to all that apply"]
[{"$f":"A127+1","v":23},"Flooding"]
[{"$f":"A128+1","v":24},"Roof/drainage damage"]
[25,"Loss of technology/equipment"]
[26,"Systems damage: heat, electrical, water, sewer"]
[27,"Grounds"]
[28,"Disaster related debris removal"]
[29,"Additional Capital issues due to storm (please specify):"]
["29a."]
["29b."]
[{"$f":"A134+1","v":30},"Estimated value of property loss ($)"]
[{"$f":"A137+1","v":31},"Does your facility have Property Insurance? Select Yes or No"]
[{"$f":"A138+1","v":32},"If line 32 is Yes, enter the face value of policy ($)"]
[33,"Enter the amount of the deductible"]
[34,"Does your facility have Flood Insurance? Select Yes or No"]
[35,"If line 35 is Yes, enter the face value of policy ($)"]
[36,"If line 35 is Yes, enter the amount of the deductible, if any"]
[37,"Emergency Generators Purchased($)"]
[38,"Emergency Generators Rentals($)"]
[39,"Other Emergency Rentals ($)"]
[40,"Emergency Structural Repairs, Retrofitting, and Maintenance ($)"]
[41,"Equipment Repairs and Replacement ($)"]
[42,"Other  (Please Specify $)"]
["42a."]
["42b."]
["42c."]
["42d."]
[null,"Total Capital Costs",{"$f":"C144:G148+C150:G153","v":{"$error":"#VALUE!"}}]
[null,"TOTAL COSTS ($): ",{"$f":"C124+C154","v":{"$error":"#VALUE!"}}]
[]
[null,"SECTION 5 STORM RELATED REVENUE IMPACT"]
[{"$f":"A149+1","v":43},"INPATIENT REVENUE"]
["43a.","Average Weekly Net Patient Revenue Prior to Oct. 28, 2012"]
["43b.","Estimated/Actual Weekly Net Patient Revenue"]
["43c.","Lost Revenue = line 46a - 46b",{"$f":"C159-C160","v":0}]
["43d.","Percent of Lost Revenue Estimated to be Permanent (vs. Deferred)"]
["43e.","Estimated Permanent Revenue Loss = line 46c * 46d",{"$f":"C161*C162","v":0}]
[{"$f":"A158+1","v":44},"OUTPATIENT/AMBULATORY REVENUE"]
["44a.","Average Weekly Net Patient Revenue Prior to Oct. 28, 2012"]
["44b.","Estimated/Actual Weekly Net Patient Revenue"]
["44c.","Lost Revenue = line 44a - 44b",{"$f":"C165-C166","v":0}]
["44d.","Percent of Lost Revenue Estimated to be Permanent (vs. Deferred)"]
["44e.","Estimated Permanent Revenue Loss = line 44c * 44d",{"$f":"C167*C168","v":0}]
[]
[null,"Total Estimated Permanent Revenue Loss",{"$f":"C163+C169","v":0}]
[]
[null,"SECTION 6 STORM RELATED CASH FLOW IMPACT"]
[45,"Did you (do you) have a billing interruption? Enter Yes or No"]
[null,"If line 45 is Yes, estimate the duration in days below:"]
[46,"Institutional Days"]
[47,"Ambulatory Days"]

{"sheet":"Instructions","index":1,"n_rows":216,"n_cols":3,"rows_kept":216,"cut":false,"hidden":false,"merged":[]}
["Instructions for Hurricane Sandy Disaster Survey"]
[]
["Note:  If your facility did not send or receive patients, residents, or program participants during the emergency, "]
[null,"did not incur extensive damage, lose power, or otherwise lose your ability to operate during"]
[null,"the Hurricane Sandy Emergency, do not complete and submit the survey."]
["When beginning the survey, if you receive the message \"Security Warning: Macros have been disabled,\" "]
[null,"click on the Options box, and  bullet \"Enable this content\". "]
["A Notepad is being provided on the 3rd tab to enter additional information that will not fit into the survey itself."]
[null," Please keep entries succinct."]
["If your facility has more than one provider type (hospital and hospital based nursing home; or nursing"]
[null,"home and an Adult Day Center) or if you report to multiple agencies (such as DOH and OMH)"]
[null,"you will be submitting only one survey.  Be sure to include all programs In your one survey."]
["DUE DATE - SUBMIT BY DECEMBER 14, 2012 IN EXCEL FORMAT TO:  bpacr@health.state.ny.us using the naming "]
[null,"convention specified below."]
["Naming Conventions:  Providers who have a 7 digit operating certificate number (hospitals, nursing homes, etc)"]
[null,"should name the file using their specific operating certificate number after Hurricane Sandy.  "]
[null,"Example:  Hurricane Sandy 1234567 "]
[null,"Providers who do not have a 7 digit operating certificate number (OASAS and OMH) should name the "]
[null,"file using their specific 5 digit Agency Code after Hurricane Sandy."]
[null,"Example:  Hurricane Sandy 12345 "]
[]
[]
["SECTION 1 - FACILITY AND CONTACT INFORMATION"]
["If your facility/agency has an Operating Certificate Number (Excel Column A, line 8 of the survey), enter it, "]
[null,"then click on the asterisk (*) and the Provider Type, Entity Name, MMIS Provider Number, and "]
[null," Billing Entity ID will automatically fill in.   If you do not have an operating certificate number, you "]
[null,"will need to complete those lines."]
["Provider Type:  Select Hospital, Nursing Home, Home Health Agency, Facility Agencies,  Assisted Living Facility"]
[null,"from the drop down menu.  "]
["Type of Control:  Select Public, Proprietary, or Nonprofit from the drop down menu."]
["Select Entity Name as on file with the Medicaid Program. If multiple entities, please list others on Notepad."]
["Enter Provider Address as on file with the Medicaid Program."]
["Enter Operating Certificate Number - This is a one 7 digit number with no letter extension.  "]
["MMIS Provider Number - The Provider Identification Number is a unique number assigned to each provider"]
[null,"enrolled to provide services to recipients of the Medicaid Program.  If multiple MMIS numbers, "]
[null,"use the main site number."]
["Billing Entity Number - This Provider Entity Identifier uniquely identifies a group of providers sharing "]
[null,"common characteristics such as tax id.  Choose your Billing Entity ID from drop down menu."]
["Federal Employer Identification Number (FEIN)- This is a 9 digit number assigned by the Internal Revenue "]
[null,"Service to taxpayers who are required to file various business tax returns."]
["Enter Chief Financial Officer or equivalent who is completing the survey."]
["Enter contact's telephone number including area code."]
["Enter contact's email address."]
["FEMA contact - If you have reached out to Federal Emergency Management Agency (FEMA),"]
[null,"enter the contact, telephone number including area code, and email address.  Leave blank if you have not."]
["SBA contact - If you have reached out to the Small Business Association, enter the contact, telephone"]
[null,"number including area code, and email address.  Leave blank if you have not."]
[]
["SECTION 2 - GENERAL STORM IMPACT/BASIC INFORMATION"]
["Evacuation"]
["1a.  Enter Yes, No or N/A (not applicable) if you evacuated patients, residents, program participants from "]
[null,"the drop down menu."]
["1b.  If line 1a is yes, enter the number of patients, residents, program participants that were evacuated."]
["1c.  Enter Yes, No, or N/A if you admitted or received patients, residents, program participants evacuated from other "]
[null,"facilities from the drop down menu."]
["1d.  If line 1c is Yes, how many patients, residents, program participants were admitted or received from each "]
[null,"provider from type listed?  Choose amount from drop down menu."]
[null,"1e.  Enter the number of hospital patients admitted or received."]
[null,"1f.  Enter the number of nursing home residents admitted[or received."]
[null,"1g.  Enter the number of Assisted Living residents admitted or received."]
[null,"1h.  Enter the number of people admitted or received from shelters."]
[null,"1j through 1n.  Enter the description of the type of patient/resident/program participants admitted or"]
[null,"received in Column B and the number of patients/residents/program participants admitted or received "]
[null,"in Column C. (Example - Home Care, Community, etc)"]
["Service closure "]
["2a.  Enter Yes or No if you operated on emergency generator power from the drop down menu."]
["2b-2d.  If 2a is Yes, enter how long a period you operated on emergency generator power.  Select  the number of days "]
[null,"from the drop down menu (2c).  If 2a is a Yes, select Yes or No whether you are still on a generator (2d)."]
["2e.  Enter Yes or No whether you had to close some services temporarily from the drop down menu."]
["2f - 2j.  If line 2e is Yes, select which services were affected from the drop down menu.  Then specify the duration of"]
[null,"the closed services by selecting the number of days from the drop down menu.  As all services may "]
[null,"not have re-opened at the same time, select each applicable service and the duration of each closure."]
[null,"If space is not large enough, enter remaining information on the Notepad."]
[null,"Inpatient"]
[null,"Elective Admissions"]
[null,"Emergency Department"]
[null,"Ambulatory Surgery"]
[null,"Clinic"]
[null,"Adult Day Care"]
[null,"Referred Ambulatory"]
[null,"Other (Specify on Notepad)"]
["2k.  Select Yes or No if any services are at risk for permanent closure due to irreparably damaged"]
[null,"structures from the drop down menu?"]
["2l.  If line 2k is Yes, then indicate all of the descriptions that apply by choosing Yes from the drop down menu."]
[null,"Inpatient"]
[null,"Elective Admissions"]
[null,"Emergency Department"]
[null,"Ambulatory Surgery"]
[null,"Clinic"]
[null,"Adult Day Care"]
[null,"Referred Ambulatory"]
[null,"Other (Specify on Notepad)"]
[]
["Services - To collect information on the extent of services and business interruption and to estimate "]
[null,"the costs involved."]
["3a.  Select Yes or No whether you had an interruption in clinical, administrative, or business operations? "]
["3b-3i.  If line 3a is Yes, then indicate all of the descriptions that apply by choosing Yes from the drop down"]
[null,"menu on lines 3c-3i."]
[null,"3c. Flooding"]
[null,"3d. Structural damage"]
[null,"3e. Equipment damage"]
[null,"3f. Had to evacuate"]
[null,"3g. Loss of power"]
[null,"3h. Inability to submit claims"]
[null,"3i. Operating at full/over capacity due to storm"]
["3j-3n.  If line 3a Is Yes, enter the \"Other\" description in Column B, and the word Yes in Column C.  "]
["4a.  Select Yes or No whether your facility has Business Interruption Insurance (for loss of revenue) from the "]
[null,"drop down menu"]
["4b.  If line 4a is Yes, enter the face value of the policy."]
["4c.  Enter the amount of the deductible if any."]
["5a.  Select Yes, No, or Not Eligible whether your facility has reached out to a FEMA  contact from the drop down menu. "]
[null,"If Yes, be sure the contact information has been entered above in Section 1."]
["5b. Select Yes, No, or Not Eligible whether your facility filed a Request for Public Assistance (RFA) with FEMA."]
["5c.  Select Yes, No, or Not Eligible if you have filed a formal application for FEMA assistance from the drop down menu?  "]
["5d.  If 5c is Yes, enter the amount you requested in your formal application."]
["5e.  If 5c is No, enter the amount you anticipate asking for, if anything."]
["5f.  Enter Yes or No whether the amount reported on lines 5d or 5e is net of other insurance dollars "]
[null,"from the drop down menu."]
["5g.  Specify what options FEMA has offered.  If additional space is needed, use Notepad."]
["6a.  Select Yes or No whether your facility has reached out to an SBA contact to date from the drop down menu. "]
[null,"If Yes, be sure the contact information has been entered above in Section 1."]
["6b.  If line 6a is Yes, enter a short description of what you have discussed.  If additional space is needed use Notepad."]
["6c.  Select Yes or No if you have formally filed for an SBA loan from the drop down menu."]
["6d.  If line 6c is Yes, enter the amount you requested."]
["6e.  If line 6c is No, enter the amount you anticipate asking for, if anything."]
["6f.  Select Yes or No if the amount reported in 6d or 6e is net of other insurance dollars from the drop down menu."]
[]
["SECTION 3 - OPERATING COSTS - To capture estimated additional operating costs incurred due to the Emergency."]
["Inpatient and Outpatient Revenue:"]
["Storm Related Operating Costs - Enter Best Estimates available as Dollar Values"]
["7.  Overtime -  Enter the dollar value of overtime salaries paid to hourly staff (patient care, support, etc) that "]
[null,"worked beyond their  normal shift as a direct result of the following:"]
[null,null,"7a.  Attributable to 150% mandate by Commissioner of Health"]
[null,null,"7b.  Attributable to surge of patients/residents/program participants"]
[null,null,"7c.  Attributable to keeping facility running during storm"]
["8.  Incremental Staff - Enter the dollar amount paid to staff called in to work who were not scheduled for a"]
[null,"particular shift.  (DO NOT include dollars paid to agencies for staff brought in. See line 10 for "]
[null,"Contract Staff.)"]
["9  \"In lieu\" of Salary compensation - Enter the dollar value of in lieu of salary compensation (e.g., comp time) "]
[null,"credited to salaried staff as a direct result of the disaster.  This \"compensation\" must be clearly "]
[null,"delineated in written hospital policy."]
["10.  Contract staff - Enter the dollar amount paid to agencies for staff brought in."]
["11 through 18 - Enter the dollar value for each category, for the storm related costs."]
["11.  Incremental Security Costs - enter the dollar amount paid for additional security costs that were necessary due"]
[null,"to the storm."]
["12.  Emergency Shelter/Housing Costs - enter the dollar amount for Staff costs of Emergency Shelter/Housing on "]
[null,"line 12 a, and the Community Members cost on line 12b."]
["13.  Emergency Food Costs - enter the dollar amount for Emergency Food Costs on line 13a, and the "]
[null,"Community Members cost on line 13b."]
["14.  Emergency Transport - "]
["15.  Emergency Pharmaceuticals - enter the dollar amount for additional Pharmaceutical costs attributable to the storm."]
["16.  Emergency Fuel, Electric, Gas, and Oil - enter the dollar amount for these additional costs attributable to the storm."]
["17.  Emergency Supplies - enter the dollar amount for additional supplies attributable to the storm."]
["18.  Emergency Telecommunications - enter the dollar amount spent on Emergency Telecommunications, "]
[null,"include such costs as walkie talkies, radios, etc."]
["19. Enter the dollar value of non-labor related costs associated with the temporary opening of closed"]
[null,"units.  This would included the renting/purchasing of beds, chairs, etc.  These costs must not"]
[null,"be reported elsewhere in the survey.  Use the notepad area of the form to provide clarifications"]
[null,"as needed."]
["20.  Enter the dollar value of non-labor related costs associated with the operation of mobile services"]
[null,"or other alternate care site locations.  Use the notepad area of the form to provide "]
[null,"clarifications as needed."]
["21 a-21f.  Specify additional operating costs due to storm.  Enter the description in column B and the dollar "]
[null,"amount in column C."]
["Total Operating Costs - This is formula driven.  DO NOT MAKE AN ENTRY."]
[]
["SECTION 4 STORM RELATED DAMAGE - CAPITAL COSTS - To capture estimated additional capital costs "]
[null,"incurred due to the Emergency."]
["22 through 28 - Select Yes from the drop down menu to the type of Damage your facility incurred. "]
[null,"You may check more than 1 answer."]
[null,"23. Flooding"]
[null,"24. Roof/drainage damage"]
[null,"25. Loss of technology/equipment"]
[null,"26. Systems damage: heat, electrical, water, sewer"]
[null,"27. Grounds"]
[null,"28. Disaster related debris removal"]
["29 a-29c.  Specify additional capital issues due to storm.  Enter the description in column B and the word"]
[null,"Yes in column C."]
["30. Enter the estimated total replacement value of property loss ($)"]
["31. Select Yes or No whether your facility has Property Insurance."]
["32.  If line 31 is Yes, enter the face value of policy ($)"]
["33.  Enter the amount of the deductible if any."]
["34.  Select Yes or No whether your facility has Flood Insurance."]
["35. If line 34 is Yes, enter the face value of policy ($)"]
["36. If line 34 is Yes, enter the amount of the deductible, if any"]
["37. Enter the dollar amount (best estimate) attributable to purchased Emergency Generators. "]
["38.  Enter the dollar amount (best estimate) attributable to the rental of Emergency Generators."]
["39. Enter the dollar amount (best estimate) attributable to other Emergency Rentals. Do not make an entry if "]
[null,"the expense  has been recorded elsewhere in this survey."]
["40. Enter the dollar amount (best estimate) attributable to Emergency Structural Repairs, Retrofitting, and Maintenance ."]
["41. Enter the dollar amount (best estimate)attributable to Equipment Repairs and Replacement "]
["42a-d. Specify any other Capital Storm Related Capital Costs. Enter the description in column B"]
[null,"and the dollar amount in column C.  "]
["Total Capital Costs - This is formula driven.  DO NOT MAKE AN ENTRY."]
["Total Costs - This is formula driven.  DO NOT MAKE AN ENTRY."]
[]
["SECTION 5 STORM RELATED REVENUE IMPACT"]
[]
["Inpatient & Outpatient:"]
["43a &44a.  Use the following formula to calculate average net patient revenue.  Divide your facility's "]
[null,"inpatient/outpatient net patient revenue for the period January 1, 2012 through September 30, "]
[null,"2012  by 39 weeks to determine net patient revenue per week.  "]
["43b & 44b. Enter the actual (estimate if actual is not available) average weekly net patient revenue received "]
[null,"during the emergency period.  If you were closed more than 1 week, average the actual revenue"]
[null," received per week (estimate if actual is not available)."]
["43c & 44c.  Lost Revenue - This is formula driven.  DO NOT MAKE AN ENTRY."]
["43d & 44d. This represents the portion of lost revenue (expressed as a percent) calculated in 46c & 47c, "]
[null,"which is permanent.  Permanent lost revenue is revenue from admissions, visits and procedures, "]
[null,"which are unlikely to be rescheduled.  "]
["43e & 44e.  Estimated Permanent Revenue Loss - This is formula driven.  DO NOT MAKE AN ENTRY."]
["Total Estimated Permanent Revenue Loss - This is formula driven.  DO NOT MAKE AN ENTRY."]
[]
["SECTION 6 STORM RELATED CASH FLOW IMPACT"]
["45. Enter Yes or No whether you had (or still have) a billing interruption from the drop down menu."]
["46. If line 45 is Yes, estimate the duration for Institutional days "]
["47. If line 45 is Yes, estimate the duration for Ambulatory days "]

{"sheet":"Sheet1","index":2,"n_rows":600,"n_cols":8,"rows_kept":600,"cut":false,"hidden":true,"merged":[]}
["YES",1,null,"Public",null,"Hospital",null,"YES"]
["NO",2,null,"Proprietary",null,"Nursing Home",null,"NO"]
["N/A",3,null,"Nonprofit",null,"Home Health Agency",null,"NOT ELIGIBLE "]
[null,4,null,null,null,"Facility Agencies"]
[null,5,null,null,null,"Assisted Living Facility"]
[null,6]
[null,7]
[null,8]
[null,9]
[null,10]
[null,11]
[null,12]
[null,13]
[null,14]
[null,15]
[null,16]
[null,17]
[null,18]
[null,19]
[null,20]
[null,21]
[null,22]
[null,23]
[null,24]
[null,25]
[null,26]
[null,27]
[null,28]
[null,29]
[null,30]
[null,31]
[null,32]
[null,33]
[null,34]
[null,35]
[null,36]
[null,37]
[null,38]
[null,39]
[null,40]
[null,41]
[null,42]
[null,43]
[null,44]
[null,45]
[null,46]
[null,47]
[null,48]
[null,49]
[null,50]
[null,51]
[null,52]
[null,53]
[null,54]
[null,55]
[null,56]
[null,57]
[null,58]
[null,59]
[null,60]
[null,61]
[null,62]
[null,63]
[null,64]
[null,65]
[null,66]
[null,67]
[null,68]
[null,69]
[null,70]
[null,71]
[null,72]
[null,73]
[null,74]
[null,75]
[null,76]
[null,77]
[null,78]
[null,79]
[null,80]
[null,81]
[null,82]
[null,83]
[null,84]
[null,85]
[null,86]
[null,87]
[null,88]
[null,89]
[null,90]
[null,91]
[null,92]
[null,93]
[null,94]
[null,95]
[null,96]
[null,97]
[null,98]
[null,99]
[null,100]
[null,101]
[null,102]
[null,103]
[null,104]
[null,105]
[null,106]
[null,107]
[null,108]
[null,109]
[null,110]
[null,111]
[null,112]
[null,113]
[null,114]
[null,115]
[null,116]
[null,117]
[null,118]
[null,119]
[null,120]
[null,121]
[null,122]
[null,123]
[null,124]
[null,125]
[null,126]
[null,127]
[null,128]
[null,129]
[null,130]
[null,131]
[null,132]
[null,133]
[null,134]
[null,135]
[null,136]
[null,137]
[null,138]
[null,139]
[null,140]
[null,141]
[null,142]
[null,143]
[null,144]
[null,145]
[null,146]
[null,147]
[null,148]
[null,149]
[null,150]
[null,151]
[null,152]
[null,153]
[null,154]
[null,155]
[null,156]
[null,157]
[null,158]
[null,159]
[null,160]
[null,161]
[null,162]
[null,163]
[null,164]
[null,165]
[null,166]
[null,167]
[null,168]
[null,169]
[null,170]
[null,171]
[null,172]
[null,173]
[null,174]
[null,175]
[null,176]
[null,177]
[null,178]
[null,179]
[null,180]
[null,181]
[null,182]
[null,183]
[null,184]
[null,185]
[null,186]
[null,187]
[null,188]
[null,189]
[null,190]
[null,191]
[null,192]
[null,193]
[null,194]
[null,195]
[null,196]
[null,197]
[null,198]
[null,199]
[null,200]
[null,201]
[null,202]
[null,203]
[null,204]
[null,205]
[null,206]
[null,207]
[null,208]
[null,209]
[null,210]
[null,211]
[null,212]
[null,213]
[null,214]
[null,215]
[null,216]
[null,217]
[null,218]
[null,219]
[null,220]
[null,221]
[null,222]
[null,223]
[null,224]
[null,225]
[null,226]
[null,227]
[null,228]
[null,229]
[null,230]
[null,231]
[null,232]
[null,233]
[null,234]
[null,235]
[null,236]
[null,237]
[null,238]
[null,239]
[null,240]
[null,241]
[null,242]
[null,243]
[null,244]
[null,245]
[null,246]
[null,247]
[null,248]
[null,249]
[null,250]
[null,251]
[null,252]
[null,253]
[null,254]
[null,255]
[null,256]
[null,257]
[null,258]
[null,259]
[null,260]
[null,261]
[null,262]
[null,263]
[null,264]
[null,265]
[null,266]
[null,267]
[null,268]
[null,269]
[null,270]
[null,271]
[null,272]
[null,273]
[null,274]
[null,275]
[null,276]
[null,277]
[null,278]
[null,279]
[null,280]
[null,281]
[null,282]
[null,283]
[null,284]
[null,285]
[null,286]
[null,287]
[null,288]
[null,289]
[null,290]
[null,291]
[null,292]
[null,293]
[null,294]
[null,295]
[null,296]
[null,297]
[null,298]
[null,299]
[null,300]
[null,301]
[null,302]
[null,303]
[null,304]
[null,305]
[null,306]
[null,307]
[null,308]
[null,309]
[null,310]
[null,311]
[null,312]
[null,313]
[null,314]
[null,315]
[null,316]
[null,317]
[null,318]
[null,319]
[null,320]
[null,321]
[null,322]
[null,323]
[null,324]
[null,325]
[null,326]
[null,327]
[null,328]
[null,329]
[null,330]
[null,331]
[null,332]
[null,333]
[null,334]
[null,335]
[null,336]
[null,337]
[null,338]
[null,339]
[null,340]
[null,341]
[null,342]
[null,343]
[null,344]
[null,345]
[null,346]
[null,347]
[null,348]
[null,349]
[null,350]
[null,351]
[null,352]
[null,353]
[null,354]
[null,355]
[null,356]
[null,357]
[null,358]
[null,359]
[null,360]
[null,361]
[null,362]
[null,363]
[null,364]
[null,365]
[null,366]
[null,367]
[null,368]
[null,369]
[null,370]
[null,371]
[null,372]
[null,373]
[null,374]
[null,375]
[null,376]
[null,377]
[null,378]
[null,379]
[null,380]
[null,381]
[null,382]
[null,383]
[null,384]
[null,385]
[null,386]
[null,387]
[null,388]
[null,389]
[null,390]
[null,391]
[null,392]
[null,393]
[null,394]
[null,395]
[null,396]
[null,397]
[null,398]
[null,399]
[null,400]
[null,401]
[null,402]
[null,403]
[null,404]
[null,405]
[null,406]
[null,407]
[null,408]
[null,409]
[null,410]
[null,411]
[null,412]
[null,413]
[null,414]
[null,415]
[null,416]
[null,417]
[null,418]
[null,419]
[null,420]
[null,421]
[null,422]
[null,423]
[null,424]
[null,425]
[null,426]
[null,427]
[null,428]
[null,429]
[null,430]
[null,431]
[null,432]
[null,433]
[null,434]
[null,435]
[null,436]
[null,437]
[null,438]
[null,439]
[null,440]
[null,441]
[null,442]
[null,443]
[null,444]
[null,445]
[null,446]
[null,447]
[null,448]
[null,449]
[null,450]
[null,451]
[null,452]
[null,453]
[null,454]
[null,455]
[null,456]
[null,457]
[null,458]
[null,459]
[null,460]
[null,461]
[null,462]
[null,463]
[null,464]
[null,465]
[null,466]
[null,467]
[null,468]
[null,469]
[null,470]
[null,471]
[null,472]
[null,473]
[null,474]
[null,475]
[null,476]
[null,477]
[null,478]
[null,479]
[null,480]
[null,481]
[null,482]
[null,483]
[null,484]
[null,485]
[null,486]
[null,487]
[null,488]
[null,489]
[null,490]
[null,491]
[null,492]
[null,493]
[null,494]
[null,495]
[null,496]
[null,497]
[null,498]
[null,499]
[null,500]
[null,501]
[null,502]
[null,503]
[null,504]
[null,505]
[null,506]
[null,507]
[null,508]
[null,509]
[null,510]
[null,511]
[null,512]
[null,513]
[null,514]
[null,515]
[null,516]
[null,517]
[null,518]
[null,519]
[null,520]
[null,521]
[null,522]
[null,523]
[null,524]
[null,525]
[null,526]
[null,527]
[null,528]
[null,529]
[null,530]
[null,531]
[null,532]
[null,533]
[null,534]
[null,535]
[null,536]
[null,537]
[null,538]
[null,539]
[null,540]
[null,541]
[null,542]
[null,543]
[null,544]
[null,545]
[null,546]
[null,547]
[null,548]
[null,549]
[null,550]
[null,551]
[null,552]
[null,553]
[null,554]
[null,555]
[null,556]
[null,557]
[null,558]
[null,559]
[null,560]
[null,561]
[null,562]
[null,563]
[null,564]
[null,565]
[null,566]
[null,567]
[null,568]
[null,569]
[null,570]
[null,571]
[null,572]
[null,573]
[null,574]
[null,575]
[null,576]
[null,577]
[null,578]
[null,579]
[null,580]
[null,581]
[null,582]
[null,583]
[null,584]
[null,585]
[null,586]
[null,587]
[null,588]
[null,589]
[null,590]
[null,591]
[null,592]
[null,593]
[null,594]
[null,595]
[null,596]
[null,597]
[null,598]
[null,599]
[null,600]

{"sheet":"EntityID","index":3,"n_rows":2072,"n_cols":1,"rows_kept":2072,"cut":false,"hidden":true,"merged":[]}
["Entity ID"]
["E0000033"]
["E0000062"]
["E0000413"]
["E0001334"]
["E0001392"]
["E0001410"]
["E0001421"]
["E0001509"]
["E0001558"]
["E0001662"]
["E0001692"]
["E0001714"]
["E0001764"]
["E0001941"]
["E0002091"]
["E0002097"]
["E0002122"]
["E0002125"]
["E0002320"]
["E0002385"]
["E0002983"]
["E0003004"]
["E0003098"]
["E0003190"]
["E0003293"]
["E0003467"]
["E0003468"]
["E0003524"]
["E0004335"]
["E0004425"]
["E0004967"]
["E0005456"]
["E0005889"]
["E0006707"]
["E0006799"]
["E0006916"]
["E0007171"]
["E0007555"]
["E0007717"]
["E0007724"]
["E0007761"]
["E0007765"]
["E0007789"]
["E0007926"]
["E0007927"]
["E0008162"]
["E0008617"]
["E0008698"]
["E0008699"]
["E0008700"]
["E0008701"]
["E0008702"]
["E0009817"]
["E0009819"]
["E0009826"]
["E0009840"]
["E0009849"]
["E0010053"]
["E0010246"]
["E0010247"]
["E0010248"]
["E0010249"]
["E0011024"]
["E0011048"]
["E0011223"]
["E0011523"]
["E0011962"]
["E0011994"]
["E0012461"]
["E0013083"]
["E0013126"]
["E0013360"]
["E0013432"]
["E0013449"]
["E0014040"]
["E0014069"]
["E0014101"]
["E0015130"]
["E0015280"]
["E0015281"]
["E0015952"]
["E0015957"]
["E0016122"]
["E0016231"]
["E0016242"]
["E0016243"]
["E0016333"]
["E0016986"]
["E0017148"]
["E0017778"]
["E0017904"]
["E0018012"]
["E0018064"]
["E0018077"]
["E0018078"]
["E0018788"]
["E0018999"]
["E0019021"]
["E0020136"]
["E0020149"]
["E0020356"]
["E0021949"]
["E0021991"]
["E0022019"]
["E0022086"]
["E0022088"]
["E0022090"]
["E0022091"]
["E0022131"]
["E0022208"]
["E0022275"]
["E0022871"]
["E0022956"]
["E0022963"]
["E0022997"]
["E0023084"]
["E0023180"]
["E0023185"]
["E0023248"]
["E0023286"]
["E0023295"]
["E0024190"]
["E0024364"]
["E0024412"]
["E0024752"]
["E0024760"]
["E0024874"]
["E0024882"]
["E0024910"]
["E0025117"]
["E0025122"]
["E0025123"]
["E0025129"]
["E0025130"]
["E0025181"]
["E0025182"]
["E0025833"]
["E0025906"]
["E0026174"]
["E0026256"]
["E0026257"]
["E0026258"]
["E0026358"]
["E0026417"]
["E0026485"]
["E0026490"]
["E0026664"]
["E0027103"]
["E0027338"]
["E0027670"]
["E0027673"]
["E0027916"]
["E0027970"]
["E0027972"]
["E0027973"]
["E0028175"]
["E0028386"]
["E0028417"]
["E0028422"]
["E0028431"]
["E0028444"]
["E0028707"]
["E0028714"]
["E0028739"]
["E0028879"]
["E0029207"]
["E0029208"]
["E0029240"]
["E0029396"]
["E0029397"]
["E0029398"]
["E0029627"]
["E0029698"]
["E0029700"]
["E0029704"]
["E0029706"]
["E0029710"]
["E0029726"]
["E0029727"]
["E0029728"]
["E0029731"]
["E0029732"]
["E0029733"]
["E0029734"]
["E0029739"]
["E0029740"]
["E0029741"]
["E0029743"]
["E0029746"]
["E0029751"]
["E0029752"]
["E0029776"]
["E0029777"]
["E0029778"]
["E0029782"]
["E0029784"]
["E0029785"]
["E0029786"]
["E0029787"]
["E0029789"]
["E0029790"]
["E0029819"]
["E0029821"]
["E0029822"]
["E0029823"]
["E0029825"]
["E0029826"]
["E0029832"]
["E0029836"]
["E0029838"]
["E0029839"]
["E0029841"]
["E0029843"]
["E0029849"]
["E0029923"]
["E0029924"]
["E0029928"]
["E0029930"]
["E0029931"]
["E0029968"]
["E0029972"]
["E0029973"]
["E0029979"]
["E0029980"]
["E0029982"]
["E0029985"]
["E0029986"]
["E0029987"]
["E0029988"]
["E0029989"]
["E0030033"]
["E0030034"]
["E0030035"]
["E0030036"]
["E0030037"]
["E0030038"]
["E0030043"]
["E0030047"]
["E0030050"]
["E0030054"]
["E0030055"]
["E0030107"]
["E0030167"]
["E0030169"]
["E0030170"]
["E0030171"]
["E0030172"]
["E0030173"]
["E0030174"]
["E0030239"]
["E0030241"]
["E0030244"]
["E0030245"]
["E0030248"]
["E0030254"]
["E0030256"]
["E0030257"]
["E0030258"]
["E0030259"]
["E0030263"]
["E0030264"]
["E0030268"]
["E0030340"]
["E0030341"]
["E0030342"]
["E0030361"]
["E0030369"]
["E0030370"]
["E0030803"]
["E0030806"]
["E0030807"]
["E0030808"]
["E0030811"]
["E0030812"]
["E0030822"]
["E0030823"]
["E0030870"]
["E0030872"]
["E0030873"]
["E0030874"]
["E0030875"]
["E0030879"]
["E0030882"]
["E0030930"]
["E0030931"]
["E0030933"]
["E0030936"]
["E0030938"]
["E0031029"]
["E0031360"]
["E0031713"]
["E0031772"]
["E0031830"]
["E0032111"]
["E0032121"]
["E0033035"]
["E0033646"]
["E0033774"]
["E0033777"]
["E0033851"]
["E0033991"]
["E0034575"]
["E0034624"]
["E0034791"]
["E0035358"]
["E0035597"]
["E0036868"]
["E0037645"]
["E0037954"]
["E0038054"]
["E0038055"]
["E0038076"]
["E0038082"]
["E0038095"]
["E0038354"]
["E0038721"]
["E0039068"]
["E0039083"]
["E0039085"]
["E0039087"]
["E0039089"]
["E0039091"]
["E0039110"]
["E0039117"]
["E0039329"]
["E0039807"]
["E0040141"]
["E0040144"]
["E0040147"]
["E0040151"]
["E0040230"]
["E0040232"]
["E0040321"]
["E0040404"]
["E0040490"]
["E0040493"]
["E0040509"]
["E0040521"]
["E0040523"]
["E0040526"]
["E0040569"]
["E0040612"]
["E0040638"]
["E0040677"]
["E0040679"]
["E0040694"]
["E0040709"]
["E0040722"]
["E0040728"]
["E0040740"]
["E0040744"]
["E0040770"]
["E0040818"]
["E0040820"]
["E0040902"]
["E0040919"]
["E0040945"]
["E0040946"]
["E0040947"]
["E0040950"]
["E0040966"]
["E0040968"]
["E0040974"]
["E0040984"]
["E0041253"]
["E0041952"]
["E0042100"]
["E0042258"]
["E0042354"]
["E0042372"]
["E0042724"]
["E0042774"]
["E0043020"]
["E0043328"]
["E0043373"]
["E0043418"]
["E0044210"]
["E0044345"]
["E0044774"]
["E0044845"]
["E0045029"]
["E0045090"]
["E0045187"]
["E0045289"]
["E0045290"]
["E0046932"]
["E0047108"]
["E0047109"]
["E0047114"]
["E0047116"]
["E0047186"]
["E0047200"]
["E0047202"]
["E0047203"]
["E0047252"]
["E0047651"]
["E0047979"]
["E0048140"]
["E0048245"]
["E0048249"]
["E0048289"]
["E0048395"]
["E0048399"]
["E0048434"]
["E0048513"]
["E0050364"]
["E0050622"]
["E0050773"]
["E0053990"]
["E0054107"]
["E0054181"]
["E0055733"]
["E0055847"]
["E0055917"]
["E0056801"]
["E0057259"]
["E0057368"]
["E0057465"]
["E0057667"]
["E0058928"]
["E0058951"]
["E0059058"]
["E0059256"]
["E0059269"]
["E0059348"]
["E0059364"]
["E0059414"]
["E0059660"]
["E0060443"]
["E0060529"]
["E0060657"]
["E0060849"]
["E0060991"]
["E0061120"]
["E0061137"]
["E0061434"]
["E0061476"]
["E0061477"]
["E0061862"]
["E0062020"]
["E0062061"]
["E0062307"]
["E0062585"]
["E0062602"]
["E0062985"]
["E0063010"]
["E0063488"]
["E0063759"]
["E0063845"]
["E0064337"]
["E0064338"]
["E0064697"]
["E0066147"]
["E0066279"]
["E0066305"]
["E0066319"]
["E0066945"]
["E0067060"]
["E0067681"]
["E0067826"]
["E0067904"]
["E0068092"]
["E0068352"]
["E0068525"]
["E0068763"]
["E0068790"]
["E0069992"]
["E0071079"]
["E0071319"]
["E0071518"]
["E0071664"]
["E0072089"]
["E0072104"]
["E0072115"]
["E0072816"]
["E0073028"]
["E0074128"]
["E0074139"]
["E0074140"]
["E0074141"]
["E0074142"]
["E0074143"]
["E0074144"]
["E0074177"]
["E0074221"]
["E0074307"]
["E0074317"]
["E0074360"]
["E0074363"]
["E0074368"]
["E0074370"]
["E0074428"]
["E0074429"]
["E0074435"]
["E0074436"]
["E0074440"]
["E0074441"]
["E0074443"]
["E0074444"]
["E0074446"]
["E0074447"]
["E0074448"]
["E0074449"]
["E0074554"]
["E0074557"]
["E0074579"]
["E0074586"]
["E0074650"]
["E0074657"]
["E0074672"]
["E0074674"]
["E0074677"]
["E0074697"]
["E0074701"]
["E0074702"]
["E0074726"]
["E0074727"]
["E0074747"]
["E0074753"]
["E0074798"]
["E0074812"]
["E0074813"]
["E0074815"]
["E0074817"]
["E0074820"]
["E0074821"]
["E0074823"]
["E0074824"]
["E0074833"]
["E0074835"]
["E0074836"]
["E0074837"]
["E0074841"]
["E0074843"]
["E0075092"]
["E0075096"]
["E0075104"]
["E0075108"]
["E0075109"]
["E0075114"]
["E0075115"]
["E0075121"]
["E0075172"]
["E0075182"]
["E0075185"]
["E0075196"]
["E0075199"]
["E0075201"]
["E0075203"]
["E0075204"]
["E0075205"]
["E0075206"]
["E0075209"]
["E0075213"]
["E0075215"]
["E0075218"]
["E0075222"]
["E0075224"]
["E0075227"]
["E0075230"]
["E0075240"]
["E0075243"]
["E0075245"]
["E0075246"]
["E0075252"]
["E0075253"]
["E0075255"]
["E0075257"]
["E0075261"]
["E0075263"]
["E0075264"]
["E0075265"]
["E0075266"]
["E0075267"]
["E0075268"]
["E0075342"]
["E0075349"]
["E0075351"]
["E0075352"]
["E0075353"]
["E0075354"]
["E0075355"]
["E0075356"]
["E0075357"]
["E0075360"]
["E0075361"]
["E0075362"]
["E0075365"]
["E0075369"]
["E0075371"]
["E0075377"]
["E0075379"]
["E0075380"]
["E0075383"]
["E0075385"]
["E0075386"]
["E0075387"]
["E0075389"]
["E0075392"]
["E0075393"]
["E0075394"]
["E0075395"]
["E0075396"]
["E0075416"]
["E0075418"]
["E0075419"]
["E0075420"]
["E0075422"]
["E0075423"]
["E0075426"]
["E0075444"]
["E0075450"]
["E0075463"]
["E0075473"]
["E0075484"]
["E0075488"]
["E0075490"]
["E0075499"]
["E0075501"]
["E0075503"]
["E0075504"]
["E0075516"]
["E0075518"]
["E0075519"]
["E0075520"]
["E0075525"]
["E0076048"]
["E0076289"]
["E0077237"]
["E0077270"]
["E0078340"]
["E0078390"]
["E0078391"]
["E0078648"]
["E0079102"]
["E0079118"]
["E0079503"]
["E0079543"]
["E0079590"]
["E0079884"]
["E0080232"]
["E0080358"]
["E0080361"]
["E0080570"]
["E0081032"]
["E0081092"]
["E0081112"]
["E0081115"]
["E0081116"]
["E0081219"]
["E0081356"]
["E0081357"]
["E0081359"]
["E0081360"]
["E0081441"]
["E0081471"]
["E0082147"]
["E0082229"]
["E0082709"]
["E0082885"]
["E0082886"]
["E0082893"]
["E0082903"]
["E0082949"]
["E0082961"]
["E0082979"]
["E0083018"]
["E0083041"]
["E0083043"]
["E0083053"]
["E0083065"]
["E0083074"]
["E0083078"]
["E0083080"]
["E0083094"]
["E0083102"]
["E0083115"]
["E0083119"]
["E0083121"]
["E0083125"]
["E0083127"]
["E0083128"]
["E0083195"]
["E0083230"]
["E0083231"]
["E0083233"]
["E0083242"]
["E0083279"]
["E0083543"]
["E0083736"]
["E0084504"]
["E0084749"]
["E0085029"]
["E0085096"]
["E0085205"]
["E0085669"]
["E0085905"]
["E0086986"]
["E0088022"]
["E0088105"]
["E0088108"]
["E0088112"]
["E0088114"]
["E0088115"]
["E0088122"]
["E0088215"]
["E0088216"]
["E0089087"]
["E0089088"]
["E0089090"]
["E0089415"]
["E0089416"]
["E0089417"]
["E0089419"]
["E0089426"]
["E0089591"]
["E0089630"]
["E0089761"]
["E0089812"]
["E0089910"]
["E0089987"]
["E0090122"]
["E0091367"]
["E0091585"]
["E0092212"]
["E0092277"]
["E0092415"]
["E0092668"]
["E0092683"]
["E0092737"]
["E0093549"]
["E0093651"]
["E0093876"]
["E0093968"]
["E0094047"]
["E0094444"]
["E0094813"]
["E0095154"]
["E0095380"]
["E0095802"]
["E0097722"]
["E0097774"]
["E0099337"]
["E0099342"]
["E0099446"]
["E0099448"]
["E0099452"]
["E0099457"]
["E0099466"]
["E0099468"]
["E0099479"]
["E0099481"]
["E0099485"]
["E0099491"]
["E0099503"]
["E0099507"]
["E0099508"]
["E0099509"]
["E0099513"]
["E0099521"]
["E0099527"]
["E0099543"]
["E0099544"]
["E0099550"]
["E0099554"]
["E0099556"]
["E0099560"]
["E0099563"]
["E0099566"]
["E0099567"]
["E0099569"]
["E0099572"]
["E0099576"]
["E0099578"]
["E0099584"]
["E0099591"]
["E0099594"]
["E0099657"]
["E0099663"]
["E0099684"]
["E0099686"]
["E0099688"]
["E0099698"]
["E0099731"]
["E0099737"]
["E0099757"]
["E0099775"]
["E0099777"]
["E0099796"]
["E0099805"]
["E0099810"]
["E0099820"]
["E0099823"]
["E0099832"]
["E0099845"]
["E0099856"]
["E0099864"]
["E0099879"]
["E0099889"]
["E0099979"]
["E0099989"]
["E0100035"]
["E0100046"]
["E0100049"]
["E0100050"]
["E0100051"]
["E0100052"]
["E0100053"]
["E0100055"]
["E0100126"]
["E0100129"]
["E0100153"]
["E0100163"]
["E0100168"]
["E0100186"]
["E0100213"]
["E0100231"]
["E0100233"]
["E0100240"]
["E0100242"]
["E0100243"]
["E0100247"]
["E0100252"]
["E0100260"]
["E0100262"]
["E0100311"]
["E0100349"]
["E0100352"]
["E0100428"]
["E0100446"]
["E0100449"]
["E0100455"]
["E0100458"]
["E0100463"]
["E0100466"]
["E0100467"]
["E0100468"]
["E0100471"]
["E0100507"]
["E0100606"]
["E0100609"]
["E0100610"]
["E0100615"]
["E0100616"]
["E0100778"]
["E0101220"]
["E0101603"]
["E0102000"]
["E0102156"]
["E0102326"]
["E0102494"]
["E0102496"]
["E0102753"]
["E0102771"]
["E0103801"]
["E0103823"]
["E0103825"]
["E0103841"]
["E0104103"]
["E0104256"]
["E0104352"]
["E0104402"]
["E0104466"]
["E0104467"]
["E0106523"]
["E0107152"]
["E0107194"]
["E0107200"]
["E0107277"]
["E0107909"]
["E0108452"]
["E0108792"]
["E0108888"]
["E0108910"]
["E0108963"]
["E0110146"]
["E0110722"]
["E0110898"]
["E0112820"]
["E0113108"]
["E0113372"]
["E0113619"]
["E0113983"]
["E0114147"]
["E0114245"]
["E0114420"]
["E0114451"]
["E0114452"]
["E0114460"]
["E0114575"]
["E0114612"]
["E0114651"]
["E0114652"]
["E0117098"]
["E0118121"]
["E0118831"]
["E0119258"]
["E0119387"]
["E0119968"]
["E0120105"]
["E0120108"]
["E0120452"]
["E0120826"]
["E0120841"]
["E0121169"]
["E0122201"]
["E0122241"]
["E0122369"]
["E0122425"]
["E0122635"]
["E0123514"]
["E0124323"]
["E0124369"]
["E0124373"]
["E0124389"]
["E0124725"]
["E0124799"]
["E0124927"]
["E0124977"]
["E0125070"]
["E0125471"]
["E0125670"]
["E0125681"]
["E0125930"]
["E0126614"]
["E0126662"]
["E0127315"]
["E0128057"]
["E0128084"]
["E0128193"]
["E0128713"]
["E0129152"]
["E0129674"]
["E0129856"]
["E0129904"]
["E0130698"]
["E0130707"]
["E0130854"]
["E0130956"]
["E0131708"]
["E0131897"]
["E0132091"]
["E0132496"]
["E0132718"]
["E0133039"]
["E0133319"]
["E0134046"]
["E0134087"]
["E0134351"]
["E0134778"]
["E0135605"]
["E0135649"]
["E0135893"]
["E0136087"]
["E0136196"]
["E0136332"]
["E0136382"]
["E0136465"]
["E0136480"]
["E0136483"]
["E0137125"]
["E0137888"]
["E0139312"]
["E0139455"]
["E0140138"]
["E0140308"]
["E0142633"]
["E0142815"]
["E0142816"]
["E0142820"]
["E0142833"]
["E0142970"]
["E0143081"]
["E0143387"]
["E0143844"]
["E0143846"]
["E0144097"]
["E0144103"]
["E0144237"]
["E0144304"]
["E0144360"]
["E0144364"]
["E0144458"]
["E0144496"]
["E0144692"]
["E0144784"]
["E0144792"]
["E0144842"]
["E0144857"]
["E0145157"]
["E0145261"]
["E0145551"]
["E0145638"]
["E0145759"]
["E0146048"]
["E0146062"]
["E0146137"]
["E0146140"]
["E0146921"]
["E0146928"]
["E0146972"]
["E0147125"]
["E0147438"]
["E0147443"]
["E0147689"]
["E0147819"]
["E0148088"]
["E0148315"]
["E0148981"]
["E0148984"]
["E0149460"]
["E0149973"]
["E0150287"]
["E0150289"]
["E0150290"]
["E0150346"]
["E0150501"]
["E0150722"]
["E0150724"]
["E0150760"]
["E0150830"]
["E0150869"]
["E0151209"]
["E0151585"]
["E0151837"]
["E0151885"]
["E0152375"]
["E0152694"]
["E0153531"]
["E0153601"]
["E0153647"]
["E0153931"]
["E0153944"]
["E0154190"]
["E0154192"]
["E0154247"]
["E0154333"]
["E0154681"]
["E0154742"]
["E0154898"]
["E0154978"]
["E0155128"]
["E0155150"]
["E0155208"]
["E0155618"]
["E0155637"]
["E0156068"]
["E0156126"]
["E0156343"]
["E0156428"]
["E0157155"]
["E0157166"]
["E0157278"]
["E0157326"]
["E0157553"]
["E0157672"]
["E0157693"]
["E0157831"]
["E0157894"]
["E0158046"]
["E0158073"]
["E0158183"]
["E0158243"]
["E0158344"]
["E0158852"]
["E0158888"]
["E0159072"]
["E0159380"]
["E0159381"]
["E0159389"]
["E0159401"]
["E0160438"]
["E0160699"]
["E0160700"]
["E0161565"]
["E0161692"]
["E0161767"]
["E0162134"]
["E0162601"]
["E0162617"]
["E0162796"]
["E0162867"]
["E0163504"]
["E0163656"]
["E0163841"]
["E0164071"]
["E0164074"]
["E0164240"]
["E0164320"]
["E0164368"]
["E0164524"]
["E0164525"]
["E0164674"]
["E0164722"]
["E0164761"]
["E0164894"]
["E0165320"]
["E0165383"]
["E0165385"]
["E0165585"]
["E0166319"]
["E0166474"]
["E0167454"]
["E0167785"]
["E0168123"]
["E0168368"]
["E0168642"]
["E0168833"]
["E0168926"]
["E0168933"]
["E0169359"]
["E0169407"]
["E0169409"]
["E0169413"]
["E0169438"]
["E0169461"]
["E0169485"]
["E0169488"]
["E0169495"]
["E0169505"]
["E0169507"]
["E0169510"]
["E0169514"]
["E0169518"]
["E0169519"]
["E0169537"]
["E0169539"]
["E0169560"]
["E0169563"]
["E0169564"]
["E0169567"]
["E0169574"]
["E0169580"]
["E0169662"]
["E0169919"]
["E0170294"]
["E0170359"]
["E0170809"]
["E0170960"]
["E0170965"]
["E0171031"]
["E0171045"]
["E0171120"]
["E0171701"]
["E0171825"]
["E0171875"]
["E0171891"]
["E0172084"]
["E0172300"]
["E0172396"]
["E0172610"]
["E0172626"]
["E0172925"]
["E0173283"]
["E0173563"]
["E0173839"]
["E0174076"]
["E0174410"]
["E0174448"]
["E0175216"]
["E0175546"]
["E0175558"]
["E0176530"]
["E0176666"]
["E0176909"]
["E0177240"]
["E0177246"]
["E0177297"]
["E0177298"]
["E0177448"]
["E0177449"]
["E0177450"]
["E0177451"]
["E0177453"]
["E0177454"]
["E0177676"]
["E0177700"]
["E0177804"]
["E0177812"]
["E0177901"]
["E0178118"]
["E0178342"]
["E0178429"]
["E0178668"]
["E0178669"]
["E0178827"]
["E0178852"]
["E0178976"]
["E0179097"]
["E0179125"]
["E0179413"]
["E0179492"]
["E0179587"]
["E0180257"]
["E0180581"]
["E0181163"]
["E0181259"]
["E0181774"]
["E0182069"]
["E0182361"]
["E0182692"]
["E0182705"]
["E0182729"]
["E0182757"]
["E0182793"]
["E0182794"]
["E0182902"]
["E0182909"]
["E0183316"]
["E0183374"]
["E0183901"]
["E0183960"]
["E0184037"]
["E0184088"]
["E0184220"]
["E0184481"]
["E0184552"]
["E0184965"]
["E0185155"]
["E0185173"]
["E0185301"]
["E0185305"]
["E0185563"]
["E0185643"]
["E0185750"]
["E0185772"]
["E0185962"]
["E0186527"]
["E0186549"]
["E0186747"]
["E0186963"]
["E0186993"]
["E0186994"]
["E0186995"]
["E0186996"]
["E0187013"]
["E0187014"]
["E0187015"]
["E0187016"]
["E0187269"]
["E0187504"]
["E0187782"]
["E0187836"]
["E0187867"]
["E0187913"]
["E0187999"]
["E0188000"]
["E0188152"]
["E0188210"]
["E0188242"]
["E0188355"]
["E0188365"]
["E0188378"]
["E0188379"]
["E0188381"]
["E0188396"]
["E0188402"]
["E0188405"]
["E0188452"]
["E0188543"]
["E0188545"]
["E0188552"]
["E0188553"]
["E0188650"]
["E0188746"]
["E0188750"]
["E0188774"]
["E0188777"]
["E0189104"]
["E0189105"]
["E0189111"]
["E0189515"]
["E0189594"]
["E0189597"]
["E0189602"]
["E0189629"]
["E0189695"]
["E0189712"]
["E0189972"]
["E0190037"]
["E0190789"]
["E0190871"]
["E0190872"]
["E0191002"]
["E0191144"]
["E0191323"]
["E0191326"]
["E0191415"]
["E0191530"]
["E0191633"]
["E0192649"]
["E0192943"]
["E0193034"]
["E0193435"]
["E0193489"]
["E0193750"]
["E0193757"]
["E0193758"]
["E0193815"]
["E0193827"]
["E0193839"]
["E0193971"]
["E0194351"]
["E0194490"]
["E0194566"]
["E0194567"]
["E0194920"]
["E0195309"]
["E0195662"]
["E0195857"]
["E0196070"]
["E0196095"]
["E0196106"]
["E0196146"]
["E0196149"]
["E0196240"]
["E0196241"]
["E0196336"]
["E0196573"]
["E0196595"]
["E0197400"]
["E0197420"]
["E0197548"]
["E0198034"]
["E0198220"]
["E0198501"]
["E0198553"]
["E0198578"]
["E0198746"]
["E0198978"]
["E0198984"]
["E0199043"]
["E0199171"]
["E0199221"]
["E0199271"]
["E0200308"]
["E0200311"]
["E0200783"]
["E0200824"]
["E0200980"]
["E0201106"]
["E0201801"]
["E0202652"]
["E0202879"]
["E0204099"]
["E0204762"]
["E0204956"]
["E0205030"]
["E0205216"]
["E0205217"]
["E0205262"]
["E0205316"]
["E0205357"]
["E0205519"]
["E0205521"]
["E0205948"]
["E0206111"]
["E0206443"]
["E0206510"]
["E0206515"]
["E0206516"]
["E0206517"]
["E0206687"]
["E0206752"]
["E0206870"]
["E0206973"]
["E0207099"]
["E0207101"]
["E0207145"]
["E0207221"]
["E0207222"]
["E0207224"]
["E0207228"]
["E0207230"]
["E0207232"]
["E0207233"]
["E0207235"]
["E0207236"]
["E0207306"]
["E0207320"]
["E0207322"]
["E0207373"]
["E0207377"]
["E0207419"]
["E0207420"]
["E0207421"]
["E0207525"]
["E0207527"]
["E0207530"]
["E0207531"]
["E0207532"]
["E0207617"]
["E0207618"]
["E0207619"]
["E0207620"]
["E0207621"]
["E0207622"]
["E0207625"]
["E0207626"]
["E0207648"]
["E0208072"]
["E0208294"]
["E0208964"]
["E0208967"]
["E0209049"]
["E0209381"]
["E0209477"]
["E0210071"]
["E0210099"]
["E0210895"]
["E0211053"]
["E0211240"]
["E0211291"]
["E0211358"]
["E0211359"]
["E0211360"]
["E0211361"]
["E0211380"]
["E0211419"]
["E0211639"]
["E0211788"]
["E0211840"]
["E0212047"]
["E0212049"]
["E0212050"]
["E0212103"]
["E0212211"]
["E0212568"]
["E0212569"]
["E0212570"]
["E0213196"]
["E0213354"]
["E0213357"]
["E0213489"]
["E0213538"]
["E0213789"]
["E0213804"]
["E0213805"]
["E0213836"]
["E0213837"]
["E0213838"]
["E0214665"]
["E0214895"]
["E0214924"]
["E0215043"]
["E0215393"]
["E0215587"]
["E0216515"]
["E0216700"]
["E0216844"]
["E0217045"]
["E0217046"]
["E0217182"]
["E0217200"]
["E0217412"]
["E0217766"]
["E0218422"]
["E0218426"]
["E0218705"]
["E0218706"]
["E0218935"]
["E0219052"]
["E0219339"]
["E0219340"]
["E0219341"]
["E0219600"]
["E0219601"]
["E0219602"]
["E0219603"]
["E0219781"]
["E0219890"]
["E0219916"]
["E0220189"]
["E0220374"]
["E0220584"]
["E0220612"]
["E0220887"]
["E0221487"]
["E0222110"]
["E0222111"]
["E0222503"]
["E0222561"]
["E0222569"]
["E0223014"]
["E0223301"]
["E0223429"]
["E0223720"]
["E0223721"]
["E0223913"]
["E0224586"]
["E0224814"]
["E0224971"]
["E0225220"]
["E0225234"]
["E0225405"]
["E0225800"]
["E0226119"]
["E0226224"]
["E0226276"]
["E0226325"]
["E0226327"]
["E0226468"]
["E0226660"]
["E0226709"]
["E0226747"]
["E0226770"]
["E0226816"]
["E0226817"]
["E0226818"]
["E0226819"]
["E0226820"]
["E0226821"]
["E0227382"]
["E0227923"]
["E0227924"]
["E0227925"]
["E0227926"]
["E0228277"]
["E0228356"]
["E0228358"]
["E0228359"]
["E0228777"]
["E0228779"]
["E0228883"]
["E0228886"]
["E0229135"]
["E0229222"]
["E0229223"]
["E0229818"]
["E0229837"]
["E0229999"]
["E0230000"]
["E0230001"]
["E0230003"]
["E0230004"]
["E0230005"]
["E0230007"]
["E0230109"]
["E0230418"]
["E0230419"]
["E0230420"]
["E0230879"]
["E0230881"]
["E0230883"]
["E0231330"]
["E0231332"]
["E0232514"]
["E0232703"]
["E0232805"]
["E0233163"]
["E0233567"]
["E0233568"]
["E0233632"]
["E0233869"]
["E0234512"]
["E0234705"]
["E0235131"]
["E0235888"]
["E0236685"]
["E0236767"]
["E0237114"]
["E0237115"]
["E0238980"]
["E0239953"]
["E0240105"]
["E0240227"]
["E0240641"]
["E0241557"]
["E0241559"]
["E0241560"]
["E0241897"]
["E0241901"]
["E0241902"]
["E0241903"]
["E0241904"]
["E0241905"]
["E0241906"]
["E0241907"]
["E0242159"]
["E0242160"]
["E0242856"]
["E0243089"]
["E0243166"]
["E0243382"]
["E0244653"]
["E0244655"]
["E0244763"]
["E0245061"]
["E0245062"]
["E0246775"]
["E0247684"]
["E0247757"]
["E0247758"]
["E0247759"]
["E0247760"]
["E0247761"]
["E0247774"]
["E0247775"]
["E0247780"]
["E0247781"]
["E0247782"]
["E0247784"]
["E0247785"]
["E0247790"]
["E0251892"]
["E0251920"]
["E0251922"]
["E0251923"]
["E0251924"]
["E0251934"]
["E0251938"]
["E0251939"]
["E0251940"]
["E0251943"]
["E0251949"]
["E0251950"]
["E0252188"]
["E0252192"]
["E0252202"]
["E0252206"]
["E0252632"]
["E0253740"]
["E0255282"]
["E0256474"]
["E0256522"]
["E0256523"]
["E0256526"]
["E0256582"]
["E0256583"]
["E0256584"]
["E0256585"]
["E0256777"]
["E0257232"]
["E0257252"]
["E0257375"]
["E0258234"]
["E0258235"]
["E0258236"]
["E0258237"]
["E0258944"]
["E0259269"]
["E0259909"]
["E0260037"]
["E0260722"]
["E0260887"]
["E0261364"]
["E0262395"]
["E0263421"]
["E0263442"]
["E0263446"]
["E0263448"]
["E0263460"]
["E0263462"]
["E0263467"]
["E0263489"]
["E0263490"]
["E0263492"]
["E0263495"]
["E0263497"]
["E0263498"]
["E0263504"]
["E0263505"]
["E0263509"]
["E0263516"]
["E0263517"]
["E0263518"]
["E0263520"]
["E0263521"]
["E0263522"]
["E0263524"]
["E0263525"]
["E0263527"]
["E0263532"]
["E0263533"]
["E0263537"]
["E0263539"]
["E0263540"]
["E0263541"]
["E0263597"]
["E0263665"]
["E0263670"]
["E0263671"]
["E0263679"]
["E0263680"]
["E0263683"]
["E0263685"]
["E0263695"]
["E0263701"]
["E0263713"]
["E0263714"]
["E0263715"]
["E0264391"]
["E0264515"]
["E0264828"]
["E0264832"]
["E0265066"]
["E0265095"]
["E0265096"]
["E0265420"]
["E0265422"]
["E0265451"]
["E0265516"]
["E0265858"]
["E0265900"]
["E0266808"]
["E0266897"]
["E0266932"]
["E0266937"]
["E0266942"]
["E0266973"]
["E0267315"]
["E0267441"]
["E0267532"]
["E0267612"]
["E0267644"]
["E0267650"]
["E0267652"]
["E0267667"]
["E0267685"]
["E0267712"]
["E0267716"]
["E0267746"]
["E0267754"]
["E0267756"]
["E0267757"]
["E0267762"]
["E0267807"]
["E0267808"]
["E0267816"]
["E0267822"]
["E0267836"]
["E0267852"]
["E0267857"]
["E0267859"]
["E0267860"]
["E0267865"]
["E0267873"]
["E0267882"]
["E0267959"]
["E0267960"]
["E0267961"]
["E0267966"]
["E0267974"]
["E0267977"]
["E0267988"]
["E0267995"]
["E0267997"]
["E0267999"]
["E0268000"]
["E0268001"]
["E0268004"]
["E0268018"]
["E0268019"]
["E0268024"]
["E0268029"]
["E0268030"]
["E0268036"]
["E0268037"]
["E0268038"]
["E0268041"]
["E0268042"]
["E0268043"]
["E0268049"]
["E0268051"]
["E0268055"]
["E0268060"]
["E0268062"]
["E0268063"]
["E0268065"]
["E0268085"]
["E0268092"]
["E0268106"]
["E0268109"]
["E0268111"]
["E0268112"]
["E0268113"]
["E0268120"]
["E0268121"]
["E0268122"]
["E0268126"]
["E0268132"]
["E0268133"]
["E0268134"]
["E0268137"]
["E0268138"]
["E0268141"]
["E0268143"]
["E0268151"]
["E0268154"]
["E0268155"]
["E0268156"]
["E0268160"]
["E0268163"]
["E0268174"]
["E0268179"]
["E0268180"]
["E0268182"]
["E0268188"]
["E0268194"]
["E0268198"]
["E0268200"]
["E0268202"]
["E0268211"]
["E0268233"]
["E0268247"]
["E0268265"]
["E0271631"]
["E0271632"]
["E0271633"]
["E0271638"]
["E0271639"]
["E0271640"]
["E0271650"]
["E0271661"]
["E0271757"]
["E0271758"]
["E0271759"]
["E0271764"]
["E0271800"]
["E0271803"]
["E0271804"]
["E0272235"]
["E0273096"]
["E0273098"]
["E0273210"]
["E0273528"]
["E0273606"]
["E0273821"]
["E0273823"]
["E0273824"]
["E0273825"]
["E0273826"]
["E0273827"]
["E0273828"]
["E0273831"]
["E0273832"]
["E0273834"]
["E0273835"]
["E0273852"]
["E0273853"]
["E0273867"]
["E0273871"]
["E0273872"]
["E0273882"]
["E0273884"]
["E0273885"]
["E0273886"]
["E0273891"]
["E0273894"]
["E0273896"]
["E0273901"]
["E0273903"]
["E0273904"]
["E0273909"]
["E0273910"]
["E0273914"]
["E0273917"]
["E0273921"]
["E0273924"]
["E0273925"]
["E0273926"]
["E0273928"]
["E0273930"]
["E0273933"]
["E0273935"]
["E0273936"]
["E0273941"]
["E0273942"]
["E0273947"]
["E0273948"]
["E0273962"]
["E0273963"]
["E0273965"]
["E0273967"]
["E0273975"]
["E0273982"]
["E0273983"]
["E0273986"]
["E0273988"]
["E0273989"]
["E0273990"]
["E0273997"]
["E0273998"]
["E0274000"]
["E0274001"]
["E0274006"]
["E0274015"]
["E0274017"]
["E0274018"]
["E0274021"]
["E0274022"]
["E0274024"]
["E0274025"]
["E0274028"]
["E0274029"]
["E0274030"]
["E0274032"]
["E0274033"]
["E0274044"]
["E0274045"]
["E0274048"]
["E0274050"]
["E0274053"]
["E0274055"]
["E0274057"]
["E0274062"]
["E0274063"]
["E0274066"]
["E0274067"]
["E0274069"]
["E0274074"]
["E0274075"]
["E0274103"]
["E0274104"]
["E0278367"]
["E0283453"]
["E0284481"]
["E0284496"]
["E0284682"]
["E0284765"]
["E0286515"]
["E0286594"]
["E0286595"]
["E0286625"]
["E0286632"]
["E0286634"]
["E0286637"]
["E0286707"]
["E0286708"]
["E0286714"]
["E0286718"]
["E0286723"]
["E0286741"]
["E0286744"]
["E0286782"]
["E0287536"]
["E0287872"]
["E0288002"]
["E0288379"]
["E0288455"]
["E0288631"]
["E0288643"]
["E0288769"]
["E0288864"]
["E0289048"]
["E0289579"]
["E0290082"]
["E0290120"]
["E0290256"]
["E0291019"]
["E0291190"]
["E0292475"]
["E0293704"]
["E0293812"]
["E0293816"]
["E0294311"]
["E0294341"]
["E0294444"]
["E0294792"]
["E0295248"]
["E0295319"]
["E0295423"]
["E0295571"]
["E0295758"]
["E0295762"]
["E0296101"]
["E0296517"]
["E0296548"]
["E0296760"]
["E0296836"]
["E0296840"]
["E0297438"]
["E0297459"]
["E0297460"]
["E0297463"]
["E0297465"]
["E0297573"]
["E0297935"]
["E0298217"]
["E0299146"]
["E0299177"]
["E0299183"]
["E0299474"]
["E0299574"]
["E0299654"]
["E0299666"]
["E0299899"]
["E0301727"]
["E0302011"]
["E0302457"]
["E0302806"]
["E0302886"]
["E0302888"]
["E0302905"]
["E0302938"]
["E0302946"]
["E0303142"]
["E0303513"]
["E0303522"]
["E0303930"]
["E0303989"]
["E0305543"]
["E0306039"]
["E0306048"]
["E0306167"]
["E0306370"]
["E0306484"]
["E0307104"]
["E0308996"]
["E0309501"]
["E0309786"]
["E0309853"]
["E0310772"]
["E0310775"]
["E0310894"]
["E0311528"]
["E0311728"]
["E0311760"]
["E0311781"]
["E0312041"]
["E0312043"]
["E0312173"]
["E0313600"]
["E0313955"]
["E0314294"]
["E0314396"]
["E0315234"]
["E0315243"]
["E0315247"]
["E0315368"]
["E0315648"]
["E0315691"]
["E0315728"]
["E0315798"]
["E0316220"]
["E0316245"]
["E0316375"]
["E0316457"]
["E0317317"]
["E0317883"]
["E0320768"]
["E0321551"]
["E0322331"]
["E0322394"]
["E0322559"]
["E0322801"]
["E0323459"]
["E0323854"]
["E0323857"]
["E0323984"]
["E0324015"]
["E0324037"]
["E0324117"]
["E0324120"]
["E0325028"]
["E0325166"]
["E0325308"]
["E0326090"]
["E0326274"]
["E0326672"]
["E0327055"]
["E0328576"]
["E0329275"]
["E0333197"]
["E0333589"]
["E0335775"]
["E0335778"]
["E0335793"]
["E0335796"]
["E0337578"]
["E0337610"]

{"sheet":"Notepad","index":4,"n_rows":166,"n_cols":1,"rows_kept":166,"cut":false,"hidden":false,"merged":[[14,1,14,9],[15,1,15,9],[16,1,16,9],[17,1,17,9],[18,1,18,9],[12,1,12,9],[13,1,13,9],[6,1,6,9],[7,1,7,9],[8,1,8,9],[9,1,9,9],[10,1,10,9],[11,1,11,9],[25,1,25,9],[26,1,26,9],[27,1,27,9],[28,1,28,9],[29,1,29,9],[19,1,19,9],[21,1,21,9],[22,1,22,9],[23,1,23,9],[24,1,24,9],[35,1,35,9],[36,1,36,9],[37,1,37,9],[38,1,38,9],[39,1,39,9],[30,1,30,9],[31,1,31,9],[32,1,32,9],[33,1,33,9],[34,1,34,9],[45,1,45,9],[46,1,46,9],[47,1,47,9],[48,1,48,9],[49,1,49,9],[40,1,40,9],[41,1,41,9],[42,1,42,9],[43,1,43,9],[44,1,44,9],[55,1,55,9],[56,1,56,9],[57,1,57,9],[58,1,58,9],[60,1,60,9],[50,1,50,9],[51,1,51,9],[52,1,52,9],[53,1,53,9],[54,1,54,9],[66,1,66,9],[67,1,67,9],[69,1,69,9],[70,1,70,9],[71,1,71,9],[61,1,61,9],[62,1,62,9],[63,1,63,9],[64,1,64,9],[65,1,65,9],[77,1,77,9],[78,1,78,9],[79,1,79,9],[80,1,80,9],[81,1,81,9],[72,1,72,9],[73,1,73,9],[74,1,74,9],[75,1,75,9],[76,1,76,9],[89,1,89,9],[90,1,90,9],[91,1,91,9],[92,1,92,9],[93,1,93,9],[84,1,84,9],[85,1,85,9],[86,1,86,9],[87,1,87,9],[88,1,88,9],[99,1,99,9],[100,1,100,9],[101,1,101,9],[102,1,102,9],[103,1,103,9],[94,1,94,9],[95,1,95,9],[96,1,96,9],[97,1,97,9],[98,1,98,9],[109,1,109,9],[110,1,110,9],[111,1,111,9],[112,1,112,9],[113,1,113,9],[104,1,104,9],[105,1,105,9],[106,1,106,9],[107,1,107,9],[108,1,108,9],[119,1,119,9],[120,1,120,9],[121,1,121,9],[122,1,122,9],[123,1,123,9],[114,1,114,9],[115,1,115,9],[116,1,116,9],[117,1,117,9],[118,1,118,9],[129,1,129,9],[130,1,130,9],[131,1,131,9],[132,1,132,9],[133,1,133,9],[124,1,124,9],[125,1,125,9],[126,1,126,9],[127,1,127,9],[128,1,128,9],[139,1,139,9],[140,1,140,9],[141,1,141,9],[142,1,142,9],[143,1,143,9],[134,1,134,9],[135,1,135,9],[136,1,136,9],[137,1,137,9],[138,1,138,9],[149,1,149,9],[150,1,150,9],[151,1,151,9],[152,1,152,9],[153,1,153,9],[144,1,144,9],[145,1,145,9],[146,1,146,9],[147,1,147,9],[148,1,148,9],[164,1,164,9],[165,1,165,9],[159,1,159,9],[160,1,160,9],[161,1,161,9],[162,1,162,9],[163,1,163,9],[154,1,154,9],[155,1,155,9],[156,1,156,9],[157,1,157,9],[158,1,158,9]]}
["Notepad for Hurricane Sandy Survey"]
[]
["When utilizing the Notepad, enter the information on the appropriate line "]
["number that corresponds with the question from the Survey."]
[]
[]
["1a."]
["1b."]
["1c."]
["1d."]
["1e."]
["1f."]
["1g."]
["1h."]
["1i."]
["1j."]
["1k."]
["1l."]
["1m."]
["1n."]
[]
["2a."]
["2b."]
["2c."]
["2d."]
["2e."]
["2f."]
["2g."]
[]
[]
[]
[]
[]
[]
[]
[]
["2h."]
["2i."]
["2j."]
["2k."]
["2l."]
[]
[]
[]
[]
[]
[]
[]
[]
[]
["3a."]
["3b."]
["3c."]
["3d."]
["3e."]
["3f."]
["3g."]
["3h."]
["3i."]
[]
["3j."]
["3k."]
["3l."]
["3m."]
["3n."]
["4a."]
["4b."]
["4c."]
[]
["5a."]
["5b."]
["5c."]
["5d."]
["5e. "]
["5f."]
["5g. "]
["6a."]
["6b."]
["6c."]
["6d."]
["6e."]
["6f."]
[]
[]
[7]
["7a."]
["7b."]
["7c."]
[8]
[{"$f":"SUM(A89+1)","v":9}]
[{"$f":"SUM(A90+1)","v":10}]
[11]
[12]
["12a."]
["12b."]
[{"$f":"A93+1","v":13}]
["13a."]
["13b."]
[{"$f":"A96+1","v":14}]
[{"$f":"A99+1","v":15}]
[{"$f":"A100+1","v":16}]
[17]
[18]
[19]
[20]
[21]
["21a."]
["21b."]
["21c."]
["21d."]
["21e."]
["21f."]
[]
[]
[]
[{"$f":"A106+1","v":22}]
[{"$f":"A116+1","v":23}]
[{"$f":"A117+1","v":24}]
[25]
[26]
[27]
[28]
[29]
["29a."]
["29b."]
[{"$f":"A123+1","v":30}]
[{"$f":"A126+1","v":31}]
[{"$f":"A127+1","v":32}]
[33]
[34]
[35]
[36]
[37]
[38]
[39]
[40]
[41]
[42]
["42a."]
["42b."]
["42c."]
["42d."]
[]
[]
[]
[]
[{"$f":"A138+1","v":43}]
["43a."]
["43b."]
["43c."]
["43d."]
["43e."]
[{"$f":"A147+1","v":44}]
["44a."]
["44b."]
["44c."]
["44d."]
["44e."]
[]
[]
[]
[]
[45]
[]
[46]
[47]

{"sheet":"Facility_Info","index":5,"n_rows":2077,"n_cols":12,"rows_kept":2077,"cut":false,"hidden":true,"merged":[]}
[1,2,3,4,5,6,7,8,9,10,11,12]
[]
[]
["Provider Type","Entity Name","Entity ID","Taxpayer Federal ID (from MDW)","Taxpayer Name (from MDW) (Defaults to Entity Name if Fed ID is blank)","Operating Certificate","MMIS Provide Number","Taxpayer Addr Line 2","Taxpayer Addr Str","Taxpayer Addr City","Taxpayer Addr St","Taxpayer Postal Cd"]
["OPWDD  ","MARANATHA HUMAN SVCS INC DAY","E0029627",null,"MARANATHA HUMAN SVCS INC DAY","",""]
["CHHA","VNA OF BROOKLYN LTHHCP","E0228356","111977434","VNA OF BROOKLYN LTHHCP",7001903,"00713497",null,"15 METROTECH CTR FL 11","BROOKLYN","NY","11201-3818"]
["CHHA","FAM CERT SVCS BKLYN/QUEENS","E0186963","112785946","CONNECT FAM CARE SVC OF BKLYN",7001626,"01129257","120 W JOHN ST SUG","VICE PRESIDENT","HICKSVILLE","NY","11801"]
["CHHA","PERSONAL TOUCH HOME AIDES NY","E0189111","112811983","PERSONAL TOUCH HOME AIDES OF NY INC",7001625,"01107648",null,"2701 EMMONS AVE","BROOKLYN","NY","11235-2209"]
["CHHA","FIRST TO CARE HOME CARE","E0128713","113300822","FIRST TO CARE HOME CARE",7001631,"01713097","6323 7TH AVE","PAT EULO","BROOKLYN","NY","11220-4742"]
["CHHA","EXTENDED HOME CARE","E0102753","113351382","EXTENDED HOME CARE",7002653,"01973037",null,"360 W 31ST ST FL 3","NEW YORK","NY","10001-2727"]
["CHHA","SELFHELP SPECIAL FAM HC INC","E0144097","133801721","SELFHELP SPECIAL FAM HC INC",7002651,"01552096",null,"520 8TH AVE DEPT 5TH","NEW YORK","NY","10018-6507"]
["CHHA","GAMZEL NY INC","E0145551","201976901","GAMZEL NY INC",7001635,"01544449",null,"5350 KINGS HWY","BROOKLYN","NY","11203-6703"]
["CHHA","PRIME HOME HEALTH SRVCS","E0008698","205202959","PRIME HOME HEALTH SRVCS",7001637,"02915093",null,"3125 EMMONS AVE","BROOKLYN","NY","11235-1724"]
["CHHA","VIP CERTIFIED HEALTH SERVICES LLC","E0315728","273298203","VIP CERTIFIED HEALTH SERVICES",7003615,"01078688",null,"116-12 MYRTLE AVENUE","RICHMOND HILL","NY","11418-1748"]
["CHHA","METROPOLITAN JEWISH HM CARE","E0059364","320060822","METROPOLITAN JEWISH HM CARE",7002656,"02407638","6323 7TH AVE","DIRECTOR A/R 2ND FL","BROOKLYN","NY","11220-4742"]
["Clinic/Other","CARING HOSPICE SER OF NY LLC","E0060529","043672401","CARING HOSPICE SER OF NY LLC","7001503F","02395980",null,"525 RT 70 SU B-15","LAKEWOOD","NJ","08701"]
["Clinic/Other","KINGSBROOK JEWISH MED CTR","E0104352","111631759","KINGSBROOK JEWISH MEDICAL CENTER","","01957033",null,"585 SCHENECTADY AVE","BROOKLYN","NY","11203-1809"]
["Clinic/Other","FAMILY SERVICE LEAGUE","E0026490","111631827","FAMILY SERVICE LEAGUE OF SUFFOLK","P7171101","00659412","790 PARK AVENUE","FAMILY SERVICE LEAGUE INC","HUNTINGTON","NY","11743"]
["Clinic/Other","CHILD CENTER OF NY, THE","E0273986","111733454","CHILD CENTER OF NY","P6734100","02999168","LOWR LEVEL","6002 QUEENS BLVD","WOODSIDE","NY","11377-4973"]
["Clinic/Other","LONG ISLAND CONSULTATION CTR","E0274018","111792226","LONG ISLAND CONSULTATION CTR","P9715100","00244019",null,"9729 64TH RD","REGO PARK","NY","11374-2240"]
["Clinic/Other","NO SHORE CHILD & FAM GUID","E0159380","111797183","NO SHORE CHILD & FAM GUID","P6795120","02995935",null,"480 OLD WESTBURY RD","ROSLYN HEIGHTS","NY","11577-2215"]
["OPWDD  ","ELMYS SPECIAL SERVICES DAY","E0029740","020590957","ELMYS SPECIAL SERVICES INC","","",null,"163 VAN BUREN ST","BROOKLYN","NY","11221-1318"]
["OPWDD  ","ELMYS SPECIAL SERVICES INC SPV","E0291019","020590957","ELMYS SPECIAL SERVICES INC","","",null,"163 VAN BUREN ST","BROOKLYN","NY","11221-1318"]
["OPWDD  ","ELMYS SPECIAL SERVICES RSP","E0022088","020590957","ELMYS SPECIAL SERVICES INC","","",null,"163 VAN BUREN ST","BROOKLYN","NY","11221-1318"]
["Clinic/Other","EPILEPSY FDTN OF LONG ISLAND","E0263679","111821135","EPILEPSY FOUNDATION OF LONG ISLAND","P6751100","00355028",null,"506 STEWART AVE","GARDEN CITY","NY","11530-4706"]
["Clinic/Other","BLEULER PSYCHOTHERAPY CTR","E0273997","111840049","BLEULER PSYCHOTHERAPY CTR","P6676100","00244266","10470 QUEENS BLVD","STE 200/BILLING CO","FOREST HILLS","NY","11375-3694"]
["Clinic/Other","SOUTHEAST NASSAU GUIDANCE","E0259909","111874531","SOUTHEAST NASSAU GUIDANCE","P6801100","03003078","2146 JACKSON AVE","FLORENCE REINSTEIN","SEAFORD","NY","11783-2606"]
["Clinic/Other","SOUTH SHORE CHILD GUIDANCE CT","E0265451","111881881","SOUTH SHORE CHILD GUIDANCE CT","P6802120","03001127",null,"17 W MERRICK RD","FREEPORT","NY","11520-3826"]
["Clinic/Other","PEDERSON KRAG CENTER INC","E0028444","111955477","PEDERSON KRAG CENTER INC","P6816100","02993575",null,"55 HORIZON DR","HUNTINGTON","NY","11743-4436"]
["Clinic/Other","CATH CHAR NGHBHD SVCS INC GRACI ICF","E0187015","112047151","BUILDERS FOR THE FAMILY & YOUTH","06465453","01128638",null,"191 JORALEMON ST","BROOKLYN","NY","11201-4306"]
["Clinic/Other","CATHOLIC HOME CARE","E0266932","112126736","NURSING SISTERS HOME CARE INC","29096000","00321935",null,"15 POWER DR","HAUPPAUGE","NY","11788-4229"]
["Clinic/Other","PAUL J COOPER CTR/HUMAN SVCS","E0273936","112245967","PAUL J COOPER CENTER FOR HUMAN SERV","P6689100","02999439",null,"519 ROCKAWAY AVE","BROOKLYN","NY","11212-5638"]
["Clinic/Other","PENINSULA COUNSELING CTR","E0273948","112289028","PENINSULA COUNSELING CTR","P6797100","00244817",null,"50 WEST HAWTHORNE AVENUE","VALLEY STREAM","NY","11580-6220"]
["Clinic/Other","CANARSIE AWARE INC","E0147125","112314746","CANARSIE AWARE INC","P8876200","01528707",null,"1285 ROCKAWAY AVE","BROOKLYN","NY","11236-2330"]
["Clinic/Other","CENTRAL NASSAU GUIDANCE & CNS","E0260887","112438388","CENTRAL NASSAU GUID & CNSL","6654017A","00383477",null,"950 S OYSTER BAY RD","HICKSVILLE","NY","11801-3510"]
["Clinic/Other","ANGELO J MELILLO CTR FOR MH","E0263683","112438437","ANGELO J MELILLO CTR FOR MH","P6804100","00354985",null,"113 GLEN COVE AVE","GLEN COVE","NY","11542-3438"]
["Clinic/Other","PROFESSIONAL SVC ASTORIA DT","E0158888","112542430","PSCH, INC.","D7437321","01410833",null,"2244 119TH ST","COLLEGE POINT","NY","11356-2516"]
["Clinic/Other","PROFESSIONAL SVC CTR HANDICAP","E0154333","112542430","PSCH, INC.","P7401421","01456495",null,"2244 119TH ST","COLLEGE POINT","NY","11356-2516"]
["Clinic/Other","PSCH INC KRESS ICF","E0293704","112542430","PSCH, INC.","07437323","03105075",null,"2244 119TH ST","COLLEGE POINT","NY","11356-2516"]
["Clinic/Other","HISPANIC COUNSELING CNTR  INC","E0196070","E0196070","HISPANIC COUNSELING CTR HCBS1","CD010806","01037952",null,"175 FULTON AVE","HEMPSTEAD","NY","11550-3718"]
["Clinic/Other","COMMUNITY COUNSEL MEDIATION","E0159381","112675243","COMMUNITY COUNSELING & MEDIATION","P7655100","02993442",null,"1 HOYT STREET, 7TH FL","BROOKLYN","NY","11201-5809"]
["Clinic/Other","MENTAL HLTH PROV/W QUEENS  MH","E0078340","112700062","MENTAL HLTH PROV/W QUEENS MH","P7587110","02995820",null,"4404 QUEENS BLVD","SUNNYSIDE","NY","11104-2406"]
["Clinic/Other","SOUTH OAKS HOSPITAL","E0271633","112837244","THE LONG ISLAND HOME","5199001N","00274391",null,"400 SUNRISE HWY","AMITYVILLE","NY","11701-2508"]
["Clinic/Other","WOMENS LEAGUE COMM RES 3 ICF","E0241557","112889774","WOMENS LEAGUE COMMUNITY RESIDENCES","07040442","00581200",null,"1556 38TH ST","BROOKLYN","NY","11218-4408"]
["Clinic/Other","S M TRANSPORTATION LTD","E0202879","113050685","S M TRANSPORTATION LTD","00030514","00968878",null,"9215 147TH PL","JAMAICA","NY","11435-4312"]
["Clinic/Other","PENINSULA HOSPITAL CENTER","E0274029","116037195","PENINSULA HOSPITAL CENTER","7003006H","00243898","5115 BEACH CHANNEL DR","PRIVATE DUTY NURSING","FAR ROCKAWAY","NY","11691-1042"]
["Clinic/Other","DEVELOPMENTAL DIS INST MT SIN","E0194490","116077347","DEVELOPMENTAL DISABILITIES INSTITUT","06917444","01053772",null,"99 HOLLYWOOD DR","SMITHTOWN","NY","11787-3135"]
["Clinic/Other","BROOKLYN CTR PSYCHOTHERAPY","E0273962","116083619","BROOKLYN CTR PSYCHOTHERAPY","P6727100","00244651",null,"300 FLATBUSH AVE","BROOKLYN","NY","11217-2812"]
["Clinic/Other","NEW YORK FOUNDLING HOSPITAL, THE","E0020149","131624123","NEW YORK FOUNDLING HOSPITAL","CD011541","02800457",null,"590 AVENUE OF THE AMERICAS","NEW YORK","NY","10011-2097"]
["Clinic/Other","CALVARY HHA & HOSPICE CARE","E0097722","131740274","CALVARY HHA & HOSPICE CARE","7003503F","02023403","1740 EASTCHESTER RD","CON OFF FIN ADMIN","BRONX","NY","10461-2300"]
["Clinic/Other","PROVIDENCE REST NON OCC","E0186549","131740301","PROVIDENCE REST NON OCC","7000306D","01133297",null,"3304 WATERBURY AVE","BRONX","NY","10465-1554"]
["Clinic/Other","GUIDANCE CENTER,INC","E0243089","131839684","THE GUIDENCE CENTER INC SMP","6588010A","00565848",null,"70 GRAND ST","NEW ROCHELLE","NY","10801-5606"]
["Clinic/Other","THE BRIDGE INC MH","E0081356","131919799","THE BRIDGE INC,","P6142300","02997620",null,"248 W 108TH ST","NEW YORK","NY","10025-2956"]
["OPWDD  ","MERCY DRIVE INC DAY","E0001410","043831639","MERCY DRIVE INC","","",null,"7235 112TH ST STE PR1","FOREST HILLS","NY","11375-5451"]
["OPWDD  ","MERCY DRIVE INC RSP","E0001392","043831639","MERCY DRIVE INC","","",null,"7235 112TH ST STE PR1","FOREST HILLS","NY","11375-5451"]
["OPWDD  ","INDEPENDENT SUPPORT SERVICES PTL","E0297438","050535944","INDEPENDENT SUPPORT SERVICES INC","","",null,"95 GLEN WILD RD","ROCK HILL","NY","12775-6705"]
["Clinic/Other","METROPOLITAN CTR FOR MNTL HLT","E0273990","131978365","METROPOLITAN CTR FOR MNTL HLT","P6722100","00244335",null,"160 W 86TH ST","NEW YORK","NY","10024-4018"]
["Clinic/Other","ABBOTT HOUSE INC","E0163504","131991946","ABBOTT HOUSE","R8532430","02996490",null,"100 N BROADWAY","IRVINGTON","NY","10533-1235"]
["OASAS  ","ARMS ACRES","E0157894","061011594","ARMS ACRES","","",null,"75 SEMINARY HILL RD","CARMEL","NY","10512-1921"]
["Clinic/Other","MENTAL HLTH ASSOC ROCKLAN CO","E0024190","132574845","MENTAL HLTH ASSOC ROCKLAN CO","P7196420","02995191",null,"140 ROUTE 303","VALLEY COTTAGE","NY","10989-5906"]
["OMH  ","MORRIS HEIGHTS HEALTH CENTER","E0240641","061081232","MORRIS HEIGHTS HLTH CTR AI","7000236R","00590390","85 W BURNSIDE AVE","PRESIDENT/CEO","BRONX","NY","10453-4015"]
["Clinic/Other","FORTUNE SOCIETY INC, THE","E0026174","132645436","FORTUNE SOCIETY INC, THE","P8095001A","02740141",null,"2976 NORTHERN BLVD","LONG ISLAND CITY","NY","11101-2822"]
["Clinic/Other","BELLEVUE HOSP ACT PROGRAM","E0027973","132655001","NYC HEALTH AND HOSPITALS CORP","6566471A","02995944",null,"230 W 41ST ST RM 508","NEW YORK","NY","10036-7207"]
["OMH  ","JOSEPH P ADDABBO FAMILY HLTH","E0200783","061181226","JOSEPH P ADDABBO FAMILY HLTH","7003234R","00990152",null,"6200 BEACH CHANNEL DR","ARVERNE","NY","11692-1409"]
["OPWDD  ","STONY FORD FOUNDATION DAY","E0029973","061207341","STONY FORD FOUNDATION INC","","",null,"390 CRYSTAL RUN RD STE 105","MIDDLETOWN","NY","10941-4051"]
["Clinic/Other","BRC HUMAN SERVICES CORP SCM","E0142815","132736659","BRC HUMAN SER AADC","P6005180","02995802",null,"324 LAFAYETTE ST FL 8","NEW YORK","NY","10012-2726"]
["Clinic/Other","VILLAGE CENTER FOR CARE","E0177246","132911059","VILLAGE CENTER FOR CARE","07002648","01226544",null,"154 CHRISTOPHER ST, STE 2D","NEW YORK","NY","10014-2840"]
["OPWDD  ","FOOTINGS INC     DAY","E0030244","061364619","FOOTINGS INC","","","440 RTE 17M","PO BOX 2038","MONROE","NY","10949-8538"]
["OASAS  ","PUTNAM FAMILY & COMM SER  MH","E0092737","061485158","PUTNAM FAMILY & COMM SER MH","","",null,"1808 ROUTE 6","CARMEL","NY","10512-2356"]
["Clinic/Other","NORTH GENERAL HOSPITAL","E0263671","132996345","NORTH GENERAL HOSPITAL","7002052H","00355142","BAYCHESTER STA","PO BOX 500","BRONX","NY","10469-0500"]
["Clinic/Other","TERENCE CARD COOKE ST THERESA","E0226747","133110063","TERENCE CARD COOKE ST THERESA","07482440","00729617","1249 5TH AVE","THOMAS FINNEN","NEW YORK","NY","10029-4413"]
["Clinic/Other","ST MARKS PLACE INSTITUTE","E0217412","133206435","ST MARKS PL INST MH INC TBI","P7574100","00823212",null,"57 SAINT MARKS PL","NEW YORK","NY","10003-7902"]
["Clinic/Other","JACOB PERLOW HOSPICE","E0191415","133438643","JACOB PERLOW HOSPICE","7002504F","01084573",null,"FIRST AVENUE AT 16TH ST","NEW YORK","NY","10003-9999"]
["Clinic/Other","CIS COUNSELING CENTER INC","E0191633","133480517","CIS COUNSELING CENTER INC","P7902100","01082397",null,"PO BOX 4619","RENSSELAER","NY","12144-8614"]
["Clinic/Other","GRACIE SQUARE GENERAL HOSP","E0271764","133746997","GRACIE SQUARE GENERAL HOSP","7002043H","00273047",null,"420 E 76TH ST","NEW YORK","NY","10021-3104"]
["OMH  ","BRUNSWICK HALL","E0225405","110589550","BRUNSWICK HOSPITAL CENTER, INC","","",null,"366 BROADWAY","AMITYVILLE","NY","11701-2711"]
["Clinic/Other","149TH ST OPTICAL INC","E0143846","133819431","149TH ST OPTICAL INC",null,"01561531",null,"399 E 149TH ST","BRONX","NY","10455-3902"]
["Clinic/Other","BIALYSTOKER CTR NRS & REH","E0267977","135562169","BIALYSTOKER HOME INFIRMARY","7002308N","00311284",null,"228 E BROADWAY","NEW YORK","NY","10002-5601"]
["Clinic/Other","HAMILTON-MADISON HOUSE,INC","E0273917","135562412","HAMILTON-MADISON HOUSE,INC","6178008A","00245143","253 SOUTH ST FL 3","BILLING COORDINATOR","NEW YORK","NY","10002-7827"]
["OMH  ","BROOKLYN BUREAU OF COMM SRV","E0147438","111630780","BROOKLYN BUREAU OF COMMUNITY SVC","","",null,"285 SCHERMERHORN ST","BROOKLYN","NY","11217-1024"]
["OPWDD  ","BKLYN BUREAU OF COMM SVC","E0029784","111630780","BROOKLYN BUREAU OF COMMUNITY SVC","","",null,"285 SCHERMERHORN ST","BROOKLYN","NY","11217-1024"]
["OPWDD  ","BROOKLYN BUR OF COMM SVC SMP","E0082949","111630780","BROOKLYN BUREAU OF COMMUNITY SVC","","",null,"285 SCHERMERHORN ST","BROOKLYN","NY","11217-1024"]
["OPWDD  ","BROOKLYN BUREAU OF COMM SRVC SPT","E0296101","111630780","BROOKLYN BUREAU OF COMMUNITY SVC","","",null,"285 SCHERMERHORN ST","BROOKLYN","NY","11217-1024"]
["OPWDD  ","HELEN KELLER SERVICES F/T BLIND DAY","E0286515","111630807","HELEN KELLER SVCS F/T BLD ND1","","","57 WILLOUGHBY ST",null,"BROOKLYN","NY","11201-5290"]
["OPWDD  ","HELEN KELLER SVCS F/T BLD ND1","E0068525","111630807","HELEN KELLER SVCS F/T BLD ND1","","","57 WILLOUGHBY ST",null,"BROOKLYN","NY","11201-5290"]
["Clinic/Other","STATEN ISLAND MENTAL HLTH SOC","E0273989","135623279","SI MENTAL HEALTH SOCIETY MR","P6568121","00244344","669 CASTLETON AVE",null,"STATEN ISLAND","NY","10301-2028"]
["Clinic/Other","KIRBY FORENSIC","E0122369","141663311","NYS OFFICE OF MENTAL HEALTH","NYOMH081","01776609",null,"44 HOLLAND AVE 1ST FL","ALBANY","NY","12229-3411"]
["Clinic/Other","MANHATTAN MEYER            PC","E0251892","141663311","NYS OFFICE OF MENTAL HEALTH","NYOMH010","00476875",null,"44 HOLLAND AVE 1ST FL","ALBANY","NY","12229-3411"]
["Clinic/Other","BROOKLYN DC APT 2K ICF","E0174448","146013200","STATE OF NEW YORK COMPTROLLERS OFFC","00235631","01254571",null,"110 STATE STREET","ALBANY","NY","12207-2004"]
["Clinic/Other","BROOKLYN DC T SHIRTZ #1 ICF","E0205217","146013200","STATE OF NEW YORK COMPTROLLERS OFFC","00235629","00945446",null,"110 STATE STREET","ALBANY","NY","12207-2004"]
["Clinic/Other","BROOKLYN DC T SHIRTZ #2 ICF","E0204099","146013200","STATE OF NEW YORK COMPTROLLERS OFFC","00235629","00956643",null,"110 STATE STREET","ALBANY","NY","12207-2004"]
["OPWDD  ","JAMAICA HOSPITAL MED CTR SPV","E0075355","111631788","JAMAICA HOSPITAL","","",null,"8900 VAN WYCK EXPRESSWAY","JAMAICA","NY","11418-2897"]
["Clinic/Other","JEWISH GUILD FOR THE BLIND DT","E0183374","201480790","JGB MNTL HLTH & MNTL RET SVCS INC","D6023350","02994892","15 W 65TH ST","FINANCE OFFICE","NEW YORK","NY","10023-6601"]
["Clinic/Other","ALLMEDICAL SERVICE INC","E0024760","223770926","ALLMEDICAL SERVICE INC","00035638","02754314",null,"2669 BROWN ST FL 2","BROOKLYN","NY","11235-1603"]
["Clinic/Other","WARTBURG NH SNF BROOKLYN","E0303930","262801131","WARTBURG RECEIVER LLC","7001304N","00313662",null,"855 BRUSH AVE","BRONX","NY","10465-1808"]
["OPWDD  ","ST VINCENTS SERVICES GOWANUS","E0240227","111631823","ST VINCENTS SERVICES INC","","",null,"66 BOERUM PLACE","BROOKLYN","NY","11201"]
["OPWDD  ","ST VINCENTS SERVICES ICF","E0071319","111631823","ST VINCENTS SERVICES INC","","",null,"66 BOERUM PLACE","BROOKLYN","NY","11201"]
["OPWDD  ","ST VINCENTS SERVICES INC SPV","E0074657","111631823","ST VINCENTS SERVICES INC","","",null,"66 BOERUM PLACE","BROOKLYN","NY","11201"]
["OPWDD  ","ST VINCENTS SRV PARK SLOPE","E0219341","111631823","ST VINCENTS SERVICES INC","","",null,"66 BOERUM PLACE","BROOKLYN","NY","11201"]
["OPWDD  ","ST VINCENTS SVC WILLIAMSBURG","E0182757","111631823","ST VINCENTS SERVICES INC","","",null,"66 BOERUM PLACE","BROOKLYN","NY","11201"]
["Clinic/Other","GASTROENTEROLOGY CARE INC","E0325166","263101232","GASTROENTEROLOGY CARE INC","7001128R","03380861",null,"8622 BAY PKWY","BROOKLYN","NY","11214-4168"]
["Clinic/Other","THE BRONX CENTER FOR RENAL DIALYSIS","E0322394","270659777","THE BRONX CENTER FOR RENAL DIALYSIS","7000280R","03358243",null,"1010 UNDERHILL AVE","BRONX","NY","10472-6012"]
["Clinic/Other","VNS OF NY HOSPICE CARE","E0194920","300006817","VISITING NURSE SERVICE OF NY HOSPIC","7002503F","01049476",null,"1250 BROADWAY FL 5","NEW YORK","NY","10001-3701"]
["OPWDD  ","HEART SHARE C WHITE RESIDENCE","E0263518","111633549","HEARTSHARE HUMAN SERV ICES NY","","",null,"12 METROTECH CENTER, 29TH FL","BROOKLYN","NY","11201-3858"]
["OPWDD  ","HEART SHARE CLERMONT ICF","E0258236","111633549","HEARTSHARE HUMAN SERV ICES NY","","",null,"12 METROTECH CENTER, 29TH FL","BROOKLYN","NY","11201-3858"]
["OPWDD  ","HEART SHARE CLINTON ICF","E0258237","111633549","HEARTSHARE HUMAN SERV ICES NY","","",null,"12 METROTECH CENTER, 29TH FL","BROOKLYN","NY","11201-3858"]
["OPWDD  ","HEART SHARE CUITE ICF","E0241897","111633549","HEARTSHARE HUMAN SERV ICES NY","","",null,"12 METROTECH CENTER, 29TH FL","BROOKLYN","NY","11201-3858"]
["OPWDD  ","HEART SHARE DOONAN-DRAKE ICF","E0244763","111633549","HEARTSHARE HUMAN SERV ICES NY","","",null,"12 METROTECH CENTER, 29TH FL","BROOKLYN","NY","11201-3858"]
["OPWDD  ","HEART SHARE FERRARO ICF","E0214895","111633549","HEARTSHARE HUMAN SERV ICES NY","","",null,"12 METROTECH CENTER, 29TH FL","BROOKLYN","NY","11201-3858"]
["OPWDD  ","HEARTSHARE HUMAN SERVICES ND4","E0063759","111633549","HEARTSHARE HUMAN SERV ICES NY","","",null,"12 METROTECH CENTER, 29TH FL","BROOKLYN","NY","11201-3858"]
["OPWDD  ","HEARTSHARE HUMAN SERVICES RSP","E0040974","111633549","HEARTSHARE HUMAN SERV ICES NY","","",null,"12 METROTECH CENTER, 29TH FL","BROOKLYN","NY","11201-3858"]
["OPWDD  ","HEARTSHARE HUMAN SERVICES SPV","E0075380","111633549","HEARTSHARE HUMAN SERV ICES NY","","",null,"12 METROTECH CENTER, 29TH FL","BROOKLYN","NY","11201-3858"]
["OPWDD  ","HEARTSHARE HUMAN SVC BUCKLEYS","E0150289","111633549","HEARTSHARE HUMAN SERV ICES NY","","",null,"12 METROTECH CENTER, 29TH FL","BROOKLYN","NY","11201-3858"]
["OPWDD  ","HEARTSHARE HUMAN SVC HART ICF","E0160700","111633549","HEARTSHARE HUMAN SERV ICES NY","","",null,"12 METROTECH CENTER, 29TH FL","BROOKLYN","NY","11201-3858"]
["OPWDD  ","HEARTSHARE HUMAN SVC SHARKEY","E0147819","111633549","HEARTSHARE HUMAN SERV ICES NY","","",null,"12 METROTECH CENTER, 29TH FL","BROOKLYN","NY","11201-3858"]
["OPWDD  ","HEARTSHARE HUMAN SVCS DAY","E0030256","111633549","HEARTSHARE HUMAN SERV ICES NY","","",null,"12 METROTECH CENTER, 29TH FL","BROOKLYN","NY","11201-3858"]
["OPWDD  ","HEARTSHARE HUMAN SVCS EATON","E0323854","111633549","HEARTSHARE HUMAN SERV ICES NY","","",null,"12 METROTECH CENTER, 29TH FL","BROOKLYN","NY","11201-3858"]
["Clinic/Other","METROPOLITAN/JEWISH HSPC GNY/MJH","E0309501","320060822","METROPOLITAN JEWISH HM CARE","7001505F","00955748","6323 7TH AVE","DIRECTOR A/R 2ND FL","BROOKLYN","NY","11220-4742"]
["Clinic/Other","RICHMOND CTR REHAB & SPEC HLTH ADHC","E0337578","452630423","SV OPERATING THREE LLC","7004317D","01985753",null,"1601 BRONXDALE AVE","BRONX","NY","10462-3364"]
["OPWDD  ","LITL FLOWER CHILD SVC NY HCBS","E0150501","111633572","LITTLE FLOWER CHILDRENS SERVICE NY","","",null,"2450 N WADING RIVER RD","WADING RIVER","NY","11792-1402"]
["OPWDD  ","LITTLE FLOWER CHILD SV BROOKL","E0256585","111633572","LITTLE FLOWER CHILDRENS SERVICE NY","","",null,"2450 N WADING RIVER RD","WADING RIVER","NY","11792-1402"]
["OPWDD  ","LITTLE FLOWER CHILD SV ICF#1","E0212050","111633572","LITTLE FLOWER CHILDRENS SERVICE NY","","",null,"2450 N WADING RIVER RD","WADING RIVER","NY","11792-1402"]
["OPWDD  ","LITTLE FLOWER CHILD SV ICF#2","E0212049","111633572","LITTLE FLOWER CHILDRENS SERVICE NY","","",null,"2450 N WADING RIVER RD","WADING RIVER","NY","11792-1402"]
["OPWDD  ","LITTLE FLOWER CHILDRENS ND1","E0068092","111633572","LITTLE FLOWER CHILDRENS SERVICE NY","","",null,"2450 N WADING RIVER RD","WADING RIVER","NY","11792-1402"]
["Clinic/Other","COMPASSIONATE CARE HOSPICE NY","E0045029","510455575","COMPASSIONATE CARE HOSPICE NY","7000500F","02551206",null,"600 HIGHLAND DR STE 624","WESTAMPTON","NJ","08060-5124"]
["Clinic/Other","CALEDONIAN COMM HLTH CTR INC","E0053990","542117028","CALEDONIAN COMM HLTH CTR INC","7001107R","02461452","PO BOX 33113",null,"HARTFORD","CT","06150-3113"]
["Clinic/Other","HOSPICE OF NEW YORK LLC","E0120826","593326696","HOSPICE OF NEW YORK LLC","7003501F","01792052","4518 COURT SQ","STE 500","LONG ISLAND CITY","NY","11101-4347"]
["OMH  ","RTF MERCYFIRST","E0196146","111635089","MERCYFIRST","","","525 CONVENT RD","CHIEF FINANCIAL OFF","SYOSSET","NY","11791-3868"]
["Clinic/Other","RIVER RENAL SERVICES INC","E0326274","800435101","RIVER RENAL SERVICES INC","7002196R","03889388",null,"462 1ST AVE","NEW YORK","NY","10016-9196"]
["Clinic/Other","LIBERTY RC INC","E0003190","911889832","LIBERTY RC INC","7000276R","02950190",null,"PO BOX 2076","TACOMA","WA","98401-2076"]
["OPWDD  ","UCP ASSO OF QUEENS","E0273896","111665821","UCP OF QUEENS","","",null,"8115 164TH ST","JAMAICA","NY","11432-1118"]
["OPWDD  ","UCP OF QUEENS","E0029924","111665821","UCP OF QUEENS","","",null,"8115 164TH ST","JAMAICA","NY","11432-1118"]
["OPWDD  ","UCP OF QUEENS SMP","E0083041","111665821","UCP OF QUEENS","","",null,"8115 164TH ST","JAMAICA","NY","11432-1118"]
["OPWDD  ","UCP OF QUEENS SPV","E0074833","111665821","UCP OF QUEENS","","",null,"8115 164TH ST","JAMAICA","NY","11432-1118"]
["OPWDD  ","UCP QUEENS ICF A","E0188396","111665821","UCP OF QUEENS","","",null,"8115 164TH ST","JAMAICA","NY","11432-1118"]
["OPWDD  ","UCP QUEENS ICF B","E0188777","111665821","UCP OF QUEENS","","",null,"8115 164TH ST","JAMAICA","NY","11432-1118"]
["OPWDD  ","UCP QUEENS ICF C","E0188774","111665821","UCP OF QUEENS","","",null,"8115 164TH ST","JAMAICA","NY","11432-1118"]
["OPWDD  ","UCP QUEENS ICF D","E0188355","111665821","UCP OF QUEENS","","",null,"8115 164TH ST","JAMAICA","NY","11432-1118"]
["OPWDD  ","UCP QUEENS ICF E","E0188242","111665821","UCP OF QUEENS","","",null,"8115 164TH ST","JAMAICA","NY","11432-1118"]
["OPWDD  ","UCP QUEENS ROBERT GROH ICF","E0241904","111665821","UCP OF QUEENS","","",null,"8115 164TH ST","JAMAICA","NY","11432-1118"]
["D&TC","ADVANCED ENDOSCOPY CENTER","E0001662","010719837","ADVANCED ENDOSCOPY CENTER","7000275R","02936134",null,"PO BOX 414372","BOSTON","MA","02241-4372"]
["D&TC","OLM AMBULATORY CARE CTR INC","E0044774","010796859","OLM AMBULATORY CARE CTR INC","7000266R","02553753",null,"4234 BRONX BLVD","BRONX","NY","10466-2611"]
["OPWDD  ","MERCY HM FOR CHILDRN KEATING","E0200980","111666227","UNITED STATES CATHOLIC CONF MERCY H","","","PO BOX 95000-2685","MERCY HOME FOR CHILDREN","PHILADELPHIA","PA","19198-2685"]
["OPWDD  ","MERCY HM FOR CHILDRN LITTLE J","E0194351","111666227","UNITED STATES CATHOLIC CONF MERCY H","","","PO BOX 95000-2685","MERCY HOME FOR CHILDREN","PHILADELPHIA","PA","19198-2685"]
["OPWDD  ","MERCY HM FOR CHILDRN SANTULLI","E0188381","111666227","UNITED STATES CATHOLIC CONF MERCY H","","","PO BOX 95000-2685","MERCY HOME FOR CHILDREN","PHILADELPHIA","PA","19198-2685"]
["OPWDD  ","MERCY HM FOR CHILDRN VINCENT","E0241902","111666227","UNITED STATES CATHOLIC CONF MERCY H","","","PO BOX 95000-2685","MERCY HOME FOR CHILDREN","PHILADELPHIA","PA","19198-2685"]
["OPWDD  ","MERCY HM FOR CHILDRN VISITATN","E0258235","111666227","UNITED STATES CATHOLIC CONF MERCY H","","","PO BOX 95000-2685","MERCY HOME FOR CHILDREN","PHILADELPHIA","PA","19198-2685"]
["OPWDD  ","MERCY HM FOR CHILDRN WARREN","E0263509","111666227","UNITED STATES CATHOLIC CONF MERCY H","","","PO BOX 95000-2685","MERCY HOME FOR CHILDREN","PHILADELPHIA","PA","19198-2685"]
["OPWDD  ","MERCY HOME FOR CHILDREN SPV","E0074674","111666227","UNITED STATES CATHOLIC CONF MERCY H","","","PO BOX 95000-2685","MERCY HOME FOR CHILDREN","PHILADELPHIA","PA","19198-2685"]
["D&TC","CITY WIDE HEALTH FACILITY INC","E0072104","020570365","CITY WIDE HEALTH FACILITY INC","7001103R","02279954",null,"201 KINGS HWY","BROOKLYN","NY","11223-1106"]
["D&TC","RALPH LAUREN CTR F/CANCR CARE","E0057667","020597827","RALPH LAUREN CTR F/CANCR CARE","7002172R","02424633",null,"1919 MADISON AVE","NEW YORK","NY","10035-2745"]
["D&TC","LA CASA DE SALUD INC","E0026256","020693325","LA CASA DE SALUD INC","7000271R","02739320","773 PROSPECT AVE","THIRD PARTY DEPT","BRONX","NY","10455-1809"]
["D&TC","BEACON CHRISTIAN COMM HLTH","E0013449","020703686","BEACON CHRISTIAN COMM HLTH","7004209R","02867518",null,"2079 FOREST AVE","STATEN ISLAND","NY","10303-1735"]
["OPWDD  ","CAH ST MARYS HOSP CHILDREN","E0185301","111679599","ST MARYS HOSP FOR CHILDREN IN","","","2901 216TH ST","LOU SCARLINO","BAYSIDE","NY","11360-2810"]
["D&TC","IHS OF NEW YORK, INC","E0306167","043266948","IHS OF NEW YORK INC","7000246R","03009161",null,"6001 BROKEN SOUND PKWY SUITE 502","BOCA RATON","FL","33487-2765"]
["D&TC","ATLANTIC HEMODIALYSIS","E0114452","043267217","NEW YORK DIALYSIS SERVICES, INC.","7001109R","01855889","861 MARCON BLVD STE 2","ALLENTOWN BUS OFF NY BILL DEPT","ALLENTOWN","PA","18109-9539"]
["D&TC","BAYSIDE DIALYSIS CENTER,INC","E0219781","043267217","NEW YORK DIALYSIS SERVICES, INC.","7003263R","00799477","861 MARCON BLVD STE 2","ALLENTOWN BUS OFF NY BILL DEPT","ALLENTOWN","PA","18109-9539"]
["OMH  ","MENTAL HEALTH ASSOC OF NASSAU PROS","E0302905","111710983","MENTAL HEALTH ASSN NASSAU CNTY INC","","",null,"16 MAIN ST","HEMPSTEAD","NY","11550-4020"]
["OMH  ","MENTAL HLTH ASSOC NASSAU CTY","E0169519","111710983","MENTAL HEALTH ASSN NASSAU CNTY INC","","",null,"16 MAIN ST","HEMPSTEAD","NY","11550-4020"]
["OPWDD  ","MENTAL HEALTH ASSOC OF NASSAU SPV","E0299183","111710983","MENTAL HEALTH ASSN NASSAU CNTY INC","","",null,"16 MAIN ST","HEMPSTEAD","NY","11550-4020"]
["OPWDD  ","MENTAL HLTH ASSO NASSAU TERR","E0189104","111710983","MENTAL HEALTH ASSN NASSAU CNTY INC","","",null,"16 MAIN ST","HEMPSTEAD","NY","11550-4020"]
["OMH  ","SAFE SPACE NYC INC","E0262395","111711014","SAFE SPACE","","",null,"295 LAFAYETTE ST","NEW YORK","NY","10012-2701"]
["OMH  ","LEAGUE SCHOOL","E0273914","111714376","LEAGUE SCHOOL","","","483 CLERMONT AVE","COMPTROLLER","BROOKLYN","NY","11238-2212"]
["OPWDD  ","NASSAU CO CHAP NYSAHRC SPT","E0075206","111720254","NEW YORK STATE ASSOC FOR RETARDED C","","",null,"189 WHEATLEY RD","GLEN HEAD","NY","11545-2641"]
["OPWDD  ","NASSAU CO CHAP NYSAHRC SPV","E0075209","111720254","NEW YORK STATE ASSOC FOR RETARDED C","","",null,"189 WHEATLEY RD","GLEN HEAD","NY","11545-2641"]
["OPWDD  ","NASSAU CO CHAP NYSARC DAY","E0030806","111720254","NEW YORK STATE ASSOC FOR RETARDED C","","",null,"189 WHEATLEY RD","GLEN HEAD","NY","11545-2641"]
["OPWDD  ","NASSAU CO CHAP NYSARC FSR 1","E0040147","111720254","NEW YORK STATE ASSOC FOR RETARDED C","","",null,"189 WHEATLEY RD","GLEN HEAD","NY","11545-2641"]
["OPWDD  ","NASSAU CO CHAP NYSARC SMP","E0083078","111720254","NEW YORK STATE ASSOC FOR RETARDED C","","",null,"189 WHEATLEY RD","GLEN HEAD","NY","11545-2641"]
["D&TC","BROOKLYN KIDNEY CTR","E0114451","043267217","NEW YORK DIALYSIS SERVICES, INC.","7001110R","01855898","861 MARCON BLVD STE 2","ALLENTOWN BUS OFF NY BILL DEPT","ALLENTOWN","PA","18109-9539"]
["OPWDD  ","UCP ASSOC OF NASSAU INC DAY","E0030812","111723782","UCPA NASSAU CTY INC","","","380 WASHINGTON AVE",null,"ROOSEVELT","NY","11575-1845"]
["OPWDD  ","UCP ASSOC OF NASSAU SPT","E0074841","111723782","UCPA NASSAU CTY INC","","","380 WASHINGTON AVE",null,"ROOSEVELT","NY","11575-1845"]
["OPWDD  ","UCP ASSOC OF NASSAU SPV","E0074843","111723782","UCPA NASSAU CTY INC","","","380 WASHINGTON AVE",null,"ROOSEVELT","NY","11575-1845"]
["OPWDD  ","UCP NASSAU WASHINGTON AVE ICF","E0243166","111723782","UCPA NASSAU CTY INC","","","380 WASHINGTON AVE",null,"ROOSEVELT","NY","11575-1845"]
["OPWDD  ","UCPA NASSAU CTY INC","E0017778","111723782","UCPA NASSAU CTY INC","","","380 WASHINGTON AVE",null,"ROOSEVELT","NY","11575-1845"]
["OPWDD  ","UCPA OF NASSAU COUNTY     INC","E0199171","111723782","UCPA NASSAU CTY INC","2950200R","00277207","380 WASHINGTON AVE",null,"ROOSEVELT","NY","11575-1845"]
["OMH  ","CHILD CENTER OF NY","E0011994","111733454","CHILD CENTER OF NY","","","LOWR LEVEL","6002 QUEENS BLVD","WOODSIDE","NY","11377-4973"]
["D&TC","CITY DIALYSIS CENTER,INC","E0215587","043267217","NEW YORK DIALYSIS SERVICES, INC.","7002175R","00841516","861 MARCON BLVD STE 2","ALLENTOWN BUS OFF NY BILL DEPT","ALLENTOWN","PA","18109-9539"]
["OMH  ","SKILLS UNLIMITED          INC","E0252632","111759110","SKILLS UNLIMITED INC","","","405 LOCUST AVE","EXEC ASSISTANT","OAKDALE","NY","11769-1651"]
["OPWDD  ","SKILLS UNLIMITED INC DAY","E0029979","111759110","SKILLS UNLIMITED INC","","","405 LOCUST AVE","EXEC ASSISTANT","OAKDALE","NY","11769-1651"]
["D&TC","HARLEM DIALYSIS CTR","E0126614","043267217","NEW YORK DIALYSIS SERVICES, INC.","7002174R","01734087","861 MARCON BLVD STE 2","ALLENTOWN BUS OFF NY BILL DEPT","ALLENTOWN","PA","18109-9539"]
["D&TC","NEPHRO CARE INC","E0193839","043267217","NEW YORK DIALYSIS SERVICES, INC.","7001261R","01060282","861 MARCON BLVD STE 2","ALLENTOWN BUS OFF NY BILL DEPT","ALLENTOWN","PA","18109-9539"]
["D&TC","NEW YORK DIALYSIS/CENTRAL SUF","E0230881","043267217","NEW YORK DIALYSIS SERVICES, INC.","5151206R","00688202","861 MARCON BLVD STE 2","ALLENTOWN BUS OFF NY BILL DEPT","ALLENTOWN","PA","18109-9539"]
["OPWDD  ","EPILEPSY FND  L.I. HICKSVILLE","E0251940","111821135","EPILEPSY FOUNDATION OF LONG ISLAND","","",null,"506 STEWART AVE","GARDEN CITY","NY","11530-4706"]
["OPWDD  ","EPILEPSY FND, L.I., N BELLMOR","E0213789","111821135","EPILEPSY FOUNDATION OF LONG ISLAND","","",null,"506 STEWART AVE","GARDEN CITY","NY","11530-4706"]
["OPWDD  ","EPILEPSY FOUND LI INC DAY","E0030875","111821135","EPILEPSY FOUNDATION OF LONG ISLAND","","",null,"506 STEWART AVE","GARDEN CITY","NY","11530-4706"]
["OPWDD  ","EPILEPSY FOUNDATION LI ND 3","E0028707","111821135","EPILEPSY FOUNDATION OF LONG ISLAND","","",null,"506 STEWART AVE","GARDEN CITY","NY","11530-4706"]
["D&TC","SO MANHATTAN DIALYSIS","E0206870","043267217","NEW YORK DIALYSIS SERVICES, INC.","7002176R","00928863","861 MARCON BLVD STE 2","ALLENTOWN BUS OFF NY BILL DEPT","ALLENTOWN","PA","18109-9539"]
["D&TC","SOUND SHORE DIALYSIS CTR INC","E0092683","043267217","NEW YORK DIALYSIS SERVICES, INC.","5904202R","02073825","861 MARCON BLVD STE 2","ALLENTOWN BUS OFF NY BILL DEPT","ALLENTOWN","PA","18109-9539"]
["D&TC","GRAMERCY PARK DIGESTIVE DISEASE CTR","E0006707","043769350","GRAMERCY PARK DIGESTIVE DISEASE CTR","7002189R","02981359","250 PARK AVE SOUTH 8TH FL","GPDDC LLC","NEW YORK","NY","10003-1402"]
["D&TC","QUEENS SURGI-CENTER","E0162601","061337652","QUEENS SURGI-CENTER","7003242R","01373564",null,"8340 WOODHAVEN BLVD","GLENDALE","NY","11385-7824"]
["D&TC","SHEEPSHEAD BAY SURGERY CTR","E0102771","061530394","SHEEPSHEAD BAY SURGERY CTR","7001288R","01972852",null,"2269 OCEAN AVE","BROOKLYN","NY","11229-3103"]
["OMH  ","CATHOLIC CHARITIES ROCKVILLE","E0258944","111843801","CATHOLIC CHAR DIO OF ROCKVILLE CENT","","",null,"90 CHERRY LN","HICKSVILLE","NY","11801-6232"]
["OMH  ","CATHOLIC CHARITIES ROCKVL CTR","E0169567","111843801","CATHOLIC CHAR DIO OF ROCKVILLE CENT","","",null,"90 CHERRY LN","HICKSVILLE","NY","11801-6232"]
["OPWDD  ","CATHOLIC CHAR DIO RVC SPV","E0075501","111843801","CATHOLIC CHAR DIO OF ROCKVILLE CENT","","",null,"90 CHERRY LN","HICKSVILLE","NY","11801-6232"]
["D&TC","COMPREHENSIVE HLTH CARE REHAB","E0042724","061663861","COMPREHENSIVE HLTH CARE REHAB","7001113R","02574298","148 WILSON AVE",null,"BROOKLYN","NY","11237-3129"]
["OPWDD  ","NYSARC INC SUFFOLK CHAP DAY","E0029396","111845294","NYSARC INC SUFFOLK CHAPTER","","",null,"2900 VETERANS MEM HW","BOHEMIA","NY","11716-1193"]
["OPWDD  ","NYSARC INC SUFFOLK CHAP FSR 1","E0040694","111845294","NYSARC INC SUFFOLK CHAPTER","","",null,"2900 VETERANS MEM HW","BOHEMIA","NY","11716-1193"]
["OPWDD  ","NYSARC INC SUFFOLK CHAP SMP","E0083119","111845294","NYSARC INC SUFFOLK CHAPTER","","",null,"2900 VETERANS MEM HW","BOHEMIA","NY","11716-1193"]
["OPWDD  ","NYSARC INC SUFFOLK CHAP SPV","E0075109","111845294","NYSARC INC SUFFOLK CHAPTER","","",null,"2900 VETERANS MEM HW","BOHEMIA","NY","11716-1193"]
["OPWDD  ","SUFFOLK CNTY ARC CENTEREACH","E0170960","111845294","NYSARC INC SUFFOLK CHAPTER","","",null,"2900 VETERANS MEM HW","BOHEMIA","NY","11716-1193"]
["OPWDD  ","SUFFOLK CNTY ARC SANSONE ICF","E0226816","111845294","NYSARC INC SUFFOLK CHAPTER","","",null,"2900 VETERANS MEM HW","BOHEMIA","NY","11716-1193"]
["OPWDD  ","SUFFOLK CNTY ARC WESTHAMPTON","E0218935","111845294","NYSARC INC SUFFOLK CHAPTER","","",null,"2900 VETERANS MEM HW","BOHEMIA","NY","11716-1193"]
["OMH  ","ADVANCED CTR FOR PSYCHOTHERAP","E0273853","111864871","ADVANCED CTR FOR PSYCHOTHERAP","","",null,"17810 WEXFORD TER","JAMAICA","NY","11432-3050"]
["D&TC","PLANNED PARENTHOOD OF NASSAU","E0260722","111776035","PLANNED PARENTHOOD OF NASSAU","2950205R","00385135",null,"540 FULTON AVE","HEMPSTEAD","NY","11550-4364"]
["OPWDD  ","CENTER F/DEVELOP DISABIL DAY","E0030879","111874383","CENTER FOR DEVELOPMNTL DISABILITIES","","",null,"72 S WOODS RD","WOODBURY","NY","11797-1024"]
["OPWDD  ","CENTER FOR DEV DIS","E0273935","111874383","CENTER FOR DEVELOPMNTL DISABILITIES","","",null,"72 S WOODS RD","WOODBURY","NY","11797-1024"]
["OPWDD  ","CENTER FOR DEV DIS 544 FOREST","E0200308","111874383","CENTER FOR DEVELOPMNTL DISABILITIES","","",null,"72 S WOODS RD","WOODBURY","NY","11797-1024"]
["OPWDD  ","CENTER FOR DEV DIS 88 S WOODS","E0211788","111874383","CENTER FOR DEVELOPMNTL DISABILITIES","","",null,"72 S WOODS RD","WOODBURY","NY","11797-1024"]
["OPWDD  ","CENTER FOR DEV DIS 90 S WOODS","E0198978","111874383","CENTER FOR DEVELOPMNTL DISABILITIES","","",null,"72 S WOODS RD","WOODBURY","NY","11797-1024"]
["OPWDD  ","CENTER FOR DEV DIS FARMINGDAL","E0184552","111874383","CENTER FOR DEVELOPMNTL DISABILITIES","","",null,"72 S WOODS RD","WOODBURY","NY","11797-1024"]
["OPWDD  ","CENTER FOR DEV DIS JERICHO IC","E0177451","111874383","CENTER FOR DEVELOPMNTL DISABILITIES","","",null,"72 S WOODS RD","WOODBURY","NY","11797-1024"]
["OPWDD  ","CENTER FOR DEV DIS ROCKOFF IC","E0241901","111874383","CENTER FOR DEVELOPMNTL DISABILITIES","","",null,"72 S WOODS RD","WOODBURY","NY","11797-1024"]
["OPWDD  ","CENTER FOR DEV DIS SEAFORD IC","E0205521","111874383","CENTER FOR DEVELOPMNTL DISABILITIES","","",null,"72 S WOODS RD","WOODBURY","NY","11797-1024"]
["OPWDD  ","CENTER FOR DEVELOP DISAB SPT","E0074447","111874383","CENTER FOR DEVELOPMNTL DISABILITIES","","",null,"72 S WOODS RD","WOODBURY","NY","11797-1024"]
["OPWDD  ","CENTER FOR DEVELOP DISAB SPV","E0074448","111874383","CENTER FOR DEVELOPMNTL DISABILITIES","","",null,"72 S WOODS RD","WOODBURY","NY","11797-1024"]
["D&TC","CATHOLIC CHARITIES ROCKVL CTR","E0232805","111843801","CATHOLIC CHAR DIO OF ROCKVILLE CENT","P6814102A","00668864",null,"90 CHERRY LN","HICKSVILLE","NY","11801-6232"]
["D&TC","QUEENS VLG COM FOR MH/J CAP","E0190872","112140888","QUEENS VLG COM FOR MH/J CAP","7003236R","01090000",null,"23135 MERRICK BLVD","LAURELTON","NY","11413-2111"]
["D&TC","PHOENIX HSES OF LONG ISLAND","E0148088","112307925","PHOENIX HSES OF LONG ISLAND","5154204R","01035285","998 CROOKED HILL RD","POB 3001","BRENTWOOD","NY","11717-1019"]
["D&TC","ODA PRIMARY HLTH CARE CTR,INC","E0263462","112329960","ODA PRIMARY HEALTH CARE CTR","7001254R","00357548",null,"14 HEYWARD ST # 16","BROOKLYN","NY","11249-7823"]
["D&TC","BED STUY FAMILY HLTH CTR","E0226660","112412205","BEDFORD STUYVESANT","7001243R","00730483",null,"1413 FULTON ST","BROOKLYN","NY","11216-2607"]
["D&TC","FAMILY RESIDENCES & ESSTL ENT","E0083279","112420547","FAMILY RESIDENCE AND ESSENTIAL ENTE","5157205R","02167980",null,"PO BOX 12248","HAUPPAUGE","NY","11788-0873"]
["OPWDD  ","ADULT RETARDATE CTR 952 E 55","E0235888","111986300","ADULT RETARDATES CENTER INC","","",null,"1145 EAST 55 STREET","BROOKLYN","NY","11234-2415"]
["OPWDD  ","ADULT RETARDATES CENTER SPV","E0075490","111986300","ADULT RETARDATES CENTER INC","","",null,"1145 EAST 55 STREET","BROOKLYN","NY","11234-2415"]
["OPWDD  ","ADULT RETARDATES CTR INC DAY","E0030930","111986300","ADULT RETARDATES CENTER INC","","",null,"1145 EAST 55 STREET","BROOKLYN","NY","11234-2415"]
["D&TC","HUNTINGTON ARTIFICIAL KIDNEY FRPORT","E0289579","112476458","HUNTINGTON ARTIFICIAL KIDNEY","5153202R","03070573","PO BOX 335","267 W MERRICK RD","FREEPORT","NY","11520-0335"]
["OMH  ","QUEENS COUNTY NEUROPSYCH INS","E0273528","111992427","QUEENS COUNTY NEUROPSYCH INS","","",null,"3764 72ND ST","FLUSHING","NY","11372-6143"]
["D&TC","NEPHROLOGY FOUNDATION OF BKYN","E0253740","112508594","NEPHROLOGY FOUNDATION OF BKYN","7001249R","00457658","342 FLATBUSH AVE","ALLEN I HERMAN","BROOKLYN","NY","11238-4902"]
["OMH  ","LIFELINE CTR FOR CHILD DEV DT","E0273988","112002845","LIFELINE CTR FOR CHILD DEV DT","","",null,"8009 WINCHESTER BLVD","QUEENS VILLAGE","NY","11427-2147"]
["OPWDD  ","YAI DAY","E0029739","112030172","YOUNG ADULT INSTITUTE INC","","",null,"460 W 34TH ST FL 11","NEW YORK","NY","10001-2382"]
["OPWDD  ","YAI FOOTHILL TERRACE","E0103825","112030172","YOUNG ADULT INSTITUTE INC","","",null,"460 W 34TH ST FL 11","NEW YORK","NY","10001-2382"]
["OPWDD  ","YOUNG ADULT INST 16 ST (REAR)","E0256777","112030172","YOUNG ADULT INSTITUTE INC","","",null,"460 W 34TH ST FL 11","NEW YORK","NY","10001-2382"]
["OPWDD  ","YOUNG ADULT INST 22ND ST ICF","E0263533","112030172","YOUNG ADULT INSTITUTE INC","","",null,"460 W 34TH ST FL 11","NEW YORK","NY","10001-2382"]
["OPWDD  ","YOUNG ADULT INST HASTINGS ICF","E0247780","112030172","YOUNG ADULT INSTITUTE INC","","",null,"460 W 34TH ST FL 11","NEW YORK","NY","10001-2382"]
["OPWDD  ","YOUNG ADULT INST LAKEVIEW ICF","E0263537","112030172","YOUNG ADULT INSTITUTE INC","","",null,"460 W 34TH ST FL 11","NEW YORK","NY","10001-2382"]
["OPWDD  ","YOUNG ADULT INST LEVITTOWN","E0185155","112030172","YOUNG ADULT INSTITUTE INC","","",null,"460 W 34TH ST FL 11","NEW YORK","NY","10001-2382"]
["OPWDD  ","YOUNG ADULT INST LEWISBORO","E0217200","112030172","YOUNG ADULT INSTITUTE INC","","",null,"460 W 34TH ST FL 11","NEW YORK","NY","10001-2382"]
["OPWDD  ","YOUNG ADULT INST METRO N (3L)","E0263489","112030172","YOUNG ADULT INSTITUTE INC","","",null,"460 W 34TH ST FL 11","NEW YORK","NY","10001-2382"]
["OPWDD  ","YOUNG ADULT INST N BARRY AVE","E0241906","112030172","YOUNG ADULT INSTITUTE INC","","",null,"460 W 34TH ST FL 11","NEW YORK","NY","10001-2382"]
["OPWDD  ","YOUNG ADULT INST OCEAN PARKWY","E0263521","112030172","YOUNG ADULT INSTITUTE INC","","",null,"460 W 34TH ST FL 11","NEW YORK","NY","10001-2382"]
["OPWDD  ","YOUNG ADULT INST PORTCHESTER","E0247781","112030172","YOUNG ADULT INSTITUTE INC","","",null,"460 W 34TH ST FL 11","NEW YORK","NY","10001-2382"]
["OPWDD  ","YOUNG ADULT INST RIVERDALE","E0223720","112030172","YOUNG ADULT INSTITUTE INC","","",null,"460 W 34TH ST FL 11","NEW YORK","NY","10001-2382"]
["OPWDD  ","YOUNG ADULT INST ROSE LANE","E0247782","112030172","YOUNG ADULT INSTITUTE INC","","",null,"460 W 34TH ST FL 11","NEW YORK","NY","10001-2382"]
["OPWDD  ","YOUNG ADULT INST SHEEPSHEAD","E0182793","112030172","YOUNG ADULT INSTITUTE INC","","",null,"460 W 34TH ST FL 11","NEW YORK","NY","10001-2382"]
["OPWDD  ","YOUNG ADULT INST SPRUCEWOOD","E0171045","112030172","YOUNG ADULT INSTITUTE INC","","",null,"460 W 34TH ST FL 11","NEW YORK","NY","10001-2382"]
["OPWDD  ","YOUNG ADULT INST STE 1 ICF","E0146137","112030172","YOUNG ADULT INSTITUTE INC","","",null,"460 W 34TH ST FL 11","NEW YORK","NY","10001-2382"]
["OPWDD  ","YOUNG ADULT INST STE 2 ICF","E0145157","112030172","YOUNG ADULT INSTITUTE INC","","",null,"460 W 34TH ST FL 11","NEW YORK","NY","10001-2382"]
["OPWDD  ","YOUNG ADULT INST STE 3 ICF","E0146140","112030172","YOUNG ADULT INSTITUTE INC","","",null,"460 W 34TH ST FL 11","NEW YORK","NY","10001-2382"]
["OPWDD  ","YOUNG ADULT INST U S LEFRAK","E0263532","112030172","YOUNG ADULT INSTITUTE INC","","",null,"460 W 34TH ST FL 11","NEW YORK","NY","10001-2382"]
["OPWDD  ","YOUNG ADULT INSTITUTE & WORKS","E0154247","112030172","YOUNG ADULT INSTITUTE INC","","",null,"460 W 34TH ST FL 11","NEW YORK","NY","10001-2382"]
["OPWDD  ","YOUNG ADULT INSTITUTE FSR 2","E0040141","112030172","YOUNG ADULT INSTITUTE INC","","",null,"460 W 34TH ST FL 11","NEW YORK","NY","10001-2382"]
["OPWDD  ","YOUNG ADULT INSTITUTE FSR 3","E0040144","112030172","YOUNG ADULT INSTITUTE INC","","",null,"460 W 34TH ST FL 11","NEW YORK","NY","10001-2382"]
["OPWDD  ","YOUNG ADULT INSTITUTE INC ICF","E0114651","112030172","YOUNG ADULT INSTITUTE INC","","",null,"460 W 34TH ST FL 11","NEW YORK","NY","10001-2382"]
["OPWDD  ","YOUNG ADULT INSTITUTE INC SMP","E0083102","112030172","YOUNG ADULT INSTITUTE INC","","",null,"460 W 34TH ST FL 11","NEW YORK","NY","10001-2382"]
["OPWDD  ","YOUNG ADULT INSTITUTE RSP","E0040490","112030172","YOUNG ADULT INSTITUTE INC","","",null,"460 W 34TH ST FL 11","NEW YORK","NY","10001-2382"]
["OPWDD  ","YOUNG ADULT INSTITUTE SPT","E0074428","112030172","YOUNG ADULT INSTITUTE INC","","",null,"460 W 34TH ST FL 11","NEW YORK","NY","10001-2382"]
["OPWDD  ","YOUNG ADULT INSTITUTE SPV","E0074429","112030172","YOUNG ADULT INSTITUTE INC","","",null,"460 W 34TH ST FL 11","NEW YORK","NY","10001-2382"]
["D&TC","BROWNSVILLE MULTI-SRV FAM BRISTOL","E0286718","112544630","BROWNSVILLE FAM HLTH CTR AI","7001256R","03045883","592 ROCKAWAY AVE","PRESIDENT & CEO","BROOKLYN","NY","11212-5539"]
["OMH  ","CATH CHAR NGHBHD SVCS INC MH","E0185643","112047151","BUILDERS FOR THE FAMILY & YOUTH","","",null,"191 JORALEMON ST","BROOKLYN","NY","11201-4306"]
["OMH  ","CATHOLIC CHARITIES NEIGHBHD SVCS","E0273965","112047151","BUILDERS FOR THE FAMILY & YOUTH","","",null,"191 JORALEMON ST","BROOKLYN","NY","11201-4306"]
["OPWDD  ","CATH CHAR NGHBHD DONALD SAVIO ICF","E0198501","112047151","BUILDERS FOR THE FAMILY & YOUTH","","",null,"191 JORALEMON ST","BROOKLYN","NY","11201-4306"]
["OPWDD  ","CATH CHAR NGHBHD SVCS ADESSA ICF","E0187016","112047151","BUILDERS FOR THE FAMILY & YOUTH","","",null,"191 JORALEMON ST","BROOKLYN","NY","11201-4306"]
["OPWDD  ","CATH CHAR NGHBHD SVCS CALDWELL ICF","E0186995","112047151","BUILDERS FOR THE FAMILY & YOUTH","","",null,"191 JORALEMON ST","BROOKLYN","NY","11201-4306"]
["OPWDD  ","CATH CHAR NGHBHD SVCS CARMEL ICF","E0230005","112047151","BUILDERS FOR THE FAMILY & YOUTH","","",null,"191 JORALEMON ST","BROOKLYN","NY","11201-4306"]
["OPWDD  ","CATH CHAR NGHBHD SVCS CRIBBIN ICF","E0263540","112047151","BUILDERS FOR THE FAMILY & YOUTH","","",null,"191 JORALEMON ST","BROOKLYN","NY","11201-4306"]
["OPWDD  ","CATH CHAR NGHBHD SVCS GOLDEN ICF","E0186994","112047151","BUILDERS FOR THE FAMILY & YOUTH","","",null,"191 JORALEMON ST","BROOKLYN","NY","11201-4306"]
["OPWDD  ","CATH CHAR NGHBHD SVCS INC DAY","E0029778","112047151","BUILDERS FOR THE FAMILY & YOUTH","","",null,"191 JORALEMON ST","BROOKLYN","NY","11201-4306"]
["OPWDD  ","CATH CHAR NGHBHD SVCS INC HOC ICF","E0263541","112047151","BUILDERS FOR THE FAMILY & YOUTH","","",null,"191 JORALEMON ST","BROOKLYN","NY","11201-4306"]
["OPWDD  ","CATH CHAR NGHBHD SVCS INC SPV","E0039329","112047151","BUILDERS FOR THE FAMILY & YOUTH","","",null,"191 JORALEMON ST","BROOKLYN","NY","11201-4306"]
["OPWDD  ","CATH CHAR NGHBHD SVCS MCLEES ICF","E0186993","112047151","BUILDERS FOR THE FAMILY & YOUTH","","",null,"191 JORALEMON ST","BROOKLYN","NY","11201-4306"]
["OPWDD  ","CATH CHAR NGHBHD SVCS MUGAVERO ICF","E0186996","112047151","BUILDERS FOR THE FAMILY & YOUTH","","",null,"191 JORALEMON ST","BROOKLYN","NY","11201-4306"]
["OPWDD  ","CATH CHAR NGHBHD SVCS MULRO ICF","E0263539","112047151","BUILDERS FOR THE FAMILY & YOUTH","","",null,"191 JORALEMON ST","BROOKLYN","NY","11201-4306"]
["OPWDD  ","CATH CHAR NGHBHD SVCS STERLING ICF","E0187013","112047151","BUILDERS FOR THE FAMILY & YOUTH","","",null,"191 JORALEMON ST","BROOKLYN","NY","11201-4306"]
["OPWDD  ","CATH CHAR NGHBHD SVCS STRAUS ICF","E0187014","112047151","BUILDERS FOR THE FAMILY & YOUTH","","",null,"191 JORALEMON ST","BROOKLYN","NY","11201-4306"]
["D&TC","BROWNSVILLE MULTI-SRV FAM H C","E0227382","112544630","BROWNSVILLE FAM HLTH CTR AI","7001256R","00723253","592 ROCKAWAY AVE","PRESIDENT & CEO","BROOKLYN","NY","11212-5539"]
["D&TC","BROWNSVILLE MULTI-SRV SNEDIKER","E0286714","112544630","BROWNSVILLE FAM HLTH CTR AI","7001256R","03045892","592 ROCKAWAY AVE","PRESIDENT & CEO","BROOKLYN","NY","11212-5539"]
["OPWDD  ","THE REHABILITATION INST DAY","E0029930","112073672","REHABILITATION INSTITUTE INC","","",null,"191 BETHPAGE SWEET HOLLOW RD","OLD BETHPAGE","NY","11804-1342"]
["OPWDD  ","HEBREW ACAD/SPEC CHLDRN RSP","E0032111","112107335","HEBREW ACAD FOR SPECIAL CHILD. INC","","",null,"5902 14TH AVE","BROOKLYN","NY","11219-5039"]
["D&TC","CHOICES WOMENS MED CTR","E0273096","112715115","CHOICES WOMENS MED CTR","7003223R","00258948",null,"PO BOX 4619","RENSSELAER","NY","12144-8614"]
["D&TC","BROOK PLAZA AMB SURG CTR,INC","E0182069","112877356","BROOK PLAZA AMB SURG CTR,INC","7001263R","01178192",null,"1901 UTICA AVE","BROOKLYN","NY","11234-3213"]
["OPWDD  ","BOCES OF NASSAU COUNTY SMP","E0082961","112136917","BOCES OF NASSAU COUNTY SMP","","",null,"71 CLINTON RD","GARDEN CITY","NY","11530-4742"]
["D&TC","BROOKLYN EYE SURGERY CTR","E0137888","113064342","BROOKLYN EYE SURGERY CTR","7001272R","01621232",null,"1301 AVENUE J","BROOKLYN","NY","11230-3605"]
["D&TC","RIDGEWOOD DIALYSIS CENTER","E0171891","113163343","RIDGEWOOD DIALYSIS CENTER","7003241R","01280184","385 SENECA AVE",null,"RIDGEWOOD","NY","11385-1340"]
["D&TC","NEW YORK NEURO AND REHAB CTR","E0132718","113178427","UPTOWN HEALTH CARE MANAGEMENT INC.","7002150R","01672999",null,"4470 BROADWAY STE 4","NEW YORK","NY","10040-2669"]
["D&TC","PHOENIX MEDICAL CENTER INC","E0144692","113196244","PHOENIX MEDICAL CENTER INC","7001268R","01553057",null,"29 STEVEN LN","GREAT NECK","NY","11024-1534"]
["D&TC","BROOKDALE FAMILY CARE CTR INC","E0131897","113237483","BROOKDALE FAMILY CARE CTR INC","7001274R","01681227","10101 AVENUE D",null,"BROOKLYN","NY","11236-1902"]
["D&TC","BROOKDALE PHYSICIANS DIALYSIS","E0113108","113240495","BROOKDALE PHYSICIANS DIALYSIS","7001284R","01869350",null,"207 E 94TH ST","NEW YORK","NY","10128-3705"]
["D&TC","CATHOLIC CHARITIES HLTH AADC","E0136480","113260120","CATHOLIC CHARITIES HLTH AADC","2904200R","01635336",null,"90 CHERRY LN","HICKSVILLE","NY","11801-6232"]
["D&TC","BAY RIDGE SUNSET PK DIALYSIS","E0136465","113277258","BAY RIDGE SUNSET PK DIALYSIS","7001271R","01635487",null,"36250 TREASURY CTR","CHICAGO","IL","60694-6200"]
["D&TC","PHYSICARE MULTI-SERVICES, LTD","E0043020","113302072","PHYSICARE MUITI-SERVIECS LTD","7001116R","02571337",null,"3508 FLATLANDS AVE","BROOKLYN","NY","11234-2609"]
["D&TC","AMUMC/AMERICAN MEDICAL CTRS","E0082229","113326682","AMUMC/AMERICAN MEDICAL CTRS","7001100R","02178509","434 ROCKAWAY AVE","CEO/CHAIRMAN/COMPTROLLER AMUMC","BROOKLYN","NY","11212-5636"]
["D&TC","MEDISYS FAMILY CARE","E0113372","113340969","THE JAMAICA HOSPITAL MEDICAL CENTER","7003249R","01866706",null,"8900 VAN WYCK EXPRESSWAY","JAMAICA","NY","11418-9999"]
["D&TC","HUNTINGTON HOSP DOLAN FHC","E0125670","113368503","HUNTINGTON HOSP DOLAN FHC","5153207R","01743562","270 PARK AVE","PT ACCT","HUNTINGTON","NY","11743-2787"]
["OPWDD  ","PAUL J COOPER CTR 96TH ST ICF","E0237115","112245967","PAUL J COOPER CENTER FOR HUMAN SERV","","",null,"519 ROCKAWAY AVE","BROOKLYN","NY","11212-5638"]
["OPWDD  ","PAUL J COOPER CTR JEROME ICF","E0207099","112245967","PAUL J COOPER CENTER FOR HUMAN SERV","","",null,"519 ROCKAWAY AVE","BROOKLYN","NY","11212-5638"]
["OPWDD  ","PAUL J COOPER CTR/ H S SPV","E0074360","112245967","PAUL J COOPER CENTER FOR HUMAN SERV","","",null,"519 ROCKAWAY AVE","BROOKLYN","NY","11212-5638"]
["D&TC","NEWTOWN DIALYSIS CTR INC","E0122635","113373373","NEWTOWN DIALYSIS CTR INC","7003247R","01773931","2314 COLLEGE POINT BLVD","VP REIMBURSEMENT","COLLEGE POINT","NY","11356-2526"]
["D&TC","FIRST MEDCARE PRIMARY CARE","E0119258","113419350","FIRST MEDCARE PRIMARY CARE","7001280R","01807794",null,"8707 FLATLANDS AVE","BROOKLYN","NY","11236-3609"]
["D&TC","ALL CITY FAMILY HLTHCARE CTR","E0048395","113423598","ALL CITY FAMILY HLTHCARE CTR","7001285R","02517462","3632 NOSTRAND AVE",null,"BROOKLYN","NY","11229-5303"]
["D&TC","MIDWOOD CHAYIM ARUCHIM DIALYS","E0099796","113444979","MIDWOOD CHAYIM ARUCHIM DIALYS","7001292R","02002642",null,"PO BOX 27468","NEW YORK","NY","10087-7468"]
["D&TC","POLA TENENBAUM CTR RENAL CARE","E0101603","113480589","PREMIER HEALTH SERVICES INC","7001287R","01984541",null,"430 BEACH 68TH ST","ARVERNE","NY","11692-1407"]
["D&TC","ICL HEALTHCARE CHOICES INC","E0081441","113488520","ICL HEALTHCARE CHOICES INC","7001299R","02186390",null,"6209 16TH AVE","BROOKLYN","NY","11204-2702"]
["D&TC","HEARTSHARE WELLNESS LTD","E0091367","113538646","HEARTSHARE WELLNESS LTD","7001294R","02087016","LOWR LEVEL","177 LIVINGSTON ST","BROOKLYN","NY","11201-5875"]
["D&TC","NEW YORK ARTIFICIAL KIDNEY","E0074177","113561833","NEW YORK ARTIFICIAL KIDNEY","7001102R","02259218",null,"PO BOX 1083","BROOKLYN","NY","11235"]
["D&TC","AMBULATORY SURGERY CTR BKLYN","E0263460","113596232","AMBULATORY SURGERY CTR BKLYN","7001244R","00357575",null,"313 43RD ST","BROOKLYN","NY","11232-3609"]
["OMH  ","ARISTA CTR FOR PSYCHOTHERAPY","E0273947","112293084","ARISTA CTR FOR PSYCHOTHERAPY","","",null,"11020 71ST RD","FOREST HILLS","NY","11375-4945"]
["D&TC","BROOKLYN MEDCARE","E0067826","113619288","NY UNITED HEALTHCARE LTD","7001104R","02322778",null,"1110 PENNSYLVANIA AVENUE","BROOKLYN","NY","12207-9003"]
["OASAS  ","COUNSELING SRV OF E D N Y INC","E0155618","112297842","COUNSELING SRV OF E D N Y INC","","","180 LIVINGSTON ST","STE 301","BROOKLYN","NY","11201-5861"]
["D&TC","BROOKLYN COMP CARE CTR INC","E0042372","113699467","BROOKLYN COMP CARE CTR INC","7001114R","02577815",null,"2501 86TH ST OFC","BROOKLYN","NY","11214-4414"]
["D&TC","SUFFOLK DOH SVCS BUR PUB H CO","E0266937","116000464","COUNTY OF SUFFOLK","05155600","00321875",null,"PO BOX 6100","HAUPPAUGE","NY","11788-0099"]
["D&TC","OPTI-HEALTHCARE","E0153531","116077347","DEVELOPMENTAL DISABILITIES INSTITUT","5155202R","01464520",null,"99 HOLLYWOOD DR","SMITHTOWN","NY","11787-3135"]
["D&TC","FLOATING HOSPITAL","E0273928","131624169","FLOATING HOSPITAL","7002289R","00245038",null,"41-40 27TH ST","LONG ISLAND CITY","NY","11101-3825"]
["OMH  ","NEW YORK PSYCHOT AND COUNS CT","E0273926","112320614","NEW YORK PSYCHOT AND COUNS CT","","",null,"PO BOX 188","LAWRENCE","NY","11559-0188"]
["OMH  ","GUIDANCE CTR OF BROOKLYN,THE","E0273925","112326039","BENSONHURST MENTAL HLTH CL","","",null,"8620 18TH AVE","BROOKLYN","NY","11214-3702"]
["OMH  ","STEINWAY CHILD & FAM SVCS INC","E0143844","112326974","STEINWAY CHILD & FAM SVCS INC","","",null,"2215 43RD AVE","LONG ISLAND CITY","NY","11101-5018"]
["OMH  ","STEINWAY CHILD/FAMILY SVCS,IN","E0273924","112326974","STEINWAY CHILD & FAM SVCS INC","","",null,"2215 43RD AVE","LONG ISLAND CITY","NY","11101-5018"]
["D&TC","FOOT CLINICS OF NY","E0273852","131655230","FOOT CLINICS OF NY","7002209R","00245854",null,"PO BOX 95000-3940","PHILADELPHIA","PA","19195-0001"]
["D&TC","HEBREW HM FOR AGED NON OCC","E0197548","131739971","HEBREW H FOR AGED RIVERDALE","7000302D","01023156",null,"5901 PALISADE AVE","BRONX","NY","10471-1205"]
["D&TC","LOWER EASTSIDE SERVICE CENTER","E0273867","131972876","LOWER EASTSIDE SERVICE CENTER","7002293R","00245689",null,"LESC 80 MAIDEN LANE 2FL","NEW YORK","NY","10038-4811"]
["D&TC","MARGARET SANGER CTR","E0273963","132621497","PLANNED PARENTHOOD OF NEW YORK CITY","7002273R","00244642",null,"26 BLEEKER STREET","NEW YORK","NY","10012-2413"]
["OPWDD  ","ASSN F/NEUR BRAIN INJ ND 5","E0033851","112348663","ASSOCIATION FOR NEUROLOGICALLY IMP","","",null,"212 12 26TH AVE","BAYSIDE","NY","11360-1944"]
["OPWDD  ","ASSN F/NEUR IMP BRAIN INJ ND2","E0066305","112348663","ASSOCIATION FOR NEUROLOGICALLY IMP","","",null,"212 12 26TH AVE","BAYSIDE","NY","11360-1944"]
["OPWDD  ","ASSOC NEUROL IMPAIRED DAY","E0030931","112348663","ASSOCIATION FOR NEUROLOGICALLY IMP","","",null,"212 12 26TH AVE","BAYSIDE","NY","11360-1944"]
["D&TC","CUMBERLAND D & T CTR","E0199271","132655001","NYC HEALTH AND HOSPITALS CORP","7001259R","01005898",null,"230 W 41ST ST RM 508","NEW YORK","NY","10036-7207"]
["D&TC","RENAISSANCE HLTH CARE NETWORK","E0178852","132655001","NYC HEALTH AND HOSPITALS CORP","7002136R","01210402",null,"230 W 41ST ST RM 508","NEW YORK","NY","10036-7207"]
["OASAS  ","ALTERNATIVES COUNSELING SERVI","E0022963","112396818","ALTERNATIVES COUNSELING SERVI","","",null,"291 HAMPTON RD","SOUTHAMPTON","NY","11968-5029"]
["D&TC","SEGUNDO RUIZ BELVIS D & T CTR","E0179413","132655001","NYC HEALTH AND HOSPITALS CORP","7000243R","01204773",null,"230 W 41ST ST RM 508","NEW YORK","NY","10036-7207"]
["D&TC","HERITAGE HEALTH AND HOUSING, INC","E0314396","132661509","HERITAGE HEALTH & HOUSING INC","7002113R","00509980",null,"416 W 127TH ST OFC R","NEW YORK","NY","10027-2516"]
["D&TC","NARCO FREEDOM             INC","E0273921","132690403","NARCO FREEDOM INC MR","7000227R","00245107","250 GRAND CONCOURSE","CHIEF EXEC OFFICER","BRONX","NY","10451-5430"]
["OPWDD  ","BLOCK INSTITUTE","E0029785","112416320","BLOCK INSTITUTE","","","376 BAY 44TH ST","ACCTS RECEIVABLE DEP","BROOKLYN","NY","11214-7103"]
["OPWDD  ","BLOCK INSTITUTE  SPT","E0074143","112416320","BLOCK INSTITUTE","","","376 BAY 44TH ST","ACCTS RECEIVABLE DEP","BROOKLYN","NY","11214-7103"]
["OPWDD  ","BLOCK INSTITUTE  SPV","E0074144","112416320","BLOCK INSTITUTE","","","376 BAY 44TH ST","ACCTS RECEIVABLE DEP","BROOKLYN","NY","11214-7103"]
["OPWDD  ","BLOCK INSTITUTE 27 AVE ICF","E0154190","112416320","BLOCK INSTITUTE","","","376 BAY 44TH ST","ACCTS RECEIVABLE DEP","BROOKLYN","NY","11214-7103"]
["OPWDD  ","BLOCK INSTITUTE BAY 44 ICF","E0205948","112416320","BLOCK INSTITUTE","","","376 BAY 44TH ST","ACCTS RECEIVABLE DEP","BROOKLYN","NY","11214-7103"]
["OPWDD  ","BLOCK INSTITUTE CLINIC","E0273909","112416320","BLOCK INSTITUTE","","","376 BAY 44TH ST","ACCTS RECEIVABLE DEP","BROOKLYN","NY","11214-7103"]
["OPWDD  ","BLOCK INSTITUTE HUNTER2 ICF","E0154192","112416320","BLOCK INSTITUTE","","","376 BAY 44TH ST","ACCTS RECEIVABLE DEP","BROOKLYN","NY","11214-7103"]
["OPWDD  ","BLOCK INSTITUTE INC SMP","E0083094","112416320","BLOCK INSTITUTE","","","376 BAY 44TH ST","ACCTS RECEIVABLE DEP","BROOKLYN","NY","11214-7103"]
["OPWDD  ","BLOCK INSTITUTE OCEAN AVE I","E0223429","112416320","BLOCK INSTITUTE","","","376 BAY 44TH ST","ACCTS RECEIVABLE DEP","BROOKLYN","NY","11214-7103"]
["OMH  ","FAMILY RES & ESSENTIAL ENT","E0145759","112420547","FAMILY RESIDENCE AND ESSENTIAL ENTE","","",null,"PO BOX 12248","HAUPPAUGE","NY","11788-0873"]
["OMH  ","FAMILY RESIDENCES","E0169537","112420547","FAMILY RESIDENCE AND ESSENTIAL ENTE","","",null,"PO BOX 12248","HAUPPAUGE","NY","11788-0873"]
["OPWDD  ","FAM RESID/ESSENTIAL ENT FSR 3","E0283453","112420547","FAMILY RESIDENCE AND ESSENTIAL ENTE","","",null,"PO BOX 12248","HAUPPAUGE","NY","11788-0873"]
["OPWDD  ","FAM RESID/ESSENTIAL ENT FSR 4","E0295248","112420547","FAMILY RESIDENCE AND ESSENTIAL ENTE","","",null,"PO BOX 12248","HAUPPAUGE","NY","11788-0873"]
["OPWDD  ","FAM RESID/ESSENTIAL ENT RSP","E0033777","112420547","FAMILY RESIDENCE AND ESSENTIAL ENTE","","",null,"PO BOX 12248","HAUPPAUGE","NY","11788-0873"]
["OPWDD  ","FAM RESID/ESSENTL ENT FSR 1","E0040740","112420547","FAMILY RESIDENCE AND ESSENTIAL ENTE","","",null,"PO BOX 12248","HAUPPAUGE","NY","11788-0873"]
["OPWDD  ","FAM RESID/ESSENTL ENT FSR 2","E0040728","112420547","FAMILY RESIDENCE AND ESSENTIAL ENTE","","",null,"PO BOX 12248","HAUPPAUGE","NY","11788-0873"]
["OPWDD  ","FAMILY RES & ESSEN ENT SMP","E0083115","112420547","FAMILY RESIDENCE AND ESSENTIAL ENTE","","",null,"PO BOX 12248","HAUPPAUGE","NY","11788-0873"]
["OPWDD  ","FAMILY RESIDENCE & ESS ENT","E0101220","112420547","FAMILY RESIDENCE AND ESSENTIAL ENTE","","",null,"PO BOX 12248","HAUPPAUGE","NY","11788-0873"]
["OPWDD  ","FAMILY RESIDENCE AND ESSENTIAL ENTE","E0298217","112420547","FAMILY RESIDENCE AND ESSENTIAL ENTE","","",null,"PO BOX 12248","HAUPPAUGE","NY","11788-0873"]
["OPWDD  ","FREE ABBOTT AVE ICF","E0230000","112420547","FAMILY RESIDENCE AND ESSENTIAL ENTE","","",null,"PO BOX 12248","HAUPPAUGE","NY","11788-0873"]
["OPWDD  ","FREE DAY","E0030872","112420547","FAMILY RESIDENCE AND ESSENTIAL ENTE","","",null,"PO BOX 12248","HAUPPAUGE","NY","11788-0873"]
["OPWDD  ","FREE ELEANOR AVE ICF","E0230001","112420547","FAMILY RESIDENCE AND ESSENTIAL ENTE","","",null,"PO BOX 12248","HAUPPAUGE","NY","11788-0873"]
["OPWDD  ","FREE HEMPSTEAD ICF","E0172396","112420547","FAMILY RESIDENCE AND ESSENTIAL ENTE","","",null,"PO BOX 12248","HAUPPAUGE","NY","11788-0873"]
["OPWDD  ","FREE ICF","E0089415","112420547","FAMILY RESIDENCE AND ESSENTIAL ENTE","","",null,"PO BOX 12248","HAUPPAUGE","NY","11788-0873"]
["OPWDD  ","FREE MAPLEWOOD DRIVE ICF","E0247761","112420547","FAMILY RESIDENCE AND ESSENTIAL ENTE","","",null,"PO BOX 12248","HAUPPAUGE","NY","11788-0873"]
["OPWDD  ","FREE MIDDLE ISLAND ICF","E0177453","112420547","FAMILY RESIDENCE AND ESSENTIAL ENTE","","",null,"PO BOX 12248","HAUPPAUGE","NY","11788-0873"]
["OPWDD  ","FREE PINEWAY ICF","E0229999","112420547","FAMILY RESIDENCE AND ESSENTIAL ENTE","","",null,"PO BOX 12248","HAUPPAUGE","NY","11788-0873"]
["OPWDD  ","FREE RIDGE ICF","E0185173","112420547","FAMILY RESIDENCE AND ESSENTIAL ENTE","","",null,"PO BOX 12248","HAUPPAUGE","NY","11788-0873"]
["OPWDD  ","FREE ROCKLAND AVE ICF","E0188405","112420547","FAMILY RESIDENCE AND ESSENTIAL ENTE","","",null,"PO BOX 12248","HAUPPAUGE","NY","11788-0873"]
["OPWDD  ","FREE S WELLWOOD AVE ICF","E0198746","112420547","FAMILY RESIDENCE AND ESSENTIAL ENTE","","",null,"PO BOX 12248","HAUPPAUGE","NY","11788-0873"]
["OPWDD  ","FREE SMITHTOWN ICF","E0178118","112420547","FAMILY RESIDENCE AND ESSENTIAL ENTE","","",null,"PO BOX 12248","HAUPPAUGE","NY","11788-0873"]
["OPWDD  ","FREE SUPERVISED IRA SPV","E0075392","112420547","FAMILY RESIDENCE AND ESSENTIAL ENTE","","",null,"PO BOX 12248","HAUPPAUGE","NY","11788-0873"]
["OPWDD  ","FREE SUPPORTIVE  SPT","E0075396","112420547","FAMILY RESIDENCE AND ESSENTIAL ENTE","","",null,"PO BOX 12248","HAUPPAUGE","NY","11788-0873"]
["OPWDD  ","FREE WEST ISLIP ICF","E0177454","112420547","FAMILY RESIDENCE AND ESSENTIAL ENTE","","",null,"PO BOX 12248","HAUPPAUGE","NY","11788-0873"]
["D&TC","BETANCES HEALTH CENTER","E0274103","132697725","BETANCES HEALTH CENTER","7002208R","00243045",null,"280 HENRY ST","NEW YORK","NY","10002-4816"]
["OPWDD  ","MIDWOOD DEVELOPMENT CORP SMP","E0083121","112420752","MIDWOOD DEVELOPMENT CORP RSP","","",null,"1416 AVENUE M","BROOKLYN","NY","11230-5272"]
["OPWDD  ","F P R O 1079 E 34TH ST ICF","E0213196","112422505","FEDERATION OF PUERT RICAN ORGAIZATI","","",null,"1582 PITKIN AVENUE","BROOKLYN","NY","11212-4639"]
["OPWDD  ","F P R O 257 E 45TH ST ICF","E0220612","112422505","FEDERATION OF PUERT RICAN ORGAIZATI","","",null,"1582 PITKIN AVENUE","BROOKLYN","NY","11212-4639"]
["OPWDD  ","F P R O 525 W 149TH ST ICF","E0212569","112422505","FEDERATION OF PUERT RICAN ORGAIZATI","","",null,"1582 PITKIN AVENUE","BROOKLYN","NY","11212-4639"]
["OPWDD  ","F P R O 550 W 148TH ST ICF","E0212568","112422505","FEDERATION OF PUERT RICAN ORGAIZATI","","",null,"1582 PITKIN AVENUE","BROOKLYN","NY","11212-4639"]
["OPWDD  ","F P R O 550 W 162ND ST ICF","E0218705","112422505","FEDERATION OF PUERT RICAN ORGAIZATI","","",null,"1582 PITKIN AVENUE","BROOKLYN","NY","11212-4639"]
["OPWDD  ","F P R O 569 W 183RD ST ICF","E0218706","112422505","FEDERATION OF PUERT RICAN ORGAIZATI","","",null,"1582 PITKIN AVENUE","BROOKLYN","NY","11212-4639"]
["OPWDD  ","F P R O BRYANT AVE ICF","E0208967","112422505","FEDERATION OF PUERT RICAN ORGAIZATI","","",null,"1582 PITKIN AVENUE","BROOKLYN","NY","11212-4639"]
["OPWDD  ","F P R O BUSHWICK AVE ICF","E0226119","112422505","FEDERATION OF PUERT RICAN ORGAIZATI","","",null,"1582 PITKIN AVENUE","BROOKLYN","NY","11212-4639"]
["OPWDD  ","F P R O DECATUR ST ICF","E0263517","112422505","FEDERATION OF PUERT RICAN ORGAIZATI","","",null,"1582 PITKIN AVENUE","BROOKLYN","NY","11212-4639"]
["OPWDD  ","F P R O ICF #VII","E0228358","112422505","FEDERATION OF PUERT RICAN ORGAIZATI","","",null,"1582 PITKIN AVENUE","BROOKLYN","NY","11212-4639"]
["OPWDD  ","F P R O MANIDA ST ICF","E0213354","112422505","FEDERATION OF PUERT RICAN ORGAIZATI","","",null,"1582 PITKIN AVENUE","BROOKLYN","NY","11212-4639"]
["OPWDD  ","F P R O MARCUS GARVEY ICF-1","E0263516","112422505","FEDERATION OF PUERT RICAN ORGAIZATI","","",null,"1582 PITKIN AVENUE","BROOKLYN","NY","11212-4639"]
["OPWDD  ","F P R O ST MARKS AVE ICF","E0237114","112422505","FEDERATION OF PUERT RICAN ORGAIZATI","","",null,"1582 PITKIN AVENUE","BROOKLYN","NY","11212-4639"]
["OPWDD  ","F P R O TELLER AVENUE ICF","E0240105","112422505","FEDERATION OF PUERT RICAN ORGAIZATI","","",null,"1582 PITKIN AVENUE","BROOKLYN","NY","11212-4639"]
["OPWDD  ","FEDERATION/MULTICULTURAL PROG SPV","E0001421","112422505","FEDERATION OF PUERT RICAN ORGAIZATI","","",null,"1582 PITKIN AVENUE","BROOKLYN","NY","11212-4639"]
["OPWDD  ","HAITIAN AMER UN/ PROGR DAY","E0030268","112423857","HAITIAN AMER UN/ PROGR DAY","","",null,"22105 LINDEN BLVD","CAMBRIA HEIGHTS","NY","11411-1622"]
["OPWDD  ","HAITIAN AMER UN/PROGR RSP","E0040818","112423857","HAITIAN AMER UN/ PROGR DAY","","",null,"22105 LINDEN BLVD","CAMBRIA HEIGHTS","NY","11411-1622"]
["D&TC","SETTLEMENT HEALTH","E0263670","132957943","SETTLEMENT HEALTH","7002105R","00355151",null,"212 E 106TH ST","NEW YORK","NY","10029-4007"]
["OMH  ","CENTRAL NASS GUID/COUN SVS MH","E0066319","112438388","CENTRAL NASSAU GUID & CNSL","","",null,"950 S OYSTER BAY RD","HICKSVILLE","NY","11801-3510"]
["OMH  ","CENTRAL NASSAU GUID&CNSL SVC","E0169564","112438388","CENTRAL NASSAU GUID & CNSL","","",null,"950 S OYSTER BAY RD","HICKSVILLE","NY","11801-3510"]
["D&TC","SOUNDVIEW HEALTH CENTER","E0233163","132960287","COMPREHENSIVE COMMUNITY DEVELOPMENT","7000239R","00665274",null,"PO BOX 4619","RENSSELAER","NY","12144-8614"]
["OMH  ","ANGELO J MELILLO CTR FOR MH","E0167785","112438437","ANGELO J MELILLO CTR FOR MH","","",null,"113 GLEN COVE AVE","GLEN COVE","NY","11542-3438"]
["D&TC","SOUTH BRONX M H COUNCIL   INC","E0238980","133039605","SOUTH BRONX MH COUNCIL","P6570100","00607016","781 E 142ND ST",null,"BRONX","NY","10454-1723"]
["D&TC","COVENANT HOUSE","E0226327","133076376","COVENANT HOUSE","7002116R","00733826",null,"460 W 41ST ST","NEW YORK","NY","10036-6801"]
["OPWDD  ","CARL FENICHEL COMM SVCS DAY","E0029786","112449485","CARL FENICHEL COMM SVCS DAY","","",null,"30 WASHINGTON ST","BROOKLYN","NY","11201-8201"]
["D&TC","INWOOD COMMUNITY SERVICES","E0193827","133087407","INWOOD COMMUNITY SERVICES","P7876100","01060402",null,"651 ACADEMY ST","NEW YORK","NY","10034-5003"]
["OPWDD  ","INDEP GP HM LIV CHAPMAN BLVD","E0211361","112458584","INDEPENDENT GR HM LIVINGND10","","",null,"62 PINE ST # 638","EAST MORICHES","NY","11940-1117"]
["OPWDD  ","INDEP GP HM LIV CNTR MORICHES","E0242160","112458584","INDEPENDENT GR HM LIVINGND10","","",null,"62 PINE ST # 638","EAST MORICHES","NY","11940-1117"]
["OPWDD  ","INDEP GP HM LIV EAST MORICHES","E0211359","112458584","INDEPENDENT GR HM LIVINGND10","","",null,"62 PINE ST # 638","EAST MORICHES","NY","11940-1117"]
["OPWDD  ","INDEP GP HM LIV EASTPORT ICF","E0188000","112458584","INDEPENDENT GR HM LIVINGND10","","",null,"62 PINE ST # 638","EAST MORICHES","NY","11940-1117"]
["OPWDD  ","INDEP GP HM LIV FLANDERS ICF","E0186747","112458584","INDEPENDENT GR HM LIVINGND10","","",null,"62 PINE ST # 638","EAST MORICHES","NY","11940-1117"]
["OPWDD  ","INDEP GP HM LIV MANORVILLE IC","E0226819","112458584","INDEPENDENT GR HM LIVINGND10","","",null,"62 PINE ST # 638","EAST MORICHES","NY","11940-1117"]
["OPWDD  ","INDEP GP HM LIV MATTITUCK ICF","E0187999","112458584","INDEPENDENT GR HM LIVINGND10","","",null,"62 PINE ST # 638","EAST MORICHES","NY","11940-1117"]
["OPWDD  ","INDEP GP HM LIV MIDDLE ISLAND","E0211360","112458584","INDEPENDENT GR HM LIVINGND10","","",null,"62 PINE ST # 638","EAST MORICHES","NY","11940-1117"]
["OPWDD  ","INDEP GP HM LIV NESCONSET ICF","E0242159","112458584","INDEPENDENT GR HM LIVINGND10","","",null,"62 PINE ST # 638","EAST MORICHES","NY","11940-1117"]
["OPWDD  ","INDEP GP HM LIV NORTH PHILLIP","E0205216","112458584","INDEPENDENT GR HM LIVINGND10","","",null,"62 PINE ST # 638","EAST MORICHES","NY","11940-1117"]
["OPWDD  ","INDEP GP HM LIV OLD CNTRY RD","E0177448","112458584","INDEPENDENT GR HM LIVINGND10","","",null,"62 PINE ST # 638","EAST MORICHES","NY","11940-1117"]
["OPWDD  ","INDEP GP HM LIV OLD COUNTRY R","E0200311","112458584","INDEPENDENT GR HM LIVINGND10","","",null,"62 PINE ST # 638","EAST MORICHES","NY","11940-1117"]
["OPWDD  ","INDEP GP HM LIV PINE ST ICF","E0177449","112458584","INDEPENDENT GR HM LIVINGND10","","",null,"62 PINE ST # 638","EAST MORICHES","NY","11940-1117"]
["OPWDD  ","INDEP GP HM LIV SEBONIC ICF","E0193815","112458584","INDEPENDENT GR HM LIVINGND10","","",null,"62 PINE ST # 638","EAST MORICHES","NY","11940-1117"]
["OPWDD  ","INDEP GP HM LIV SHORE RD ICF","E0247757","112458584","INDEPENDENT GR HM LIVINGND10","","",null,"62 PINE ST # 638","EAST MORICHES","NY","11940-1117"]
["OPWDD  ","INDEP GP HM LIVING ICF","E0089419","112458584","INDEPENDENT GR HM LIVINGND10","","",null,"62 PINE ST # 638","EAST MORICHES","NY","11940-1117"]
["OPWDD  ","INDEPENDENT GR HM LIVING FSR1","E0040677","112458584","INDEPENDENT GR HM LIVINGND10","","",null,"62 PINE ST # 638","EAST MORICHES","NY","11940-1117"]
["OPWDD  ","INDEPENDENT GR HM LIVING FSR2","E0040722","112458584","INDEPENDENT GR HM LIVINGND10","","",null,"62 PINE ST # 638","EAST MORICHES","NY","11940-1117"]
["OPWDD  ","INDEPENDENT GR HM LIVING SPT","E0075360","112458584","INDEPENDENT GR HM LIVINGND10","","",null,"62 PINE ST # 638","EAST MORICHES","NY","11940-1117"]
["OPWDD  ","INDEPENDENT GR HM LIVING SPV","E0075362","112458584","INDEPENDENT GR HM LIVINGND10","","",null,"62 PINE ST # 638","EAST MORICHES","NY","11940-1117"]
["OPWDD  ","INDEPENDENT GRHM LIVING DAY","E0030258","112458584","INDEPENDENT GR HM LIVINGND10","","",null,"62 PINE ST # 638","EAST MORICHES","NY","11940-1117"]
["OPWDD  ","CRYSTAL RUN BAYARD LANE ICF","E0165385","112466996","CRYSTAL RUN VILLAGE INC.","","",null,"RD 2 STONY FORD RD","MIDDLETOWN","NY","10940-3902"]
["OPWDD  ","CRYSTAL RUN CHESTNUT RIDGE","E0164071","112466996","CRYSTAL RUN VILLAGE INC.","","",null,"RD 2 STONY FORD RD","MIDDLETOWN","NY","10940-3902"]
["OPWDD  ","CRYSTAL RUN SEYMOUR DR ICF","E0165383","112466996","CRYSTAL RUN VILLAGE INC.","","",null,"RD 2 STONY FORD RD","MIDDLETOWN","NY","10940-3902"]
["OPWDD  ","CRYSTAL RUN VILLAGE DAY","E0030369","112466996","CRYSTAL RUN VILLAGE INC.","","",null,"RD 2 STONY FORD RD","MIDDLETOWN","NY","10940-3902"]
["OPWDD  ","CRYSTAL RUN VILLAGE INC FSR 1","E0039083","112466996","CRYSTAL RUN VILLAGE INC.","","",null,"RD 2 STONY FORD RD","MIDDLETOWN","NY","10940-3902"]
["OPWDD  ","CRYSTAL RUN VILLAGE INC ND5","E0050773","112466996","CRYSTAL RUN VILLAGE INC.","","",null,"RD 2 STONY FORD RD","MIDDLETOWN","NY","10940-3902"]
["OPWDD  ","CRYSTAL RUN VILLAGE INC SPV","E0075423","112466996","CRYSTAL RUN VILLAGE INC.","","",null,"RD 2 STONY FORD RD","MIDDLETOWN","NY","10940-3902"]
["D&TC","ROGOSIN KIDNEY CENTER","E0219339","133184198","ROGOSIN KIDNEY CENTER","7002122R","00803907","506 E 74TH ST",null,"NEW YORK","NY","10021-3486"]
["D&TC","LOWER MANHATTAN DIALYSIS CTR","E0208964","133272769","LOWER MANHATTAN DIALYSIS CTR","7002124R","00907873",null,"323 E 34TH ST","NEW YORK","NY","10016-4974"]
["OMH  ","RESIDENTIAL EXP IN ADULT LVG","E0168833","112480497","RESIDENTIAL EXP IN ADULT LVG","","",null,"55 N OCEAN AVE STE 2","FREEPORT","NY","11520-3074"]
["OPWDD  ","Q.S.A.C","E0103823","112482974","QSAC, INC","","","FL 16","253 W 35TH ST","NEW YORK","NY","10001-1907"]
["OPWDD  ","QSAC DAY","E0030033","112482974","QSAC, INC","","","FL 16","253 W 35TH ST","NEW YORK","NY","10001-1907"]
["OPWDD  ","QSAC RSP","E0040945","112482974","QSAC, INC","","","FL 16","253 W 35TH ST","NEW YORK","NY","10001-1907"]
["OPWDD  ","QSAC SPV","E0075252","112482974","QSAC, INC","","","FL 16","253 W 35TH ST","NEW YORK","NY","10001-1907"]
["D&TC","MT VERNON NEIGHBORHOOD HC INC","E0136196","133315508","MT VERNON NEIGHBORHOOD HC INC","5903200R","00926581",null,"107 W 4TH ST","MOUNT VERNON","NY","10550-4002"]
["D&TC","UPPER MANHATTAN MH CTR SCM","E0142970","133389470","UPPER MANHATTAN MH CTR SCM","P7715200","02993800","1727 AMSTERDAM AVE","ASSOC ADMINISTRATOR","NEW YORK","NY","10031-4611"]
["D&TC","MICHAEL CALLEN-AUDRE LRDE CHC","E0114612","133409680","COMMUNITY HEALTH PROJECT INC","7002160R","01854282",null,"356 W 18TH ST","NEW YORK","NY","10011-4401"]
["D&TC","AMBULATORY SURGERY CTR OF GNY","E0191002","133418924","AMBULATORY SURGERY CTR OF GNY","7000241R","01088706",null,"1101 PELHAM PKWY N","BRONX","NY","10469-5411"]
["OPWDD  ","BIRCH FAMILY SERVICES INC","E0315798","112503193","HERBERT G BIRCH SERVICES INC","","",null,"104 W 29TH ST FL 3","NEW YORK","NY","10001-5310"]
["OPWDD  ","BIRCH FAMILY SVC, INC CHILDRN ICF","E0187269","112503193","HERBERT G BIRCH SERVICES INC","","",null,"104 W 29TH ST FL 3","NEW YORK","NY","10001-5310"]
["OPWDD  ","BIRCH FAMILY SVCS INC DAY","E0022091","112503193","HERBERT G BIRCH SERVICES INC","","",null,"104 W 29TH ST FL 3","NEW YORK","NY","10001-5310"]
["OPWDD  ","BIRCH FAMILY SVCS INC SPV","E0075377","112503193","HERBERT G BIRCH SERVICES INC","","",null,"104 W 29TH ST FL 3","NEW YORK","NY","10001-5310"]
["OPWDD  ","BIRCH FAMILY SVCS INC WYCKOFF ICF","E0324117","112503193","HERBERT G BIRCH SERVICES INC","","",null,"104 W 29TH ST FL 3","NEW YORK","NY","10001-5310"]
["OPWDD  ","BIRCH FAMILY SVCS, INC BURNETT ICF","E0188746","112503193","HERBERT G BIRCH SERVICES INC","","",null,"104 W 29TH ST FL 3","NEW YORK","NY","10001-5310"]
["OPWDD  ","BIRCH FAMILY SVCS, INC FLTLNDS ICF","E0146972","112503193","HERBERT G BIRCH SERVICES INC","","",null,"104 W 29TH ST FL 3","NEW YORK","NY","10001-5310"]
["D&TC","JGB REHABILITATION CORP","E0193757","133439035","JGB REHABILITATION CORP","7002131R","01061105","15 W 65TH ST","HAI SAMUEL","NEW YORK","NY","10023-6601"]
["D&TC","CARE FOR THE HOMELESS","E0288864","133666994","CARE FOR THE HOMELESS","7000279R","03064422",null,"30 EAST 33RD ST 5TH FL","NEW YORK","NY","10016-5337"]
["D&TC","ASIAN & PACIFIC I C HIV/AIDS","E0025906","133706365","ASIAN & PACIFIC I C HIV/AIDS","7002173R","02441578",null,"400 BROADWAY","NEW YORK","NY","10013-3519"]
["D&TC","HOUSING WORKS SER,INC AADC","E0124799","133779481","HOUSING WORKS SER,INC AADC","7002158R","01752285",null,"743 E 9TH ST # 749","NEW YORK","NY","10009-5335"]
["D&TC","HOUSING WORKS SVC II AADC","E0136483","133818122","HOUSING WORKS SVC II AADC","7002148R","01635309","320 W 13TH ST","CIL HURD","NEW YORK","NY","10014-1200"]
["D&TC","LOWER MANHATTAN DIALYSIS CTR2","E0136332","133834310","LOWER MANHATTAN DIALYSIS CTR2","7002145R","01636819",null,"323 E 34TH ST","NEW YORK","NY","10016-4974"]
["D&TC","UPPER ROOM AIDS MINISTRY AADC","E0333589","133841701","UPPER ROOM AIDS MINISTRY, INC","7002153R","01741726",null,"123-125 W 124TH ST","NEW YORK","NY","10027-0001"]
["D&TC","ALLHEALTH DIAG & TRT CTR","E0135649","133861340","ALLHEALTH DIAG & TRT CTR","7003245R","01643654",null,"200 W 58TH ST","NEW YORK","NY","10019-1432"]
["D&TC","NEW YORK RENAL ASSOCIATES INC","E0114460","133903802","NEW YORK RENAL ASSOCIATES INC","7000250R","01855807",null,"3468 PARK AVE","BRONX","NY","10456-4307"]
["D&TC","PREMIER HEALTHCARE D & T CTR","E0124927","133916271","PREMIER HEALTHCARE D & T CTR","7002154R","01751000","460 W 34TH ST",null,"NEW YORK","NY","10001-2320"]
["D&TC","SURGICARE AMB SURG CTR OF NY","E0108888","133921067","SURGICARE AMB SURG CTR OF NY","7000253R","01911619",null,"3250 WESTCHESTER AVE","BRONX","NY","10461-4500"]
["D&TC","HARLEM EAST LIFE PLAN","E0102156","133934211","SES OPERATING CORP","7002165R","01979006",null,"2369 2ND AVE","NEW YORK","NY","10035-3108"]
["D&TC","CITICARE INC","E0198034","133942051","CITICARE INC","7002299R","01018280",null,"159 W 127TH ST","NEW YORK","NY","10027-3723"]
["D&TC","COLUMBIA UNIV HLTH CARE","E0124323","133948652","COLUMBIA UNIV HLTH CARE","7002157R","01757051","PO BOX 27581","CUHC-SDOS/GPO","NEW YORK","NY","10087-7581"]
["D&TC","BRONX RIVER NEPHRO-CARE INC","E0118831","133949010","BRONX RIVER NEPHRO-CARE INC","7000249R","01812064",null,"1616 BRONXDALE AVE","BRONX","NY","10462-3302"]
["D&TC","AHRC HEALTH CARE INC","E0107194","134032078","AHRC HEALTH CARE INC","7002164R","01928569","83 MAIDEN LN","COO","NEW YORK","NY","10038-4812"]
["OPWDD  ","PLUS GROUP HOMES INC SPV","E0075240","112530267","PLUS GROUP HOMES INC ND1","","",null,"1228 WANTAGH AVE","WANTAGH","NY","11793-2209"]
["OPWDD  ","PLUS-LEVITTOWN ICF","E0187782","112530267","PLUS GROUP HOMES INC ND1","","",null,"1228 WANTAGH AVE","WANTAGH","NY","11793-2209"]
["OPWDD  ","PLUS-NEWPORT ROAD ICF","E0205357","112530267","PLUS GROUP HOMES INC ND1","","",null,"1228 WANTAGH AVE","WANTAGH","NY","11793-2209"]
["OPWDD  ","PLUS-WILLIS AVE ICF","E0191326","112530267","PLUS GROUP HOMES INC ND1","","",null,"1228 WANTAGH AVE","WANTAGH","NY","11793-2209"]
["D&TC","ALL MED & REHAB OF NEW YORK","E0089987","134034143","EJZM, LLC LLP","7000259R","02100810",null,"4377 BRONX BLVD","BRONX","NY","10466-1397"]
["OMH  ","SERVICES FOR THE UNDERSERVED","E0169488","112540650","SERVICES FOR THE UNDERSERVED","","",null,"305 7TH AVE","NEW YORK","NY","10001-6008"]
["OMH  ","LEXINGTON CTR FOR MH SERVICES","E0263421","112542317","LEXINGTON CICM MH","","","25 02 75TH ST","DIRECTOR CICM PROG","JACKSON HEIGHTS","NY","11370"]
["D&TC","UPPER EAST SIDE DIALYSIS CTR","E0028386","134039516","REPLACEMENT ASSOCIATES, LLC","7002180R","02717999",null,"470 SEAVIEW AVE","STATEN ISLAND","NY","10305-3401"]
["OMH  ","PROFESSIONAL SVC CTR HANDICAP","E0169510","112542430","PSCH, INC.","","",null,"2244 119TH ST","COLLEGE POINT","NY","11356-2516"]
["OMH  ","PSCH INC","E0312173","112542430","PSCH, INC.","","",null,"2244 119TH ST","COLLEGE POINT","NY","11356-2516"]
["OMH  ","PSCH INC  MH","E0081115","112542430","PSCH, INC.","","",null,"2244 119TH ST","COLLEGE POINT","NY","11356-2516"]
["OPWDD  ","PROF SVC CTR HANDICAPPED DAY","E0030822","112542430","PSCH, INC.","","",null,"2244 119TH ST","COLLEGE POINT","NY","11356-2516"]
["OPWDD  ","PROFESSIONAL SVC 117TH ST ICF","E0146921","112542430","PSCH, INC.","","",null,"2244 119TH ST","COLLEGE POINT","NY","11356-2516"]
["OPWDD  ","PROFESSIONAL SVC 149TH ST ICF","E0157166","112542430","PSCH, INC.","","",null,"2244 119TH ST","COLLEGE POINT","NY","11356-2516"]
["OPWDD  ","PROFESSIONAL SVC 195 PLACE","E0188210","112542430","PSCH, INC.","","",null,"2244 119TH ST","COLLEGE POINT","NY","11356-2516"]
["OPWDD  ","PROFESSIONAL SVC 7TH AVE ICF","E0171701","112542430","PSCH, INC.","","",null,"2244 119TH ST","COLLEGE POINT","NY","11356-2516"]
["OPWDD  ","PROFESSIONAL SVC BELL BLVD","E0173839","112542430","PSCH, INC.","","",null,"2244 119TH ST","COLLEGE POINT","NY","11356-2516"]
["OPWDD  ","PROFESSIONAL SVC BUTLER ST","E0185750","112542430","PSCH, INC.","","",null,"2244 119TH ST","COLLEGE POINT","NY","11356-2516"]
["OPWDD  ","PROFESSIONAL SVC MASPETH ICF","E0179587","112542430","PSCH, INC.","","",null,"2244 119TH ST","COLLEGE POINT","NY","11356-2516"]
["OPWDD  ","PROFESSIONAL SVC SCANNELL ICF","E0230007","112542430","PSCH, INC.","","",null,"2244 119TH ST","COLLEGE POINT","NY","11356-2516"]
["OPWDD  ","PROFESSIONAL SVC SELINGER ICF","E0210099","112542430","PSCH, INC.","","",null,"2244 119TH ST","COLLEGE POINT","NY","11356-2516"]
["OPWDD  ","PSCH INC SPV","E0075261","112542430","PSCH, INC.","","",null,"2244 119TH ST","COLLEGE POINT","NY","11356-2516"]
["D&TC","DOCTORS UNITED","E0095154","134070634","DOCTORS UNITED","5924200R","02049085",null,"174 GRAND ST","WHITE PLAINS","NY","10601-4803"]
["D&TC","UNION COMM HEALTH CTR INC","E0093651","134074478","UNION COMM HEALTH CTR INC","7000255R","02064111","4422 3RDAVE","PATIENT ACCTS DEPT","BRONX","NY","10457-2545"]
["D&TC","SL QUALITY CARE D&T CTR INC","E0092415","134123401","SL QUALITY CARE D&T CTR INC","7001295R","02076511","1220 AVENUE P",null,"BROOKLYN","NY","11229-1009"]
["D&TC","KINGS HARBOR DIALYSIS CTR","E0040638","134138854","KINGS HARBOR DIALYSIS CTR","7000268R","02595182","2020 E GUN HILL RD","ACCOUNTING OFFICE","BRONX","NY","10469"]
["D&TC","CHINATOWN DIALYSIS LLC","E0061137","134163720","CHINATOWN DIALYSIS LLC","7002171R","02389875",null,"323 E 34TH ST","NEW YORK","NY","10016-4974"]
["D&TC","RETINAL AMB SURG CTR OF NY INC","E0003293","134189700","RETINAL AMB SURG CTR OF NY INC","7002186R","02951095",null,"138-140 EAST 80 STREET","NEW YORK","NY","10075-0306"]
["D&TC","NASSAU DIALYSIS, LLC","E0219340","134200972","NASSAU DIALYSIS, LLC","2906202R","00803892",null,"PO BOX 10153","UNIONDALE","NY","11555-1053"]
["D&TC","VILLAGE CARE HEALTH CLINIC","E0025833","134215186","VILLAGE CARE HEALTH CLINIC","7002181R","02743557","154 CHRISTOPHER ST",null,"NEW YORK","NY","10014-2840"]
["OMH  ","BROOKLYN COMM HOUS AND SVC IN","E0169461","112549027","BROOKLYN COMM HOUS AND SVC IN","","","105 CARLTON AVE",null,"BROOKLYN","NY","11205-2201"]
["OMH  ","THE WAY BACK, INC.","E0169485","112551825","THE WAY BACK, INC.","","",null,"1401 MAIN ST","PORT JEFFERSON","NY","11777-2225"]
["D&TC","GREENWICH HOUSE INC AI","E0155208","135562204","GREENWICH HOUSE INC AI","7002287R","00244468","27 BARROW ST FL 2",null,"NEW YORK","NY","10014-3899"]
["OPWDD  ","URBAN RESOURCE INST PRIMM ICF","E0177901","112561648","URBAN RESOURCE ONSTITUTE ND 1","","","22 CHAPEL ST",null,"BROOKLYN","NY","11201-1903"]
["OPWDD  ","URBAN RESOURSE INST LINDEN","E0179125","112561648","URBAN RESOURCE ONSTITUTE ND 1","","","22 CHAPEL ST",null,"BROOKLYN","NY","11201-1903"]
["D&TC","NEW YORK UNIV DENTAL CTR","E0166474","135562308","NEW YORK UNIVERSITY","7002139R","01334674",null,"345 EAST 24TH STREET, RM 1041W","NEW YORK","NY","10010-4020"]
["D&TC","ICD INTERNATL CTR FOR DISABL","E0273982","135562990","ICD-INT'L CTR F/T DISABLE TBI","7002212R","00244413","340 E 24TH ST",null,"NEW YORK","NY","10010-4019"]
["OPWDD  ","UCP GREATER SUFFOLK ICF","E0089417","112568841","UNITED CEREBRAL PALSY OF GREATER","","",null,"250 MARCUS BLVD","HAUPPAUGE","NY","11788-2018"]
["OPWDD  ","UCP GREATER SUFFOLK ICF #1","E0227923","112568841","UNITED CEREBRAL PALSY OF GREATER","","",null,"250 MARCUS BLVD","HAUPPAUGE","NY","11788-2018"]
["OPWDD  ","UCP GREATER SUFFOLK ICF #3","E0247760","112568841","UNITED CEREBRAL PALSY OF GREATER","","",null,"250 MARCUS BLVD","HAUPPAUGE","NY","11788-2018"]
["OPWDD  ","UCP GREATER SUFFOLK ICF #4","E0247759","112568841","UNITED CEREBRAL PALSY OF GREATER","","",null,"250 MARCUS BLVD","HAUPPAUGE","NY","11788-2018"]
["OPWDD  ","UCP GREATER SUFFOLK ICF #5","E0230420","112568841","UNITED CEREBRAL PALSY OF GREATER","","",null,"250 MARCUS BLVD","HAUPPAUGE","NY","11788-2018"]
["OPWDD  ","UCP GREATER SUFFOLK ICF #6","E0230419","112568841","UNITED CEREBRAL PALSY OF GREATER","","",null,"250 MARCUS BLVD","HAUPPAUGE","NY","11788-2018"]
["OPWDD  ","UCP GREATER SUFFOLK ICF #7","E0247758","112568841","UNITED CEREBRAL PALSY OF GREATER","","",null,"250 MARCUS BLVD","HAUPPAUGE","NY","11788-2018"]
["OPWDD  ","UCP GREATER SUFFOLK ICF #8","E0230418","112568841","UNITED CEREBRAL PALSY OF GREATER","","",null,"250 MARCUS BLVD","HAUPPAUGE","NY","11788-2018"]
["OPWDD  ","UCP GREATER SUFFOLK INDIAN HE","E0211840","112568841","UNITED CEREBRAL PALSY OF GREATER","","",null,"250 MARCUS BLVD","HAUPPAUGE","NY","11788-2018"]
["OPWDD  ","UCP NYS SUFFOLK DAY TRT","E0225220","112568841","UNITED CEREBRAL PALSY OF GREATER","","",null,"250 MARCUS BLVD","HAUPPAUGE","NY","11788-2018"]
["OPWDD  ","UCPA OF GREATER SUFFOLK ATLNT","E0025123","112568841","UNITED CEREBRAL PALSY OF GREATER","","",null,"250 MARCUS BLVD","HAUPPAUGE","NY","11788-2018"]
["OPWDD  ","UCPA OF GTR SUFFOLK BUSHWICK","E0025122","112568841","UNITED CEREBRAL PALSY OF GREATER","","",null,"250 MARCUS BLVD","HAUPPAUGE","NY","11788-2018"]
["OPWDD  ","UCPA OF GTR SUFFOLK INC DAY","E0029832","112568841","UNITED CEREBRAL PALSY OF GREATER","","",null,"250 MARCUS BLVD","HAUPPAUGE","NY","11788-2018"]
["OPWDD  ","UCPA OF GTR SUFFOLK SPV","E0074824","112568841","UNITED CEREBRAL PALSY OF GREATER","","",null,"250 MARCUS BLVD","HAUPPAUGE","NY","11788-2018"]
["D&TC","MEDICAL HLTH RESEARCH ASC NYC","E0273882","135669201","MED & HLTH RESEARCH ASSOC NYC","7002296R","00245538",null,"40 WORTH ST RM 720","NEW YORK","NY","10013-2904"]
["OMH  ","AID DEVELOPMENTALLY DISABLED","E0169574","112573451","AID TO DEV DISABLED INC ND 1","","","901 E MAIN ST STE 508",null,"RIVERHEAD","NY","11901-2680"]
["OPWDD  ","AID DEV DISABLED CALVERTON","E0205316","112573451","AID TO DEV DISABLED INC ND 1","","","901 E MAIN ST STE 508",null,"RIVERHEAD","NY","11901-2680"]
["OPWDD  ","AID DEV DISABLED CUTCHOGUE","E0193034","112573451","AID TO DEV DISABLED INC ND 1","","","901 E MAIN ST STE 508",null,"RIVERHEAD","NY","11901-2680"]
["OPWDD  ","AID DEV DISABLED ICF","E0089416","112573451","AID TO DEV DISABLED INC ND 1","","","901 E MAIN ST STE 508",null,"RIVERHEAD","NY","11901-2680"]
["OPWDD  ","AID DEV DISABLED JAMESPORT IC","E0198578","112573451","AID TO DEV DISABLED INC ND 1","","","901 E MAIN ST STE 508",null,"RIVERHEAD","NY","11901-2680"]
["OPWDD  ","AID DEV DISABLED NORTHVILLE I","E0217766","112573451","AID TO DEV DISABLED INC ND 1","","","901 E MAIN ST STE 508",null,"RIVERHEAD","NY","11901-2680"]
["OPWDD  ","AID TO DEV DISABLED  SPV","E0075473","112573451","AID TO DEV DISABLED INC ND 1","","","901 E MAIN ST STE 508",null,"RIVERHEAD","NY","11901-2680"]
["D&TC","WESTCHESTER CNTY DOH","E0252202","136007353","WESTCHESTER CNTY DC MH","5902200R","00473074","112 E POST RD","DIR ADMIN SER","WHITE PLAINS","NY","10601-5113"]
["D&TC","EAST HARLEM COUNCIL HUM SERV","E0273894","136213532","EAST HARLEM COUNCIL HUM SERV","7002217R","00245390",null,"2253 3RD AVE","NEW YORK","NY","10035-2206"]
["D&TC","UNIVERSITY OPTOMETRIC CTR","E0273975","146013200","STATE OF NEW YORK COMPTROLLERS OFFC","7002114R","00244528",null,"110 STATE STREET","ALBANY","NY","12207-2004"]
["D&TC","DOJ DIALYSIS CENTER CORP","E0031772","200183213","DOJ DIALYSIS CENTER CORP","7000270R","02684059",null,"222 BLOOMINGDALE RD STE 400","WHITE PLAINS","NY","10605-1517"]
["D&TC","CASTLE HILL MED CTR OF NY","E0013432","200358994","CASTLE HILL MED CTR OF NY","7000273R","02867687","920 CASTLE HILL AVE",null,"BRONX","NY","10473-1320"]
["OMH  ","NEW HORIZON COUNSELING CTR","E0230879","112593090","NEW HORIZON COUNSELING CTR MH","","","10 819 ROCKAWAY BLVD","CONTROLLER","S. OZONE PARK","NY","11420-1034"]
["OMH  ","NEW HORIZON COUNSELING CTR MH","E0026358","112593090","NEW HORIZON COUNSELING CTR MH","","","10 819 ROCKAWAY BLVD","CONTROLLER","S. OZONE PARK","NY","11420-1034"]
["OPWDD  ","OTSAR INC DAY","E0029980","112601112","OTSAR FAMILY SERVICES INC","","",null,"2324 W 13TH ST","BROOKLYN","NY","11223-5639"]
["OPWDD  ","OTSAR INC RSP","E0039091","112601112","OTSAR FAMILY SERVICES INC","","",null,"2324 W 13TH ST","BROOKLYN","NY","11223-5639"]
["OMH  ","SOUTH SHORE ASSOC IND LIV RC","E0022997","112603787","SOUTH SHORE ASSOC IND LIV RC","","",null,"1976 GRAND AVE","NORTH BALDWIN","NY","11510-2813"]
["OMH  ","OPTIONS FOR COMMUNITY LVG INC","E0169505","112612035","OPTIONS FOR COMM LIVING AI","","","202 E MAIN ST STE 7","FISCAL MANAGER","SMITHTOWN","NY","11787-2806"]
["D&TC","NORTH GENERAL D&T CENTER INC","E0042354","200561166","NORTH GENERAL D&T CENTER INC","7002179R","02577993","PO BOX 48231","NORTH GENERAL D&TC","NEWARK","NJ","07101-8431"]
["OMH  ","BROOKLYN CTR/FAMILIES/CRISIS","E0224814","112619716","BROOKLYN CTR/FAMILIES/CRISIS","","",null,"1309 FOSTER AVE # 1311","BROOKLYN","NY","11230-1511"]
["OPWDD  ","UCP BAYVILLE-BAYVILLE ICF","E0216515","112623791","UCP BAYVILLE-BAYVILLE ICF","","",null,"380 WASHINGTON AVE","ROOSEVELT","NY","11575-1845"]
["D&TC","GATEWAY DIALYSIS CENTER","E0038076","200687566","GATEWAY DIALYSIS CENTER","7001117R","02620840","1170 E 98TH ST",null,"BROOKLYN","NY","11236-4006"]
["OPWDD  ","HASC CENTER DAY","E0030873","112630071","HASC CENTER, INC.","","",null,"5601 1ST AVE","BROOKLYN","NY","11220-2517"]
["OPWDD  ","HASC CENTER FSR 1","E0305543","112630071","HASC CENTER, INC.","","",null,"5601 1ST AVE","BROOKLYN","NY","11220-2517"]
["OPWDD  ","HASC CENTER INC RSP","E0039110","112630071","HASC CENTER, INC.","","",null,"5601 1ST AVE","BROOKLYN","NY","11220-2517"]
["OPWDD  ","HASC CENTER INC SPT","E0075387","112630071","HASC CENTER, INC.","","",null,"5601 1ST AVE","BROOKLYN","NY","11220-2517"]
["OPWDD  ","HASC CENTER INC SPV","E0075389","112630071","HASC CENTER, INC.","","",null,"5601 1ST AVE","BROOKLYN","NY","11220-2517"]
["D&TC","MOUNT VERNON DIALYSIS CENTER","E0289048","201301708","MOUNT VERNON DIALYSIS CENTER","5903203R","03065698",null,"PO BOX 9009","MOUNT VERNON","NY","10552-9009"]
["OASAS  ","SAMARITAN VILLAGE         INC","E0273903","112635374","SAMARITAN VILLAGE INC","7003220R","00245309",null,"13802 QUEENS BLVD","BRIARWOOD","NY","11435-2642"]
["D&TC","WOODMERE DIALYSIS LLC","E0014101","205185712","WOODMERE DIALYSIS LLC","2950210R","02860979","121 FRANKLIN PL",null,"WOODMERE","NY","11598-1218"]
["OPWDD  ","PESACH TIKVAH DAY","E0286782","112642641","PESACH TIKVAH-HOPE DEV RSP","","","18 MIDDLETON ST",null,"BROOKLYN","NY","11206-5415"]
["OPWDD  ","PESACH TIKVAH DIVISION AVE IC","E0212047","112642641","PESACH TIKVAH-HOPE DEV RSP","","","18 MIDDLETON ST",null,"BROOKLYN","NY","11206-5415"]
["OPWDD  ","PESACH TIKVAH-HOPE DEV RSP","E0040947","112642641","PESACH TIKVAH-HOPE DEV RSP","","","18 MIDDLETON ST",null,"BROOKLYN","NY","11206-5415"]
["OMH  ","NATIONAL NEIGHBRHD CNSLG CTR","E0213357","112657381","NATIONAL NEIGHBRHD CNSLG CTR","","",null,"7701 13TH AVE","BROOKLYN","NY","11228-2413"]
["D&TC","MEDCARE, LLC","E0081219","208523023","MEDCARE, LLC","7003268R","02188618","217 BEACH 95TH ST",null,"ROCKAWAY BEACH","NY","11693-1303"]
["D&TC","ISLAND REHAB SVCS KINGS","E0247684","222268758","ISLAND REHABILITATIVE SERVICES CORP","7004204R","00519755",null,"97 NEW DORP LANE","STATEN ISLAND","NY","10306-9999"]
["D&TC","PROJECT SAMARITAN HLTH SVCS I","E0130956","223433831","PROJECT SAMARITAN HLTH SVCS I","7003246R","01690633","13802 QUEENS BLVD",null,"BRIARWOOD","NY","11435-2642"]
["OPWDD  ","ADVOCATES FOR SERVICES SPV","E0075488","112685324","ADVOCATES FOR SERVICES FOR THE BLIN","","",null,"3106 CONEY ISLAND AVE","BROOKLYN","NY","11235-6400"]
["OPWDD  ","ADVOCATES SVC BL MULTIHAN RIV","E0184037","112685324","ADVOCATES FOR SERVICES FOR THE BLIN","","",null,"3106 CONEY ISLAND AVE","BROOKLYN","NY","11235-6400"]
["OPWDD  ","ASBM INC","E0029782","112685324","ADVOCATES FOR SERVICES FOR THE BLIN","","",null,"3106 CONEY ISLAND AVE","BROOKLYN","NY","11235-6400"]
["OPWDD  ","NASSAU SUFFOLK SVCS AUT DAY","E0018077","112689753","NASSAU SUFFOLK SVCS AUT DAY","","",null,"80 HAUPPAUGE RD","COMMACK","NY","11725-4403"]
["D&TC","URBAN HEALTH PLAN INC","E0023185","237360305","COLLINS REBECCA","7000225R","00244977",null,"1065 SOUTHERN BOULEVARD","BRONX","NY","10459"]
["D&TC","RAYMOND NAFTALI AMB CTR F/ REHAB","E0001764","260428903","THE RAYMOND NAFTALI AMBUL CTR REHAB","7002187R","02937057",null,"10TH FLOOR","NEW YORK","NY","10001"]
["D&TC","HEMPSTEAD COMMUNITY HC HEMPSTEAD","E0326672","270216316","LONG ISLAND FQHC INC","2908201R05","02979308",null,"EXECUTIVE DIRECTOR","NEW YORK","NY","10087-5139"]
["D&TC","AHAVA MEDICAL AND REHAB CENTER LLC","E0288379","352249024","AHAVA MEDICAL AND REHAB CENTER LLC","7001123R","03060524",null,"2555 NOSTRAND AVE","BROOKLYN","NY","11210-4730"]
["D&TC","BRONX DIALYSIS CTR","E0130707","400002285","KNICKERBOCKER DIALYSIS INC","7000246R","01693136",null,"PO BOX 2076","TACOMA","WA","98401-2076"]
["D&TC","PRIME CARE ON THE BAY LLC","E0057465","412084941","PRIME CARE ON THE BAY LLC","7001106R","02426653",null,"1711 SHEEPSHEAD BAY RD","BROOKLYN","NY","11235-3651"]
["OPWDD  ","PROGRAM DEV SRV HARRISON ICF","E0164240","112715916","PROGRAM DEVELOPMENT SERVICES INC","","",null,"6916 NEW UTRECHT AVE","BROOKLYN","NY","11228-1810"]
["OPWDD  ","PROGRAM DEV SRV O'DALY ICF","E0162134","112715916","PROGRAM DEVELOPMENT SERVICES INC","","",null,"6916 NEW UTRECHT AVE","BROOKLYN","NY","11228-1810"]
["OPWDD  ","PROGRAM DEVELOPMENT SVC DAY","E0030037","112715916","PROGRAM DEVELOPMENT SERVICES INC","","",null,"6916 NEW UTRECHT AVE","BROOKLYN","NY","11228-1810"]
["OPWDD  ","PROGRAM DEVELOPMENT SVCS SPT","E0074368","112715916","PROGRAM DEVELOPMENT SERVICES INC","","",null,"6916 NEW UTRECHT AVE","BROOKLYN","NY","11228-1810"]
["OPWDD  ","PROGRAM DEVELOPMENT SVCS SPV","E0074370","112715916","PROGRAM DEVELOPMENT SERVICES INC","","",null,"6916 NEW UTRECHT AVE","BROOKLYN","NY","11228-1810"]
["OPWDD  ","MAIDSTONE FOUNDATION INC DAY","E0286744","112718381","MAIDSTONE FOUNDATION HCBS 1","","",null,"1225 BROADWAY 9THFL","NEW YORK","NY","10001"]
["D&TC","WEILL CORNELL IMAGING NY PRSBYTRIAN","E0292475","412237441","WEILL CORNELL IMAGING AT NEW YORK P","7002188R","03095127","SUITE ST ARR 8A-37","525 E 68TH ST","NEW YORK","NY","10065-4870"]
["D&TC","MOUNT SINAI D&T CENTER","E0045090","450537391","MOUNT SINAI D&T CENTER","7002178R","02550594","PO BOX 27689","PFS DEPARTMENT","NEW YORK","NY","10087-7689"]
["OPWDD  ","INDEPENDENT LIVING ASSN ND 2","E0062307","112729771","INDEPENDENT LIVING ASSOCIATION INC.","","",null,"110 YORK ST","BROOKLYN","NY","11201-1446"]
["OPWDD  ","INDEPENDENT LIVING ASSN SPT","E0075356","112729771","INDEPENDENT LIVING ASSOCIATION INC.","","",null,"110 YORK ST","BROOKLYN","NY","11201-1446"]
["OMH  ","SPANISH SPEAKING ELDERLY COUN","E0102496","112730462","SPANISH SPEAKING ELDERLY COUN","","",null,"10 HANOVER PL PH","BROOKLYN","NY","11201-5840"]
["D&TC","BKLYN ENDO & AMB SURG CTR LLC","E0043418","460480895","BKLYN ENDO & AMB SURG CTR LLC","7001115R","02567348",null,"1630 E 14TH ST","BROOKLYN","NY","11229-1104"]
["D&TC","CLIFFSIDE RENAL DIALYSIS","E0026258","470929361","CRD ASSOCIATES, LLC","7003266R","02739302",null,"5 MARINER WAY","MONSEY","NY","10952-1600"]
["D&TC","COMMUNITY HLTH CTR OF RICHMOND, INC","E0009849","510567466","COMMUNITY HLTH CTR OF RICHMOND, INC","7004210R","02903588",null,"235 PORT RICHMOND AVE","STATEN ISLAND","NY","10302-1701"]
["D&TC","STATEN ISLAND ARTIFICIAL KIDN","E0124373","620850498","DIALYSIS CLINICS, INC","7004207R","01756550",null,"234 E MAIN ST","ELMSFORD","NY","10523-3423"]
["D&TC","STONYBROOK DIALYSIS CLINIC","E0120105","620850498","DIALYSIS CLINICS, INC","5151205R","01799288",null,"234 E MAIN ST","ELMSFORD","NY","10523-3423"]
["D&TC","CENTURY MED & DENTAL CTR","E0048140","651166987","CENTURY MED & DENTAL CTR","7001108R","02520029",null,"260 AVENUE X","BROOKLYN","NY","11223-5940"]
["OMH  ","ST CHRISTOPHER-OTTILIE  MH","E0081357","112777066","SCO FAMILY OF SERVICES","","",null,"1 ALEXANDER PL","GLEN COVE","NY","11542-3745"]
["OPWDD  ","SCO FAMILY OF SERVICES","E0322801","112777066","SCO FAMILY OF SERVICES","","",null,"1 ALEXANDER PL","GLEN COVE","NY","11542-3745"]
["OPWDD  ","ST CHRISTOPHER OTTILIE DAY","E0029982","112777066","SCO FAMILY OF SERVICES","","",null,"1 ALEXANDER PL","GLEN COVE","NY","11542-3745"]
["OPWDD  ","ST CHRISTOPHER OTTILIE HCBS","E0150869","112777066","SCO FAMILY OF SERVICES","","",null,"1 ALEXANDER PL","GLEN COVE","NY","11542-3745"]
["OPWDD  ","ST CHRISTOPHER OTTILIE SPV","E0075092","112777066","SCO FAMILY OF SERVICES","","",null,"1 ALEXANDER PL","GLEN COVE","NY","11542-3745"]
["OPWDD  ","ST CHRISTOPHER-OTTILIE RICHMO","E0164368","112777066","SCO FAMILY OF SERVICES","","",null,"1 ALEXANDER PL","GLEN COVE","NY","11542-3745"]
["OPWDD  ","ST CHRISTOPHERS OTTILIE KEW","E0172610","112777066","SCO FAMILY OF SERVICES","","",null,"1 ALEXANDER PL","GLEN COVE","NY","11542-3745"]
["OPWDD  ","ST CHRISTOPHERS-OTTILIE JAMAI","E0197400","112777066","SCO FAMILY OF SERVICES","","",null,"1 ALEXANDER PL","GLEN COVE","NY","11542-3745"]
["D&TC","BE WELL PRIMARY HLTH CARE CTR","E0047252","800057571","BE WELL PRIMARY HLTH CARE CTR","7001111R","02528912",null,"2019 NOSTRAND AVE","BROOKLYN","NY","11210-2549"]
["OMH  ","MERCY HAVEN INC","E0169518","112783877","MERCY HAVEN INC","","",null,"859 CONNETQUOT AVE","ISLIP TERRACE","NY","11752-1400"]
["D&TC","UTICA AVENUE DIALYSIS CLINIC","E0144496","841377630","ITHACA DIALYSIS CTR","7001276R","01555022","PO BOX 335","267W MERRICK RD","FREEPORT","NY","11520-0335"]
["D&TC","COLUMBUS CTR FOR MED REHAB","E0031360","841621854","COLUMBUS CTR FOR MED REHAB","7000269R","02688177",null,"1221 JEROME AVE","BRONX","NY","10452-3301"]
["D&TC","PORT CHESTER DIALYSIS/RENAL","E0139312","911889832","LIBERTY RC INC","5906200R","01606977",null,"PO BOX 2076","TACOMA","WA","98401-2076"]
["Hospital","ST CATHERINE OF SIENA MED CTR","E0093968","061562701","CHS SMITHTOWN INC","5157003H","02060942","PO BOX 1349","ST CATH SIENA","PORT WASHINGTON","NY","11050-7349"]
["Hospital","SOUTH NASSAU COMMUNITIES HSP","E0273885","111352310","SOUTH NASSAU COMMUNITIES HOSPITAL","2950001H","00245496","ONE HEALTHY WAY","SO NASSAU COMMUNITIES HOSPITAL","OCEANSIDE","NY","11572"]
["Hospital","NORTH SHORE UNIV HOSP AMB SVC","E0150346","111562701","NORTH SHORE UNIVERSITY HOSP","2951001H","00245510",null,"300 COMMUNITY DR","MANHASSET","NY","11030"]
["Hospital","BROOKLYN HOSPITAL CENTER","E0274053","111630755","BROOKLYN HOSPITAL CENTER","7001003H","00243614",null,"PO BOX 31192","HARTFORD","CT","06150-1192"]
["Hospital","BROOKDALE HSP MED CTR","E0274057","111631746","THE BROOKDALE HOSPITAL MEDICAL CENT","7001002H","00243572",null,"10101 AVENUE D","BROOKLYN","NY","11236-1902"]
["OMH  ","AIDS CTR OF QUEENS COUNTY INC","E0144842","112837894","AIDS CTR OF QUEENS COUNTY INC","","",null,"16121 JAMAICA AVE FL 6","JAMAICA","NY","11432-6113"]
["OPWDD  ","MARYHAVEN CENTER OF HOPE SMP","E0083128","112861698","MARYHAVEN CENTER OF HOPE","","","51 TERRYVILLE RD","VP OF FINANCE","PORT JEFFERSON STATION","NY","11776-1331"]
["OPWDD  ","MARYHAVEN CENTER OF HOPE SPT","E0075243","112861698","MARYHAVEN CENTER OF HOPE","","","51 TERRYVILLE RD","VP OF FINANCE","PORT JEFFERSON STATION","NY","11776-1331"]
["OPWDD  ","MARYHAVEN CENTER OF HOPE SPV","E0075245","112861698","MARYHAVEN CENTER OF HOPE","","","51 TERRYVILLE RD","VP OF FINANCE","PORT JEFFERSON STATION","NY","11776-1331"]
["OPWDD  ","MARYHAVEN CTR OF HOPE DAY","E0030823","112861698","MARYHAVEN CENTER OF HOPE","","","51 TERRYVILLE RD","VP OF FINANCE","PORT JEFFERSON STATION","NY","11776-1331"]
["OPWDD  ","MARYHAVEN CTR OF HOPE HSE A","E0196241","112861698","MARYHAVEN CENTER OF HOPE","","","51 TERRYVILLE RD","VP OF FINANCE","PORT JEFFERSON STATION","NY","11776-1331"]
["OPWDD  ","MARYHAVEN CTR OF HOPE HSE B","E0196240","112861698","MARYHAVEN CENTER OF HOPE","","","51 TERRYVILLE RD","VP OF FINANCE","PORT JEFFERSON STATION","NY","11776-1331"]
["OPWDD  ","MARYHAVEN CTR OF HOPE HSE C","E0195662","112861698","MARYHAVEN CENTER OF HOPE","","","51 TERRYVILLE RD","VP OF FINANCE","PORT JEFFERSON STATION","NY","11776-1331"]
["OPWDD  ","MARYHAVEN CTR OF HOPE ICF","E0089426","112861698","MARYHAVEN CENTER OF HOPE","","","51 TERRYVILLE RD","VP OF FINANCE","PORT JEFFERSON STATION","NY","11776-1331"]
["OPWDD  ","MARYHAVEN CTR OF HOPE ICF 1","E0211419","112861698","MARYHAVEN CENTER OF HOPE","","","51 TERRYVILLE RD","VP OF FINANCE","PORT JEFFERSON STATION","NY","11776-1331"]
["OPWDD  ","MARYHAVEN CTR OF HOPE ICF 2","E0205519","112861698","MARYHAVEN CENTER OF HOPE","","","51 TERRYVILLE RD","VP OF FINANCE","PORT JEFFERSON STATION","NY","11776-1331"]
["OPWDD  ","MARYHAVEN CTR OF HOPE ICF 3","E0199043","112861698","MARYHAVEN CENTER OF HOPE","","","51 TERRYVILLE RD","VP OF FINANCE","PORT JEFFERSON STATION","NY","11776-1331"]
["OPWDD  ","MARYHAVEN CTR OF HOPE ICF 4","E0189695","112861698","MARYHAVEN CENTER OF HOPE","","","51 TERRYVILLE RD","VP OF FINANCE","PORT JEFFERSON STATION","NY","11776-1331"]
["OPWDD  ","MARYHAVEN CTR OF HOPE ICF 5","E0177450","112861698","MARYHAVEN CENTER OF HOPE","","","51 TERRYVILLE RD","VP OF FINANCE","PORT JEFFERSON STATION","NY","11776-1331"]
["Hospital","KINGSBROOK JEWISH MED CENTER","E0274048","111631759","KINGSBROOK JEWISH MEDICAL CENTER","7001033H","00243669",null,"585 SCHENECTADY AVE","BROOKLYN","NY","11203-1809"]
["Hospital","FLUSHING HSP MED CNT","E0274033","111631781","FLUSHING HOSPITAL & MED CTR","7003001H","00243843",null,"PO BOX 10005","UNIONDALE","NY","11555-0005"]
["Hospital","JAMAICA HOSPITAL MED CTR","E0274032","111631788","JAMAICA HOSPITAL","7003003H","00243852",null,"8900 VAN WYCK EXPRESSWAY","JAMAICA","NY","11418-2897"]
["Hospital","NEW YORK METHODIST HOSP","E0274044","111631796","NEW YORK METHODIST HOSPITAL","7001021H","00243701",null,"506 SIXTH ST","BROOKLYN","NY","11215-3609"]
["Hospital","WYCKOFF HEIGHTS MEDICAL CENTER","E0029240","111631837","WYCKOFF HEIGHTS MEDICAL CENTER","7001035H","00243825","DEPARTMENT OF EMERGE","374 STOCKHOLM ST","BROOKLYN","NY","11237-4006"]
["Hospital","WINTHROP-UNIVERSITY HOSPITAL","E0274000","111633486","WINTHROP-UNIVERSITY HOSP ASSOC","2908000H","00244211","STE 204","700 HICKSVILLE RD","BETHPAGE","NY","11714-3472"]
["Hospital","EASTERN LONG ISLAND HOSPITAL","E0271639","111633563","EASTERN LONG ISLAND HOSPITAL","5127000H","00274337",null,"201 MANOR PL","GREENPORT","NY","11944-1222"]
["OPWDD  ","LONGLIFE INFO/REF NETWK DAY","E0030170","112878383","LONGLIFE INFO/REF NETWK DAY","","","1958 FULTON ST 3RDFL","EXECUTIVE DIRECTOR","BROOKLYN","NY","11233"]
["OPWDD  ","LITTLE VILLAGE HOUSE ND 1","E0024364","112881075","LITTLE VILLAGE HOUSE ND 1","","",null,"750 HICKSVILLE RD","SEAFORD","NY","11783-1328"]
["OPWDD  ","LITTLE VILLAGE HSE LTL VLG IC","E0189594","112881075","LITTLE VILLAGE HOUSE ND 1","","",null,"750 HICKSVILLE RD","SEAFORD","NY","11783-1328"]
["Hospital","MAIMONIDES MEDICAL CENTER","E0274050","111635081","MAIMONIDES MED PSYCH DEPT SCM","7001020H","00243641","4802 10TH AVE","ASST VICE PRESIDENT","BROOKLYN","NY","11219-2916"]
["Hospital","LONG BEACH MEDICAL CENTER","E0273886","111635084","LONG BEACH MEDICAL CENTER","2902000H","00245487",null,"455 E BAY DR","LONG BEACH","NY","11561-2301"]
["OPWDD  ","WOMANS LEAGUE COMM RES 12 AVE ICF","E0184220","112889774","WOMENS LEAGUE COMMUNITY RESIDENCES","","",null,"1556 38TH ST","BROOKLYN","NY","11218-4408"]
["OPWDD  ","WOMENS LEAGUE COM 36TH ST ICF","E0145638","112889774","WOMENS LEAGUE COMMUNITY RESIDENCES","","",null,"1556 38TH ST","BROOKLYN","NY","11218-4408"]
["OPWDD  ","WOMENS LEAGUE COMM 1015 45ST","E0158852","112889774","WOMENS LEAGUE COMMUNITY RESIDENCES","","",null,"1556 38TH ST","BROOKLYN","NY","11218-4408"]
["OPWDD  ","WOMENS LEAGUE COMM RES 2 ICF","E0263446","112889774","WOMENS LEAGUE COMMUNITY RESIDENCES","","",null,"1556 38TH ST","BROOKLYN","NY","11218-4408"]
["OPWDD  ","WOMENS LEAGUE COMM RES DAY","E0029841","112889774","WOMENS LEAGUE COMMUNITY RESIDENCES","","",null,"1556 38TH ST","BROOKLYN","NY","11218-4408"]
["OPWDD  ","WOMENS LEAGUE COMM RES SPT","E0074817","112889774","WOMENS LEAGUE COMMUNITY RESIDENCES","","",null,"1556 38TH ST","BROOKLYN","NY","11218-4408"]
["OPWDD  ","WOMENS LEAGUE COMM RES SPV","E0074820","112889774","WOMENS LEAGUE COMMUNITY RESIDENCES","","",null,"1556 38TH ST","BROOKLYN","NY","11218-4408"]
["Hospital","MERCY MEDICAL CENTER","E0169359","111635088","MERCY MEDICAL CENTER","2909000H","00274295",null,"PO BOX 798","ROCKVILLE CENTRE","NY","11571-0798"]
["OMH  ","PARK HOUSE INC","E0169507","112895477","PARK HOUSE INC","","",null,"2 DOGWOOD DR # 982","SMITHTOWN","NY","11787-2211"]
["Hospital","PECONIC BAY MED CTR","E0271640","111661359","PECONIC BAY HOMEHEALTH SERV","5155000H","00274328",null,"1300 ROANOKE AVE","RIVERHEAD","NY","11901-2031"]
["Hospital","ST JOHNS EPISCOPAL HOSP","E0226770","111665825","EPISCOPAL HEALTH SERVICES INC","7001024H","00729382",null,"PO BOX 901386","FAR ROCKAWAY","NY","11690-1386"]
["Hospital","SOUTHSIDE HOSPITAL","E0272235","111667761","SOUTHSIDE HOSPITAL","5154000H","00268319",null,"301 E MAIN ST","BAY SHORE","NY","11706-8408"]
["Hospital","SOUTHAMPTON HOSPITAL","E0271632","111667765","SOUTHAMPTON HOSPITAL ASSOC","5126000H","00274406",null,"80 RIVERHEAD RD","WESTHAMPTON BEACH","NY","11978-1401"]
["Hospital","NEW YORK HOSP MED CTR QUEENS","E0274006","111839362","NEW YORK HOSPITAL MED CTR QUEENS","7003010H","00244133",null,"PO BOX 27842","NEW YORK","NY","10087-7842"]
["Hospital","LUTHERAN MEDICAL CENTER","E0174076","111839567","LUTHERAN MEDICAL CENTER","7001019H","00243729",null,"6 HEALTHY WAY","ELLENVILLE","NY","12428-5612"]
["Hospital","ST CHARLES HSP","E0271631","111871039","ST CHARLES HOSPITAL CORP","5149001H","00274415",null,"PO BOX 329","WEST ISLIP","NY","11795-0329"]
["Hospital","GOOD SAMARITAN HOSP MED CTR","E0271638","111888924","GOOD SAMARITAN HOS US CATHOLIC CONF","5154001H","00274346",null,"PO BOX 6010","HAUPPAUGE","NY","11788-9010"]
["Hospital","NY COMMUNITY HOSP OF BROOKLYN","E0274045","111986351","NEW YORK COMMUNITY HSP BRKLYN","7001008H","00243696","1981 MARCUS AVE","STE 208","NEW HYDE PARK","NY","11042-1055"]
["OPWDD  ","LONG ISLAND HEAD INJURY DAY","E0030171","112946185","HEAD INJURY ASSOCIATION INC","","",null,"300 KENNEDY DR","HAUPPAUGE","NY","11788-4013"]
["OPWDD  ","LONG ISLAND HEAD INJURY SPT","E0074440","112946185","HEAD INJURY ASSOCIATION INC","","",null,"300 KENNEDY DR","HAUPPAUGE","NY","11788-4013"]
["OPWDD  ","LONG ISLAND HEAD INJURY SPV","E0074441","112946185","HEAD INJURY ASSOCIATION INC","","",null,"300 KENNEDY DR","HAUPPAUGE","NY","11788-4013"]
["Hospital","ST FRANCIS HSP","E0274015","112050523","ST FRANCIS HSP","2953000H","00244046",null,"100 PORT WASHINGTON BLVD","ROSLYN","NY","11576-1353"]
["Hospital","NORTH SHORE UN HSP FOREST HIL","E0274030","112163522","NORTH SHORE UN HSP FOREST HIL","7003013H","00243889",null,"PO BOX 4619","RENSSELAER","NY","12144-8614"]
["Hospital","LONG ISLAND JEWISH MED CTR","E0274028","112241326","LONG ISLAND JEWISH MEDICAL CENTER","7003004H","00243903",null,"1554 NORTHERN BLVD","MANHASSET","NY","11030-3006"]
["Hospital","INTERFAITH MEDICAL CENTER","E0226276","112626155","INTERFAITH MEDICAL","7001046H","00734336",null,"PO BOX 27554","NEW YORK","NY","10087-7554"]
["Hospital","STATEN ISLAND UNIV HOSP","E0274001","112868878","STATEN ISLAND UNIVERSITY HOSPITAL","7004003H","00244202","1 EDGEWATER ST","PATIENT ACCOUNTS 6TH FL","STATEN ISLAND","NY","10305-4900"]
["Hospital","UNIVERSITY HOSPITAL","E0263442","113243405","STONY BROOK UNIVERSITY HOSPITAL SUN","5151001H","00357795",null,"PO BOX 34836","NEWARK","NJ","07189-0001"]
["OMH  ","PARK SLOPE CTR MENTAL HLTH IN","E0185772","112982792","PARK SLOPE CTR MENTAL HLTH IN","","","348 13TH ST","STE 202 & 203","BROOKLYN","NY","11215-6177"]
["Hospital","NASSAU UNIVERSITY MEDICAL CEN","E0103841","113465690","NASSAU HEALTHCARE CORPORATION","2950002H","01962156",null,"2201 HEMPSTEAD TPK","EAST MEADOW","NY","11554-1859"]
["Hospital","LENOX HILL HOSPITAL","E0274069","131624070","LENOX HILL HOSPITAL","7002017H","00243421","100 E 77TH ST","ASSOC COMPTROLLER","NEW YORK","NY","10075-1850"]
["OMH  ","CLUBHOUSE OF SUFFOLK INC","E0001941","113012392","CLUBHOUSE OF SUFFOLK INC","","","939 JOHNSON AVENUE","PO BOX 373","RONKONKOMA","NY","11779-0373"]
["Hospital","MEMORIAL HSP CANCER ALLIED","E0274067","131624082","MEMORIAL HSP CANCER & ALLIED","7002020H","00243467","PO BOX 26447","MSKCC RETAIL PHARM","NEW YORK","NY","10087-6447"]
["Hospital","MOUNT SINAI HOSPITAL","E0274063","131624096","MOUNT SINAI HSP QUEENS E C A","7003015H","00243509",null,"PO BOX 28231","NEW YORK","NY","10087-8231"]
["Hospital","WESTCHESTER SQUARE HOSPITAL","E0271759","131732601","WESTCHESTER SQUARE HOSPITAL","7000025H","00273092",null,"2475 SAINT RAYMONDS AVE","BRONX","NY","10461-3124"]
["OMH  ","BROOKLYN AIDS TASK FORCE AI C","E0180257","113031208","BROOKLYN AIDS TASK FORCE INC","","","502 BERGEN ST","DIR OF FINANCE","BROOKLYN","NY","11217-2407"]
["OMH  ","BEVERLEY MACK HARRY CNSLT INC","E0152694","113038259","BEVERLEY MACK HARRY CNSLT INC","","",null,"PO BOX 250836","BROOKLYN","NY","11225-0836"]
["Hospital","LAWRENCE HOSPITAL","E0271661","131740110","LAWRENCE HOSPITAL","5922000H","00274093",null,"55 PALMER AVE","BRONXVILLE","NY","10708-3403"]
["Hospital","MONTEFIORE MEDICAL CTR   AI","E0175558","131740114","MONTEFIORE MEDICAL CENTER","7000006H","00243554",null,"PO BOX 27125","NEW YORK","NY","10087-7125"]
["Hospital","NYACK HSP","E0274022","131740119","NYACK HOSPITAL","4324000H","00243967",null,"PO BOX 5035","WHITE PLAINS","NY","10602"]
["Hospital","ST BARNABAS HOSPITAL","E0274074","131740122","ST BARNABAS HOSPITAL ACT RC","7000014H","00243361","FL 6","2021 GRAND CONCOURSE","BRONX","NY","10453-4304"]
["Hospital","ST JOHNS RIVERSIDE HOSPITAL","E0273884","131740126","ST JOHNS RIVERSIDE HSP AI","5907001H","00245501","967 N BROADWAY","VP FOR FINANCE CFO","YONKERS","NY","10701-1301"]
["Hospital","ST JOSEPHS HOSP","E0273098","131740127","ST JOSEPHS HOPITAL YONKERS","5907002H","00258920",null,"127 S BROADWAY","YONKERS","NY","10701-4006"]
["Hospital","CALVARY HOSPITAL INC","E0271758","131740274","CALVARY HHA & HOSPICE CARE","7000011H","00273107","1740 EASTCHESTER RD","CON OFF FIN ADMIN","BRONX","NY","10461-2300"]
["Hospital","BRONX LEBANON HOSPITAL CENTER","E0251934","131974191","BRONX-LEBANON HOSPITAL CENTER","7000001H","00476022",null,"1276 FULTON AVE","BRONX","NY","10456-3402"]
["OMH  ","SAMUEL FIELD YM & YWHA INC","E0161692","113071518","SAMUEL FIELD YM & YWHA INC","","",null,"5820 LITTLE NECK PKWY","LITTLE NECK","NY","11362-2530"]
["Hospital","BELLEVUE HOSPITAL CENTER","E0273835","132655001","NYC HEALTH AND HOSPITALS CORP","7002001H","00246039",null,"230 W 41ST ST RM 508","NEW YORK","NY","10036-7207"]
["Hospital","COLER BIRD S MEMORIAL HOSP","E0271803","132655001","NYC HEALTH AND HOSPITALS CORP","7002051H","00272642",null,"230 W 41ST ST RM 508","NEW YORK","NY","10036-7207"]
["Hospital","CONEY ISLAND HOSPITAL","E0273832","132655001","NYC HEALTH AND HOSPITALS CORP","7001009H","00246066",null,"230 W 41ST ST RM 508","NEW YORK","NY","10036-7207"]
["Hospital","ELMHURST HOSPITAL CENTER","E0273831","132655001","NYC HEALTH AND HOSPITALS CORP","7003000H","00246075",null,"230 W 41ST ST RM 508","NEW YORK","NY","10036-7207"]
["Hospital","GOLDWATER MEMORIAL HOSP","E0271804","132655001","NYC HEALTH AND HOSPITALS CORP","7002050H","00272633",null,"230 W 41ST ST RM 508","NEW YORK","NY","10036-7207"]
["OMH  ","HANDS ACROSS LONG ISLAND RISP CNSTA","E0003098","113088310","HANDS ACROSS LONG ISLAND INC","","",null,"159 BRIGHTSIDE AVENUE","CENTRAL ISLIP","NY","11722"]
["Hospital","HARLEM HOSPITAL CENTER","E0273828","132655001","NYC HEALTH AND HOSPITALS CORP","7002009H","00246108",null,"230 W 41ST ST RM 508","NEW YORK","NY","10036-7207"]
["Hospital","JACOBI MEDICAL CENTER","E0273834","132655001","NYC HEALTH AND HOSPITALS CORP","7000002H","00246048",null,"230 W 41ST ST RM 508","NEW YORK","NY","10036-7207"]
["Hospital","KINGS COUNTY HOSPITAL CENTER","E0273827","132655001","NYC HEALTH AND HOSPITALS CORP","7001016H","00246117",null,"230 W 41ST ST RM 508","NEW YORK","NY","10036-7207"]
["Hospital","LINCOLN MEDICAL/MENTAL HLTH","E0273826","132655001","NYC HEALTH AND HOSPITALS CORP","7000008H","00246126",null,"230 W 41ST ST RM 508","NEW YORK","NY","10036-7207"]
["Hospital","METROPOLITAN HOSPITAL CENTER","E0273825","132655001","NYC HEALTH AND HOSPITALS CORP","7002021H","00246135",null,"230 W 41ST ST RM 508","NEW YORK","NY","10036-7207"]
["Hospital","NORTH CENTRAL BRONX","E0273821","132655001","NYC HEALTH AND HOSPITALS CORP","7000024H","00246171",null,"230 W 41ST ST RM 508","NEW YORK","NY","10036-7207"]
["Hospital","QUEENS HOSPITAL","E0273823","132655001","NYC HEALTH AND HOSPITALS CORP","7003007H","00246153",null,"230 W 41ST ST RM 508","NEW YORK","NY","10036-7207"]
["Hospital","WOODHULL MED & MNTL HLTH CTR","E0229818","132655001","NYC HEALTH AND HOSPITALS CORP","7001045H","00698866",null,"230 W 41ST ST RM 508","NEW YORK","NY","10036-7207"]
["Hospital","ST LUKES ROOSEVELT HSP CTR","E0263685","132997301","ST LUKES-ROOSEVELT HOSPITAL CENTER","7002032H","00354967",null,"1111 AMSTERDAM AVE STUYVESANT 7","NEW YORK","NY","10019"]
["Hospital","NYU DOWNTOWN HOSPITAL","E0031713","133049852","NYU DOWNTOWN HOSPITAL","7002000H","00647269",null,"170 WILLIAM ST","NEW YORK","NY","10038"]
["Hospital","NY HOSPITAL","E0274062","133957095","THE NEW YORK AND PRESBYTERIAN HOSIT","7002054H","00243518","525 E 68TH ST","BOX 150","NEW YORK","NY","10065-4870"]
["OPWDD  ","MILL NECK SVCS INC DAY","E0029700","113119786","MILL NECK SVCS INC DAY","","","PO BOX 193","FROST MILL RD","MILL NECK","NY","11765-0193"]
["Hospital","WESTCHESTER MED CTR","E0271650","133964321","WESTCHESTER CO HLTHCARE CORP","5957001H","00274213","PO BOX 277","PATIENTS ACCTS","HAWTHORNE","NY","10532-0277"]
["Hospital","NYU HOSPITALS CENTER","E0271757","133971298","NYU HOSPITALS CENTER","7002053H","00273116","550 1ST AVE","PATIENTS ACCTS","NEW YORK","NY","10016-6402"]
["Hospital","N Y EYE AND EAR INFIRMARY","E0274066","135562304","NY EYE AND EAR INFIRMARY","7002026H","00243476","310 E 14TH ST","NY EYE AND EAR INF","NEW YORK","NY","10003-4297"]
["OPWDD  ","GENERAL HUMAN OUTREACH   DAY","E0030245","113134570","GENERAL HUMAN OUTREACH DAY","","","12510 QUEENS BLVD","STE 2705","KEW GARDENS","NY","11415-1511"]
["OPWDD  ","GENERAL HUMAN OUTREACH  SPV","E0075385","113134570","GENERAL HUMAN OUTREACH DAY","","","12510 QUEENS BLVD","STE 2705","KEW GARDENS","NY","11415-1511"]
["Hospital","BETH ISRAEL MEDICAL CTR ACT","E0043328","135564934","BETH ISRAEL MED CTR","7002002H","00243105","FIRST AVE AT 16TH ST","PAT ACCTS","NEW YORK","NY","10003"]
["Hospital","UNIVERSITY HOSP OF BROOKLYN","E0274055","146013200","STATE OF NEW YORK COMPTROLLERS OFFC","7001037H","00243590",null,"110 STATE STREET","ALBANY","NY","12207-2004"]
["OPWDD  ","CREATIVE LIFESTYLES INC DAY","E0030370","113151481","CREATIVE LIFESTYLES INC DAY","","","67 BRUCKNER BLVD","EXEC DIR","BRONX","NY","10454-4458"]
["OPWDD  ","CREATIVE LIFESTYLES SPV","E0074586","113151481","CREATIVE LIFESTYLES INC DAY","","","67 BRUCKNER BLVD","EXEC DIR","BRONX","NY","10454-4458"]
["Hospital","RICHMOND UNIVERSITY MED CTR","E0273606","743177454","RICHMOND UNIVERSITY MEDICAL CENTER","7004010H","00248820",null,"LOCK BOX 785936","PHILADELPHIA","PA","19178-0001"]
["LTHHCP","COBBLE HILL HLTH CTR INC LTHHCP","E0000062","112388200","COBBLE HILL HLTH CTR INC LTHHCP",7001913,"03079701",null,"380 HENRY ST","BROOKLYN","NY","11200-6048"]
["LTHHCP","GURWIN JEWISH GERI CTR LTHHC","E0126662","112785201","GURWIN JEWISH GERI CTR LTHHC",5157903,"03332827",null,"68 HAUPPAUGE RD","COMMACK","NY","11725-4403"]
["LTHHCP","EMPIRE ST HM CARE SER LTHHCP","E0068352","113618585","EMPIRE ST HM CARE SER LTHHCP",7001909,"02317499",null,"15 METROTECH CTR FL 10","BROOKLYN","NY","11201-3818"]
["LTHHCP","JEWISH HM/HSP LCS-MANHATTAN LTHHCP","E0236767","131624033","JEWISH HOME & HSP FOR AGED",7002903,"00629167",null,"2545 UNIVERSITY AVE","BRONX","NY","10468-4066"]
["Nursing Homes","FIELDSTON LODGE CARE CENTER","E0268037","010627663","FIELDSTON LODGE CARE CENTER","7000385N","00310605",null,"666 KAPPOCK ST","BRONX","NY","10463-7704"]
["Nursing Homes","WHITE PLAIN CENTER NURSING CR","E0268000","020677248","WHITE PLAIN CENTER NURSING CR","5902315N","00311019",null,"4571 US HIGHWAY 9","HOWELL","NJ","07731-3382"]
["Nursing Homes","DUTCHESS CTR REHAB HEALTHCARE","E0268188","020728552","DUTCHESS CTR REHAB HEALTHCARE","1322302N","00309013",null,"855 BRUSH AVE","BRONX","NY","10465-1808"]
["OPWDD  ","CAH ASSOCIATION/TECHNOLOGY","E0143081","113186856","CAH ASSOCIATION/TECHNOLOGY","","","15 CALICO TREE RD",null,"HAUPPAUGE","NY","11788-2623"]
["Nursing Homes","PARK NURSING HOME RHCF","E0320768","043704313","PARK HOUSE CARE CENTER LLC","7003364N","00312487",null,"353 BEACH 48TH ST","FAR ROCKAWAY","NY","11691-1120"]
["Nursing Homes","EASTCHESTER REH & HLTH CR CTR","E0268043","043712274","EASTCHESTER REH & HLTH CR CTR","7000383N","00310545",null,"2700 EASTCHESTER RD","BRONX","NY","10469-5923"]
["Nursing Homes","SPLIT ROCK REH & HLTH CAR CTR","E0268030","043712277","SPLIT ROCK REHAB & HHC LLC","7000384N","00310687",null,"3525 BAYCHESTER AVE","BRONX","NY","10466-5001"]
["Nursing Homes","ST CATHERINE OF SIENA NRS HM","E0094047","061562701","CHS SMITHTOWN INC","5157312N","02060153","PO BOX 1349","ST CATH SIENA","PORT WASHINGTON","NY","11050-7349"]
["Nursing Homes","NY CONGREGATIONAL NRS CTR INC","E0268151","111631799","NY CONGREGATIONAL NRS CTR INC","7001309N","00309417",null,"135 LINDEN BLVD","BROOKLYN","NY","11226-3302"]
["Nursing Homes","BROOKLYN UNITED MET CHURCH AD","E0067681","111661349","BROOKLYN UNITED MET CHURCH AD","7001308N","00310747",null,"1485 DUMONT AVE OFC","BROOKLYN","NY","11208-4705"]
["Nursing Homes","BISHOP CHARLES W MACLEAN EPIS","E0265422","111665825","EPISCOPAL HEALTH SERVICES INC","7003356N","00337242",null,"PO BOX 901386","FAR ROCKAWAY","NY","11690-1386"]
["Nursing Homes","MENORAH HOME & HOSP AGED INF","E0228886","111672777","MENORAH HM & HSP F AGED & INF","7001372N","00708181",null,"1516 ORIENTAL BLVD","BROOKLYN","NY","11235-2328"]
["Nursing Homes","GOOD SAMARITAN NURSING HOME","E0255282","111888924","GOOD SAMARITAN HOS US CATHOLIC CONF","5154310N","00439905",null,"PO BOX 6010","HAUPPAUGE","NY","11788-9010"]
["OPWDD  ","QUEENS PARENT RES RC CTR RSP","E0040946","113211119","QUEENS PARENTS RESOURCE CENTER INC","","",null,"PO BOX 280504-217THS","QUEENS VILLAGE","NY","11423-0000"]
["OPWDD  ","QUEENS PARENT RESRC CTR DAY","E0030034","113211119","QUEENS PARENTS RESOURCE CENTER INC","","",null,"PO BOX 280504-217THS","QUEENS VILLAGE","NY","11423-0000"]
["OPWDD  ","QUEENS PARENT RESRC CTR SPV","E0075246","113211119","QUEENS PARENTS RESOURCE CENTER INC","","",null,"PO BOX 280504-217THS","QUEENS VILLAGE","NY","11423-0000"]
["Nursing Homes","RUTLAND NURSING HOME INC   CO","E0265066","112164674","RUTLAND NRSG HOME NON OCC","7001033N","00340845","585 SCHENECTADY AVE","PATIENTS ACCTS MGR","BROOKLYN","NY","11203-1809"]
["Nursing Homes","SHORE VIEW NURSING HOME","E0268029","112171211","SHORE VIEW NURSING HOME","7001342N","00310696","15715 19TH AVE","CLEARVIEW NURSING HM","WHITESTONE","NY","11357-3898"]
["Nursing Homes","WOODCREST NURSING HOME","E0268085","112214205","WOODCREST NURSING HOME","7003336N","00310090",null,"11909 26TH AVE","FLUSHING","NY","11354-1022"]
["Nursing Homes","PARKVIEW CARE & REHABILITATION CTR","E0267860","112222364","PARKVIEW CARE & REHABILITATION CTR","2952301N","00312469",null,"5353 MERRICK RD OFC","MASSAPEQUA","NY","11758-6209"]
["OPWDD  ","CAY COMM SVC ORG INC","E0029728","113235840","CAY COMM SVC ORG INC","","","81 WILLOUGHBY ST","STE 801","BROOKLYN","NY","11201-5232"]
["Nursing Homes","RESORT NURSING HOME","E0268042","112226236","RESORT NURSING HOME","7003330N","00310554",null,"430 BEACH 68TH ST","ARVERNE","NY","11692-1407"]
["Nursing Homes","CABS NURSING HOME COMPANY INC","E0268051","112284472","CABS NURSING HOME COMPANY INC","7001307N","00310467",null,"270 NOSTRAND AVENUE","BROOKLYN","NY","11205-4926"]
["Nursing Homes","CENTER FOR NURSING & REHAB IN","E0267808","112289702","CENTER FOR NURSING & REHABILITATION","7001354N","00312987",null,"612 ALLERTON AVE","BRONX","NY","10467-7404"]
["Nursing Homes","CONCORD NURSING HOME AND HRF","E0267652","112290533","CONCORD NURSING HOME AND HRF","7001348N","00314609",null,"300 MADISON ST","BROOKLYN","NY","11216-1509"]
["Nursing Homes","ORZAC CTR EXT CARE & REHAB","E0188543","112296824","FRANKLIN HOSPITAL MEDICAL CENTER","2910000N","01113322",null,"PO BOX 33352","HARTFORD","CT","06150-3352"]
["Nursing Homes","SOUTH SHORE HEALTHCARE","E0268182","112527597","SOUTH SHORE HEALTHCARE","2904300N","00309086",null,"275 W MERRICK RD","FREEPORT","NY","11520-3346"]
["OPWDD  ","CENTER F/RAPID RECVRY","E0029727","113246332","CENTER FOR RAPID RECOVERY, INC.","","",null,"312 GREENWICH ST","HEMPSTEAD","NY","11550-6318"]
["OPWDD  ","CENTER F/RAPID RECVRY  ND1","E0074307","113246332","CENTER FOR RAPID RECOVERY, INC.","","",null,"312 GREENWICH ST","HEMPSTEAD","NY","11550-6318"]
["OPWDD  ","A-1 UNIVERSAL CARE INC DAY","E0286741","113247040","A-1 UNIVERSAL CARE INC RSP","","",null,"293 CASTLE AVE","WESTBURY","NY","11590-2025"]
["Nursing Homes","HOLLISWOOD CARE CENTER","E0268211","112532593","HOLLISWOOD CARE CENTER","7003348N","00308769","195 44 WOODHULL AVE","HAL J SCHIFTER","HOLLIS","NY","11423"]
["Nursing Homes","OCEANVIEW NRS & REH CTR LLC","E0268041","112694685","OCEANVIEW NRS & REH CTR LLC","7003354N","00310563",null,"315 B 9TH ST","FAR ROCKAWAY","NY","11691"]
["OPWDD  ","QUICK SOCIAL SERVICES INC SPV","E0075230","113265113","QUICK SOCIAL SERVICES INC SPV","","",null,"50 COMMONWEALTH DR","WYANDANCH","NY","11798-3210"]
["Nursing Homes","RIVERHEAD CARE CENTER","E0206752","112774733","RIVERHEAD CARE CENTER, LLC","5155301N","00930052",null,"1146 WOODCREST AVE","RIVERHEAD","NY","11901-2016"]
["Nursing Homes","WEST LAWRENCE CARE CENTER","E0267816","112887189","WEST LAWRENCE CARE CENTER","7003403N","00312905","1410 SEAGIRT BLVD",null,"FAR ROCKAWAY","NY","11691-4509"]
["Nursing Homes","NEW SURFSIDE NURSING HOME","E0268122","112902546","NEW SURFSIDE NRS HOME ADHCP","7003373N","00309724",null,"2241 NEW HAVEN AVE","FAR ROCKAWAY","NY","11691-2538"]
["Nursing Homes","SILVERCREST RHCF","E0178342","112925535","SILVERCREST RHCF","7003372N","01215512",null,"14445 87TH AVE","JAMAICA","NY","11435-3109"]
["Nursing Homes","QUEENS NASSAU REH & NRS CENTE","E0268060","112941778","QUEENS NASSAU REH & NRS CENTE","7003361N","00310352","520 BEACH 19TH ST",null,"FAR ROCKAWAY","NY","11691-4307"]
["OASAS  ","NEW SPIRIT II INC","E0122201","113293150","NEW SPIRIT II INC","","",null,"23135 MERRICK BLVD","LAURELTON","NY","11413-2111"]
["OPWDD  ","METROPOLITAN DEVELOPMENT CTR DAY","E0288643","113293489","METROPOLITAN DEVELOPMENT CENTER INC","","",null,"1049 38TH ST","BROOKLYN","NY","11219-1012"]
["Nursing Homes","ROCKAWAY CARE CENTER SNF","E0268141","112943099","ROCKAWAY CARE CENTER","7003362N","00309522",null,"353 BEACH 48TH ST","FAR ROCKAWAY","NY","11691-1120"]
["Nursing Homes","CATON PARK NURSING HOME SNF","E0268036","112943338","CATON PARK NURSING HOME SNF","7001366N","00310614",null,"1312 CATON AVE OFC","BROOKLYN","NY","11226-1002"]
["Nursing Homes","HOLY FAMILY HOME SNF","E0188553","112948924","HOLY FAMILY HOME HRF","7001365N","01113226",null,"1740 84TH ST","BROOKLYN","NY","11214-2825"]
["OPWDD  ","COMM RES & SVC/CHILDREN RSP","E0040230","113307991","COMM RES SVC/CHILDREN DAY","","",null,"9004 161ST ST","JAMAICA","NY","11432-6103"]
["OPWDD  ","COMM RES SVC/CHILDREN DAY","E0022090","113307991","COMM RES SVC/CHILDREN DAY","","",null,"9004 161ST ST","JAMAICA","NY","11432-6103"]
["Nursing Homes","CROWN NURSING AND REHAB CENTE","E0268138","112973385","CROWN NURSING HOME ASSOC INC","7001367N","00309559",null,"3457 NOSTRAND AVE","BROOKLYN","NY","11229-5194"]
["OPWDD  ","EAST END DISABILITY ASSO FSR1","E0040744","113318718","EAST END DISABILITY ASSOCIATES INC","","","107 ROANOKE AVE","A/R","RIVERHEAD","NY","11901-0000"]
["OPWDD  ","EAST END DISABILITY ASSOC INC FSR2","E0002125","113318718","EAST END DISABILITY ASSOCIATES INC","","","107 ROANOKE AVE","A/R","RIVERHEAD","NY","11901-0000"]
["OPWDD  ","EAST END DISABILITY ASSOC ND2","E0074128","113318718","EAST END DISABILITY ASSOCIATES INC","","","107 ROANOKE AVE","A/R","RIVERHEAD","NY","11901-0000"]
["OPWDD  ","EAST END DISABILITY ASSOC RSP","E0033774","113318718","EAST END DISABILITY ASSOCIATES INC","","","107 ROANOKE AVE","A/R","RIVERHEAD","NY","11901-0000"]
["OPWDD  ","EAST END DISABILITY DAY","E0030340","113318718","EAST END DISABILITY ASSOCIATES INC","","","107 ROANOKE AVE","A/R","RIVERHEAD","NY","11901-0000"]
["Nursing Homes","FLUSHING MANOR CARE CTR SNF","E0268038","112975200","FLUSHING MANOR CARE CTR HRF","7003366N","00310590","139 66 35TH AVENUE","BUSINESS OFFICE MGR","FLUSHING","NY","11354"]
["Nursing Homes","WATERVIEW NURSING CC","E0268160","112981735","WATERVIEW NURSING CC","7003367N","00309302",null,"11915 27TH AVE","FLUSHING","NY","11354-1011"]
["Nursing Homes","PARK TERRACE CARE CTR SNF","E0267999","113056940","PARK TERRACE CARE CTR SNF","7003374N","00311028",null,"5920 VAN DOREN ST","CORONA","NY","11368-4018"]
["Nursing Homes","OCEANSIDE CARE CENTER","E0268049","113056941","OCEANSIDE CARE CENTER","2950314N","00310485",null,"2914 LINCOLN AVE","OCEANSIDE","NY","11572-2141"]
["Nursing Homes","SHOREFRONT JEWISH GERI CTR","E0268163","113072153","SHOREFRONT JEWISH GERIATRIC CENTER","7001376N","00309279",null,"6323 7TH AVE","BROOKLYN","NY","11220-4742"]
["Nursing Homes","RUBY WESTON MANOR","E0108963","113086863","RUBY WESTON MANOR","7001381N","01910865","2237 LINDEN BOULEVAR","ADMINISTRATION","BROOKLYN","NY","11207-7527"]
["OPWDD  ","HUMAN CARE SVCS F/FAM CH SPV","E0074677","113338946","HUMAN CARE SVCS FAM CHLD DAY","","",null,"1042 38TH ST","BROOKLYN","NY","11219-3752"]
["OPWDD  ","HUMAN CARE SVCS FAM CHLD DAY","E0015281","113338946","HUMAN CARE SVCS FAM CHLD DAY","","",null,"1042 38TH ST","BROOKLYN","NY","11219-3752"]
["OPWDD  ","HUMAN CARE SVCS FAM/CHLD RSP","E0032121","113338946","HUMAN CARE SVCS FAM CHLD DAY","","",null,"1042 38TH ST","BROOKLYN","NY","11219-3752"]
["Nursing Homes","LONG ISLAND CARE CENTER INC","E0171825","113096628","LONG ISLAND CARE CENTER INC","7003377N","01280840",null,"14461 38TH AVE","FLUSHING","NY","11354-5935"]
["Nursing Homes","BEACH TERRACE CARE CENTER","E0268109","113099094","BEACH TERRACE CARE CENTER","2902303N","00309857",null,"640 W BROADWAY","LONG BEACH","NY","11561-2900"]
["Nursing Homes","CLIFFSIDE REH & RES HLT CR CT","E0268143","113136840","CLIFFSIDE REH & RES HLT CR CT","7003380N","00309504","11919 GRAHAM CT",null,"FLUSHING","NY","11354-1047"]
["OPWDD  ","E DOUGHLIN CTR SVC PPLE DAY","E0029822","113356044","EVELYN DOUGLIN CENTER FOR SERVING","","","STE 604","241 37TH ST","BROOKLYN","NY","11232-2410"]
["OPWDD  ","E DOUGLIN CTR/SERV PPLE ND 4","E0059660","113356044","EVELYN DOUGLIN CENTER FOR SERVING","","","STE 604","241 37TH ST","BROOKLYN","NY","11232-2410"]
["OPWDD  ","E DOUGLIN CTR/SERV PPLE SPV","E0075426","113356044","EVELYN DOUGLIN CENTER FOR SERVING","","","STE 604","241 37TH ST","BROOKLYN","NY","11232-2410"]
["Nursing Homes","OXFORD NURSING HOME INC","E0268113","113157922","OXFORD NURSING HOME INC","7001373N","00309811",null,"144 S OXFORD ST","BROOKLYN","NY","11217-1604"]
["Nursing Homes","LAWRENCE NURSING CC INC","E0268137","113180088","LAWRENCE NURSING CC INC","7003385N","00309577","350 BEACH 54TH ST","LAWRENCE NURSING HM","ARVERNE","NY","11692-1790"]
["Nursing Homes","PROMENADE REHAB & HLTH CR CNT","E0268198","113188846","PROMENADE REHAB & HLTH CR CNT","7003386N","00308907",null,"140 BEACH 114TH ST","ROCKAWAY PARK","NY","11694-2405"]
["Nursing Homes","WILLIAMSBRIDGE MANOR NH","E0267859","113213042","WILLIAMSBRIDGE MANOR NH","7000379N","00312478",null,"1540 TOMLINSON AVE","BRONX","NY","10461-1527"]
["Nursing Homes","BUENA VIDA CONT CARE & REH CT","E0085669","113237619","BUENA VIDA CONT CARE & REH CT","7001383N","02144049","48 CEDAR ST",null,"BROOKLYN","NY","11221-3253"]
["OPWDD  ","EIHAB HUMAN SERVICES SPV","E0075416","113376415","EIHAB HUMAN SERVICES INC","","",null,"752 BONNIE DR","BALDWIN","NY","11510-4521"]
["OPWDD  ","EIHAB HUMAN SVCS INC DAY","E0029741","113376415","EIHAB HUMAN SERVICES INC","","",null,"752 BONNIE DR","BALDWIN","NY","11510-4521"]
["Nursing Homes","RIVER MANOR CARE CENTER","E0267836","113242091","RIVER MANOR CARE CENTER","7001378N","00312703",null,"630 E 104TH ST","BROOKLYN","NY","11236-2504"]
["Nursing Homes","BISHOP HENRY B HUCLES NURS HM","E0268004","113277961","BISHOP HEN B HUCLES ENH ADHC","7001379N","00310967",null,"835 HERKIMER ST OFC","BROOKLYN","NY","11233-3031"]
["Nursing Homes","OUR LADY OF CONSOLTATION GCC","E0267961","113284066","OUR LADY OF CONSOLATION CC","5154319N","00311440","111 BEACH DR","PETER LEVITAN","WEST ISLIP","NY","11795-4929"]
["OPWDD  ","COMMUNITY OPTIONS NY DAY","E0029790","113414724","WOODRUFF-COMMUNITY OPTIONS INC","","",null,"16 FARBER RD","PRINCETON","NJ","08540-0000"]
["OPWDD  ","COMMUNITY OPTIONS NY SPV","E0074139","113414724","WOODRUFF-COMMUNITY OPTIONS INC","","",null,"16 FARBER RD","PRINCETON","NJ","08540-0000"]
["OPWDD  ","MULTIFUNCTIONAL FAM SVCS DAY","E0009819","113417903","MULTIFUNCTIONAL FAM SVCS DAY","","",null,"130 WATERBURY ST","BROOKLYN","NY","11206-1617"]
["OPWDD  ","MULTI-FUNCTIONAL FAMILY SERVICES RS","E0296760","113417903","MULTIFUNCTIONAL FAM SVCS DAY","","",null,"130 WATERBURY ST","BROOKLYN","NY","11206-1617"]
["Nursing Homes","BELAIR CARE CENTER INC","E0136087","113315748","BELAIR CARE CENTER INC","2950301N","01639261","2478 JERUSALEM AVE",null,"NORTH BELLMORE","NY","11710-1827"]
["OMH  ","FAMILY AND CHILDREN ASSOC RC","E0288769","113422018","FAMILY AND CHILDREN ASSOC RC","","",null,"100 E OLD COUNTRY RD","MINEOLA","NY","11501-4633"]
["OMH  ","FAMILY AND CHILDREN'S ASSOC","E0169560","113422018","FAMILY AND CHILDREN ASSOC RC","","",null,"100 E OLD COUNTRY RD","MINEOLA","NY","11501-4633"]
["OMH  ","FAMILY AND CHILDREN'S ASSOCIATION","E0133319","113422018","FAMILY AND CHILDREN ASSOC RC","","",null,"100 E OLD COUNTRY RD","MINEOLA","NY","11501-4633"]
["Nursing Homes","DR WILLIAM O BENENSON REHAB","E0120841","113322145","FLUSHING MANOR GERIATRIC CENTER INC","7003395N","01791900",null,"36 15 PARSONS BLVD","FLUSHING","NY","11354-4236"]
["Nursing Homes","ROSS HEALTH CARE CENTER","E0134087","113329730","ROSS HEALTH CARE CENTER","5154320N","01659287",null,"839 SUFFOLK AVE","BRENTWOOD","NY","11717-4403"]
["OPWDD  ","NY FAMILIES FOR AUTISTIC CHLDRN DAY","E0286595","113442879","NY FAMILIES F/AUTISTIC CHLDRN HCBS2","","",null,"95-16 PITKIN AVE","OZONE PARK","NY","11417"]
["Nursing Homes","WOODMERE REHAB & HCC INC","E0133039","113334820","WOODMERE REHAB & HCC INC","2950315N","01669772",null,"130 IRVING PL","WOODMERE","NY","11598-1224"]
["Nursing Homes","GRANDELL REHAB & NURSING CTR","E0268200","113350112","GRANDELL REHAB & NURSING CTR","2902304N","00308883",null,"645 W BROADWAY","LONG BEACH","NY","11561-2956"]
["Nursing Homes","GLEN COVE CNT NRS & REHAB","E0119968","113427389","GLEN COVE CNT NRS & REHAB","2901305N","01800664",null,"6 MEDICAL PLZ","GLEN COVE","NY","11542-2108"]
["Nursing Homes","MIDWAY NURSING HOME","E0268180","113443964","MIDWAY NURSING HOME","7003340N","00309100",null,"14310 20TH AVE","WHITESTONE","NY","11357-3046"]
["Nursing Homes","BROOKLYN QUEENS NURSING HM","E0114420","113443990","BROOKLYN QUEENS NURSING HM","7001382N","01856202",null,"2749 LINDEN BLVD","BROOKLYN","NY","11208-5110"]
["Nursing Homes","A HOLLY PATTERSON EXT CR FAC","E0261364","113465690","NASSAU HEALTHCARE CORPORATION","2950302N","00378703",null,"2201 HEMPSTEAD TPK","EAST MEADOW","NY","11554-1859"]
["OPWDD  ","SPECIAL CARE FOR FAMILIES/CHILD DAY","E0286632","113476645","SPECIAL CARE FOR FAMILIES/CHILDREN","","",null,"1421 E 2ND ST","BROOKLYN","NY","11230-5501"]
["Nursing Homes","BROOKHAVEN REHAB & HLTH CR CT","E0095380","113543591","BROOKHAVEN REHAB & HLTH CR CT","7003399N","02046826","250 BEACH 17TH ST",null,"FAR ROCKAWAY","NY","11691-4420"]
["Nursing Homes","MEDFORD MULTICARE CTR LIVING","E0064338","113557557","MEDFORD MULTICARE CTR LIVING","5151319N","02357679",null,"3115 HORSEBLOCK RD","MEDFORD","NY","11763-2526"]
["Nursing Homes","ISLAND NURSING & REHAB CENTER","E0077270","113570505","ISLAND NURSING & REHAB CENTER","5151318N","02228191","5537 EXPRESSWAY DR N",null,"HOLTSVILLE","NY","11742-1316"]
["Nursing Homes","WILLOUGHBY REH & HLTH CR CTR","E0083543","113597679","WILLOUGHBY REH & HLTH CR CTR LLC","7001384N","02165346",null,"949 WILLOUGHBY AVE","BROOKLYN","NY","11221-2619"]
["Nursing Homes","GRACE PLAZA NRS & REH CTR","E0268179","113638713","PINEGROVE MANOR II, LLC","2913301N","00309119",null,"15 SAINT PAULS PL","GREAT NECK","NY","11021-2636"]
["Nursing Homes","HILLSIDE MANOR REHAB/EXT CARE","E0267315","116241282","HILLSIDE MANOR R & ECC ADHC","7003350N","00318025",null,"18215 HILLSIDE AVE","JAMAICA","NY","11432-4853"]
["OPWDD  ","HEARTSHARE WELLNESS LTD","E0295758","113538646","HEARTSHARE WELLNESS LTD","","","LOWR LEVEL","177 LIVINGSTON ST","BROOKLYN","NY","11201-5875"]
["Nursing Homes","JEWISH HOME & HOSP FOR AGED","E0267441","131624033","JEWISH HOME & HSP FOR AGED","7002340N","00316761",null,"2545 UNIVERSITY AVE","BRONX","NY","10468-4066"]
["Nursing Homes","WORKMENS CIRCLE MULTICARE CNT","E0268001","131737825","WORKMENS CIRCLE HOME AND INFI","7000309N","00311000",null,"3155 GRACE AVE","BRONX","NY","10469-3134"]
["Nursing Homes","BETH ABRAHAM HEALTH SERVICES","E0268024","131739920","BETH ABRAHAM HEALTH SERVICES","7000308N","00310756","612 ALLERTON AVE","ACCOUNTS RECV DEPT","BRONX","NY","10467-7495"]
["Nursing Homes","HEBREW H FOR AGED RIVERDALE","E0268063","131739971","HEBREW H FOR AGED RIVERDALE","7000302N","00310316",null,"5901 PALISADE AVE","BRONX","NY","10471-1205"]
["Nursing Homes","METHODIST CHURCH HOME FOR THE","E0267754","131740003","METHODIST CHURCH HOME FOR THE","7000311N","00313548","4499 MANHAT COL PKWY","EXEC DIRECTOR","BRONX","NY","10471"]
["Nursing Homes","ST PATRICKS HOME","E0268154","131740033","ST PATRICKS HOME","7000307N","00309384","66 VAN CORTLANDT PARK S",null,"BRONX","NY","10463-3102"]
["Nursing Homes","REBEKAH REH & EXTENDED CARE CENTER","E0268155","131740053","UNITED ODD FELLOW/REBEKAH HM LTHHCP","7000314N","00309366",null,"1070 HAVEMEYER AVE","BRONX","NY","10462"]
["Nursing Homes","PROVIDENCE REST","E0268156","131740301","PROVIDENCE REST NON OCC","7000306N","00309357",null,"3304 WATERBURY AVE","BRONX","NY","10465-1554"]
["Nursing Homes","SCHERVIER NURSING CARE CENTER","E0267685","131740397","FRANCES SCHERVIER HOME & HOSP","7000315N","00314269","2975 INDEPENDENCE AVE","ASSISTANT CONTROLLER","BRONX","NY","10463-4620"]
["OPWDD  ","HASC DIAGNOSTIC & TREAT CTR","E0081471","113570946","HASC DIAGNOSTIC & TREAT CTR","7001298R","02186092",null,"5601 1ST AVE","BROOKLYN","NY","11220-2517"]
["Nursing Homes","PARKER JEWISH INST HLTH CR RE","E0267757","132631069","PARKER JEWISH INST FOR HLTHCARE","7003307N","00313511",null,"271-11 76TH AVE","NEW HYDE PARK","NY","11040-1436"]
["OPWDD  ","TENDER CARE HUMAN SERVICES DAY","E0286634","113586379","TENDER CARE HUMAN SVCS HCBS 1","","",null,"9221 165TH ST","JAMAICA","NY","11433-1103"]
["OPWDD  ","HUMAN FIRST INC DAY","E0029733","113590136","HUMAN FIRST INC","","",null,"128 ATLANTIC AVE","LYNBROOK","NY","11563-3412"]
["OPWDD  ","HUMAN FIRST INC RSP","E0007724","113590136","HUMAN FIRST INC","","",null,"128 ATLANTIC AVE","LYNBROOK","NY","11563-3412"]
["Nursing Homes","COLER MEMORIAL HSP SNF","E0265096","132655001","NYC HEALTH AND HOSPITALS CORP","7002336N","00340538",null,"230 W 41ST ST RM 508","NEW YORK","NY","10036-7207"]
["Nursing Homes","DR SUSAN S MC KINNEY NRC","E0120108","132655001","NYC HEALTH AND HOSPITALS CORP","7001380N","01799251",null,"230 W 41ST ST RM 508","NEW YORK","NY","10036-7207"]
["Nursing Homes","GOLDWATER MEMORIAL HOSPITAL","E0265095","132655001","NYC HEALTH AND HOSPITALS CORP","7002337N","00340547",null,"230 W 41ST ST RM 508","NEW YORK","NY","10036-7207"]
["Nursing Homes","NEW GOUVERNEUR HOSP","E0264832","132655001","NYC HEALTH AND HOSPITALS CORP","7002343N","00343288",null,"230 W 41ST ST RM 508","NEW YORK","NY","10036-7207"]
["Nursing Homes","SEA VIEW HOSP REHAB CTR HOME","E0142820","132655001","NYC HEALTH AND HOSPITALS CORP","7004304N","00340643",null,"230 W 41ST ST RM 508","NEW YORK","NY","10036-7207"]
["Nursing Homes","PALISADE NH CO INC SNF","E0268174","132668331","PALISADE NH CO INC HRF","7000347N","00309164","5901 PALISADE AVE","DIR OF FIN AFFAIRS","BRONX","NY","10471-1205"]
["Nursing Homes","NYACK MANOR NH SNF","E0268018","132669361","NYACK MANOR NH SNF","4350302N","00310816","COMPTROLLER","476 CHRISTIAN HERALD RD","VALLEY COTTAGE","NY","10989-2230"]
["Nursing Homes","MORRIS PARK NURSING HOME","E0267997","132685522","MORRIS PARK NURSING HOME","7000328N","00311055",null,"1235 PELHAM PKWY N","BRONX","NY","10469-5817"]
["Nursing Homes","CARMEL RICHMOND HLTH & REH CT","E0161565","132720248","CARMEL RICHMOND NURSING HOME INC","7004310N","00308690",null,"88 OLD TOWN RD","STATEN ISLAND","NY","10304-4212"]
["Nursing Homes","VILLAGE CENTER FOR CARE INC","E0267857","132911059","VILLAGE CENTER FOR CARE","7002335N","00312496",null,"154 CHRISTOPHER ST, STE 2D","NEW YORK","NY","10014-2840"]
["Nursing Homes","TERENCE CARDINAL COOKE HCC","E0219916","133007801","TERENCE CARDINAL COOKE HEALTH CARE","7002345N","00798123",null,"1249 FIFTH AVENUE","NEW YORK","NY","10029-4413"]
["OMH  ","ASTROCARE INC","E0035358","113635418","ASTROCARE INC","7001119R","02648084",null,"142-02 20TH AVE","FLUSHING","NY","11351-9712"]
["Nursing Homes","KATERI RESIDENCE","E0234705","133086309","KATERI RESIDENCE INC","7002344N","00649849",null,"150 RIVERSIDE DR","NEW YORK","NY","10024-2298"]
["OPWDD  ","UNIQUE LIFE INC DAY","E0008617","113653314","UNIQUE LIFE INC DAY","","",null,"2197 NEW ENGLAND THRU","BRONX","NY","10475-1516"]
["Nursing Homes","BAYBERRY NURSING HOME","E0257232","133146888","BAYBERRY NURSING HOME","5904317N","00420397","40 KEOGH LN",null,"NEW ROCHELLE","NY","10805-1308"]
["Nursing Homes","SCHNURMACHER CENTER REH & NRS","E0190789","133482590","BETH ISRAEL NURSING HOMES HRF","5902314N","01090835",null,"12 TIBBITS AVE","WHITE PLAINS","NY","10606-2438"]
["Nursing Homes","REGEIS CARE CENTER","E0267612","133511689","CHAIM SIEGER","7000356N","00315031",null,"3200 BAYCHESTER AVE","BRONX","NY","10475-1513"]
["OMH  ","SUFFOLK CNTY DOH SVCS BR","E0263680","116000464","COUNTY OF SUFFOLK","","",null,"PO BOX 6100","HAUPPAUGE","NY","11788-0099"]
["OMH  ","SUFFOLK CNTY DOH SVCS FA","E0263701","116000464","COUNTY OF SUFFOLK","","",null,"PO BOX 6100","HAUPPAUGE","NY","11788-0099"]
["OMH  ","SUFFOLK CNTY DOH SVCS RV","E0230883","116000464","COUNTY OF SUFFOLK","","",null,"PO BOX 6100","HAUPPAUGE","NY","11788-0099"]
["OMH  ","SUFFOLK CO DOH MH","E0182361","116000464","COUNTY OF SUFFOLK","","",null,"PO BOX 6100","HAUPPAUGE","NY","11788-0099"]
["OASAS  ","SUFFOLK CNTY DOH CLINIC SERV","E0252192","116000464","COUNTY OF SUFFOLK","5155200R","00473170",null,"PO BOX 6100","HAUPPAUGE","NY","11788-0099"]
["Nursing Homes","EGER HLTH CARE & REHAB CENTER","E0267762","133524533","EGER HEALTH CARE CTR OF SI","7004303N","00313460",null,"140 MEISNER AVE","STATEN ISLAND","NY","10306-1236"]
["Nursing Homes","RIVERDALE NURSING HOME","E0267960","133536099","RIVERDALE NURSING HOME","7000357N","00311459",null,"641 W 230TH ST","BRONX","NY","10463-3309"]
["OPWDD  ","GUILD F/EXCEPTIONAL CHILD SPV","E0075393","116037766","GUILD FOR EXCEPTIONAL CHILDREN","","",null,"260 68TH ST","BROOKLYN","NY","11220-5201"]
["OPWDD  ","GUILD F/EXECPTIONAL CHILD ND2","E0066279","116037766","GUILD FOR EXCEPTIONAL CHILDREN","","",null,"260 68TH ST","BROOKLYN","NY","11220-5201"]
["OPWDD  ","GUILD FOR EXCPT CHLD COLONIAL","E0160699","116037766","GUILD FOR EXCEPTIONAL CHILDREN","","",null,"260 68TH ST","BROOKLYN","NY","11220-5201"]
["OPWDD  ","GUILD FOR EXCPTNL CHILD DEFEL","E0251922","116037766","GUILD FOR EXCEPTIONAL CHILDREN","","",null,"260 68TH ST","BROOKLYN","NY","11220-5201"]
["OPWDD  ","GUILD FOR EXCPTNL CHILD MARAN","E0200824","116037766","GUILD FOR EXCEPTIONAL CHILDREN","","",null,"260 68TH ST","BROOKLYN","NY","11220-5201"]
["OPWDD  ","GUILD FOR EXCPTNL CHILD MARTI","E0241903","116037766","GUILD FOR EXCEPTIONAL CHILDREN","","",null,"260 68TH ST","BROOKLYN","NY","11220-5201"]
["OPWDD  ","GUILD/EXCEPTIONAL CHDN DAY","E0029752","116037766","GUILD FOR EXCEPTIONAL CHILDREN","","",null,"260 68TH ST","BROOKLYN","NY","11220-5201"]
["OPWDD  ","ACLD GROUP DAY HAB DAY","E0029776","116042250","ADULTS AND CHILDREN WITH LEARNING","","",null,"807 S OYSTER BAY RD","BETHPAGE","NY","11714-1030"]
["OPWDD  ","ACLD RSP","E0040232","116042250","ADULTS AND CHILDREN WITH LEARNING","","",null,"807 S OYSTER BAY RD","BETHPAGE","NY","11714-1030"]
["OPWDD  ","ACLD SMP","E0083195","116042250","ADULTS AND CHILDREN WITH LEARNING","","",null,"807 S OYSTER BAY RD","BETHPAGE","NY","11714-1030"]
["OPWDD  ","ACLD SPT","E0075499","116042250","ADULTS AND CHILDREN WITH LEARNING","","",null,"807 S OYSTER BAY RD","BETHPAGE","NY","11714-1030"]
["OPWDD  ","ACLD SPV","E0075503","116042250","ADULTS AND CHILDREN WITH LEARNING","","",null,"807 S OYSTER BAY RD","BETHPAGE","NY","11714-1030"]
["OPWDD  ","ADULTS AND CHILDREN W LEARN/DEVEL D","E0296548","116042250","ADULTS AND CHILDREN WITH LEARNING","","",null,"807 S OYSTER BAY RD","BETHPAGE","NY","11714-1030"]
["OPWDD  ","DEVELOPMENT DIS INST GREENLAW","E0171031","116077347","DEVELOPMENTAL DISABILITIES INSTITUT","","",null,"99 HOLLYWOOD DR","SMITHTOWN","NY","11787-3135"]
["OPWDD  ","DEVELOPMENT DISABILITIES INST","E0295762","116077347","DEVELOPMENTAL DISABILITIES INSTITUT","","",null,"99 HOLLYWOOD DR","SMITHTOWN","NY","11787-3135"]
["OPWDD  ","DEVELOPMENTAL DIS INST 197 OL","E0201801","116077347","DEVELOPMENTAL DISABILITIES INSTITUT","","",null,"99 HOLLYWOOD DR","SMITHTOWN","NY","11787-3135"]
["OPWDD  ","DEVELOPMENTAL DIS INST BOURNE","E0202652","116077347","DEVELOPMENTAL DISABILITIES INSTITUT","","",null,"99 HOLLYWOOD DR","SMITHTOWN","NY","11787-3135"]
["OPWDD  ","DEVELOPMENTAL DIS INST HOLLYW","E0189597","116077347","DEVELOPMENTAL DISABILITIES INSTITUT","","",null,"99 HOLLYWOOD DR","SMITHTOWN","NY","11787-3135"]
["OPWDD  ","DEVELOPMENTAL DIS INST PLYMOU","E0182794","116077347","DEVELOPMENTAL DISABILITIES INSTITUT","","",null,"99 HOLLYWOOD DR","SMITHTOWN","NY","11787-3135"]
["OPWDD  ","DEVELOPMENTAL DIS INST SPV","E0075420","116077347","DEVELOPMENTAL DISABILITIES INSTITUT","","",null,"99 HOLLYWOOD DR","SMITHTOWN","NY","11787-3135"]
["OPWDD  ","DEVELOPMENTAL DISAB INST RSP","E0039117","116077347","DEVELOPMENTAL DISABILITIES INSTITUT","","",null,"99 HOLLYWOOD DR","SMITHTOWN","NY","11787-3135"]
["OPWDD  ","DEVELOPMENTAL DISABLITIES SMP","E0083233","116077347","DEVELOPMENTAL DISABILITIES INSTITUT","","",null,"99 HOLLYWOOD DR","SMITHTOWN","NY","11787-3135"]
["OPWDD  ","DEVELOPMENTAL DIST INST DAY","E0030107","116077347","DEVELOPMENTAL DISABILITIES INSTITUT","","",null,"99 HOLLYWOOD DR","SMITHTOWN","NY","11787-3135"]
["Nursing Homes","RIVINGTON HS/NICHOLAS A RANGO","E0144792","133590465","RIVINGTON HS HLTH CR AADC","7002353N","01552056","154 CHRISTOPHER ST","EMMA DEVITO CFO #3A","NEW YORK","NY","10014-2840"]
["Nursing Homes","SARAH NEUMAN CTR HLTH & REHAB","E0173283","133620568","SRN CORPORATION","5909302N","01266233","845 PALMER AVE",null,"MAMARONECK","NY","10543-2406"]
["OPWDD  ","OHEL CHILDRENS HM/FAM DAY","E0025181","116078704","OHEL CHILDREN'S HOME AND FAMILY SER","","",null,"4510 16TH AVE","BROOKLYN","NY","11204-1101"]
["OPWDD  ","OHEL CHILDRENS HM/FAM SPT","E0025129","116078704","OHEL CHILDREN'S HOME AND FAMILY SER","","",null,"4510 16TH AVE","BROOKLYN","NY","11204-1101"]
["OPWDD  ","OHEL CHILDRENS HM/FAM SPV","E0025130","116078704","OHEL CHILDREN'S HOME AND FAMILY SER","","",null,"4510 16TH AVE","BROOKLYN","NY","11204-1101"]
["OPWDD  ","OHEL CHILDRENS HOM KISSENA ICF","E0241559","116078704","OHEL CHILDREN'S HOME AND FAMILY SER","","",null,"4510 16TH AVE","BROOKLYN","NY","11204-1101"]
["OPWDD  ","OHEL CHILDRENS HOME  AVE I ICF","E0188379","116078704","OHEL CHILDREN'S HOME AND FAMILY SER","","",null,"4510 16TH AVE","BROOKLYN","NY","11204-1101"]
["OPWDD  ","OHEL CHILDRENS HOME 12TH AVE ICF","E0256474","116078704","OHEL CHILDREN'S HOME AND FAMILY SER","","",null,"4510 16TH AVE","BROOKLYN","NY","11204-1101"]
["OPWDD  ","OHEL CHILDRENS HOME 52ND ST ICF","E0239953","116078704","OHEL CHILDREN'S HOME AND FAMILY SER","","",null,"4510 16TH AVE","BROOKLYN","NY","11204-1101"]
["OPWDD  ","OHEL CHILDRENS HOME GATEWAY ICF","E0223014","116078704","OHEL CHILDREN'S HOME AND FAMILY SER","","",null,"4510 16TH AVE","BROOKLYN","NY","11204-1101"]
["Nursing Homes","THE ROBERT MAPPLETHORPE RTF A","E0152375","133627753","THE ROBERT MAPPLETHORPE RTF A","7002351N","01476104",null,"327 E 17TH ST","NEW YORK","NY","10003-3804"]
["Nursing Homes","STATEN ISLAND CARE CENTER","E0267644","133632426","STATEN ISLAND CARE CENTER","7004314N","00314690",null,"200 LAFAYETTE AVE OFC","STATEN ISLAND","NY","10301-1219"]
["Nursing Homes","CASA PROMESA RHCF INC SNF","E0145261","133676681","CASA PROMESA NRS HOME ADHC","7000373N","01547355","1776 CLAY AVE",null,"BRONX","NY","10457-7239"]
["Nursing Homes","REGENCY EXTENDED CARE CENTER","E0267865","133738896","REGENCY EXTENDED CARE CENTER","5907315N","00312414",null,"65 ASHBURTON AVE","YONKERS","NY","10701-2930"]
["OPWDD  ","U C P NYS 164TH PLACE ICF","E0124977","131623856","UNITED CEREBRAL PALSY ASSOCAITIONS","","",null,"220 WEST 42ND STREET","NEW YORK","NY","10036-7200"]
["OPWDD  ","UCP ASSOC OF NYS DAY","E0029208","131623856","UNITED CEREBRAL PALSY ASSOCAITIONS","","",null,"220 WEST 42ND STREET","NEW YORK","NY","10036-7200"]
["OPWDD  ","UCP NYS REG 1 #05 MEDINA ST","E0222569","131623856","UNITED CEREBRAL PALSY ASSOCAITIONS","","",null,"220 WEST 42ND STREET","NEW YORK","NY","10036-7200"]
["OPWDD  ","UCP NYS REG 1 #8","E0157672","131623856","UNITED CEREBRAL PALSY ASSOCAITIONS","","",null,"220 WEST 42ND STREET","NEW YORK","NY","10036-7200"]
["OPWDD  ","UCP NYS REG 4 #20 29-18 21 ST","E0222110","131623856","UNITED CEREBRAL PALSY ASSOCAITIONS","","",null,"220 WEST 42ND STREET","NEW YORK","NY","10036-7200"]
["OPWDD  ","UCP/NYS BAYSIDE ICF","E0147689","131623856","UNITED CEREBRAL PALSY ASSOCAITIONS","","",null,"220 WEST 42ND STREET","NEW YORK","NY","10036-7200"]
["OPWDD  ","UCP/NYS SHARROTTS RD ICF","E0146928","131623856","UNITED CEREBRAL PALSY ASSOCAITIONS","","",null,"220 WEST 42ND STREET","NEW YORK","NY","10036-7200"]
["OPWDD  ","UCPA OF NYS POP","E0074363","131623856","UNITED CEREBRAL PALSY ASSOCAITIONS","","",null,"220 WEST 42ND STREET","NEW YORK","NY","10036-7200"]
["OPWDD  ","UCP ASSO OF NYS STATEN IS","E0205030","131623856","UNITED CEREBRAL PALSY ASSOCAITIONS","7002126R","00947324",null,"220 WEST 42ND STREET","NEW YORK","NY","10036-7200"]
["OMH  ","F.E.G.S.","E0169438","131624000","FEDERATION EMPLOYMENT & GUIDANCE SR","","",null,"315 HUDSON ST","NEW YORK","NY","10013-1009"]
["OMH  ","FED EMPL & GLD SER MR MH","E0162796","131624000","FEDERATION EMPLOYMENT & GUIDANCE SR","","",null,"315 HUDSON ST","NEW YORK","NY","10013-1009"]
["OMH  ","FEDERATION EMPLMT/GUID SVC","E0273210","131624000","FEDERATION EMPLOYMENT & GUIDANCE SR","","",null,"315 HUDSON ST","NEW YORK","NY","10013-1009"]
["OPWDD  ","F E G S","E0144237","131624000","FEDERATION EMPLOYMENT & GUIDANCE SR","","",null,"315 HUDSON ST","NEW YORK","NY","10013-1009"]
["OPWDD  ","FED EMPLOY & GUIDANCE SVC SPT","E0075394","131624000","FEDERATION EMPLOYMENT & GUIDANCE SR","","",null,"315 HUDSON ST","NEW YORK","NY","10013-1009"]
["OPWDD  ","FED EMPLOY & GUIDANCE SVC SPV","E0075395","131624000","FEDERATION EMPLOYMENT & GUIDANCE SR","","",null,"315 HUDSON ST","NEW YORK","NY","10013-1009"]
["OPWDD  ","FEGS DAY","E0030264","131624000","FEDERATION EMPLOYMENT & GUIDANCE SR","","",null,"315 HUDSON ST","NEW YORK","NY","10013-1009"]
["Nursing Homes","LACONIA NURSING HOME INC","E0267959","133742398","LACONIA NURSING HOME INC","7000370N","00311468","1050 E 230TH ST",null,"BRONX","NY","10466-4810"]
["Nursing Homes","NORTHERN MANHATTAN REH & NRS","E0137125","133760265","NORTHERN MANHATTAN REH & NRS","7002355N","01628880",null,"116 E 125TH ST","NEW YORK","NY","10035-1612"]
["Nursing Homes","KINGS HARBOR MULTICARE CENTER","E0268065","133772916","KINGS HARBOR MULTICARE CENTER","7000372N","00310292","2000 E GUN HILL RD",null,"BRONX","NY","10469-6016"]
["OMH  ","JEWISH CHILD CARE ASSOC","E0083043","131624060","JEWISH CHILD CARE ASSOCIATION","","",null,"120 WALL STREET 12TH FLOOR","NEW YORK","NY","10005"]
["OMH  ","JEWISH CHILD CARE ASSOC MH","E0179492","131624060","JEWISH CHILD CARE ASSOCIATION","","",null,"120 WALL STREET 12TH FLOOR","NEW YORK","NY","10005"]
["OMH  ","JEWISH CHILD CARE ASSOC OF NY","E0271800","131624060","JEWISH CHILD CARE ASSOCIATION","","",null,"120 WALL STREET 12TH FLOOR","NEW YORK","NY","10005"]
["Nursing Homes","HEMPSTEAD PARK NURSING HOME","E0113983","133803710","SUNSHINE CARE CORP","2906304N","01860599",null,"800 FRONT ST","HEMPSTEAD","NY","11550-4600"]
["Nursing Homes","KINGSBRIDGE HGHTS REHAB & CC","E0268120","133834315","KINGSBRIDGE HGHTS REHAB & CC","7000374N","00309742","3400 CANNON PL","OFC MANAGER","BRONX","NY","10463-4302"]
["Nursing Homes","CREST HALL CARE CENTER","E0100467","133892027","CREST HALL CARE CENTER","5151314N","01995922",null,"958 CHURCH ST OFC","BALDWIN","NY","11510-4257"]
["OPWDD  ","NEW YORK FOUNDLING","E0003004","131624123","NEW YORK FOUNDLING HOSPITAL","","",null,"590 AVENUE OF THE AMERICAS","NEW YORK","NY","10011-2097"]
["OPWDD  ","NEW YORK FOUNDLING HOSP SPV","E0074672","131624123","NEW YORK FOUNDLING HOSPITAL","","",null,"590 AVENUE OF THE AMERICAS","NEW YORK","NY","10011-2097"]
["OPWDD  ","ST AGATHAS 11 HAYDEN CIRCLE","E0212570","131624123","NEW YORK FOUNDLING HOSPITAL","","",null,"590 AVENUE OF THE AMERICAS","NEW YORK","NY","10011-2097"]
["OPWDD  ","ST AGATHAS 13 HAYDEN CIRCLE","E0230004","131624123","NEW YORK FOUNDLING HOSPITAL","","",null,"590 AVENUE OF THE AMERICAS","NEW YORK","NY","10011-2097"]
["OPWDD  ","ST AGATHAS ARDSLEY ICF","E0247785","131624123","NEW YORK FOUNDLING HOSPITAL","","",null,"590 AVENUE OF THE AMERICAS","NEW YORK","NY","10011-2097"]
["OPWDD  ","ST AGATHAS DEPAUL ICF","E0230003","131624123","NEW YORK FOUNDLING HOSPITAL","","",null,"590 AVENUE OF THE AMERICAS","NEW YORK","NY","10011-2097"]
["OPWDD  ","ST AGATHAS PELHAM MANOR ICF","E0247784","131624123","NEW YORK FOUNDLING HOSPITAL","","",null,"590 AVENUE OF THE AMERICAS","NEW YORK","NY","10011-2097"]
["Nursing Homes","OAK HOLLOW NURSING CTR CORP","E0100507","133892032","OAK HOLLOW NURSING CTR CORP","5151315N","01995528",null,"49 OAKCREST AVENUE","MIDDLE ISLAND","NY","11953-1415"]
["OMH  ","LEAGUE FOR THE HARD OF HEARIN","E0266808","131624127","LEAGUE FOR THE HARD OF HEARIN","7002253R","00244793","50 BROADWAY FL 6",null,"NEW YORK","NY","10004-3810"]
["Nursing Homes","VERRAZANO NURSING HOME","E0268233","133897286","VERRAZANO NURSING HOME","7004320N","00308530",null,"100 CASTLETON AVE","STATEN ISLAND","NY","10301-3004"]
["Nursing Homes","TERRACE HEALTH CARE CENTER","E0268265","133920184","TERRACE HEALTH CARE CENTER","7000378N","00308205",null,"2678 KINGSBRIDGE TER","BRONX","NY","10463-7471"]
["OMH  ","VNSNY COMMUNITY HEALTH SERVICES","E0004967","131624211","VISITING NURSE SRVC OF NY HOME CARE","","",null,"107 E 70TH STREET","NEW YORK","NY","10021-4990"]
["OMH  ","SOUNDVIEW THROGS NECK COM MH","E0223721","131624225","YESHIVA UNIVERSITY","","",null,"1175 MORRIS PARK AVE","BRONX","NY","10461-1900"]
["OPWDD  ","ROSE F KENNEDY CTR","E0273872","131624225","YESHIVA UNIVERSITY","7000223R","00245634",null,"1175 MORRIS PARK AVE","BRONX","NY","10461-1900"]
["OASAS  ","ALBERT EINSTEIN COLLEGE MED","E0273871","131624225","YESHIVA UNIVERSITY","7000217R","00245643",null,"1175 MORRIS PARK AVE","BRONX","NY","10461-1900"]
["OASAS  ","YOUNGMEN'S CHRISTIAN ASSOC","E0100778","131624228","YOUNGMEN'S CHRISTIAN ASSOC","","",null,"3911 RICHMOND AVE","STATEN ISLAND","NY","10312-5110"]
["OMH  ","UNION SETTLEMENT ASSO     INC","E0226224","131632530","UNION SETTLEMENT ASSOC MH","","","237 E 104TH ST","LAURA JOHNSON","NEW YORK","NY","10029-5404"]
["OMH  ","GOODWILL INDUSTRIES ACT RC","E0023084","131641068","GOODWILL INDUSTRIES ACT RC","","","427 27TH AVE",null,"ASTORIA","NY","11102-4522"]
["OPWDD  ","GOODWILL IND GR NY/NJ DAY","E0030259","131641068","GOODWILL INDUSTRIES ACT RC","","","427 27TH AVE",null,"ASTORIA","NY","11102-4522"]
["OPWDD  ","GOODWILL INDUST GR NY/NNJ SMP","E0080570","131641068","GOODWILL INDUSTRIES ACT RC","","","427 27TH AVE",null,"ASTORIA","NY","11102-4522"]
["Nursing Homes","CLOVE LAKES HLTH CR/REHAB CTR","E0268106","133954527","CLOVE LAKES HLTH CARE & REHAB","7004321N","00309884",null,"25 FANNING ST","STATEN ISLAND","NY","10314-5307"]
["OMH  ","NORTHSIDE CENTER FOR CHILD DE","E0274021","131656679","NORTHSIDE CENTER FOR CHILD DE","","",null,"1301 5TH AVE","NEW YORK","NY","10029-3119"]
["OMH  ","POST GRAD CNTR FOR MENTAL HIT","E0273998","131656681","POSTGRADUATE CTR MENTAL HLTH","","",null,"158 E 35TH ST","NEW YORK","NY","10016-4102"]
["OMH  ","POSTGRADUATE CTR FOR MH  MH","E0081112","131656681","POSTGRADUATE CTR MENTAL HLTH","","",null,"158 E 35TH ST","NEW YORK","NY","10016-4102"]
["OMH  ","POSTGRADUATE CTR MENTAL HLTH","E0023295","131656681","POSTGRADUATE CTR MENTAL HLTH","","",null,"158 E 35TH ST","NEW YORK","NY","10016-4102"]
["Nursing Homes","EAST HAVEN NURSING & REHAB CT","E0267974","133982196","EAST HAVEN NURSING & REHAB CT","7000360N","00311317","2323 EASTCHESTER RD",null,"BRONX","NY","10469-5910"]
["OPWDD  ","CP OF WESTCHESTER 266B BRYANT ICF","E0297573","131690769","UCP OF WESTCHESTER RSP","","",null,"1186 KING ST","RYE BROOK","NY","10573-1069"]
["OPWDD  ","CP OF WESTCHESTER INC #3","E0295423","131690769","UCP OF WESTCHESTER RSP","","",null,"1186 KING ST","RYE BROOK","NY","10573-1069"]
["OPWDD  ","CP OF WESTCHESTER LINCOLN AVE ICF","E0299666","131690769","UCP OF WESTCHESTER RSP","","",null,"1186 KING ST","RYE BROOK","NY","10573-1069"]
["OPWDD  ","UCP ASSOC OF WESTCHESTER CNTY","E0226468","131690769","UCP OF WESTCHESTER RSP","","",null,"1186 KING ST","RYE BROOK","NY","10573-1069"]
["OPWDD  ","UCP OF WESTCHESTER DAY","E0029923","131690769","UCP OF WESTCHESTER RSP","","",null,"1186 KING ST","RYE BROOK","NY","10573-1069"]
["OPWDD  ","UCP OF WESTCHESTER ICF 2","E0295319","131690769","UCP OF WESTCHESTER RSP","","",null,"1186 KING ST","RYE BROOK","NY","10573-1069"]
["OPWDD  ","UCP OF WESTCHESTER RSP","E0021949","131690769","UCP OF WESTCHESTER RSP","","",null,"1186 KING ST","RYE BROOK","NY","10573-1069"]
["OPWDD  ","UCP OF WESTCHESTER SPV","E0294341","131690769","UCP OF WESTCHESTER RSP","","",null,"1186 KING ST","RYE BROOK","NY","10573-1069"]
["Nursing Homes","BAINBRIDGE NURSING & REHAB CT","E0268247","133982198","BAINBRIDGE NH & REHAB ADHC","7000319N","00308392",null,"3518 BAINBRIDGE AVE","BRONX","NY","10467-1402"]
["Nursing Homes","WAYNE CTR FOR NURSING & REHAB","E0268133","133982199","WAYNE CTR FOR NURSING & REHAB","7000350N","00309619",null,"3530 WAYNE AVE","BRONX","NY","10467-1598"]
["Nursing Homes","BRONX PARK REHAB & NRS CENTER","E0268132","133992987","BRONX PARK REHAB & NRS CENTER","7000380N","00309628","3845 CARPENTER AVE",null,"BRONX","NY","10467-5204"]
["Nursing Homes","BRONX CENTER REHAB & HLTH CAR","E0110722","134021585","BRONX CENTER REHAB & HLTH CAR","7000381N","01893232",null,"1010 UNDERHILL AVE","BRONX","NY","10472-6012"]
["OMH  ","RTF CHILDRENS VILLAGE","E0219600","131739945","RTF CHILDRENS VILLAGE","","",null,"ECHO HILLS","DOBBS FERRY","NY","10522"]
["Nursing Homes","REGAL HEIGHTS REH & HLTH CR C","E0308996","134149621","JACKSON HEIGHTS CARE CENTER LLC","7003397N","02053161",null,"7005 35TH AVE","JACKSON HEIGHTS","NY","11372-3970"]
["Nursing Homes","NEW EAST SIDE NURSING HOME","E0268092","134167525","NEW EAST SIDE NURSING HOME","7002358N","00310027","25 WILLETT ST",null,"NEW YORK","NY","10002-4008"]
["OMH  ","MHA OF WESTCHESTER","E0169407","131740002","MENTAL HEALTH ASSOCIATION","","",null,"580 WHITE PLAINS ROAD","TARRYTOWN","NY","10591-5198"]
["Nursing Homes","GOLDEN GATE REH & HLTH CR CTR","E0267873","134171198","GOLDEN GATE REH & HLTH CR CTR","7004322N","00312336","191 BRADLEY AVE",null,"STATEN ISLAND","NY","10314-5166"]
["Nursing Homes","UNIVERSITY NURSING HOME SNF","E0267882","134178465","UNIVERSITY NURSING HOME SNF","7000337N","00312249",null,"2505 GRAND AVE OFC","BRONX","NY","10468-4206"]
["OPWDD  ","SHIELD OF DAVID INC","E0274024","131740041","THE SHIELD INSTITUTE DAY","","","14461 ROOSEVELT AVE",null,"FLUSHING","NY","11354-6252"]
["OPWDD  ","THE SHIELD INSTITUTE DAY","E0029928","131740041","THE SHIELD INSTITUTE DAY","","","14461 ROOSEVELT AVE",null,"FLUSHING","NY","11354-6252"]
["Nursing Homes","EAST NECK NURSING & REHAB CTR","E0212103","134261026","EAST NECK NURSING & REHAB CTR","5150303N","00876444",null,"134 GREAT EAST NECK RD","WEST BABYLON","NY","11704-8027"]
["Nursing Homes","MARGARET TIETZ CENTER FOR NUR","E0268126","136266115","MARGARET TIETZ CTR NURS ADHC","7003305N","00309682",null,"612 ALLERTON AVENUE","BRONX","NY","10467-7404"]
["OPWDD  ","WESTCHESTER ARC","E0144360","131740065","NYSARC INC WESTCHESTER CO CHAPTER","","",null,"265 SAW MILL RIVER ROAD","HAWTHORNE","NY","10532-1509"]
["OPWDD  ","WESTCHESTER ARC BRYANT II ICF","E0251924","131740065","NYSARC INC WESTCHESTER CO CHAPTER","","",null,"265 SAW MILL RIVER ROAD","HAWTHORNE","NY","10532-1509"]
["OPWDD  ","WESTCHESTER ARC BRYANT V ICF","E0229222","131740065","NYSARC INC WESTCHESTER CO CHAPTER","","",null,"265 SAW MILL RIVER ROAD","HAWTHORNE","NY","10532-1509"]
["OPWDD  ","WESTCHESTER ARC SMP","E0083127","131740065","NYSARC INC WESTCHESTER CO CHAPTER","","",null,"265 SAW MILL RIVER ROAD","HAWTHORNE","NY","10532-1509"]
["OPWDD  ","WESTCHESTER CHAP NYSARC DAY","E0029849","131740065","NYSARC INC WESTCHESTER CO CHAPTER","","",null,"265 SAW MILL RIVER ROAD","HAWTHORNE","NY","10532-1509"]
["OPWDD  ","WESTCHESTER CHAP NYSARC FSR 1","E0040679","131740065","NYSARC INC WESTCHESTER CO CHAPTER","","",null,"265 SAW MILL RIVER ROAD","HAWTHORNE","NY","10532-1509"]
["OPWDD  ","WESTCHESTER CHAP NYSARC RSP","E0039087","131740065","NYSARC INC WESTCHESTER CO CHAPTER","","",null,"265 SAW MILL RIVER ROAD","HAWTHORNE","NY","10532-1509"]
["OPWDD  ","WESTCHESTER NYSARC SPT","E0074836","131740065","NYSARC INC WESTCHESTER CO CHAPTER","","",null,"265 SAW MILL RIVER ROAD","HAWTHORNE","NY","10532-1509"]
["OPWDD  ","WESTCHESTER NYSARC SPV","E0074837","131740065","NYSARC INC WESTCHESTER CO CHAPTER","","",null,"265 SAW MILL RIVER ROAD","HAWTHORNE","NY","10532-1509"]
["OMH  ","WESTCHESTER JEWISH COMM SRVS","E0244655","131740071","WESTCHESTER JEWISH COMM SVCS","","","845 N BROADWAY",null,"WHITE PLAINS","NY","10603-2403"]
["OMH  ","WESTCHESTER JEWISH COMM SVCS","E0073028","131740071","WESTCHESTER JEWISH COMM SVCS","","","845 N BROADWAY",null,"WHITE PLAINS","NY","10603-2403"]
["Nursing Homes","BROOKHAVEN HLTH CARE SNF","E0191530","161495523","BROOKHAVEN HLTH CARE SNF","5123304N","01083421",null,"801 GAZZOLA DR","EAST PATCHOGUE","NY","11772-4900"]
["Nursing Homes","FRIEDWALD CENTER REHAB & NRS","E0267822","200482890","FRIEDWALD CTR REHAB NRS ADHC","4350305N","00312845",null,"475 NEW HEMPSTEAD RD","NEW CITY","NY","10956-1000"]
["Nursing Homes","CENTRAL ISLAND HEALTHCARE","E0267807","200709067","CENTRAL ISLAND HEALTHCARE","2952308N","00312996",null,"825 OLD COUNTRY RD","PLAINVIEW","NY","11803-4913"]
["Nursing Homes","SMITHTOWN CENTER REHAB & NRS CARE","E0170359","201338052","SMITHTOWN CENTER REHAB & NRS CARE","5157310N","01295550",null,"391 N COUNTRY RD","SMITHTOWN","NY","11787-2069"]
["Nursing Homes","MANHATTANVILLE HLTH CARE CTR","E0189712","202104261","MANHATTANVILLE HLTH CARE CTR","7000387N","01101615",null,"311 W 231ST ST","BRONX","NY","10463-3804"]
["Nursing Homes","KESER NURSING & REHAB CENTER","E0267667","202996049","KESER NURSING & REHAB CENTER","7001387N","00314443",null,"40 HEYWARD ST","BROOKLYN","NY","11249-7823"]
["Nursing Homes","HAMPTONS CENTER REHAB AND NRS","E0018064","203536774","NORTH SEA ASSOCIATES, LLC","5126303N","02821314",null,"20 FRANKLIN PL","WOODBURY","NY","11598-1254"]
["Nursing Homes","BROOKLYN CTR REHAB & RESIDENTIAL CR","E0267852","204031436","BROOKLYN CTR REHAB & RESIDENTIAL CR","7001388N","00312547","FL 2","855 BRUSH AVE","BRONX","NY","10465-1808"]
["Nursing Homes","HILAIRE FARM SKILLED LIV & REH CTR","E0267995","204077382","HILAIRE FARM SKILLED LIV & REH CTR","5153310N","00311073",null,"9 HILAIRE DR","HUNTINGTON","NY","11743-3768"]
["Nursing Homes","SUNHARBOR MANOR           INC","E0268134","204135841","SUNHARBOR MANOR INC","2951307N","00309600","255 WARNER AVE","BUSINESS OFFICE","ROSLYN HTS","NY","11577-1000"]
["Nursing Homes","ATLANTIS REH & RES HLTH CR FAC","E0267988","208557900","ATLANTIS REH & RES HLTH CR FAC","7001389N","00311151",null,"140 SAINT EDWARDS ST OFC","BROOKLYN","NY","11201-3904"]
["Nursing Homes","SUFFOLK CENTER REHABILITATION & NRS","E0268121","208953981","SUFFOLK CENTER REHABILITATION & NRS","5123305N","00309733","25 SCHOENFELD BLVD",null,"PATCHOGUE","NY","11772-2982"]
["Nursing Homes","SAINTS JOACHIM & ANNE NRS & REH CTR","E0177804","222943712","SAINTS JOACHIM & ANNE NRS & REH CTR","7001371N","01220915",null,"2720 SURF AVE","BROOKLYN","NY","11224-1913"]
["Nursing Homes","HELEN & MICHAEL SCHAFFER ECC","E0128084","237000781","HOWE AVENUE NURSING HOME INC","5904314N","00314067",null,"16 GUION PL","NEW ROCHELLE","NY","10802-5502"]
["Nursing Homes","NO SHORE UNIV HSP STERN FAM CECR","E0187836","237007485","NO SHORE UNIV HSP STERN FAM CECR","2951305N","01120410",null,"330 COMMUNITY DR","MANHASSET","NY","11030-3816"]
["OMH  ","SAINT DOMINICS HOME","E0168933","131740399","ST DOMINIC'S HOME, INC","","","500 WESTERN HWY","CHIEF FINANCIAL OFFICE","BLAUVELT","NY","10913-2022"]
["OPWDD  ","SAINT DOMINICS HOME DAY","E0030811","131740399","ST DOMINIC'S HOME, INC","","","500 WESTERN HWY","CHIEF FINANCIAL OFFICE","BLAUVELT","NY","10913-2022"]
["OPWDD  ","ST DOMINICS HOME  SPV","E0072089","131740399","ST DOMINIC'S HOME, INC","","","500 WESTERN HWY","CHIEF FINANCIAL OFFICE","BLAUVELT","NY","10913-2022"]
["OPWDD  ","ST DOMINICS HOME GOSHEN ICF","E0042774","131740399","ST DOMINIC'S HOME, INC","","","500 WESTERN HWY","CHIEF FINANCIAL OFFICE","BLAUVELT","NY","10913-2022"]
["OPWDD  ","ST DOMINICS HOME UNITS 1-4","E0251939","131740399","ST DOMINIC'S HOME, INC","","","500 WESTERN HWY","CHIEF FINANCIAL OFFICE","BLAUVELT","NY","10913-2022"]
["OPWDD  ","ST DOMINICS HOME-A ICF","E0016243","131740399","ST DOMINIC'S HOME, INC","","","500 WESTERN HWY","CHIEF FINANCIAL OFFICE","BLAUVELT","NY","10913-2022"]
["OPWDD  ","ST DOMINICS HOME-C ICF","E0016242","131740399","ST DOMINIC'S HOME, INC","","","500 WESTERN HWY","CHIEF FINANCIAL OFFICE","BLAUVELT","NY","10913-2022"]
["OPWDD  ","ST DOMINICS HOME-D ICF","E0016122","131740399","ST DOMINIC'S HOME, INC","","","500 WESTERN HWY","CHIEF FINANCIAL OFFICE","BLAUVELT","NY","10913-2022"]
["OPWDD  ","SALVATION ARMY PIONEER ICF","E0258234","131740429","SALVATION ARMY GLENDALE ICF","","",null,"120 W 14TH ST","NEW YORK","NY","10011-7301"]
["OMH  ","CARDINAL MCCLOSKEY SCH/HM FOR CHIL","E0000413","131740443","CARDINAL MCCLOSKEY SCH/HM FOR CHIL","","",null,"115 E STEVENS AVE SUITE LL5","VALHALLA","NY","10595-1252"]
["OPWDD  ","CARDINAL MCCLOSKEY SCHOOL AND HOME","E0323459","131740443","CARDINAL MCCLOSKEY SCH/HM FOR CHIL","","",null,"115 E STEVENS AVE SUITE LL5","VALHALLA","NY","10595-1252"]
["OPWDD  ","CARDINAL MCCLOSKEY SCHOOL SPV","E0075519","131740443","CARDINAL MCCLOSKEY SCH/HM FOR CHIL","","",null,"115 E STEVENS AVE SUITE LL5","VALHALLA","NY","10595-1252"]
["OPWDD  ","CARDINAL MCCLOSKEY SVCS DAY","E0030882","131740443","CARDINAL MCCLOSKEY SCH/HM FOR CHIL","","",null,"115 E STEVENS AVE SUITE LL5","VALHALLA","NY","10595-1252"]
["OMH  ","JAWONIO MH","E0002091","131761660","JAWONIO INC","","",null,"260 LITTLE TOR RD NORTH","NEW CITY","NY","10956-1616"]
["OPWDD  ","JAWONIO INC   SPV","E0075351","131761660","JAWONIO INC","","",null,"260 LITTLE TOR RD NORTH","NEW CITY","NY","10956-1616"]
["OPWDD  ","JAWONIO INC  SPT","E0075349","131761660","JAWONIO INC","","",null,"260 LITTLE TOR RD NORTH","NEW CITY","NY","10956-1616"]
["OPWDD  ","JAWONIO INC ALTMAN ICF","E0083736","131761660","JAWONIO INC","","",null,"260 LITTLE TOR RD NORTH","NEW CITY","NY","10956-1616"]
["OPWDD  ","JAWONIO INC DAY","E0030807","131761660","JAWONIO INC","","",null,"260 LITTLE TOR RD NORTH","NEW CITY","NY","10956-1616"]
["OPWDD  ","JAWONIO INC FISHER ICF","E0251938","131761660","JAWONIO INC","","",null,"260 LITTLE TOR RD NORTH","NEW CITY","NY","10956-1616"]
["OPWDD  ","JAWONIO INC WESLEY ICF","E0085205","131761660","JAWONIO INC","","",null,"260 LITTLE TOR RD NORTH","NEW CITY","NY","10956-1616"]
["Nursing Homes","JEWISH HOME & HOSP BRONX DIV","E0267756","237071900","JEWISH HOME & HSP BX DIV","7000317N","00313520",null,"2545 UNIVERSITY AVE","BRONX","NY","10468-4066"]
["OMH  ","FAMILY SVC OF WESTCHESTER","E0159389","131773419","FAMILY SVC OF WESTCHESTER","","","1 GATEWAY PLZ FL ACCOUNTING",null,"PORT CHESTER","NY","10573-4674"]
["Nursing Homes","SCHULMAN/SCHACHNE INST N&REHA","E0267532","237085986","SCHULMAN AND SCHACHNE INSTITUTE","7001318N","00315857",null,"555 ROCKAWAY PARKWAY","BROOKLYN","NY","11212"]
["OPWDD  ","LEAKE AND WATTS SERVICES INC","E0293812","131860451","LEAKE AND WATTS SVCS INC RSP","","",null,"463 HAWTHORNE AVE","YONKERS","NY","10705-3441"]
["OPWDD  ","LEAKE AND WATTS SVCS INC SPV","E0022086","131860451","LEAKE AND WATTS SVCS INC RSP","","",null,"463 HAWTHORNE AVE","YONKERS","NY","10705-3441"]
["OPWDD  ","CENTER FOR FAMILY SUPPORT RSP","E0040984","131913807","CENTER FOR FAMILY SUPPORT INC","","",null,"333 7TH AVE FL 9","NEW YORK","NY","10001-5004"]
["OPWDD  ","CTR FOR FAMILY SUPPORT DAY","E0029743","131913807","CENTER FOR FAMILY SUPPORT INC","","",null,"333 7TH AVE FL 9","NEW YORK","NY","10001-5004"]
["OPWDD  ","CTR FOR FAMILY SUPPORT ND  6","E0024874","131913807","CENTER FOR FAMILY SUPPORT INC","","",null,"333 7TH AVE FL 9","NEW YORK","NY","10001-5004"]
["OPWDD  ","CTR FOR FAMILY SUPPORT SPV","E0075484","131913807","CENTER FOR FAMILY SUPPORT INC","","",null,"333 7TH AVE FL 9","NEW YORK","NY","10001-5004"]
["OPWDD  ","ROCKLAND CNTY ARC BUENA VISTA","E0178669","131916359","NYSARC INC ROCKLAND COUNTY CHAPTER","","",null,"25 HEMLOCK DR","CONGERS","NY","10920-1401"]
["OPWDD  ","ROCKLAND CNTY ARC CONGERS","E0210895","131916359","NYSARC INC ROCKLAND COUNTY CHAPTER","","",null,"25 HEMLOCK DR","CONGERS","NY","10920-1401"]
["OPWDD  ","ROCKLAND CNTY ARC LAFAYETTE","E0231330","131916359","NYSARC INC ROCKLAND COUNTY CHAPTER","","",null,"25 HEMLOCK DR","CONGERS","NY","10920-1401"]
["OPWDD  ","ROCKLAND CNTY ARC RIDGE ROAD","E0178668","131916359","NYSARC INC ROCKLAND COUNTY CHAPTER","","",null,"25 HEMLOCK DR","CONGERS","NY","10920-1401"]
["OPWDD  ","ROCKLAND CO CHAP NYSARC  SPV","E0075205","131916359","NYSARC INC ROCKLAND COUNTY CHAPTER","","",null,"25 HEMLOCK DR","CONGERS","NY","10920-1401"]
["OPWDD  ","ROCKLAND CO CHAP NYSARC DAY","E0029989","131916359","NYSARC INC ROCKLAND COUNTY CHAPTER","","",null,"25 HEMLOCK DR","CONGERS","NY","10920-1401"]
["OPWDD  ","ROCKLAND CO NYS ARC SMP","E0082886","131916359","NYSARC INC ROCKLAND COUNTY CHAPTER","","",null,"25 HEMLOCK DR","CONGERS","NY","10920-1401"]
["OPWDD  ","ROCKLAND COUNTY CHAP ARC RSP","E0038082","131916359","NYSARC INC ROCKLAND COUNTY CHAPTER","","",null,"25 HEMLOCK DR","CONGERS","NY","10920-1401"]
["Nursing Homes","PENINSULA GEN NURSING HOME","E0265858","237086890","PENINSULA GEN NURSING HOME","7003308N","00332834","50-15 BEACH CH DR","PAT ACCTS MANAGER","FAR ROCKAWAY","NY","11691"]
["OPWDD  ","A A B R 130 WATER ST ICF","E0263527","131968035","ASSOCIATION FOR THE ADVANC BLIND &","","",null,"PO BOX 560247","COLLEGE POINT","NY","11356-0247"]
["OPWDD  ","A A B R 178-22 LINDEN BLVD","E0263525","131968035","ASSOCIATION FOR THE ADVANC BLIND &","","",null,"PO BOX 560247","COLLEGE POINT","NY","11356-0247"]
["OPWDD  ","A A B R AUSTIN ST ICF","E0241560","131968035","ASSOCIATION FOR THE ADVANC BLIND &","","",null,"PO BOX 560247","COLLEGE POINT","NY","11356-0247"]
["OPWDD  ","A A B R CROMWELL AVE ICF","E0236685","131968035","ASSOCIATION FOR THE ADVANC BLIND &","","",null,"PO BOX 560247","COLLEGE POINT","NY","11356-0247"]
["OPWDD  ","A A B R E 187TH ST ICF","E0193971","131968035","ASSOCIATION FOR THE ADVANC BLIND &","","",null,"PO BOX 560247","COLLEGE POINT","NY","11356-0247"]
["OPWDD  ","A A B R GRAND AVE ICF","E0251950","131968035","ASSOCIATION FOR THE ADVANC BLIND &","","",null,"PO BOX 560247","COLLEGE POINT","NY","11356-0247"]
["OPWDD  ","A A B R POSNER ICF","E0263524","131968035","ASSOCIATION FOR THE ADVANC BLIND &","","",null,"PO BOX 560247","COLLEGE POINT","NY","11356-0247"]
["OPWDD  ","A A B R TIEBOUT AVE ICF","E0228779","131968035","ASSOCIATION FOR THE ADVANC BLIND &","","",null,"PO BOX 560247","COLLEGE POINT","NY","11356-0247"]
["OPWDD  ","AABR INC DAY","E0030936","131968035","ASSOCIATION FOR THE ADVANC BLIND &","","",null,"PO BOX 560247","COLLEGE POINT","NY","11356-0247"]
["OPWDD  ","ASSOC FOR ADV BLIND & RET SPV","E0075516","131968035","ASSOCIATION FOR THE ADVANC BLIND &","","",null,"PO BOX 560247","COLLEGE POINT","NY","11356-0247"]
["Nursing Homes","MORNINGSIDE HOUSE NURSING HOM","E0268112","237176564","MORNINGSIDE HOUSE NH CO INC","7000345N","00309820","1000 PELHAM PKWY S","KAREN F HOWARD","BRONX","NY","10461-1003"]
["Nursing Homes","JAMAICA HOSPITAL NURSING HOME","E0268194","237216197","JAMAICA HOSPITAL NURSING HOME","7003346N","00308952",null,"89-40 135TH STREET","JAMAICA","NY","11418-2828"]
["Nursing Homes","KOMANOFF CTR/GERIATRIC REHAB","E0267712","237233422","LONG BEACH MEM NURS NH LTHHCP","2902302N","00313988",null,"375 E BAY DR","LONG BEACH","NY","11561-2350"]
["Nursing Homes","DAUGHTERS OF JACOB NURSING HO","E0268062","237253508","DAUGHTERS OF JACOB NH CO INC","7000342N","00310325","1160 TELLER AVE","DOJ ACCOUNTING DEPT","BRONX","NY","10456-4145"]
["OPWDD  ","ASSOC/METROAREA AU CHIL SPV","E0074701","131974582","ASSOC-METROAREA AU CHILD DAY","","",null,"25 W 17TH ST","NEW YORK","NY","10011-5501"]
["Nursing Homes","BEZALEL REHAB & NURSING CTR","E0219052","237253912","BEZALEL REHAB & NURSING CTR","7003352N","00806771",null,"2938 FAR ROCKAWAY BLVD # B","FAR ROCKAWAY","NY","11691-1947"]
["OPWDD  ","ABBOTT HOUSE DAY","E0029777","131991946","ABBOTT HOUSE","","",null,"100 N BROADWAY","IRVINGTON","NY","10533-1235"]
["OPWDD  ","ABBOTT HOUSE IRA SPV","E0074317","131991946","ABBOTT HOUSE","","",null,"100 N BROADWAY","IRVINGTON","NY","10533-1235"]
["Nursing Homes","MARCUS GARVEY NURSING HOME","E0267650","237375784","MARCUS GARVEY NURSING HOME","7001353N","00314627",null,"810 SAINT MARKS AVE","BROOKLYN","NY","11213-1420"]
["OMH  ","LIFESPIRE, INC","E0264391","132526022","LIFESPIRE INC ND 8","","",null,"ONE WHITEHALL STREET 9TH FLR","NEW YORK","NY","10004-2141"]
["OPWDD  ","LIFESPIRE INC","E0149973","132526022","LIFESPIRE INC ND 8","","",null,"ONE WHITEHALL STREET 9TH FLR","NEW YORK","NY","10004-2141"]
["OPWDD  ","LIFESPIRE INC","E0222503","132526022","LIFESPIRE INC ND 8","","",null,"ONE WHITEHALL STREET 9TH FLR","NEW YORK","NY","10004-2141"]
["OPWDD  ","LIFESPIRE INC","E0188378","132526022","LIFESPIRE INC ND 8","","",null,"ONE WHITEHALL STREET 9TH FLR","NEW YORK","NY","10004-2141"]
["OPWDD  ","LIFESPIRE INC DAY","E0030173","132526022","LIFESPIRE INC ND 8","","",null,"ONE WHITEHALL STREET 9TH FLR","NEW YORK","NY","10004-2141"]
["OPWDD  ","LIFESPIRE INC ICF","E0150290","132526022","LIFESPIRE INC ND 8","","",null,"ONE WHITEHALL STREET 9TH FLR","NEW YORK","NY","10004-2141"]
["OPWDD  ","LIFESPIRE INC ICF","E0132496","132526022","LIFESPIRE INC ND 8","","",null,"ONE WHITEHALL STREET 9TH FLR","NEW YORK","NY","10004-2141"]
["OPWDD  ","LIFESPIRE INC ICF","E0182729","132526022","LIFESPIRE INC ND 8","","",null,"ONE WHITEHALL STREET 9TH FLR","NEW YORK","NY","10004-2141"]
["OPWDD  ","LIFESPIRE INC ICF","E0222561","132526022","LIFESPIRE INC ND 8","","",null,"ONE WHITEHALL STREET 9TH FLR","NEW YORK","NY","10004-2141"]
["OPWDD  ","LIFESPIRE INC ICF","E0263490","132526022","LIFESPIRE INC ND 8","","",null,"ONE WHITEHALL STREET 9TH FLR","NEW YORK","NY","10004-2141"]
["OPWDD  ","LIFESPIRE INC ICF","E0233568","132526022","LIFESPIRE INC ND 8","","",null,"ONE WHITEHALL STREET 9TH FLR","NEW YORK","NY","10004-2141"]
["OPWDD  ","LIFESPIRE INC ICF","E0263504","132526022","LIFESPIRE INC ND 8","","",null,"ONE WHITEHALL STREET 9TH FLR","NEW YORK","NY","10004-2141"]
["OPWDD  ","LIFESPIRE INC ICF","E0263505","132526022","LIFESPIRE INC ND 8","","",null,"ONE WHITEHALL STREET 9TH FLR","NEW YORK","NY","10004-2141"]
["OPWDD  ","LIFESPIRE INC ICF","E0243382","132526022","LIFESPIRE INC ND 8","","",null,"ONE WHITEHALL STREET 9TH FLR","NEW YORK","NY","10004-2141"]
["OPWDD  ","LIFESPIRE INC SMP","E0082893","132526022","LIFESPIRE INC ND 8","","",null,"ONE WHITEHALL STREET 9TH FLR","NEW YORK","NY","10004-2141"]
["OPWDD  ","LIFESPIRE INC SPT","E0075352","132526022","LIFESPIRE INC ND 8","","",null,"ONE WHITEHALL STREET 9TH FLR","NEW YORK","NY","10004-2141"]
["OPWDD  ","LIFESPIRE INC SPV","E0075353","132526022","LIFESPIRE INC ND 8","","",null,"ONE WHITEHALL STREET 9TH FLR","NEW YORK","NY","10004-2141"]
["OMH  ","ASSOCIATION/MENTALLY ILL CHLD","E0212211","132554243","ASSOC MENT ILL CHILD W DAY","","","RIVER ROAD","ADMINISTRATOR","SCARBOROUGH","NY","10510"]
["OPWDD  ","ASSOC MENT ILL CHILD WEST SPV","E0075518","132554243","ASSOC MENT ILL CHILD W DAY","","","RIVER ROAD","ADMINISTRATOR","SCARBOROUGH","NY","10510"]
["OPWDD  ","I A H D ANNE ARCURI RESIDENCE","E0155637","132573827","INST OF APPLIED HUMAN DYNAMICS INC","","",null,"3625 BAINBRIDGE AVE","BRONX","NY","10467-1168"]
["OPWDD  ","I A H D BENEDICT AVE ICF","E0213805","132573827","INST OF APPLIED HUMAN DYNAMICS INC","","",null,"3625 BAINBRIDGE AVE","BRONX","NY","10467-1168"]
["OPWDD  ","I A H D CROTON ICF","E0247775","132573827","INST OF APPLIED HUMAN DYNAMICS INC","","",null,"3625 BAINBRIDGE AVE","BRONX","NY","10467-1168"]
["OPWDD  ","I A H D DEVITO ICF","E0220189","132573827","INST OF APPLIED HUMAN DYNAMICS INC","","",null,"3625 BAINBRIDGE AVE","BRONX","NY","10467-1168"]
["OPWDD  ","I A H D EAST TREMONT AVE ICF","E0217045","132573827","INST OF APPLIED HUMAN DYNAMICS INC","","",null,"3625 BAINBRIDGE AVE","BRONX","NY","10467-1168"]
["OPWDD  ","I A H D LELAND AVE ICF","E0217046","132573827","INST OF APPLIED HUMAN DYNAMICS INC","","",null,"3625 BAINBRIDGE AVE","BRONX","NY","10467-1168"]
["OPWDD  ","I A H D NEREID AVE ICF","E0183316","132573827","INST OF APPLIED HUMAN DYNAMICS INC","","",null,"3625 BAINBRIDGE AVE","BRONX","NY","10467-1168"]
["OPWDD  ","I A H D NEUMAN-GOLDMAN ICF","E0263448","132573827","INST OF APPLIED HUMAN DYNAMICS INC","","",null,"3625 BAINBRIDGE AVE","BRONX","NY","10467-1168"]
["OPWDD  ","I A H D ROUTE 129 ICF","E0189105","132573827","INST OF APPLIED HUMAN DYNAMICS INC","","",null,"3625 BAINBRIDGE AVE","BRONX","NY","10467-1168"]
["OPWDD  ","I A H D SUE GINSBURG ICF","E0207625","132573827","INST OF APPLIED HUMAN DYNAMICS INC","","",null,"3625 BAINBRIDGE AVE","BRONX","NY","10467-1168"]
["OPWDD  ","I A H D WEST 197TH ST ICF","E0213804","132573827","INST OF APPLIED HUMAN DYNAMICS INC","","",null,"3625 BAINBRIDGE AVE","BRONX","NY","10467-1168"]
["OPWDD  ","INST APP HUMAN DYNA DAY","E0029751","132573827","INST OF APPLIED HUMAN DYNAMICS INC","","",null,"3625 BAINBRIDGE AVE","BRONX","NY","10467-1168"]
["OPWDD  ","INST OF APPLIED HUMAN DYN SPV","E0074443","132573827","INST OF APPLIED HUMAN DYNAMICS INC","","",null,"3625 BAINBRIDGE AVE","BRONX","NY","10467-1168"]
["OPWDD  ","INSTITUTE OF APPLD HUMAN DYN-RYER","E0007171","132573827","INST OF APPLIED HUMAN DYNAMICS INC","","",null,"3625 BAINBRIDGE AVE","BRONX","NY","10467-1168"]
["Nursing Homes","SEA-CREST HEALTH CARE CENTER","E0268202","261300515","SEA-CREST HEALTH CARE CENTER","7001390N","00308865",null,"3035 W 24TH ST","BROOKLYN","NY","11224-2114"]
["Nursing Homes","MILLS POND NURSING & REHAB CTR","E0322331","261507503","JOPAL AT ST JAMES LLC","5157316N","00312029",null,"134 GREAT EAST NECK RD","WEST BABYLON","NY","11704-8027"]
["OASAS  ","PROJECT RENEWAL","E0107909","132602882","PROJECT RENEWAL","7002161R","01921402","200 VARICK ST","ACCNTS RECEIVABLE MG","NEW YORK","NY","10014-4810"]
["OPWDD  ","EPILEPSY INSTITUTE CLINIC TRT","E0274104","132608325","EPILEPSY INSTITUTE DAY","","",null,"257 PARK AVE S","NEW YORK","NY","10010-7304"]
["OMH  ","JEWISH ASSO FOR SVCS FOR THE AGED","E0214924","132620896","JEWISH ASSO FOR SVCS FOR THE AGED","","",null,"247 WEST 37TH STREET 9TH FLOOR","NEW YORK","NY","10018-5706"]
["Nursing Homes","WARTBURG LUTHERAN HM AGING","E0188552","262801131","WARTBURG RECEIVER LLC","7001364N","01113235",null,"855 BRUSH AVE","BRONX","NY","10465-1808"]
["Nursing Homes","DUMONT CENTER REHAB & NRS CARE","E0316457","263259514","DUMONT OPERATING LLC","5904321N","00752158",null,"676 PELHAM ROAD","NEW YORK","NY","10805-1038"]
["OASAS  ","RENAISSANCE PROJECT INC","E0169662","132632312","RENAISSANCE PROJECT INC","","",null,"250 CLEARBROOK RD","ELMSFORD","NY","10523-1315"]
["OPWDD  ","OPEN GATE INC OPEN GATE ICF","E0251943","132634269","OPENGATE INC","","","28 WARREN ST",null,"SOMERS","NY","10589-1911"]
["OPWDD  ","OPENGATE INC","E0024910","132634269","OPENGATE INC","","","28 WARREN ST",null,"SOMERS","NY","10589-1911"]
["OPWDD  ","OPENGATE INC DAY","E0028714","132634269","OPENGATE INC","","","28 WARREN ST",null,"SOMERS","NY","10589-1911"]
["OPWDD  ","OPENGATE INC SPV","E0075182","132634269","OPENGATE INC","","","28 WARREN ST",null,"SOMERS","NY","10589-1911"]
["OASAS  ","ADDICTION RESEARCH & TRTMNT C","E0273967","132642451","ADDICTION RESEARCH &TREATMENT","7001214R","00244606","22 CHAPEL ST","MOHAN VODOOR R.PH.","BROOKLYN","NY","11201-1903"]
["Nursing Homes","HAMILTON PARK NURSING AND REHAB CNT","E0306370","264289692","HAMILTON PARK MULTICARE","7001034N","03217407",null,"1775 BROADWAY STE 608","NEW YORK","NY","10019-1903"]
["Nursing Homes","BORO PARK CTR REHAB & HLTH CR","E0323984","270511642","BORO PARK OPERATING CO LLC","7001347N","00309031",null,"4915 TENTH AVENUE","BROOKLYN","NY","11219-3301"]
["Nursing Homes","LITTLE NECK NURSING HOME","E0322559","271138699","LITTLE NECK CARE CENTER","7003337N","00309339",null,"260-19 NASSAU BLVE","LITTLE NECK","NY","11362-2241"]
["Nursing Homes","HOPKINS CENTER REHAB & HEALTHCARE","E0324015","273531996","KFG OPERATING 1 LLC","7001377N","01533146",null,"10940 SAULTELL AVE","CORONA","NY","11368-4012"]
["Nursing Homes","MICHAEL MALOTZ SKILLED NR PAV","E0082885","311587828","MICHAEL MALOTZ SKILLED NR PAV","5907316N","02171933","120 ODELL AVE",null,"YONKERS","NY","10701-1408"]
["Nursing Homes","OCEAN PROMENADE NURSING CTR","E0268019","412025728","OCEAN PROMENADE NURSING CTR","7003401N","00310807",null,"140 BEACH 113TH ST","ROCKAWAY PARK","NY","11694-2403"]
["Nursing Homes","BAYVIEW NURSING & REHAB CTR","E0209049","421533774","BAYVIEW NURSING & REHAB CTR","2961302N","00907020","1 LONG BEACH RD",null,"ISLAND PARK","NY","11558-2254"]
["Nursing Homes","THROGS NECK EXTENDED CARE FAC","E0154681","421558553","THROGS NECK EXTENDED CARE FAC","7000386N","01452964",null,"4571 US HIGHWAY 9","HOWELL","NJ","07731-3382"]
["Nursing Homes","NASSAU EXTENDED CR FACILITY A","E0129674","421558558","NASSAU EXTENDED CR FACILITY A","2906305N","01582269",null,"4571 US HIGHWAY 9","HOWELL","NJ","07731-3382"]
["Nursing Homes","PARK AVENUE EXTENDED CR FAC A","E0075218","421558560","PARK AVENUE EXTENDED CR FAC A","2902306N","02001229",null,"4571 US HIGHWAY 9","HOWELL","NJ","07731-3382"]
["Nursing Homes","TOWNHOUSE CENTER REHAB & NURSING","E0129856","421558564","TOWNHOUSE CENTER REHAB & NURSING","2950318N","01701651",null,"4571 US HIGHWAY 9","HOWELL","NJ","07731-3382"]
["Nursing Homes","RICHMOND CENTER REHAB & SPEC HLTHCR","E0337610","452630423","SV OPERATING THREE LLC","7004317N","01453263",null,"1601 BRONXDALE AVE","BRONX","NY","10462-3364"]
["Nursing Homes","CEDAR LODGE NURSING HOME","E0267966","470948603","KENNETH FAUL II, LLC","5151320N","00311399",null,"6 FROWEIN RD","CENTER MORICHES","NY","11934-1604"]
["Nursing Homes","HUDSON VALLEY REHAB & EXT CAR","E0267746","510491047","HUDSON VALLEY LTHHC PROGRAM","5556302N","00313644",null,"260 VINEYARD AVE","HIGHLAND","NY","12528-2343"]
["OMH  ","EAST NY D & T CTR","E0151885","132655001","NYC HEALTH AND HOSPITALS CORP","7001265R","01481007",null,"230 W 41ST ST RM 508","NEW YORK","NY","10036-7207"]
["OMH  ","GOUVERNEUR DIAGNOSTIC&TRT CTR","E0274075","132655001","NYC HEALTH AND HOSPITALS CORP","7002103R","00243352",null,"230 W 41ST ST RM 508","NEW YORK","NY","10036-7207"]
["OMH  ","MORRISANIA D & T CTR","E0273824","132655001","NYC HEALTH AND HOSPITALS CORP","7000221R","00246144",null,"230 W 41ST ST RM 508","NEW YORK","NY","10036-7207"]
["Nursing Homes","FOUR SEASONS NRS & REH CTR AD","E0130698","522360831","PARKSHORE HEALTHCARE LLC","7001385N","00843485","LOWR LEVEL","1222 E 96TH ST","BROOKLYN","NY","11236-3903"]
["Nursing Homes","DEWITT REHAB & NURSING CENTER","E0268055","522371834","DEWITT PHARMACY AND NURSING CENTER","7002347N","00310421",null,"211 E 79TH ST","NEW YORK","NY","10075-0819"]
["Nursing Homes","QUEENS CTR REH & RES HLTH CR","E0268111","830395861","QUEENS CTR REH & RES HLTH CR","7003404N","00309839",null,"1010 UNDERHILL AVE","BRONX","NY","10472-6012"]
["Nursing Homes ADHC","AVALON GARDENS REH & HCC ADHC","E0193750","020677283","AVALON GARDENS REHAB & HLTH",5157313,"02998209","7 ROUTE 25A","SUSAN O'CONNOR","SMITHTOWN","NY","11787-1626"]
["Nursing Homes ADHC","SPLIT ROCK REH & HLTH CC ADHC","E0187867","043712277","SPLIT ROCK REHAB & HHC LLC","7000384","01120103",null,"3525 BAYCHESTER AVE","BRONX","NY","10466-5001"]
["Nursing Homes ADHC","RUTLAND NRSG HOME NON OCC","E0177700","112164674","RUTLAND NRSG HOME NON OCC","7001033","01221952","585 SCHENECTADY AVE","PATIENTS ACCTS MGR","BROOKLYN","NY","11203-1809"]
["Nursing Homes ADHC","CENTER FOR NSNG & REHAB ADHC","E0197420","112289702","CENTER FOR NURSING & REHABILITATION","7001354","01024446",null,"612 ALLERTON AVE","BRONX","NY","10467-7404"]
["Nursing Homes ADHC","FAIRVIEW NRS CARE CENT ADHC","E0107277","113031157","FAIRVIEW NRS CARE CENT ADHC","7003375","01927733",null,"69-70 GRAND CEN PKWY","FOREST HILLS","NY","11375-3949"]
["Nursing Homes ADHC","MJHS ADULT DAY HEALTH CENTER","E0317883","113072153","SHOREFRONT JEWISH GERIATRIC CENTER","7001347","00399986",null,"6323 7TH AVE","BROOKLYN","NY","11220-4742"]
["Nursing Homes ADHC","ELMHURST CARE CENTER ADHC","E0089910","113362520","ELMHURST CARE CENTER ADHC","7003396","02101586",null,"10017 23RD AVE","EAST ELMHURST","NY","11369-1305"]
["Nursing Homes ADHC","HUNTINGTON HILLS CTR H&R ADHC","E0042100","113504951","HUNTINGTON HILLS CTR H&R ADHC","5153309","02580532","400 S SERVICE RD",null,"MELVILLE","NY","11747-3229"]
["Nursing Homes ADHC","CARILLON NRS REHAB CTR ADHC","E0102000","116126885","CARILLON NRS REHAB CTR ADHC","5153306","01980565","830 PARK AVE",null,"HUNTINGTON","NY","11743-4543"]
["Nursing Homes ADHC","HAYM SALOMON HM FOR AGE ADHC","E0118121","116397386","HAYM SALOMON HM FOR AGE ADHC","7001369","01819167","2340 CROPSEY AVE",null,"BROOKLYN","NY","11214-5706"]
["Nursing Homes ADHC","JEWISH HM & HOSP FOR AGED ADC","E0182705","131624033","JEWISH HOME & HSP FOR AGED","7002340","01171824",null,"2545 UNIVERSITY AVE","BRONX","NY","10468-4066"]
["Nursing Homes ADHC","BETH ABRAHAM HLTH SRV NON OCC","E0220584","131739920","BETH ABRAHAM HEALTH SERVICES","7000308","00791442","612 ALLERTON AVE","ACCOUNTS RECV DEPT","BRONX","NY","10467-7495"]
["Nursing Homes ADHC","HOME FOR AGED BLIND ADHC/AADC","E0209477","132795647","JCB HEALTH FACILITIES CORP JCB NURS","5907313","00902736",null,"75 STRATTON ST S","YONKERS","NY","10701-5942"]
["Nursing Homes ADHC","VILLAGE CENTER FOR CARE AADC","E0181259","132911059","VILLAGE CENTER FOR CARE",7002335,"03007361",null,"154 CHRISTOPHER ST, STE 2D","NEW YORK","NY","10014-2840"]
["Nursing Homes ADHC","SARAH NEUMAN CT HLTH REH ADHC","E0104256","133620568","SRN CORPORATION","5909302","01957991","845 PALMER AVE",null,"MAMARONECK","NY","10543-2406"]
["Nursing Homes ADHC","ISABELLA GERIATRIC CEN ADHC","E0090122","133623808","ISABELLA GERIATRIC CENTER INC","7002352","02099461",null,"515 AUDUBON AVE","NEW YORK","NY","10040-3403"]
["Nursing Homes ADHC","BAINBRIDGE NH & REHAB ADHC","E0144304","133982198","BAINBRIDGE NH & REHAB ADHC","7000319","01556954",null,"3518 BAINBRIDGE AVE","BRONX","NY","10467-1402"]
["Nursing Homes ADHC","CHAPIN HOME FOR AGING ADHC","E0134778","135601035","CHAPIN HOME FOR AGING ADHC","7003351","01652377","16501 CHAPIN PKWY","WILLIAM OHARA","JAMAICA","NY","11432-1831"]
["Nursing Homes ADHC","BAY PARK CTR NURSING & REHAB ADHC","E0183960","203917285","BAY PARK CTR NURSING & REHAB ADHC","7000389","01159246",null,"4571 US HIGHWAY 9","HOWELL","NJ","07731-3382"]
["OPWDD  ","CAMP VENTURE","E0029787","132661988","CAMP VENTURE INC","","","25 SMITH STREET SUITE 512","FINANCE OFFICE","NANUET","NY","10954-2970"]
["OPWDD  ","CAMP VENTURE INC  SPT","E0074449","132661988","CAMP VENTURE INC","","","25 SMITH STREET SUITE 512","FINANCE OFFICE","NANUET","NY","10954-2970"]
["OPWDD  ","CAMP VENTURE INC  SPV","E0074798","132661988","CAMP VENTURE INC","","","25 SMITH STREET SUITE 512","FINANCE OFFICE","NANUET","NY","10954-2970"]
["OPWDD  ","CAMP VENTURE INC RSP","E0040569","132661988","CAMP VENTURE INC","","","25 SMITH STREET SUITE 512","FINANCE OFFICE","NANUET","NY","10954-2970"]
["OPWDD  ","CAMP VENTURE-VENTURE CREST IC","E0245061","132661988","CAMP VENTURE INC","","","25 SMITH STREET SUITE 512","FINANCE OFFICE","NANUET","NY","10954-2970"]
["OPWDD  ","CAMP VENTURE-VENTURE INN ICF","E0245062","132661988","CAMP VENTURE INC","","","25 SMITH STREET SUITE 512","FINANCE OFFICE","NANUET","NY","10954-2970"]
["OASAS  ","P R O M E S A","E0273904","132663328","P R O M E S A","7000226R","00245294","1776 CLAY AVE","DIRECTOR OF BILLING","BRONX","NY","10457-7239"]
["OMH  ","CENTER FOR ALT SENTENCING RC","E0023180","132668080","CENTER FOR ALT SENTENCING RC","","",null,"346 BROADWAY FL 3","NEW YORK","NY","10013-3990"]
["Nursing Homes ADHC","SCHULMAN & SCHACHNE N&R ADHC","E0046932","237085986","SCHULMAN AND SCHACHNE INSTITUTE","7001318","02532121",null,"555 ROCKAWAY PARKWAY","BROOKLYN","NY","11212"]
["Nursing Homes ADHC","WARTBURG LUTH HM NON OCC","E0284682","262801131","WARTBURG RECEIVER LLC","7001364","01283105",null,"855 BRUSH AVE","BRONX","NY","10465-1808"]
["OPWDD  ","SOUTHEAST BRONX NEIGHBORHOOD SPV","E0005889","132675560","SOUTHEAST BRONX NEIGHBORHOOD SPV","","",null,"955 TINTON AVE","BRONX","NY","10456"]
["OPWDD  ","SOUTHEAST BRONX NGBHD CTR DAY","E0030054","132675560","SOUTHEAST BRONX NEIGHBORHOOD SPV","","",null,"955 TINTON AVE","BRONX","NY","10456"]
["OPWDD  ","SOUTHEAST BRONX NGBHD CTR RSP","E0039089","132675560","SOUTHEAST BRONX NEIGHBORHOOD SPV","","",null,"955 TINTON AVE","BRONX","NY","10456"]
["Nursing Homes ADHC","FOUR SEASONS NRS AND REH CTR ADHC","E0299654","522360831","PARKSHORE HEALTHCARE LLC","7001385","01693223","LOWR LEVEL","1222 E 96TH ST","BROOKLYN","NY","11236-3903"]
["Nursing Homes ADHC","FRANKLIN CENTER REH & NR ADHC","E0055733","522384066","FRANKLIN CENTER REH & NR ADHC","7003402","02444008","14227 FRANKLIN AVE",null,"FLUSHING","NY","11355-2629"]
["Personal Care","NEW YORK HEALTH CARE INC","E0192943","112636089","NEW YORK HEALTH CARE INC.","01069272","01069272",null,"20 E SUNRISE HWY STE 201","VALLEY STREAM","NY","11581-1257"]
["Personal Care","JAWONIO INC","E0260037","131761660","JAWONIO INC","01771902","01771902",null,"260 LITTLE TOR RD NORTH","NEW CITY","NY","10956-1616"]
["OPWDD  ","CENTRO SOC LA ESPERANZA RSP","E0040902","132688412","CENTRO SOCIAL LA ESPERANZA","","",null,"2212 3RD AVE","NEW YORK","NY","10035-3530"]
["OPWDD  ","CNTRO SOC LA ESPERANZA DAY","E0029706","132688412","CENTRO SOCIAL LA ESPERANZA","","",null,"2212 3RD AVE","NEW YORK","NY","10035-3530"]
["OPWDD  ","CNTRO SOC LA ESPERNZA SPV","E0075504","132688412","CENTRO SOCIAL LA ESPERANZA","","",null,"2212 3RD AVE","NEW YORK","NY","10035-3530"]
["Personal Care","ALL METRO HOME CARE SER. INC","E0215043","841623899","ALL METRO HOME CARE SERVICES OF NEW","00846960","00846960",null,"50 BROADWAY","LYNBROOK","NY","11563-2519"]
["Transportation  ","MAYOOR TRANSPORTATION INC","E0061862","010698161","MAYOOR TRANSPORTATION INC","","",null,"498 MAIN ST STE 4","NEW ROCHELLE","NY","10801-6355"]
["Transportation  ","SHALOM AMBULETTE INC","E0048249","020690564","SHALOM AMBULETTE INC","","","600 N BROADWAY","STE 218","WHITE PLAINS","NY","10603-2469"]
["Transportation  ","DEDICATED TRANSPORTATION INC","E0059058","030507472","DEDICATED TRANSPORTATION INC","","",null,"9812 211TH ST","QUEENS VILLAGE","NY","11429-1006"]
["Transportation  ","MAJESTIC TRANSPORTATION INC","E0062020","043616198","MAJESTIC TRANSPORTATION INC","","",null,"3173 CONEY ISLAND AVE","BROOKLYN","NY","11235-6443"]
["OPWDD  ","CONTEMPORARY GUIDANCE SV DAY","E0029207","132730776","CONTEMPORARY GUIDANCE SV DAY","","",null,"52 BROADWAY FL 4","NEW YORK","NY","10004-1653"]
["Transportation  ","BARUKH MEDICAL TRANSPORTATION INC","E0034791","043790680","BARUKH MEDICAL TRANSPORTATION INC","","",null,"62 69 99TH STREET #1A","REGO PARK","NY","11374-1482"]
["OPWDD  ","RICHMOND CHILDRENS CENTER","E0265900","132736761","RICHMOND CHILDREN CENTER, INC","","",null,"272 N BEDFORD RD","MOUNT KISCO","NY","10549-1103"]
["OPWDD  ","RICHMOND CHILDRENS CENTER INC","E0325028","132736761","RICHMOND CHILDREN CENTER, INC","","",null,"272 N BEDFORD RD","MOUNT KISCO","NY","10549-1103"]
["OPWDD  ","RICHMOND CHILDRENS CENTER SPV","E0075185","132736761","RICHMOND CHILDREN CENTER, INC","","",null,"272 N BEDFORD RD","MOUNT KISCO","NY","10549-1103"]
["OPWDD  ","RICHMOND CHILDRENS CTR","E0315648","132736761","RICHMOND CHILDREN CENTER, INC","","",null,"272 N BEDFORD RD","MOUNT KISCO","NY","10549-1103"]
["OPWDD  ","RICHMOND CHILDRENS CTR DAY","E0029988","132736761","RICHMOND CHILDREN CENTER, INC","","",null,"272 N BEDFORD RD","MOUNT KISCO","NY","10549-1103"]
["OPWDD  ","RICHMOND CHILDRENS CTR DEMEO","E0176909","132736761","RICHMOND CHILDREN CENTER, INC","","",null,"272 N BEDFORD RD","MOUNT KISCO","NY","10549-1103"]
["OPWDD  ","RICHMOND CHILDRENS CTR LAKE","E0151837","132736761","RICHMOND CHILDREN CENTER, INC","","",null,"272 N BEDFORD RD","MOUNT KISCO","NY","10549-1103"]
["OPWDD  ","RICHMOND CHILDRENS CTR MR","E0159072","132736761","RICHMOND CHILDREN CENTER, INC","","",null,"272 N BEDFORD RD","MOUNT KISCO","NY","10549-1103"]
["OPWDD  ","RICHMOND CHILDRENS CTR SUSSEX","E0153931","132736761","RICHMOND CHILDREN CENTER, INC","","",null,"272 N BEDFORD RD","MOUNT KISCO","NY","10549-1103"]
["OMH  ","JULIA DYCKMAN ANDRUS MEMORIAL, INC","E0263597","132793295","JULIA DYCKMAN & ANDRUS MEMORI","","",null,"1156 N BROADWAY","YONKERS","NY","10701-1108"]
["Transportation  ","TEMANA ASSOCIATES INC","E0022208","043821308","TEMANA ASSOCIATES INC","","",null,"117 S 4TH ST","NEW HYDE PARK","NY","11040-4840"]
["OASAS  ","HUDSON RIVER HEALTHCARE INC","E0252206","132828349","HUDSON RIVER HEALTHCARE INC","5901200R","00473038",null,"1037 MAIN ST","PEEKSKILL","NY","10566-2913"]
["OMH  ","CLUSTER INC","E0169495","132834016","CLUSTER INC","","","PO BOX 1248","FISCAL MANAGER","YONKERS","NY","10702-1248"]
["Transportation  ","CITICOACH INC","E0037954","050597504","CITICOACH INC","","","551 GRAND ST # S-5","GARY BLAT","NEW YORK","NY","10002-4282"]
["Transportation  ","DTS INC","E0023248","050611923","DTS INC","","",null,"9 LIVINGSTON AVE","YONKERS","NY","10705-1914"]
["Transportation  ","STATEWIDE AMBULETTE SRVC  INC","E0208072","061135013","STATEWIDE AMBULETTE SRVC INC","","",null,"557 N MACQUESTEN PKWY","MOUNT VERNON","NY","10552-2666"]
["Transportation  ","ACTION AMBULETTE INC","E0184088","061270087","ACTION AMBULETTE INC","","",null,"828 MCLEAN AVE","YONKERS","NY","10704-3924"]
["OPWDD  ","SPECIAL CIT FUTURE UNLID DAY","E0030050","132865903","SPECIAL CITIZENS FUTURES UNLIMITED","","",null,"350 FIFTH AVE SUITE 627","NEW YORK","NY","10118-0627"]
["OPWDD  ","SPECIAL CIT FUTURE UNLTD ND1","E0064697","132865903","SPECIAL CITIZENS FUTURES UNLIMITED","","",null,"350 FIFTH AVE SUITE 627","NEW YORK","NY","10118-0627"]
["OPWDD  ","SPECIAL CIT FUTURE UNLTD SPT","E0075096","132865903","SPECIAL CITIZENS FUTURES UNLIMITED","","",null,"350 FIFTH AVE SUITE 627","NEW YORK","NY","10118-0627"]
["OPWDD  ","SPECIAL CITIZENS FUTURES CORT","E0233567","132865903","SPECIAL CITIZENS FUTURES UNLIMITED","","",null,"350 FIFTH AVE SUITE 627","NEW YORK","NY","10118-0627"]
["OPWDD  ","EDEN 11 SCHL AUT/CHILD RSP","E0040820","132872916","EDEN II SCHOOL FOR AUTISTIC CHILDRN","","",null,"150 GRANITE AVE","STATEN ISLAND","NY","10303-2718"]
["OPWDD  ","EDEN II SCHL AUT/CHILD DAY","E0030341","132872916","EDEN II SCHOOL FOR AUTISTIC CHILDRN","","",null,"150 GRANITE AVE","STATEN ISLAND","NY","10303-2718"]
["OPWDD  ","EDEN II SCHOOL AUTISTIC CHILD","E0170294","132872916","EDEN II SCHOOL FOR AUTISTIC CHILDRN","","",null,"150 GRANITE AVE","STATEN ISLAND","NY","10303-2718"]
["OPWDD  ","EDEN II SCHOOL ND 2","E0054107","132872916","EDEN II SCHOOL FOR AUTISTIC CHILDRN","","",null,"150 GRANITE AVE","STATEN ISLAND","NY","10303-2718"]
["OMH  ","WILLIAM F RYAN COMM HLTH CTR","E0273983","132884976","WILLIAM F RYAN COMMUNITY HEALTH CEN","7002243R","00244404",null,"110 W 97TH ST","NEW YORK","NY","10025-6450"]
["OMH  ","SEARCH FOR CHANGE INC","E0167454","132893548","SEARCH FOR CHANGE INC","","",null,"115 E STEVENS AVE STE 203","VALHALLA","NY","10595-1200"]
["OASAS  ","NY THERAPEUTIC COMMUNITIES","E0039807","132899442","NY THERAPEUTIC COMMUNITIES","","",null,"266 W 37TH ST FL 21","NEW YORK","NY","10018-6652"]
["Transportation  ","NXK INC","E0076289","061625656","NXK INC","","",null,"8 E PROSPECT AVE STE C","MOUNT VERNON","NY","10550-1326"]
["Transportation  ","CREST AMBULANCE SERVICE   INC","E0198220","112125662","CREST AMBULANCE SERVICE INC","","","791 E 91ST ST","BEN SCHAPIRO","BROOKLYN","NY","11236-1609"]
["Transportation  ","ROBIN BUS COMPANY","E0266973","112237480","ROBIN BUS COMPANY","","",null,"2302 NEPTUNE AVE","BROOKLYN","NY","11224-2314"]
["Transportation  ","ASTRO AMBULETTE CORPORATION","E0266897","112344978","ASTRO AMBULETTE CORPORATION","","",null,"1255 E 37TH ST","BROOKLYN","NY","11210-4335"]
["Transportation  ","GENERAL AMBULETTE SERVICE INC","E0196106","112496275","GENERAL AMBULETTE SERVICE INC","","",null,"1563 BOONE AVE","BRONX","NY","10460-5660"]
["OMH  ","GRAHAM WINDHAM SRVCS/FAM&CHLD","E0229837","132926426","GRAHAM WINDHAM SRVCS/FAM&CHLD","","",null,"33 IRVING PL FL 4","NEW YORK","NY","10003-2332"]
["Transportation  ","GRAND AMBULETTE SERVICE   INC","E0246775","112546361","GRAND AMBULETTE SERVICE INC","","",null,"5877 55TH ST","MASPETH","NY","11378-3101"]
["Transportation  ","COMMUNITY AND FAMILY RESIDENC","E0168123","112558535","RIDES UNLIMITED OF NEW YORK INC","","",null,"191 SWEET HOLLOW RD","OLD BETHPAGE","NY","11804-1342"]
["OMH  ","SAFE HORIZON COUNSELING CENTER","E0190871","132946970","SAFE HORIZON COUNSELING CENTER","","",null,"2 LAFAYETTE ST","NEW YORK","NY","10007-1307"]
["OMH  ","SERVICE PROG OLDER PEOPLE","E0273901","132947616","SERVICE PROGRAM FOR OLDER PEOPLE","","",null,"302 WEST 91ST STREET","NEW YORK","NY","10024-1011"]
["Transportation  ","UNITED AMBULETTE          INC","E0242856","112563136","UNITED AMBULETTE INC","","",null,"3510 STARR AVE","LONG ISLAND CITY","NY","11101-3217"]
["OPWDD  ","ROCKLAND COUNTY ALD SPV","E0074436","132951835","ROCKLAND COUNTY ALD ND 3","","",null,"460 W 34TH ST FL 11","NEW YORK","NY","10001-2320"]
["OPWDD  ","COMM RESOURCE CTR F/DD SPV","E0075444","132954788","COMMUNITY RESOURCE CENTER FOR DD","","",null,"378 E 151ST ST FL 4","BRONX","NY","10455-2603"]
["OPWDD  ","COMMUNITY RESRC CTR APT 6F","E0177812","132954788","COMMUNITY RESOURCE CENTER FOR DD","","",null,"378 E 151ST ST FL 4","BRONX","NY","10455-2603"]
["OPWDD  ","COMMUNITY RESRC CTR BYRON 1","E0206973","132954788","COMMUNITY RESOURCE CENTER FOR DD","","",null,"378 E 151ST ST FL 4","BRONX","NY","10455-2603"]
["OPWDD  ","COMMUNITY RESRC CTR CHRISTOPH","E0218422","132954788","COMMUNITY RESOURCE CENTER FOR DD","","",null,"378 E 151ST ST FL 4","BRONX","NY","10455-2603"]
["OPWDD  ","COMMUNITY RESRC CTR MICHELANG","E0264515","132954788","COMMUNITY RESOURCE CENTER FOR DD","","",null,"378 E 151ST ST FL 4","BRONX","NY","10455-2603"]
["OPWDD  ","COMMUNITY RESRC CTR RIVER PK","E0234512","132954788","COMMUNITY RESOURCE CENTER FOR DD","","",null,"378 E 151ST ST FL 4","BRONX","NY","10455-2603"]
["OPWDD  ","COMMUNITY RESRC CTR TAINO TWR","E0263492","132954788","COMMUNITY RESOURCE CENTER FOR DD","","",null,"378 E 151ST ST FL 4","BRONX","NY","10455-2603"]
["Transportation  ","HUNTER AMBULETTE AMBULANCE IN","E0201106","112592334","HUNTER AMBULETTE AMBULANCE IN","","",null,"28 SHERIDAN BLVD","INWOOD","NY","11096-1817"]
["Transportation  ","ALLIED CENTRAL AMBULETTE","E0217182","112674147","ALLIED CENTRAL AMBULETTE","","","474 MARCUS GARVEY BLVD","ALLIED CENTRAL","BROOKLYN","NY","11216-2531"]
["Transportation  ","FARMINGVILLE TAXI         INC","E0235131","112693460","FARMINGVILLE TAXI INC","","",null,"390 E SUFFOLK AVE","ISLANDIA","NY","11749-1518"]
["OPWDD  ","EAST HARLEM COUN F/COMM SPV","E0074446","132969933","EAST HARLEM COUN F/COMM RSP","","","311 E 175TH ST","EXECTIVE DIRECTOR","BRONX","NY","10457-5848"]
["OPWDD  ","COMMUNITY PROGS OF WJCS SPV","E0075361","132985945","COMMUNITY PROGRAMS OF WESTCHESTER J","","",null,"845 N BROADWAY","WHITE PLAINS","NY","10603-2403"]
["OPWDD  ","COMMUNITY PRO-WCH JCS BON AIR","E0228359","132985945","COMMUNITY PROGRAMS OF WESTCHESTER J","","",null,"845 N BROADWAY","WHITE PLAINS","NY","10603-2403"]
["OPWDD  ","COMMUNITY PRO-WCH JCS BRYANT","E0226818","132985945","COMMUNITY PROGRAMS OF WESTCHESTER J","","",null,"845 N BROADWAY","WHITE PLAINS","NY","10603-2403"]
["OPWDD  ","COMMUNITY PRO-WCH JCS HARRISO","E0241907","132985945","COMMUNITY PROGRAMS OF WESTCHESTER J","","",null,"845 N BROADWAY","WHITE PLAINS","NY","10603-2403"]
["OPWDD  ","COMMUNITY PRO-WCH JCS PALMER","E0251923","132985945","COMMUNITY PROGRAMS OF WESTCHESTER J","","",null,"845 N BROADWAY","WHITE PLAINS","NY","10603-2403"]
["OMH  ","INST PUERTO RICAN HISPANIC","E0102494","132987263","INSTITUTE FOR THE P R HISP ELDERLY","","",null,"105 E 22ND ST 6TH FLOOR","NEW YORK","NY","10010-5413"]
["OMH  ","AEK S LITTLE HOUSE INC","E0169413","132989682","AEK S LITTLE HOUSE INC","","","64 POMONA RD",null,"SUFFERN","NY","10901-1917"]
["Transportation  ","ST JAMES TAXI SERVICE     INC","E0210071","112718863","ST JAMES TAXI SERVICE INC","","","390 E SUFFOLK AVE","SHEILA KNAPP","ISLANDIA","NY","11749-1518"]
["Transportation  ","VEGA TRANSPORTATION CO    INC","E0207306","112738749","VEGA TRANSPORTATION CO INC","","",null,"8303 24TH AVE FL 2","EAST ELMHURST","NY","11370-1660"]
["OPWDD  ","A VERY SPECIAL PLACE INC DAY","E0029825","133005006","A VERY SPECIAL PLACE INC","","",null,"1429 HYLAN BLVD","STATEN ISLAND","NY","10305-1904"]
["OPWDD  ","A VERY SPECIAL PLACE INC RSP","E0038354","133005006","A VERY SPECIAL PLACE INC","","",null,"1429 HYLAN BLVD","STATEN ISLAND","NY","10305-1904"]
["OPWDD  ","A VERY SPECIAL PLACE INC SMP","E0083242","133005006","A VERY SPECIAL PLACE INC","","",null,"1429 HYLAN BLVD","STATEN ISLAND","NY","10305-1904"]
["OPWDD  ","A VERY SPECIAL PLACE INC SPV","E0074650","133005006","A VERY SPECIAL PLACE INC","","",null,"1429 HYLAN BLVD","STATEN ISLAND","NY","10305-1904"]
["OPWDD  ","A VERY SPECIAL PLACE ND 6","E0024412","133005006","A VERY SPECIAL PLACE INC","","",null,"1429 HYLAN BLVD","STATEN ISLAND","NY","10305-1904"]
["Transportation  ","OCEAN AMBULETTE SERVICE INC","E0011523","112889246","OCEAN AMBULETTE SERVICE INC","","",null,"4321 GLENWOOD RD","BROOKLYN","NY","11210-2028"]
["OPWDD  ","TERENCE CARDINAL COOKE HCC","E0263665","133007801","TERENCE CARDINAL COOKE HEALTH CARE","7002111R","00355202",null,"1249 FIFTH AVENUE","NEW YORK","NY","10029-4413"]
["Transportation  ","ALERT AMBULETTE SERVICE CORP","E0113619","112941535","ALERT AMBULETTE SERVICE CORP","","",null,"2702 STILLWELL AVE","BROOKLYN","NY","11224-2722"]
["OMH  ","RTF AUGUST AICHHORN CENTER","E0176530","133008074","RTF AUGUST AICHHORN CENTER","","",null,"15 WEST 72 STREET #1-J","NEW YORK","NY","10023-3419"]
["Transportation  ","G & M AMBULETTE SERVICE INC","E0154898","112979345","G & M AMBULETTE SERVICE INC","","",null,"1550 MCDONALD AVE","BROOKLYN","NY","11230-5594"]
["OMH  ","HUMAN DEV SER WESTCHESTER MH","E0084749","133008872","HUMAN DEV SER WESTCHESTER MH","","",null,"930 MAMARONECK AVE","MAMARONECK","NY","10543-1629"]
["Transportation  ","LEGAL AMBULETTE SERVICE INC","E0166319","113026986","LEGAL AMBULETTE SERVICE INC","","",null,"757 MCDONALD AVE","BROOKLYN","NY","11218-4913"]
["Transportation  ","SPRING AMBULETTE INC","E0177240","113038934","SPRING AMBULETTE INC","","","1582 E 34TH ST","ANNA SHLYONSKY","BROOKLYN","NY","11234-3437"]
["Transportation  ","FAST HELP AMBULETTE SVC INC","E0169919","113055249","FAST HELP AMBULETTE SVC INC","","","1474 E 31ST ST","STE 6","BROOKLYN","NY","11234-3458"]
["Transportation  ","MAJOR AMBULETTE CORP","E0164674","113062203","MAJOR AMBULETTE CORP","","",null,"2807 W 15TH ST","BROOKLYN","NY","11224-2601"]
["OASAS  ","PHOENIX HOUSES OF NEW YORK INC","E0000033","133020608","PHOENIX HOUSES OF NEW YORK INC","","",null,"164 WEST 74TH STREET","NEW YORK","NY","10023"]
["Transportation  ","DEPENDABLE AMBULETTE INC","E0097774","113081157","DEPENDABLE AMBULETTE INC","","",null,"PO BOX 402","VALLEY STREAM","NY","11582-0402"]
["Transportation  ","EVE CONSOLIDATED BUS ENT INC","E0195857","113103694","EVE CONSOLIDATED BUS ENT INC","","",null,"1941 UTICA AVE FL 2","BROOKLYN","NY","11234-3213"]
["Transportation  ","RELIANCE AMBULETTE INC","E0160438","113107374","RELIANCE AMBULETTE INC","","",null,"16307 DEPOT RD STE 204","FLUSHING","NY","11358-2056"]
["Transportation  ","ONE WORLD AMBULETTE INC","E0188452","113107972","ONE WORLD AMBULETTE INC","","","7910 35TH AVE APT 3B","JOSE M FRANCISCO","JACKSON HEIGHTS","NY","11372-2725"]
["OPWDD  ","COMMUNITY BASED SER INC ND1","E0044210","133070655","COMMUNITY BASED SER INC ND1","","","3 FIELDS LN",null,"NORTH SALEM","NY","10560-1057"]
["OPWDD  ","COMMUNITY BASED SRV BROAD ST","E0225800","133070655","COMMUNITY BASED SER INC ND1","","","3 FIELDS LN",null,"NORTH SALEM","NY","10560-1057"]
["OPWDD  ","COMMUNITY BASED SRV BRYANT IC","E0229223","133070655","COMMUNITY BASED SER INC ND1","","","3 FIELDS LN",null,"NORTH SALEM","NY","10560-1057"]
["OPWDD  ","COMMUNITY BASED SRV FAIRMONT","E0224971","133070655","COMMUNITY BASED SER INC ND1","","","3 FIELDS LN",null,"NORTH SALEM","NY","10560-1057"]
["OPWDD  ","COMMUNITY BASED SRV HENRY ST","E0184481","133070655","COMMUNITY BASED SER INC ND1","","","3 FIELDS LN",null,"NORTH SALEM","NY","10560-1057"]
["OPWDD  ","COMMUNITY BASED SRV LOWER SHA","E0241905","133070655","COMMUNITY BASED SER INC ND1","","","3 FIELDS LN",null,"NORTH SALEM","NY","10560-1057"]
["OPWDD  ","COMMUNITY BASED SRV WILLOW DR","E0170965","133070655","COMMUNITY BASED SER INC ND1","","","3 FIELDS LN",null,"NORTH SALEM","NY","10560-1057"]
["Transportation  ","TWINS AMBULETTE SERVICE INC","E0161767","113109771","TWINS AMBULETTE SERVICE INC","","",null,"2849 86TH ST FL 1","BROOKLYN","NY","11223-4634"]
["Transportation  ","TAMAR TGRANSPORTATION CORP","E0067904","113110468","TAMAR TGRANSPORTATION CORP","","",null,"601 BRIGHTON BEACH AVE # A","BROOKLYN","NY","11235-6473"]
["OMH  ","COMMUNITY HEALTHCARE NETWORK","E0230109","133083068","COMMUNITY HEALTHCARE NETWORK INC","7002119R","00695941","5TH FLOOR","60 MADISON AVE","NEW YORK","NY","10010-1600"]
["Transportation  ","FIRST RESPONSE INC","E0158046","113111369","FIRST RESPONSE INC","","",null,"7732 82ND ST","GLENDALE","NY","11385-7635"]
["Transportation  ","VOLGA TRANSPORTATION CORP","E0108452","113120454","VOLGA TRANSPORTATION CORP","","","2240 E 26TH ST","ALEXANDER ROYTERMAN","BROOKLYN","NY","11229-4942"]
["Transportation  ","CHRISTIAN AMBULETTE INC","E0157326","113127780","CHRISTIAN AMBULETTE INC","","",null,"1644 DEKALB AVE","BROOKLYN","NY","11237-4002"]
["OMH  ","BEACON OF HOPE HOUSE INC","E0168642","133094338","BEACON OF HOPE HOUSE SPV","","",null,"1011 1ST AVE FL 6","NEW YORK","NY","10022-4112"]
["Transportation  ","APPLE HOME CARE LTD","E0156126","113138743","APPLE HOME CARE LTD","","","100-O2 FARRAGOT RD","GERSHON KLEIN","BROOKLYN","NY","11236"]
["OPWDD  ","TANGLEWOOD ACRES ADULT HM ND1","E0066945","133099825","TANGLEWOOD ACRES ADULT HM ND1","","","724 S PASCACK RD",null,"CHESTNUT RIDGE","NY","10977-7108"]
["Transportation  ","EVENFLOW TRANSPORTATION INC","E0110146","113153095","EVENFLOW TRANSPORTATION INC","","",null,"555 S COLUMBUS AVE","MOUNT VERNON","NY","10550-4742"]
["Transportation  ","LEFRA TRANSPORTATION INC","E0144103","113181263","LEFRA TRANSPORTATION INC","","",null,"700 LINDEN BLVD","BROOKLYN","NY","11203-3308"]
["Transportation  ","J.T.E. ENTERPRISES INC","E0129152","113189187","J.T.E. ENTERPRISES INC","","",null,"390 E SUFFOLK AVE","ISLANDIA","NY","11749-1518"]
["Transportation  ","NINAS TRANSPORTATION SVC INC","E0079884","113217818","NINAS TRANSPORTATION SVC INC","","","2379 E 1ST ST","SERGEY ISAKOV","BROOKLYN","NY","11223-5353"]
["Transportation  ","AAA AMBULETTE SERVICES INC","E0136382","113234338","AAA AMBULETTE SERVICES INC","","",null,"50 JOLUDOW DR","MASSAPEQUA PARK","NY","11762-3720"]
["OMH  ","HOLLISWOOD HOSP ADOL DTP","E0157155","133128058","HOLLISWOOD HOSP ADOL DTP","","",null,"PO BOX 417164","BOSTON","MA","02241-7164"]
["OPWDD  ","ON YOUR MARK DAY","E0029397","133128315","ON YOUR MARK INC","","",null,"645 FOREST AVE","STATEN ISLAND","NY","10310-2517"]
["OPWDD  ","ON YOUR MARK INC ND 3","E0045290","133128315","ON YOUR MARK INC","","",null,"645 FOREST AVE","STATEN ISLAND","NY","10310-2517"]
["OPWDD  ","ON YOUR MARK INC ND 4","E0045289","133128315","ON YOUR MARK INC","","",null,"645 FOREST AVE","STATEN ISLAND","NY","10310-2517"]
["OPWDD  ","ON YOUR MARK INC RSP","E0040950","133128315","ON YOUR MARK INC","","",null,"645 FOREST AVE","STATEN ISLAND","NY","10310-2517"]
["OPWDD  ","ON YOUR MARK INC SMP","E0083053","133128315","ON YOUR MARK INC","","",null,"645 FOREST AVE","STATEN ISLAND","NY","10310-2517"]
["Transportation  ","AMITY SHUTTLE INC","E0107152","113293829","AMITY SHUTTLE INC","","","30 CARROL ST","KIEN P ANGUS","AMITYVILLE","NY","11701-1852"]
["OASAS  ","LEXINGTON CTR FOR RECOVERY","E0226709","133131438","THE WEEKEND CENTER INC","1302211R","00729997",null,"24 SMITH AVE","MOUNT KISCO","NY","10549-2814"]
["Transportation  ","AMERICAN BIO-MED AMBULETTE","E0121169","113337085","AMERICAN BIO-MED AMBULETTE","","","11 WYONA ST","CARL REID","BROOKLYN","NY","11207-2515"]
["Transportation  ","REM TRANSPORTATION INC","E0059414","113363134","REM TRANSPORTATION INC","","",null,"2404 E 23RD ST","BROOKLYN","NY","11235-2511"]
["Transportation  ","CITYWIDE MOBILE RESPONSE CORP","E0007789","113401386","CITYWIDE MOBILE RESPONSE CORP","","",null,"1624 STILLWELL AVE","BRONX","NY","10461"]
["OMH  ","NEW ALTERNATIVES F CHILDREN","E0015130","133149298","NEW ALTERNATIVES/CHILDREN INC B2H","7002185R","02850677",null,"37 WEST 26TH STREET 6TH FLOOR","NEW YORK","NY","10010-1058"]
["Transportation  ","UPWARD MOBILITY LIMOUSINE INC","E0072816","113403565","UPWARD MOBILITY LIMOUSINE INC","","","1957 STEINWAY ST","ALEX SCHWARTZ","ASTORIA","NY","11105-1108"]
["Transportation  ","TC AMBULANCE CORPORATION","E0069992","113461540","TC AMBULANCE CORPORATION","","",null,"1 METROTECH CTR FL 20","BROOKLYN","NY","11201-3949"]
["Transportation  ","UNIVERSAL CARRIER INC","E0092277","113505849","UNIVERSAL CARRIER INC","","","1805 GRAVESEND NECK RD","VLADIMIR KHANIN","BROOKLYN","NY","11229-4510"]
["OPWDD  ","SINERGIA INC  SPT","E0075104","133183344","SINERGIA INC","","",null,"134 W 29TH ST FL 4","NEW YORK","NY","10001-5304"]
["OPWDD  ","SINERGIA INC  SPV","E0075114","133183344","SINERGIA INC","","",null,"134 W 29TH ST FL 4","NEW YORK","NY","10001-5304"]
["OPWDD  ","SINERGIA INC DAY","E0029986","133183344","SINERGIA INC","","",null,"134 W 29TH ST FL 4","NEW YORK","NY","10001-5304"]
["OPWDD  ","SINERGIA INC HCBS","E0149460","133183344","SINERGIA INC","","",null,"134 W 29TH ST FL 4","NEW YORK","NY","10001-5304"]
["Transportation  ","JR CAR SERVICE TLC INC","E0071079","113534021","JR CAR SERVICE TLC INC","","",null,"PO BOX 3494","FARMINGDALE","NY","11735-0694"]
["Transportation  ","PRIVATE ESCORT SERVICE INC","E0218426","113542740","PRIVATE ESCORT SERVICE INC","","","PO BOX 650528","PRIVATE ESCORT SERVICE INC","FRESH MEADOWS","NY","11365-0528"]
["Transportation  ","MJ TRANS CORP","E0078648","113557516","MJ TRANS CORP","","","1788 STILLWELL AVE","YURI LEVITAS","BROOKLYN","NY","11223-1009"]
["Transportation  ","ALMAZ TRANSPORTATION INC","E0086986","113562564","ALMAZ TRANSPORTATION INC","","","2507 E 29TH ST","YEFIM SABLER","BROOKLYN","NY","11235-2020"]
["Transportation  ","ALL AROUND TRANS INC","E0089630","113573999","ALL AROUND TRANS INC","","",null,"345 AVENUE X FL 2 STE B","BROOKLYN","NY","11223-5915"]
["Transportation  ","TYMPF CO INC","E0079102","113599023","TYMPF CO INC","","",null,"354 KINGS HWY FL 2","BROOKLYN","NY","11223-1444"]
["Transportation  ","ANGEL AMBULETTE INC","E0076048","113604411","ANGEL AMBULETTE INC","","",null,"222 W SANTA BARBARA RD","LINDENHURST","NY","11757-6425"]
["OMH  ","BIKUR CHOLIM INC","E0050364","133211807","BIKUR CHOLIM INC","","","STE 101","25 ROBERT PITT DR","MONSEY","NY","10952-3366"]
["Transportation  ","LEEWAY TRANSPORTATION INC","E0067060","113605167","LEEWAY TRANSPORTATION INC","","","45 PERRI CIR",null,"MIDDLE ISLAND","NY","11953-2660"]
["Transportation  ","R & M AMBULETTE EXPRESS INC","E0034624","113622517","R & M AMBULETTE EXPRESS INC","","",null,"561 S FULTON AVE","MOUNT VERNON","NY","10550-5009"]
["OPWDD  ","CAH SKIP OF NEW YORK INC","E0185305","133236869","SICK KIDS NEED INVOLVED PEOPLE NY","","","11TH FLOOR","213 W 35TH ST","NEW YORK","NY","10001-1916"]
["OPWDD  ","SKIP OF NEW YORK INC DAY","E0286625","133236869","SICK KIDS NEED INVOLVED PEOPLE NY","","","11TH FLOOR","213 W 35TH ST","NEW YORK","NY","10001-1916"]
["OPWDD  ","SKIP OF NY INC RSP","E0040509","133236869","SICK KIDS NEED INVOLVED PEOPLE NY","","","11TH FLOOR","213 W 35TH ST","NEW YORK","NY","10001-1916"]
["Transportation  ","ORIENT EXPRESS TRANSIT INC","E0071518","113627708","ORIENT EXPRESS TRANSIT INC","","","3099 EMMONS AVE","VALERY MAXIMOV","BROOKLYN","NY","11235-1709"]
["OPWDD  ","SERVICES F/T UNDERSERVED-VERN","E0198553","133250383","SERVICES FOR THE UNDERSERVED MR PRO","","","305 7TH AVE FL 7","DIR OF FINANCE","NEW YORK","NY","10001-6008"]
["OPWDD  ","SERVICES FOR UNDERSERVED SPV","E0075115","133250383","SERVICES FOR THE UNDERSERVED MR PRO","","","305 7TH AVE FL 7","DIR OF FINANCE","NEW YORK","NY","10001-6008"]
["OPWDD  ","SERVICES FOR UNDERSRVD DAY","E0029732","133250383","SERVICES FOR THE UNDERSERVED MR PRO","","","305 7TH AVE FL 7","DIR OF FINANCE","NEW YORK","NY","10001-6008"]
["Transportation  ","BANNER INTERNATIONAL CORP","E0059269","113629893","BANNER INTERNATIONAL CORP","","","22612 144TH AVE","ROGER POMPEY","LAURELTON","NY","11413-3505"]
["OMH  ","COMM ASSOC PROGRESS DOMINICA","E0103801","133266145","COMM ASSOC PROGRESS DOM RSP","","","3940 BROADWAY FL 2",null,"NEW YORK","NY","10032-1534"]
["Transportation  ","LOVEDALE AMBULETTE INC","E0059256","113654773","LOVEDALE AMBULETTE INC","","",null,"4 WOODBURY ST","NEW ROCHELLE","NY","10805-1513"]
["OMH  ","INSTITUTE FOR FAMILY HLTH","E0209381","133273402","THE INSTITUTE FOR URBAN FAMILY HEAL","7002137R","00903700",null,"16E 16TH ST","NEW YORK","NY","10003-3105"]
["Transportation  ","ALL KINDS OF RIDES INC","E0020356","113675077","ALL KINDS OF RIDES INC","","",null,"129 W WOODSIDE AVE","PATCHOGUE","NY","11772-1136"]
["OMH  ","INSTITUTE FOR COMM LIVING INC","E0144857","133306195","INSTITUTE FOR COMMUNITY LIVING INC","","","40 RECTOR ST","FL 8","NEW YORK","NY","10006-1733"]
["OPWDD  ","INSTITUTE FOR COMM LIVING SPV","E0074444","133306195","INSTITUTE FOR COMMUNITY LIVING INC","","","40 RECTOR ST","FL 8","NEW YORK","NY","10006-1733"]
["OPWDD  ","INSTITUTE FOR COMM LVG AVE D","E0150287","133306195","INSTITUTE FOR COMMUNITY LIVING INC","","","40 RECTOR ST","FL 8","NEW YORK","NY","10006-1733"]
["OPWDD  ","INSTITUTE FOR COMMUNITY LVING","E0048434","133306195","INSTITUTE FOR COMMUNITY LIVING INC","","","40 RECTOR ST","FL 8","NEW YORK","NY","10006-1733"]
["Transportation  ","TRI COUNTY AMBULETTE SVC  INC","E0265516","132692967","TRI COUNTY AMBULETTE SVC INC","","",null,"852 MIDLAND AVE # 2","YONKERS","NY","10704-1015"]
["Transportation  ","HAPPY CARE AMBULETTE SRVC INC","E0172626","133360223","HAPPY CARE AMBULETTE SRVC INC","","",null,"1174 COMMERCE AVE","BRONX","NY","10462-5535"]
["OASAS  ","INNOVATIVE HEALTH SYSTEMS INC","E0196095","133317727","INNOVATIVE HEALTH SYSTEMS INC","","",null,"7 HOLLAND AVE FL 2","WHITE PLAINS","NY","10603-3317"]
["Transportation  ","L-AL LIMOUSINE INC","E0108792","133407768","L-AL LIMOUSINE INC","","","1504 ELM AVE","GERSHON GIMELFARB","BROOKLYN","NY","11230-5217"]
["Transportation  ","RAYMOND BATES","E0189972","133453163","RAYMOND BATES","","","46 ROBERT AVE","BATES AMBULETTE","PORT CHESTER","NY","10573-2214"]
["Transportation  ","PROMPT TRANSIT SERVICE INC","E0004425","133464405","PROMPT TRANSIT SERVICE INC","","",null,"20 BROOKDALE PLACE","MT VERNON","NY","10550"]
["OMH  ","PIBLY RESIDENTIAL PROGRAMS","E0169514","133396313","PIBLY RESIDENTIAL PROGRAMS","","",null,"2415 WESTCHESTER AVE","BRONX","NY","10461-3538"]
["OMH  ","ALIANZA DOMINICANA, INC","E0123514","133402057","ALIANZA DOMINICANA INC","","",null,"2410 AMSTERDAM AVE","NEW YORK","NY","10033-7320"]
["Transportation  ","REYNO CAR SERVICE INC","E0172925","133506694","REYNO CAR SERVICE INC","","",null,"PO BOX 747","NEW YORK","NY","10033-0596"]
["Transportation  ","FRIENDSHIP AMBULETTE INC","E0184965","133530758","FRIENDSHIP AMBULETTE INC","","",null,"1015 E 172ND ST","BRONX","NY","10460-5805"]
["Transportation  ","FIRST ALERT AMBULETTE CORP","E0182692","133543744","FIRST ALERT AMBULETTE CORP","","",null,"4675 3RD AVE","BRONX","NY","10458-5905"]
["Transportation  ","D&L AMBULETTE INC","E0196149","133543996","D&L AMBULETTE INC","","","454 RIVERDALE AVE","DENNIS LEOPOLDI","YONKERS","NY","10705-2971"]
["Transportation  ","MAELEEN AMBULETTE TRANS INC","E0180581","133562599","MAELEEN AMBULETTE TRANS INC","","",null,"1357 LAFAYETTE AVE","BRONX","NY","10474-4806"]
["Transportation  ","PREMIER AMBULETTE TRANSPT INC","E0164320","133643031","PREMIER AMBULETTE TRANSPT INC","","",null,"12 PALISADES PL","RYE","NY","10580-3844"]
["OPWDD  ","HAWTHORNE FOUNDATION INC DAY","E0030870","133447893","HAWTHORNE FOUNDATION INC DAY","","","5 BRADHURST AVE",null,"HAWTHORNE","NY","10532-2154"]
["OPWDD  ","HAWTHORNE FOUNDATION INC SPV","E0075383","133447893","HAWTHORNE FOUNDATION INC DAY","","","5 BRADHURST AVE",null,"HAWTHORNE","NY","10532-2154"]
["Transportation  ","CLC TRANSPORTATION INC","E0163841","133648230","CLC TRANSPORTATION INC","","","103 S BEDFORD RD","STE 102","MOUNT KISCO","NY","10549-3452"]
["Transportation  ","EXCLUSIVE AMBULETTE SVCE INC","E0153601","133694763","EXCLUSIVE AMBULETTE SVCE INC","","","49 LAWRENCE AVE","PO BOX 476","LAWRENCE","NY","11559-1446"]
["Transportation  ","SHIVA AMBULETTE SERVICE INC","E0153944","133700089","SHIVA AMBULETTE SERVICE INC","","",null,"5582 BROADWAY","BRONX","NY","10463-5519"]
["Transportation  ","SIGMA TRANSPORTATION INC","E0153647","133700131","SIGMA TRANSPORTATION INC","","",null,"244 HEMPSTEAD TPKE","WEST HEMPSTEAD","NY","11552-1537"]
["OPWDD  ","SHARE OF NEW SQUARE DAY","E0029985","133475062","SHARE OF NEW SQUARE HCBS 2","","",null,"118 CLINTON LN","SPRING VALLEY","NY","10977-1969"]
["OPWDD  ","SHARE OF NEW SQUARE ND 1","E0019021","133475062","SHARE OF NEW SQUARE HCBS 2","","",null,"118 CLINTON LN","SPRING VALLEY","NY","10977-1969"]
["Transportation  ","GTSK CORP","E0062985","133716976","GTSK CORP","","","55-BNEPPERHAN AVE","SCOTT KIBRICK","ELMSFORD","NY","10523"]
["Transportation  ","HOPE AMBULETTE INC","E0122241","133826785","HOPE AMBULETTE INC","","",null,"1563 BOONE AVE","BRONX","NY","10460-5660"]
["OPWDD  ","INDEPENDENCE RES INC DAY","E0030257","133490223","INDEPENDENCE RESIDENCES RSP","","","FL 2","9322 JAMAICA AVE","WOODHAVEN","NY","11421-2219"]
["OPWDD  ","INDEPENDENCE RES PARK LN ICF","E0162617","133490223","INDEPENDENCE RESIDENCES RSP","","","FL 2","9322 JAMAICA AVE","WOODHAVEN","NY","11421-2219"]
["OPWDD  ","INDEPENDENCE RESIDENCES RSP","E0009817","133490223","INDEPENDENCE RESIDENCES RSP","","","FL 2","9322 JAMAICA AVE","WOODHAVEN","NY","11421-2219"]
["OPWDD  ","INDEPENDENCE RESIDENCES SPV","E0074579","133490223","INDEPENDENCE RESIDENCES RSP","","","FL 2","9322 JAMAICA AVE","WOODHAVEN","NY","11421-2219"]
["OMH  ","GATEWAYS COUNSELING CTR,INC","E0190037","133492890","GATEWAY COUNCELING CTR HCBS 2","","",null,"4500 FURMAN AVE","BRONX","NY","10470-1602"]
["OPWDD  ","GATEWAY COUNSELING CTR DAY","E0030874","133492890","GATEWAY COUNCELING CTR HCBS 2","","",null,"4500 FURMAN AVE","BRONX","NY","10470-1602"]
["OASAS  ","BRIDGE BACK TO LIFE CTR INC","E0156068","133494632","BRIDGE BACK TO LIFE CTR INC","","","500 8TH AVE SUITE 906","BILLING DEPT","NEW YORK","NY","10018-4190"]
["Transportation  ","MERCY CARE TRANSPORTATION INC","E0128057","133909926","MERCY CARE TRANSPORTATION INC","","",null,"237 WOODWARD AVE","STATEN ISLAND","NY","10314-4236"]
["Transportation  ","R.V. AMBULETTE INC","E0117098","133963587","R.V. AMBULETTE INC","","","45 LUDLOW ST","STE 416","YONKERS","NY","10705-1950"]
["OASAS  ","INTER-CARE LTD","E0164074","133518572","INTER-CARE LTD","","",null,"51 E 25TH ST STE 400","NEW YORK","NY","10010-8210"]
["Transportation  ","RYE AMBULETTE TRANSPORT INC","E0104103","134006421","RYE AMBULETTE TRANSPORT INC","","",null,"10 FLORENCE AVE","RYE","NY","10580-1311"]
["Transportation  ","EMA'S AMBULETTE INC","E0107200","134021936","EMA'S AMBULETTE INC","","","PO BOX 1679","MENASHE NEWHOUSE","WHITE PLAINS","NY","10602-1679"]
["Transportation  ","NEW L AND L CAB CORP","E0033991","134045561","NEW L AND L CAB CORP","","",null,"2115 CROMPOND RD","CORTLANDT MANOR","NY","10567-4317"]
["OPWDD  ","PARTNERSHIP FOR ICCI DAY","E0029968","133537258","PARTNERSHIP FOR ICCI DAY","","","120 WALL ST FL 18",null,"NEW YORK","NY","10005-3904"]
["OPWDD  ","PARTNERSHIP FOR INNOV CC SPT","E0075264","133537258","PARTNERSHIP FOR ICCI DAY","","","120 WALL ST FL 18",null,"NEW YORK","NY","10005-3904"]
["OPWDD  ","PARTNERSHIP FOR INNOV CC SPV","E0075266","133537258","PARTNERSHIP FOR ICCI DAY","","","120 WALL ST FL 18",null,"NEW YORK","NY","10005-3904"]
["Transportation  ","GALAXY TRANSPORTATION INC","E0089761","134110991","GALAXY TRANSPORTATION INC","","","154 AMSTERDAM AVE",null,"HAWTHORNE","NY","10532-1637"]
["Transportation  ","KIDDIN' AROUND TOWN INC","E0057259","134111226","KIDDIN' AROUND TOWN INC","","","1115 FROST LN","SALVATORE MONGIOVI","PEEKSKILL","NY","10566-1903"]
["OMH  ","COALITION/HISPANIC FAM SVCS","E0095802","133546023","COALITION/HISPANIC FAM SVCS","","",null,"315 WYCKOFF AVE","BROOKLYN","NY","11237-5842"]
["OMH  ","COALITION/HISPANIC FBT","E0144458","133546023","COALITION/HISPANIC FAM SVCS","","",null,"315 WYCKOFF AVE","BROOKLYN","NY","11237-5842"]
["Transportation  ","SATCO AMBULETTE INC","E0085029","134119364","SATCO AMBULETTE INC","","","32 JODY LN","SKARIA ALEX","YONKERS","NY","10701-1908"]
["Transportation  ","JHH TRANSPORT LLC","E0077237","134188218","JHH TRANSPORT LLC","","",null,"2545 UNIVERSITY AVE","BRONX","NY","10468-4066"]
["Transportation  ","V O PARTNERS INC","E0056801","134231184","V O PARTNERS INC","","",null,"357 AVENUE X FL 2","BROOKLYN","NY","11223-5915"]
["Transportation  ","AHAVA ACCESS INC","E0040919","134281195","AHAVA ACCESS INC","","",null,"6002 FOSTER AVE","BROOKLYN","NY","11236-3100"]
["OPWDD  ","COMM LIVING CORP SPT","E0075371","133563609","COMMUNITY LIVING CORP ND 5","","",null,"105 S BEDFORD RD","MOUNT KISCO","NY","10549-3441"]
["OPWDD  ","COMM LIVING CORP SPV","E0075369","133563609","COMMUNITY LIVING CORP ND 5","","",null,"105 S BEDFORD RD","MOUNT KISCO","NY","10549-3441"]
["OPWDD  ","COMMUNITY LIVING CORPORATION RSP","E0302806","133563609","COMMUNITY LIVING CORP ND 5","","",null,"105 S BEDFORD RD","MOUNT KISCO","NY","10549-3441"]
["OASAS  ","FIRST STEPS TO RECOVERY","E0150722","133579940","FIRST STEPS TO RECOVERY","","","312 W 47TH ST","GROUND FLOOR","NEW YORK","NY","10036-3101"]
["Transportation  ","AMBULETTE STAR TRANS INC","E0157831","141750776","AMBULETTE STAR TRANS INC","","","2500 E 21ST ST","IGOR BARSKY","BROOKLYN","NY","11235-2904"]
["Transportation  ","BLACK SEA TRANSPORTATION INC","E0061476","141855662","BLACK SEA TRANSPORTATION INC","","",null,"27 MICHAEL CT","STATEN ISLAND","NY","10308-2020"]
["Transportation  ","ORION TRANSPORTATION INC","E0047109","200276082","ORION TRANSPORTATION INC","","",null,"17905 UNION TPKE","FRESH MEADOWS","NY","11366-1635"]
["Transportation  ","SINAI I INC","E0034575","200381649","SINAI I INC","","",null,"1224 BRUNSWICK AVE","FAR ROCKAWAY","NY","11691-3920"]
["Transportation  ","WHEELS OF FORTUNE TRANSPORTATION IN","E0033646","201802804","WHEELS OF FORTUNE TRANSPORTATION IN","","",null,"46 HIGHLAWN AVE","BROOKLYN","NY","11223-2401"]
["Transportation  ","MEDSTAR AMBULETTE INC/IGOR ORLOV","E0022871","202777734","MEDSTAR AMBULETTE INC/IGOR ORLOV","","",null,"718 3RD AVE","BROOKLYN","NY","11232-1113"]
["Transportation  ","LS LAT INC","E0027103","203024913","LS LAT INC","","",null,"293 AVENUE Z","BROOKLYN","NY","11223-5822"]
["OPWDD  ","LIFE ADJUSTMENT CENTER SPT","E0075354","133620577","LIFE ADJUSTMENT CENTER INC","","",null,"1430 BROADWAY 501","NEW YORK","NY","10018-3308"]
["OPWDD  ","LIFE ADJUSTMENT CENTER SPV","E0075357","133620577","LIFE ADJUSTMENT CENTER INC","","",null,"1430 BROADWAY 501","NEW YORK","NY","10018-3308"]
["OPWDD  ","LIFE ADJUSTMENT CNTR INC DAY","E0030172","133620577","LIFE ADJUSTMENT CENTER INC","","",null,"1430 BROADWAY 501","NEW YORK","NY","10018-3308"]
["Transportation  ","ALLURE TRANSPORTATION INC","E0023286","203490883","ALLURE TRANSPORTATION INC","","",null,"360A W MERRICK RD","VALLEY STREAM","NY","11580-5354"]
["Transportation  ","STERLING AMBULETTE INC","E0017148","203683042","STERLING AMBULETTE INC","","",null,"14 CORTLANDT ST","MOUNT VERNON","NY","10550-2762"]
["Transportation  ","STEAMY INC","E0232703","203690593","STEAMY INC","","",null,"9 DEPOT PL","BABYLON","NY","11702-2201"]
["Transportation  ","ANABELLA TRANSPORTATION LLC","E0024752","203715811","ANABELLA TRANSPORTATION LLC","","",null,"120 STEVENS AVE","MT VERNON","NY","10550-2605"]
["OPWDD  ","UNIQUE PEOPLE SERVICES SPV","E0074813","133636555","UNIQUE PEOPLE SERVICES ND 1","","","4234 VIREO AVE","EXEC DIRECTOR","BRONX","NY","10470-2412"]
["OPWDD  ","UNIQUE PEOPLE SVCS VYSE AVE","E0164525","133636555","UNIQUE PEOPLE SERVICES ND 1","","","4234 VIREO AVE","EXEC DIRECTOR","BRONX","NY","10470-2412"]
["OPWDD  ","JEWISH UNION FOUNDATION DAY","E0030248","133636595","JEWISH UNION FOUNDATION DAY","","","FL 13","11 BROADWAY","NEW YORK","NY","10004-1303"]
["Transportation  ","TLCM LLC","E0016986","204228300","TLCM LLC","","",null,"500 CHURCH ST","BAYPORT","NY","11705-1116"]
["OASAS  ","CARNEGIE HILL INSTITUTE INC","E0080232","133646069","CARNEGIE HILL INSTITUTE INC","7002190R","03063123","116 E 92ND ST","ADM DIRECTOR","NEW YORK","NY","10128-1620"]
["Transportation  ","G & L AMBULETTE CO INC","E0016231","204719694","G & L AMBULETTE CO INC","","",null,"778 ROCKAWAY PKWY","BROOKLYN","NY","11236-1830"]
["Transportation  ","COURTESY TRANSPORTATION SERVICES IN","E0020136","204779485","COURTESY TRANSPORTATION SERVICES IN","","",null,"P.O. BOX 4619","RENSSELAER","NY","12144-8614"]
["Transportation  ","GREAT AMBULETTE SERVICE INC","E0013083","204952395","GREAT AMBULETTE SERVICE INC","","","FL 3","1614 NEPTUNE AVE","BROOKLYN","NY","11224-2718"]
["Transportation  ","AMG TRANSPORTATION INC","E0006916","205015332","AMG TRANSPORTATION INC","","",null,"122 HEMPSTEAD TPKE","WEST HEMPSTEAD","NY","11552-2146"]
["OPWDD  ","ANOTHER STEP INC  SMP","E0083018","133680851","ANOTHER STEP INC","","",null,"216 CONGERS RD BLDG 6","NEW CITY","NY","10956-6261"]
["OPWDD  ","ANOTHER STEP INC DAY","E0030938","133680851","ANOTHER STEP INC","","",null,"216 CONGERS RD BLDG 6","NEW CITY","NY","10956-6261"]
["OPWDD  ","ANOTHER STEP INC ND 1","E0048399","133680851","ANOTHER STEP INC","","",null,"216 CONGERS RD BLDG 6","NEW CITY","NY","10956-6261"]
["OMH  ","CENTER FOR URBAN COMM SVCES","E0028879","133687891","CENTER FOR URBAN COMM SVCES","","","2212 3RD AVE",null,"NEW YORK","NY","10035-3530"]
["Transportation  ","ABA TRANSPORT CORP","E0009840","205966878","ABA TRANSPORT CORP","","",null,"8303 24TH AVE FL 2","EAST ELMHURST","NY","11370-1660"]
["Transportation  ","MEGA LINE INC","E0002983","208731926","MEGA LINE INC","","",null,"61-29 WOODHAVEN BLVD","REGO PARK","NY","11374"]
["Transportation  ","SOVEREIGN TRANSPORTATION INC","E0008162","260147660","SOVEREIGN TRANSPORTATION INC","","",null,"3123 CROPSEY AVE","BROOKLYN","NY","11224-2701"]
["Transportation  ","DIANE TRANSPORTATION INC","E0284496","260183402","DIANE TRANSPORTATION INC","","",null,"7318 YELLOWSTONE BLVD","FOREST HILLS","NY","11375-4198"]
["OASAS  ","NY CTR ADDICTION TRMT SVC,INC","E0150724","133704138","NY CTR ADDICTION TRMT SVC,INC","","","598 BROADWAY","FL 2","NEW YORK","NY","10012-3206"]
["Transportation  ","CHELSEA EXPRESS TRANSPORTATION INC","E0284481","261405581","CHELSEA EXPRESS TRANSPORTATION INC","","","3B","99-18 66TH AVE","REGO PARK","NY","11374-3632"]
["OPWDD  ","EPISCOPAL SOCIAL SERVICES SPV","E0075450","133709095","EPISCOPAL SOCIAL SERVICES OF NYC","","",null,"305 SEVENTH AVENUE","NEW YORK","NY","10001"]
["OPWDD  ","EPISCOPAL SOCIAL SVCS DAY","E0015280","133709095","EPISCOPAL SOCIAL SERVICES OF NYC","","",null,"305 SEVENTH AVENUE","NEW YORK","NY","10001"]
["Transportation  ","PERFECT CHOICE AMBULETTE INC","E0294792","261603830","PERFECT CHOICE AMBULETTE INC","","",null,"6610 BAY PKWY STE 1A","BROOKLYN","NY","11204-3942"]
["OPWDD  ","YEDEI CESED INC DAY","E0029843","133728771","YEDEI CHESED INC","","",null,"48 SCOTLAND HILL RD","CHESTNUT RIDGE","NY","10977-5837"]
["OPWDD  ","YEDEI CHESED INC RSP","E0039085","133728771","YEDEI CHESED INC","","",null,"48 SCOTLAND HILL RD","CHESTNUT RIDGE","NY","10977-5837"]
["OPWDD  ","YEDEI CHESED INC SPV","E0074812","133728771","YEDEI CHESED INC","","",null,"48 SCOTLAND HILL RD","CHESTNUT RIDGE","NY","10977-5837"]
["Transportation  ","TEJET EXPRESS TRANSPORTATION INC","E0294444","262717613","TEJET EXPRESS TRANSPORTATION INC","","",null,"2309 AVENUE Z","BROOKLYN","NY","11235-2805"]
["OPWDD  ","LIFESTYLES F/T DISABLED DAY","E0030174","133740011","LIFESTYLES F/T DISABLED DAY","","",null,"930 WILLOWBROOK RD","STATEN ISLAND","NY","10314"]
["OPWDD  ","LIFESTYLES F/T DISABLED RSP","E0040968","133740011","LIFESTYLES F/T DISABLED DAY","","",null,"930 WILLOWBROOK RD","STATEN ISLAND","NY","10314"]
["Transportation  ","FIRST ADVANCED CARE INC","E0288002","262729606","FIRST ADVANCED CARE INC","","",null,"73 BAY 14TH ST","BROOKLYN","NY","11214-3603"]
["Transportation  ","MENAHEM SIMKHO TRANSPORTATION INC","E0295571","263092412","MENAHEM SIMKHO TRANSPORTATION INC","","","3611 14 STE 225","1428 36TH ST","BROOKLYN","NY","11218-3710"]
["Transportation  ","ELBRUS TRANSPORTATION CORP","E0040612","263516904","ELBRUS TRANSPORTATION CORP","","",null,"4214 GLENWOOD RD","BROOKLYN","NY","11210-2027"]
["OPWDD  ","FAM EMPOWERMENT CNCL","E0030239","133751820","FAMILY EMPOWERMENT COUNCIL","","",null,"225 DOLSON AVE STE 403","MIDDLETOWN","NY","10940-6573"]
["OPWDD  ","ANGELS UNAWARE INC","E0030933","133753509","ANGELS UNAWARE INC","","",null,"1375 NELSON AVE","BRONX","NY","10452-2441"]
["OPWDD  ","ANGELS UNAWARE INC SPV","E0075520","133753509","ANGELS UNAWARE INC","","",null,"1375 NELSON AVE","BRONX","NY","10452-2441"]
["Transportation  ","ELITE LI ENTERPRISES LLC","E0299474","263575386","ELITE LI ENTERPRISES LLC","","",null,"269 MIDDLE ISLAND RD","MEDFORD","NY","11763-1507"]
["Transportation  ","MANHATTAN AMBULETTE INC","E0299899","264334917","MANHATTAN AMBULETTE INC","","",null,"9229 QUEENS BLVD STE 1E","REGO PARK","NY","11374-1099"]
["Transportation  ","AVA AMBULETTE CORP","E0306484","270949586","AVA AMBULETTE CORP","","",null,"1181 STILLWELL AVE","BROOKLYN","NY","11223-0000"]
["Transportation  ","NEW YORK CITY AMBULETTE LLC","E0313955","271831310","NEW YORK CITY AMBULETTE LLC","","",null,"601 BRIGHTON BEACH AVE STE 2","BROOKLYN","NY","11235-6473"]
["Transportation  ","WORLD AMBULETTE TRANSPORTATION INC","E0311528","271895950","WORLD AMBULETTE TRANSPORTATION INC","","",null,"4029 149TH ST","FLUSHING","NY","11354-4724"]
["Transportation  ","SABE AMBULETTE SERVICE INC","E0058928","331026700","SABE AMBULETTE SERVICE INC","","",null,"701 HILDA ST","NORTH BELLMORE","NY","11710-1317"]
["Transportation  ","MR TRANSPORTATION INC","E0012461","331141833","MR TRANSPORTATION INC","","",null,"3 HOOVER ST","INWOOD","NY","11096-1317"]
["Transportation  ","WESTCHESTER AMBULETTE SERVICE","E0058951","412067435","WESTCHESTER AMBULETTE SERVICE","","",null,"58 PALISADE AVE","YONKERS","NY","10701-3016"]
["Transportation  ","RED TOP MANAGEMENT TRANSPORT INC","E0233869","450476072","RED TOP MANAGEMENT TRANSPORT INC","","","390 E SUFFOLK AVE","SHEILA KNAPP","ISLANDIA","NY","11749-1518"]
["Transportation  ","ADAMO TRANSPORTATION INC","E0025117","550886943","ADAMO TRANSPORTATION INC","","",null,"29 PARK VIEW PL","FAIR LAWN","NJ","07410-4353"]
["Transportation  ","ACT AMBULETTE INC","E0060657","611419645","ACT AMBULETTE INC","","","9 GRANITE AVE","ALEXANDER NEGINSKY","STATEN ISLAND","NY","10303-2715"]
["Transportation  ","EMPIRE STATE MEDI-CAB INC","E0035597","611477537","EMPIRE STATE MEDI-CAB INC","","",null,"50 HONEYSUCKLE CT","MELVILLE","NY","11747-4238"]
["Transportation  ","HUNTER EMS INC","E0044845","743106616","HUNTER EMS INC","","",null,"40 SHERIDAN BLVD","INWOOD","NY","11096-1817"]
["OPWDD  ","MODERN GUIDENCE SERVICES INC DAY","E0001714","133852613","MODERN GUIDENCE SERVICES INC DAY","","","SUITE 2D","530 W 122 ST","MANHATTAN","NY","10027-5812"]
["Transportation  ","SUNLIGHT AMBULETTE INC","E0316220","760701059","SUNLIGHT AMBULETTE INC","","",null,"253 WILLIAM ST","RYE BROOK","NY","10573-4827"]
["Transportation  ","ACA TRANSPORTATION INC","E0014069","760836308","ACA TRANSPORTATION INC","","",null,"2410 65TH ST","BROOKLYN","NY","11204-4136"]
["OMH  ","HOUSING OPTNS GERIATRIC ASSOC","E0038095","133887707","HOUSING OPTNS GERIATRIC ASSOC","","","751 DAWSON ST",null,"BRONX","NY","10455-1854"]
["Transportation  ","JR'S TRANSPORTATION INC","E0060443","810551508","JR'S TRANSPORTATION INC","","",null,"185 W MONTAUK HWY","HAMPTON BAYS","NY","11946-2305"]
["Various Home Health","HU MARY XIAO-JIANG MD","E0057368",null,"HU MARY XIAO-JIANG MD","",""]
["Various Home Health","JAMIL TARIQ MD","E0054181",null,"JAMIL TARIQ MD","",""]
["Various Home Health","KERR KAROLYN ROSS MD","E0089812",null,"KERR KAROLYN ROSS MD","",""]
["Various Home Health","MADEB ISAAC  MD","E0259269",null,"MADEB ISAAC  MD","",""]
["OPWDD  ","PREMIER HEALTHCARE INC","E0299177","133916271","PREMIER HEALTHCARE D & T CTR","","","460 W 34TH ST",null,"NEW YORK","NY","10001-2320"]
["Various Home Health","PAUL MAUREEN","E0007555",null,"PAUL MAUREEN","",""]
["Various Home Health","REDDY SARATH MD","E0125930",null,"REDDY SARATH MD","",""]
["Various Home Health","STEINER DAVID G MD","E0135893",null,"STEINER DAVID G MD","",""]
["Various Home Health","TEHERANI MEHERDAD MD","E0143387",null,"TEHERANI MEHERDAD MD","",""]
["OPWDD  ","SERVICES F/DEV CHALLENGED SPV","E0075172","133921190","SERVICES F/DEV CHALLENGED ND1","","","5475 FIELDSTON RD",null,"BRONX","NY","10471-2501"]
["Various Home Health","WALD KENNETH J MD","E0148315",null,"WALD KENNETH J MD","",""]
["Various Home Health","YAMIN JUAN                 MD","E0278367",null,"YAMIN JUAN                 MD","",""]
["Various Home Health","VERDUN HOME HEALTH CARE INC","E0043373","010556898","VERDUN HOME HEALTH CARE INC","","",null,"23218 MERRICK BLVD","LAURELTON","NY","11413-2115"]
["Various Home Health","COMPREHENSIVE IMAGING OF NEW YORK","E0026417","030394306","COMPREHENSIVE IMAGING OF NEW YORK","","",null,"3399 HAROLD ST","OCEANSIDE","NY","11572-4720"]
["OASAS  ","WEST MIDTOWN MEDICAL GROUP","E0108910","133952613","WEST MIDTOWN MEDICAL GROUP","7002163R","01911393",null,"505 8TH AVE","NEW YORK","NY","10018-6505"]
["Various Home Health","SPLIT ROCK NURSING HM LTHHCP","E0102326","043712277","SPLIT ROCK REHAB & HHC LLC","","",null,"3525 BAYCHESTER AVE","BRONX","NY","10466-5001"]
["Various Home Health","MORRIS HEIGHTS HLTH CTR AI","E0158243","061081232","MORRIS HEIGHTS HLTH CTR AI","","","85 W BURNSIDE AVE","PRESIDENT/CEO","BRONX","NY","10453-4015"]
["Various Home Health","UNITED HEALTH CARE/NY","E0297935","061172891","UNITED HEALTHCARE OF NY INC","","","7 HANOVER SQ","FL 5","NEW YORK","NY","10004-2674"]
["Various Home Health","DOWNTOWN BRONX MED ASSOC PC","E0091585","061578286","DOWNTOWN BRONX MED ASSOC PC","","",null,"PO BOX 30498","NEW YORK","NY","10087-0498"]
["Various Home Health","BROOKDALE HOSP MED CTR ALP","E0110898","111631746","THE BROOKDALE HOSPITAL MEDICAL CENT","","",null,"10101 AVENUE D","BROOKLYN","NY","11236-1902"]
["OPWDD  ","PROVIDER HAMASPIK ROCKLD DAY","E0030036","133978518","PROVIDER-HAMASPIK OF ROCKLAND CO.","","",null,"58 ROUTE 59 1","MONSEY","NY","10952-3740"]
["OPWDD  ","PROVIDER HAMASPIK ROCKLD HCBS","E0122425","133978518","PROVIDER-HAMASPIK OF ROCKLAND CO.","","",null,"58 ROUTE 59 1","MONSEY","NY","10952-3740"]
["OPWDD  ","PROVIDER HAMASPIK ROCKLD RSP","E0040526","133978518","PROVIDER-HAMASPIK OF ROCKLAND CO.","","",null,"58 ROUTE 59 1","MONSEY","NY","10952-3740"]
["OPWDD  ","PROVIDER HAMASPIK ROCKLD SPV","E0075263","133978518","PROVIDER-HAMASPIK OF ROCKLAND CO.","","",null,"58 ROUTE 59 1","MONSEY","NY","10952-3740"]
["Various Home Health","FORESTDALE, INC","E0264828","111631747","FORESTDALE, INC","","",null,"6735 112TH ST","FOREST HILLS","NY","11375-2349"]
["Various Home Health","HEARTSHARE HUMAN SVCS MR AI","E0158344","111633549","HEARTSHARE HUMAN SERV ICES NY","","",null,"12 METROTECH CENTER, 29TH FL","BROOKLYN","NY","11201-3858"]
["Various Home Health","MENORAH HOME  & HOSP AGE & INF ADHC","E0299146","111672777","MENORAH HM & HSP F AGED & INF","","",null,"1516 ORIENTAL BLVD","BROOKLYN","NY","11235-2328"]
["Various Home Health","ST MARYS HOSP FOR CHILD ADC","E0196573","111679599","ST MARYS HOSP FOR CHILDREN IN","","","2901 216TH ST","LOU SCARLINO","BAYSIDE","NY","11360-2810"]
["OPWDD  ","PARENTAL LOVING CARE INC SPV","E0075268","133986940","PARENTAL LOVING CARE INC SPV","","","26 PLANK RD","EXECUTIVE DIR","STATEN ISLAND","NY","10314-3249"]
["Various Home Health","SEPHARDIC SKI NRS REH CT ADHC","E0089591","111694718","SEPHARDIC SKI NRS REH CT ADHC","","","2266 CROPSEY AVE","VICE PRES FINANCE","BROOKLYN","NY","11214-5706"]
["Various Home Health","BROOKHAVEN MEM HSP MC HOSPICE","E0185563","111704595","BROOKHAVEN MEM HSP MED CTR","5151500","01143186",null,"PO BOX 6010","HAUPPAUGE","NY","11788-9010"]
["Various Home Health","VISITING NUR SER/HOSPICE SUF","E0252188","111722477","VISITING NUR SER/HOSPICE SUF","5157500","01122701","505 MAIN ST",null,"NORTHPORT","NY","11768-1966"]
["Various Home Health","NEW YORK HOSP MED CTR QUEENS","E0112820","111839362","NEW YORK HOSPITAL MED CTR QUEENS","","",null,"PO BOX 27842","NEW YORK","NY","10087-7842"]
["Various Home Health","SHIEL MEDICAL LABORATORY INC","E0031830","111993586","SHIEL MEDICAL LABORATORY INC","","","63 FLUSHING AVE","BROOKLYN NAVY YARD U","BROOKLYN","NY","11205-1005"]
["Various Home Health","YAI HOME HEALTH SERVICES","E0147443","112030172","YOUNG ADULT INSTITUTE INC","","",null,"460 W 34TH ST FL 11","NEW YORK","NY","10001-2382"]
["Various Home Health","ECON OPP COUNCIL SUFFOLK AI","E0131708","112141197","EOC OF SUFFOLK INC RSP","","",null,"475 E MAIN ST","PATCHOGUE","NY","11772-3121"]
["Various Home Health","CABS HOUSEKEEPER SERVICE  INC","E0207101","112216402","CABS HOUSEKEEPER SERVICE INC","","","545 BROADWAY","STE 3","BROOKLYN","NY","11206-2962"]
["Various Home Health","FAMILY AIDES","E0233632","112255749","FAMILY AIDES INC","","",null,"120 W JOHN ST","HICKSVILLE","NY","11801-1020"]
["OPWDD  ","JOB PATH DAY","E0029710","134038495","JOB PATH DAY","","",null,"22 W 38TH ST FL 11","NEW YORK","NY","10018-0099"]
["OPWDD  ","JOB PATH INC  SPT","E0075342","134038495","JOB PATH DAY","","",null,"22 W 38TH ST FL 11","NEW YORK","NY","10018-0099"]
["OPWDD  ","JOB PATH INC ND 1","E0061434","134038495","JOB PATH DAY","","",null,"22 W 38TH ST FL 11","NEW YORK","NY","10018-0099"]
["OPWDD  ","JOB PATH INC SMP","E0083080","134038495","JOB PATH DAY","","",null,"22 W 38TH ST FL 11","NEW YORK","NY","10018-0099"]
["Various Home Health","BETH EMETH H A SERVICES","E0011048","112261726","BETH EMETH H A SERVICES","","",null,"1080 MCDONALD AVE","BROOKLYN","NY","11230-2633"]
["Various Home Health","CNH LONG TERM HOME HEALTH PROGRAM","E0007717","112284472","CABS NURSING HOME COMPANY INC","","",null,"270 NOSTRAND AVENUE","BROOKLYN","NY","11205-4926"]
["OPWDD  ","ICL JOSELOW HOUSE INC ND 1","E0024882","134053788","ICL JOSELOW HOUSE INC ND 1","","","40 RECTOR ST FL 8",null,"NEW YORK","NY","10006-1733"]
["Various Home Health","ALLEN HEALTH CARE SERVICE INC","E0263713","112311754","HEALTH ACQUISITION CORP","","","175-20 HILLSIDE AVENUE","ALLEN HEALTH CARE SERVICES","JAMAICA","NY","11432"]
["Various Home Health","HEALTH ACQUISITION CORP","E0134351","112311754","HEALTH ACQUISITION CORP","","","175-20 HILLSIDE AVENUE","ALLEN HEALTH CARE SERVICES","JAMAICA","NY","11432"]
["Various Home Health","RECCO HOME CARE SERVICE","E0251920","112341431","RECCO HOME CARE SERVICE INC","","",null,"524 HICKSVILLE RD","MASSAPEQUA","NY","11758-1204"]
["OPWDD  ","SOCIAL ACTION CTR INC DAY","E0029987","134093738","SOCIAL ACTION CTR INC DAY","","","665 PELHAM PKWY N","EXEC DIR SUITE 401","BRONX","NY","10467-8068"]
["Various Home Health","RECCO HOME CARE SERVICE   INC","E0263695","112341431","RECCO HOME CARE SERVICE INC","","",null,"524 HICKSVILLE RD","MASSAPEQUA","NY","11758-1204"]
["Various Home Health","AIDES AT HOME","E0263715","112355771","AIDES AT HOME INC TBI","","","29 W MARIE ST",null,"HICKSVILLE","NY","11801-3800"]
["Various Home Health","SURFSIDE MANOR HOME FOR ADULTS","E0329275","112397105","BERT FRIED","","",null,"9502 ROCKAWAY BEACH BLVD","ROCKAWAY BEACH","NY","11693-1317"]
["Various Home Health","ABLE HEALTH CARE SERVICE  INC","E0263714","112398554","ABLE HEALTH CARE SERV INC","","",null,"1240 BROADCAST PLZ","MERRICK","NY","11566-3461"]
["Various Home Health","ATTENTIVE CARE","E0214665","112436421","ATTENTIVE CARE INC TBI","","",null,"5 COMPUTER DR W","ALBANY","NY","12205-1659"]
["Various Home Health","BUSHWICK ECONOMIC DEVEL  CORP","E0206516","112442251","BUSHWICK ECONOMIC DEVEL CORP","","",null,"61 COOPER ST","BROOKLYN","NY","11207-1413"]
["OPWDD  ","ARC HEALTHRESOURCES OF ROCKLAND","E0015957","134142322","ARC HEALTHRESOURCES OF ROCKLAND","4350203R","02842400",null,"25 HEMLOCK DR","CONGERS","NY","10920-1401"]
["Various Home Health","RIDGEWOOD BUSHWICK SR CIT HA","E0009826","112453853","RIDGEWOOD BUSHWICK SR CIT HA","","","533 BUSHWICK AVE",null,"BROOKLYN","NY","11206-4661"]
["Various Home Health","CAMBA INC","E0144784","112480339","CAMBA INC","","","1720 CHURCH AVE","RANG NGO","BROOKLYN","NY","11226-2630"]
["Various Home Health","URBAN STRATEGIES TS","E0187504","112484364","URBAN STRATEGIES INC","","","1542 E NEW YORK AVE",null,"BROOKLYN","NY","11212-6861"]
["Various Home Health","EXTENDED CARE","E0208294","112487454","TELFORD HOME ASSISTANCE INC","","",null,"445 HAMILTON AVE 10TH FLOOR","WHITE PLAINS","NY","10601-0000"]
["Various Home Health","PERSONAL TOUCH HOME CARE LI","E0257252","112498389","PERSONAL TOUCH HOME CARE LI","","","STE 11","1 FULTON AVE","HEMPSTEAD","NY","11550-3648"]
["Various Home Health","CABS HOME ATTENDANTS SERVICE","E0207221","112503313","CABS HOME ATTENDANTS SERVICE","","",null,"545 BROADWAY","BROOKLYN","NY","11206-2962"]
["Various Home Health","CABS HOME ATTENDANTS SERVICE","E0048289","112503313","CABS HOME ATTENDANTS SERVICE","","",null,"545 BROADWAY","BROOKLYN","NY","11206-2962"]
["Various Home Health","ROCKAWAY HOME ATTENDANT SERV","E0207621","112515063","ROCKAWAY HOME ATTENDANT SERV","","",null,"1603 CENTRAL AVE","FAR ROCKAWAY","NY","11691-4003"]
["Various Home Health","SUNNYSIDE HOME CARE PROJECT","E0207233","112515996","SUNNYSIDE HOME CARE PROJECT","","",null,"4331 39TH ST","LONG ISLAND CITY","NY","11104-4351"]
["Various Home Health","HOME CARE SRV INDEPENDENT LV","E0207648","112516716","HOME CARE SRV INDEPENDENT LV","","",null,"2044 OCEAN AVE STE 4B","BROOKLYN","NY","11230-7328"]
["Various Home Health","HUMAN DEVELOPMENT ASSOCIATION","E0207421","112520832","HUMAN DEVELOPMENT ASSOCIATION","","","12 HEYWARD ST",null,"BROOKLYN","NY","11211-7839"]
["Various Home Health","RIDGEWOOD BUSHWICK SEN CITZ","E0088114","112521680","RIDGEWOOD BUSHWICK SEN CITZ","","",null,"533 BUSHWICK AVE","BROOKLYN","NY","11206-4661"]
["Various Home Health","RIDGEWOOD-BUSHWICK SCHMCRCOUN","E0207622","112521680","RIDGEWOOD BUSHWICK SEN CITZ","","",null,"533 BUSHWICK AVE","BROOKLYN","NY","11206-4661"]
["Various Home Health","FAMILY CARE BKLYN/QNS","E0192649","112522225","FAMILY CARE BKLYN/QNS","","",null,"241 37TH ST","BROOKLYN","NY","11232-2417"]
["OPWDD  ","MODEST COMMUNITY SERVICES ASSOC DAY","E0286594","134288916","MODEST COMMUNITY SERVICES ASSOCIATE","","",null,"88 NEW DORP PLAZA SUITE 202","STATEN ISLAND","NY","10306-2902"]
["OPWDD  ","MODEST COMMUNITY SERVICES ASSOC SPV","E0290120","134288916","MODEST COMMUNITY SERVICES ASSOCIATE","","",null,"88 NEW DORP PLAZA SUITE 202","STATEN ISLAND","NY","10306-2902"]
["Various Home Health","FAMILY HM CARE OF BKLYN-QUEEN","E0206510","112522225","FAMILY CARE BKLYN/QNS","","",null,"241 37TH ST","BROOKLYN","NY","11232-2417"]
["Various Home Health","ST NICHOLAS HUMAN SUPPORT COR","E0207232","112526241","ST NICHOLAS HUMAN SUPPORT COR","","",null,"2 KINGSLAND AVENUE 2ND FLR","BROOKLYN","NY","11211-1695"]
["OPWDD  ","CATHOLIC GUARD SOC DRESDEN","E0226325","135562186","CATHOLIC GUARDIAN SOCIETY AND HOME","","","10TH FLOOR","1011 FIRST AVENUE","NEW YORK","NY","10022"]
["OPWDD  ","CATHOLIC GUARD SOC E 202 ST","E0263467","135562186","CATHOLIC GUARDIAN SOCIETY AND HOME","","","10TH FLOOR","1011 FIRST AVENUE","NEW YORK","NY","10022"]
["OPWDD  ","CATHOLIC GUARD SOC E HAMPTON","E0226817","135562186","CATHOLIC GUARDIAN SOCIETY AND HOME","","","10TH FLOOR","1011 FIRST AVENUE","NEW YORK","NY","10022"]
["OPWDD  ","CATHOLIC GUARD SOC HAMPTN BAY","E0227925","135562186","CATHOLIC GUARDIAN SOCIETY AND HOME","","","10TH FLOOR","1011 FIRST AVENUE","NEW YORK","NY","10022"]
["OPWDD  ","CATHOLIC GUARD SOC LACOMBE AV","E0188402","135562186","CATHOLIC GUARDIAN SOCIETY AND HOME","","","10TH FLOOR","1011 FIRST AVENUE","NEW YORK","NY","10022"]
["OPWDD  ","CATHOLIC GUARD SOC MANHTN PLZ","E0263522","135562186","CATHOLIC GUARDIAN SOCIETY AND HOME","","","10TH FLOOR","1011 FIRST AVENUE","NEW YORK","NY","10022"]
["OPWDD  ","CATHOLIC GUARD SOC MARION LN","E0223913","135562186","CATHOLIC GUARDIAN SOCIETY AND HOME","","","10TH FLOOR","1011 FIRST AVENUE","NEW YORK","NY","10022"]
["OPWDD  ","CATHOLIC GUARD SOC PAYSON AVE","E0263520","135562186","CATHOLIC GUARDIAN SOCIETY AND HOME","","","10TH FLOOR","1011 FIRST AVENUE","NEW YORK","NY","10022"]
["OPWDD  ","CATHOLIC GUARD SOC VICTOR ST","E0231332","135562186","CATHOLIC GUARDIAN SOCIETY AND HOME","","","10TH FLOOR","1011 FIRST AVENUE","NEW YORK","NY","10022"]
["OPWDD  ","CATHOLIC GUARD SOC W 23RD ST","E0227924","135562186","CATHOLIC GUARDIAN SOCIETY AND HOME","","","10TH FLOOR","1011 FIRST AVENUE","NEW YORK","NY","10022"]
["OPWDD  ","CATHOLIC GUARDIAN SOCIETY SPV","E0074697","135562186","CATHOLIC GUARDIAN SOCIETY AND HOME","","","10TH FLOOR","1011 FIRST AVENUE","NEW YORK","NY","10022"]
["OPWDD  ","CHILDRENS AID SOCIETY RSP","E0286707","135562191","CHILDRENS AID SOCIETY","","","150 E 45TH ST","HEALTH SVCS","NEW YORK","NY","10017-3115"]
["OMH  ","CHILDRENS AID SOC-LORD MEM CL","E0273891","135562191","CHILDRENS AID SOCIETY","7002233R","00245423","150 E 45TH ST","HEALTH SVCS","NEW YORK","NY","10017-3115"]
["Various Home Health","P S C COMMUNITY SERVICES","E0011024","112528865","P S C COMMUNITY SERVICES","","","120 JEWEL ST FL 2","FISCAL DEPARTMENT","BROOKLYN","NY","11222-2408"]
["OMH  ","EDUCATIONAL ALLIANCE INC","E0273910","135562210","EDUCATIONAL ALLIANCE, INC","","","197 E BROADWAY","PRESIDENT CEO","NEW YORK","NY","10002-5507"]
["OPWDD  ","JEWISH COMMUNITY CENTER OF SI RSP","E0293816","135562256","JEWISH COMMUNITY CENTER OF SI RSP","","",null,"1466 MANOR RD","STATEN ISLAND","NY","10314-7027"]
["OPWDD  ","MISSION OF IMMAC VIRGIN DAY","E0030169","135562286","MISSION OF THE IMMACULATE VRGN FOR","","",null,"6581 HYLAN BLVD","STATEN ISLAND","NY","10309-3830"]
["OPWDD  ","MISSION OF IMMAC VIRGIN KENNY","E0189602","135562286","MISSION OF THE IMMACULATE VRGN FOR","","",null,"6581 HYLAN BLVD","STATEN ISLAND","NY","10309-3830"]
["OPWDD  ","MISSION OF IMMAC VIRGIN SPV","E0074747","135562286","MISSION OF THE IMMACULATE VRGN FOR","","",null,"6581 HYLAN BLVD","STATEN ISLAND","NY","10309-3830"]
["Various Home Health","P S C COMMUNITY SERVICES  INC","E0207145","112528865","P S C COMMUNITY SERVICES","","","120 JEWEL ST FL 2","FISCAL DEPARTMENT","BROOKLYN","NY","11222-2408"]
["OPWDD  ","EPISC MIS SOC COLLEGE AVE ICF","E0194566","135562307","EPISC MIS SOC MORRIS AVE ICF","","",null,"305 7TH AVE FL 4","NEW YORK","NY","10001-6008"]
["OPWDD  ","EPISC MIS SOC METRO N (1956)","E0256584","135562307","EPISC MIS SOC MORRIS AVE ICF","","",null,"305 7TH AVE FL 4","NEW YORK","NY","10001-6008"]
["OPWDD  ","EPISC MIS SOC METRO N (1966)","E0256583","135562307","EPISC MIS SOC MORRIS AVE ICF","","",null,"305 7TH AVE FL 4","NEW YORK","NY","10001-6008"]
["OPWDD  ","EPISC MIS SOC MORRIS AVE ICF","E0172084","135562307","EPISC MIS SOC MORRIS AVE ICF","","",null,"305 7TH AVE FL 4","NEW YORK","NY","10001-6008"]
["Various Home Health","SOCIAL CONCERN COMM DEV  CORP","E0207618","112529738","SOCIAL CONCERN COMM DEV CORP","","",null,"22618 MERRICK BLVD","LAURELTON","NY","11413-2101"]
["OPWDD  ","SALVATION ARMY CENTENNIAL ICF","E0335793","135562351","SALVATION ARMY & ITS COMPONENTS","","",null,"440 W NYACK RD","WEST NYACK","NY","10994-1715"]
["OPWDD  ","SALVATION ARMY GLENDALE ICF","E0335778","135562351","SALVATION ARMY & ITS COMPONENTS","","",null,"440 W NYACK RD","WEST NYACK","NY","10994-1715"]
["OPWDD  ","SALVATION ARMY HOPE HOUSE","E0335775","135562351","SALVATION ARMY & ITS COMPONENTS","","",null,"440 W NYACK RD","WEST NYACK","NY","10994-1715"]
["OPWDD  ","THE SALVATION ARMY SPV","E0333197","135562351","SALVATION ARMY & ITS COMPONENTS","","",null,"440 W NYACK RD","WEST NYACK","NY","10994-1715"]
["OPWDD  ","THE SALVATION ARMY SSC HCBS","E0335796","135562351","SALVATION ARMY & ITS COMPONENTS","","",null,"440 W NYACK RD","WEST NYACK","NY","10994-1715"]
["OMH  ","UNIVERSITY SETTLEMENT","E0274025","135562374","UNIVERSITY SETTLEMENT SOC MH","","","184 ELDRIDGE ST","ASST EXEC DIRECTOR","NEW YORK","NY","10002-2924"]
["Various Home Health","ALL METRO AIDS INC","E0005456","112542379","ALL METRO AIDS INC","","",null,"50 BROADWAY","LYNBROOK","NY","11563"]
["Various Home Health","BROWNSVILLE FAM HLTH CTR AI","E0171875","112544630","BROWNSVILLE FAM HLTH CTR AI","","","592 ROCKAWAY AVE","PRESIDENT & CEO","BROOKLYN","NY","11212-5539"]
["Various Home Health","URBAN RESOURCE ONSTITUTE ND 1","E0060849","112561648","URBAN RESOURCE ONSTITUTE ND 1","","","22 CHAPEL ST",null,"BROOKLYN","NY","11201-1903"]
["OMH  ","HUDSON GUILD","E0273942","135562989","HUDSON GUILD","","",null,"441 W 26TH ST","NEW YORK","NY","10001-5629"]
["Various Home Health","MERMAID MANOR HOME  FOR ADULTS ALP","E0307104","112570093","MERMAID MANOR HOME FOR ADULTS","","",null,"3602 MERMAID AVE","BROOKLYN","NY","11224-1511"]
["Various Home Health","SCHOOL SETT HOME ATT SER CORP","E0207530","112578076","SCHOOL SETT HOME ATT SER CORP","","",null,"357 MANHATTAN AVE","BROOKLYN","NY","11211-2428"]
["OMH  ","JEWISH BD FAM/CHILD SVCS MH","E0156343","135564937","JEWISH BOARD OF FAMILY & CHILDRENS","","",null,"135TH W 50TH ST FL6","NEW YORK","NY","10020-1201"]
["OMH  ","JEWISH BD OF FAM CHILD SVC","E0159401","135564937","JEWISH BOARD OF FAMILY & CHILDRENS","","",null,"135TH W 50TH ST FL6","NEW YORK","NY","10020-1201"]
["OMH  ","JEWISH BOARD FAMILY CHILD B","E0221487","135564937","JEWISH BOARD OF FAMILY & CHILDRENS","","",null,"135TH W 50TH ST FL6","NEW YORK","NY","10020-1201"]
["OMH  ","JEWISH BOARD FAMILY CHILD C","E0084504","135564937","JEWISH BOARD OF FAMILY & CHILDRENS","","",null,"135TH W 50TH ST FL6","NEW YORK","NY","10020-1201"]
["OMH  ","JEWISH BOARD OF FMLY&CHILD SV","E0169563","135564937","JEWISH BOARD OF FAMILY & CHILDRENS","","",null,"135TH W 50TH ST FL6","NEW YORK","NY","10020-1201"]
["OMH  ","RTF JEWISH BOARD GOLDSMITH CT","E0219603","135564937","JEWISH BOARD OF FAMILY & CHILDRENS","","",null,"135TH W 50TH ST FL6","NEW YORK","NY","10020-1201"]
["OMH  ","RTF JEWISH BOARD ITTLESON CTR","E0219601","135564937","JEWISH BOARD OF FAMILY & CHILDRENS","","",null,"135TH W 50TH ST FL6","NEW YORK","NY","10020-1201"]
["OMH  ","RTF JEWISH BOARD LINDEN HILL","E0219602","135564937","JEWISH BOARD OF FAMILY & CHILDRENS","","",null,"135TH W 50TH ST FL6","NEW YORK","NY","10020-1201"]
["OPWDD  ","JEWISH BD FAM & CHILD GAN ICF","E0148984","135564937","JEWISH BOARD OF FAMILY & CHILDRENS","","",null,"135TH W 50TH ST FL6","NEW YORK","NY","10020-1201"]
["OPWDD  ","JEWISH BD FAM & CHLD BAIS ICF","E0148981","135564937","JEWISH BOARD OF FAMILY & CHILDRENS","","",null,"135TH W 50TH ST FL6","NEW YORK","NY","10020-1201"]
["OPWDD  ","JEWISH BD FAM CHILD KINGSBROO","E0181163","135564937","JEWISH BOARD OF FAMILY & CHILDRENS","","",null,"135TH W 50TH ST FL6","NEW YORK","NY","10020-1201"]
["OPWDD  ","JEWISH BD FAM CHILD MISHKON","E0213538","135564937","JEWISH BOARD OF FAMILY & CHILDRENS","","",null,"135TH W 50TH ST FL6","NEW YORK","NY","10020-1201"]
["OPWDD  ","JEWISH BD FAM CHILD MT VERNON","E0173563","135564937","JEWISH BOARD OF FAMILY & CHILDRENS","","",null,"135TH W 50TH ST FL6","NEW YORK","NY","10020-1201"]
["OPWDD  ","JEWISH BD FAM CHILD WASHINGTN","E0183901","135564937","JEWISH BOARD OF FAMILY & CHILDRENS","","",null,"135TH W 50TH ST FL6","NEW YORK","NY","10020-1201"]
["OPWDD  ","JEWISH BD FAM&CHLD VERNONDALE","E0163656","135564937","JEWISH BOARD OF FAMILY & CHILDRENS","","",null,"135TH W 50TH ST FL6","NEW YORK","NY","10020-1201"]
["OPWDD  ","JEWISH BOARD FAM AND CHILD SVCS DAY","E0288631","135564937","JEWISH BOARD OF FAMILY & CHILDRENS","","",null,"135TH W 50TH ST FL6","NEW YORK","NY","10020-1201"]
["OPWDD  ","JEWISH BOARD OF FAM CHILD SPV","E0074753","135564937","JEWISH BOARD OF FAMILY & CHILDRENS","","",null,"135TH W 50TH ST FL6","NEW YORK","NY","10020-1201"]
["OPWDD  ","NYC CHAPTER NYSARC INC","E0315247","135596746","NYSARC INC","","","11TH FLOOR","83 MAIDEN LN","NEW YORK","NY","10038-4812"]
["OPWDD  ","NYC CHAPTER NYSARC INC","E0315243","135596746","NYSARC INC","","","11TH FLOOR","83 MAIDEN LN","NEW YORK","NY","10038-4812"]
["OPWDD  ","NYC CHAPTER NYSARC INC","E0315368","135596746","NYSARC INC","","","11TH FLOOR","83 MAIDEN LN","NEW YORK","NY","10038-4812"]
["OPWDD  ","NYC CHAPTER NYSARC INC","E0315234","135596746","NYSARC INC","","","11TH FLOOR","83 MAIDEN LN","NEW YORK","NY","10038-4812"]
["OPWDD  ","NYS ARC NYC CHAPTER","E0273933","135596746","NYSARC INC","","","11TH FLOOR","83 MAIDEN LN","NEW YORK","NY","10038-4812"]
["OPWDD  ","NYS ASSO RETARDED CHLDN AGOVI","E0211358","135596746","NYSARC INC","","","11TH FLOOR","83 MAIDEN LN","NEW YORK","NY","10038-4812"]
["OPWDD  ","NYSARC INC NYC CHAP SE 2A ICF","E0008702","135596746","NYSARC INC","","","11TH FLOOR","83 MAIDEN LN","NEW YORK","NY","10038-4812"]
["OPWDD  ","NYSARC INC NYC CHAP SS 3D ICF","E0008701","135596746","NYSARC INC","","","11TH FLOOR","83 MAIDEN LN","NEW YORK","NY","10038-4812"]
["OPWDD  ","NYSARC INC NYC CHAP SW 2B ICF","E0008699","135596746","NYSARC INC","","","11TH FLOOR","83 MAIDEN LN","NEW YORK","NY","10038-4812"]
["OPWDD  ","NYSARC INC NYC CHAPTER DAY","E0029821","135596746","NYSARC INC","","","11TH FLOOR","83 MAIDEN LN","NEW YORK","NY","10038-4812"]
["OPWDD  ","NYSARC INC NYC CHAPTER FSR 3","E0040709","135596746","NYSARC INC","","","11TH FLOOR","83 MAIDEN LN","NEW YORK","NY","10038-4812"]
["OPWDD  ","NYSARC INC NYC CHAPTER FSR 4","E0040151","135596746","NYSARC INC","","","11TH FLOOR","83 MAIDEN LN","NEW YORK","NY","10038-4812"]
["OPWDD  ","NYSARC INC NYC CHAPTER SMP","E0083065","135596746","NYSARC INC","","","11TH FLOOR","83 MAIDEN LN","NEW YORK","NY","10038-4812"]
["OPWDD  ","NYSARC INC NYC CHAPTER SN 3C","E0008700","135596746","NYSARC INC","","","11TH FLOOR","83 MAIDEN LN","NEW YORK","NY","10038-4812"]
["OPWDD  ","NYSARC INC NYC CHAPTER SPT","E0075204","135596746","NYSARC INC","","","11TH FLOOR","83 MAIDEN LN","NEW YORK","NY","10038-4812"]
["OPWDD  ","NYSARC INC NYC CHAPTER SPV","E0075201","135596746","NYSARC INC","","","11TH FLOOR","83 MAIDEN LN","NEW YORK","NY","10038-4812"]
["OPWDD  ","NYSARC INC NYS CHAPTER RSP","E0040966","135596746","NYSARC INC","","","11TH FLOOR","83 MAIDEN LN","NEW YORK","NY","10038-4812"]
["OMH  ","TRUSTEES OF COLUMBIA UNIV","E0211639","135598093","TRUSTEES OF COLUMBIA","","",null,"PO BOX GPO 5501","NEW YORK","NY","10087-0001"]
["Various Home Health","BHRAGS HOME CARE         CORP","E0207525","112579798","BHRAGS HOME CARE CORP","","","444 THOMAS S BOYLAND ST","BHRAGS HOMECARE INC","BROOKLYN","NY","11212-5042"]
["Various Home Health","FAMILY SERVICES NETWORK NY AI","E0129904","112592651","FAMILY SERVICES NETWORK NY AI","","",null,"1420 BUSHWICK AVE","BROOKLYN","NY","11207-1422"]
["OMH  ","KAREN HORNEY CLINIC,INC","E0274017","135638826","KAREN HORNEY CLINIC,INC","","",null,"329 E 62ND ST","NEW YORK","NY","10065-7705"]
["OPWDD  ","UCP NYC CASTLTN 165 ST MK2A-B","E0193489","135654532","UNITED CEREBRAL PALSY OF NYC INC","","",null,"80 MAIDEN LANE","NEW YORK","NY","10038-4783"]
["OPWDD  ","UCP NYC CASTLTN 185 ST MK 1LM","E0213837","135654532","UNITED CEREBRAL PALSY OF NYC INC","","",null,"80 MAIDEN LANE","NEW YORK","NY","10038-4783"]
["OPWDD  ","UCP NYC CASTLTN 185 ST MK 2LM","E0213836","135654532","UNITED CEREBRAL PALSY OF NYC INC","","",null,"80 MAIDEN LANE","NEW YORK","NY","10038-4783"]
["OPWDD  ","UCP NYC DAY TRT ST ISLAND","E0225234","135654532","UNITED CEREBRAL PALSY OF NYC INC","","",null,"80 MAIDEN LANE","NEW YORK","NY","10038-4783"]
["OPWDD  ","UCP NYC LAKE ST ICF","E0164524","135654532","UNITED CEREBRAL PALSY OF NYC INC","","",null,"80 MAIDEN LANE","NEW YORK","NY","10038-4783"]
["OPWDD  ","UCP NYC MICHAELANGELO APT 4E,","E0256523","135654532","UNITED CEREBRAL PALSY OF NYC INC","","",null,"80 MAIDEN LANE","NEW YORK","NY","10038-4783"]
["OPWDD  ","UCP NYC MICHAELANGELO APT 4F,","E0204762","135654532","UNITED CEREBRAL PALSY OF NYC INC","","",null,"80 MAIDEN LANE","NEW YORK","NY","10038-4783"]
["OPWDD  ","UCP NYC STARRETT 2A-2D,2G","E0256526","135654532","UNITED CEREBRAL PALSY OF NYC INC","","",null,"80 MAIDEN LANE","NEW YORK","NY","10038-4783"]
["OPWDD  ","UCP NYC STARRETT VAN DAHLIA","E0256522","135654532","UNITED CEREBRAL PALSY OF NYC INC","","",null,"80 MAIDEN LANE","NEW YORK","NY","10038-4783"]
["OPWDD  ","UCP NYC TANYA TOWERS ICF","E0256582","135654532","UNITED CEREBRAL PALSY OF NYC INC","","",null,"80 MAIDEN LANE","NEW YORK","NY","10038-4783"]
["OPWDD  ","UCP NYC WATERSIDE ICF","E0222111","135654532","UNITED CEREBRAL PALSY OF NYC INC","","",null,"80 MAIDEN LANE","NEW YORK","NY","10038-4783"]
["OPWDD  ","UCP OF NYC FSR 1","E0039068","135654532","UNITED CEREBRAL PALSY OF NYC INC","","",null,"80 MAIDEN LANE","NEW YORK","NY","10038-4783"]
["OPWDD  ","UCP OF NYC INC SPT","E0074554","135654532","UNITED CEREBRAL PALSY OF NYC INC","","",null,"80 MAIDEN LANE","NEW YORK","NY","10038-4783"]
["OPWDD  ","UCP OF NYC INC SPV","E0074557","135654532","UNITED CEREBRAL PALSY OF NYC INC","","",null,"80 MAIDEN LANE","NEW YORK","NY","10038-4783"]
["OPWDD  ","UNITED CEREBRAL PALSY NYC DAY","E0029839","135654532","UNITED CEREBRAL PALSY OF NYC INC","","",null,"80 MAIDEN LANE","NEW YORK","NY","10038-4783"]
["OPWDD  ","UNITED CEREBRAL PALSY OF NYC","E0273930","135654532","UNITED CEREBRAL PALSY OF NYC INC","7002288R","00245001",null,"80 MAIDEN LANE","NEW YORK","NY","10038-4783"]
["OPWDD  ","COMMUNITY RESOURCES ND 2","E0037645","135660279","STATEN ISLAND AID FOR RET. CHILDREN","","",null,"3450 VICTORY BLVD","STATEN ISLAND","NY","10314-6721"]
["OPWDD  ","STATEN ISLAND AID INC DAY","E0029731","135660279","STATEN ISLAND AID FOR RET. CHILDREN","","",null,"3450 VICTORY BLVD","STATEN ISLAND","NY","10314-6721"]
["OPWDD  ","STATEN ISLAND AID SMP","E0083125","135660279","STATEN ISLAND AID FOR RET. CHILDREN","","",null,"3450 VICTORY BLVD","STATEN ISLAND","NY","10314-6721"]
["OPWDD  ","STATEN ISLAND AID SPT","E0075121","135660279","STATEN ISLAND AID FOR RET. CHILDREN","","",null,"3450 VICTORY BLVD","STATEN ISLAND","NY","10314-6721"]
["Various Home Health","OPTIONS FOR COMM LIVING AI","E0150830","112612035","OPTIONS FOR COMM LIVING AI","","","202 E MAIN ST STE 7","FISCAL MANAGER","SMITHTOWN","NY","11787-2806"]
["OPWDD  ","EDWIN GOULD SERVICES DAY/CH","E0324037","135675643","EDWIN GOULD SVCS/CHILD ND 2","","","5 FL","151 LAWRENCE ST","BROOKLYN","NY","11201-5240"]
["OPWDD  ","EDWIN GOULD SRV CHLDRN FOLKES","E0263495","135675643","EDWIN GOULD SVCS/CHILD ND 2","","","5 FL","151 LAWRENCE ST","BROOKLYN","NY","11201-5240"]
["OPWDD  ","EDWIN GOULD SVCS/CHILD SPV","E0075418","135675643","EDWIN GOULD SVCS/CHILD ND 2","","","5 FL","151 LAWRENCE ST","BROOKLYN","NY","11201-5240"]
["OMH  ","WESTCHESTER COUNTY DCMH","E0244653","136007353","WESTCHESTER CNTY DC MH","","","112 E POST RD","DIR ADMIN SER","WHITE PLAINS","NY","10601-5113"]
["Various Home Health","UTOPIA HOME CARE","E0186527","112635043","UTOPIA HOME CARE","","",null,"60 E MAIN ST","KINGS PARK","NY","11754-2710"]
["Various Home Health","BETH EMETH HA SERVICE","E0207320","112661726","BETH EMETH HA SERVICE","","",null,"1080 MCDONALD AVE","BROOKLYN","NY","11230-2633"]
["OMH  ","ROCKLAND HOSPITAL GUILD INC","E0169409","136157662","ROCKLAND HOSPITAL GUILD INC","","",null,"2 IRVINGS WAY","ORANGEBURG","NY","10962-1160"]
["OPWDD  ","CARC INC SMP","E0082903","136160907","COMMUNITY AID FOR RETARTED CHILDREN","","",null,"PO BOX 147","MONTROSE","NY","10548-0147"]
["OPWDD  ","COMM AID F/RETARD CHIL DAY","E0029826","136160907","COMMUNITY AID FOR RETARTED CHILDREN","","",null,"PO BOX 147","MONTROSE","NY","10548-0147"]
["OMH  ","PUERTO RICAN FAMILY INST MH","E0157553","136167177","PUERTO RICAN FAMILY INST ND 1","","","145 W 15TH ST","PRFI/IRA PROGRAM","NEW YORK","NY","10011-6701"]
["OMH  ","PUERTO RICAN FAMILY INSTITUTE","E0273941","136167177","PUERTO RICAN FAMILY INST ND 1","","","145 W 15TH ST","PRFI/IRA PROGRAM","NEW YORK","NY","10011-6701"]
["OPWDD  ","PUERTO RICAN FAM INST ICF #2","E0263498","136167177","PUERTO RICAN FAMILY INST ND 1","","","145 W 15TH ST","PRFI/IRA PROGRAM","NEW YORK","NY","10011-6701"]
["OPWDD  ","PUERTO RICAN FAM INST ICF #3","E0188545","136167177","PUERTO RICAN FAMILY INST ND 1","","","145 W 15TH ST","PRFI/IRA PROGRAM","NEW YORK","NY","10011-6701"]
["OPWDD  ","PUERTO RICAN FAM INST LACONIA","E0263497","136167177","PUERTO RICAN FAMILY INST ND 1","","","145 W 15TH ST","PRFI/IRA PROGRAM","NEW YORK","NY","10011-6701"]
["OPWDD  ","PUERTO RICAN FAMILY INST ND 1","E0063488","136167177","PUERTO RICAN FAMILY INST ND 1","","","145 W 15TH ST","PRFI/IRA PROGRAM","NEW YORK","NY","10011-6701"]
["OPWDD  ","CHINESE AMERICAN PLAN SPV","E0075463","136202692","CHINESE AMERICAN PLAN SPV","","","150 ELIZABETH ST",null,"NEW YORK","NY","10012-4603"]
["Various Home Health","POMONOK HOME SERVICES","E0207377","112694987","POMONOK HOME SERVICES","","",null,"6117 190TH ST # S201","FRESH MEADOWS","NY","11365-2715"]
["Various Home Health","REGO PARK NURSING HOME ADHC","E0120452","112697107","REGO PARK NURSING HOME ADHC","","","111 26 CORONA AVE","ADULT DAY CARE DEPT","REGO PARK","NY","11368"]
["Various Home Health","ISLAND HOME CARE AGENCY","E0211291","112721354","ISLAND HOME CARE AGENCY","","",null,"175 D COMMERCE DRIVE","HAUPPAUGE","NY","11788-3920"]
["OPWDD  ","UCP OF ULSTER CO ND 2","E0038055","141377518","UCP OF ULSTER CO ND 3","","","PO BOX 1488",null,"KINGSTON","NY","12402-1488"]
["OPWDD  ","UCP OF ULSTER CO ND 3","E0038054","141377518","UCP OF ULSTER CO ND 3","","","PO BOX 1488",null,"KINGSTON","NY","12402-1488"]
["OPWDD  ","UCP OF ULSTER DAY TRT","E0187913","141377518","UCP OF ULSTER CO ND 3","","","PO BOX 1488",null,"KINGSTON","NY","12402-1488"]
["OPWDD  ","UCP ULSTER HILLCREST HSE ICF","E0228777","141377518","UCP OF ULSTER CO ND 3","","","PO BOX 1488",null,"KINGSTON","NY","12402-1488"]
["OPWDD  ","UCP ULSTER LASHER ICF","E0247774","141377518","UCP OF ULSTER CO ND 3","","","PO BOX 1488",null,"KINGSTON","NY","12402-1488"]
["OPWDD  ","UCP ULSTER OBERKIRCH ICF","E0188650","141377518","UCP OF ULSTER CO ND 3","","","PO BOX 1488",null,"KINGSTON","NY","12402-1488"]
["OPWDD  ","UCP ULSTER YANKEE FOLLY ICF","E0165320","141377518","UCP OF ULSTER CO ND 3","","","PO BOX 1488",null,"KINGSTON","NY","12402-1488"]
["OPWDD  ","SDTC CTR FOR DISCOVERY SPV","E0074435","141395426","SDTC-THE CENTER FOR DISCOVERY INC","","",null,"PO BOX 840 BENMOSCHE RD","HARRIS","NY","12742-0840"]
["OPWDD  ","SDTC THE CENTER F/DISCOVERY GRANITE","E0007927","141395426","SDTC-THE CENTER FOR DISCOVERY INC","","",null,"PO BOX 840 BENMOSCHE RD","HARRIS","NY","12742-0840"]
["OPWDD  ","SDTC THE CENTER FOR DISCOVERY","E0198984","141395426","SDTC-THE CENTER FOR DISCOVERY INC","","",null,"PO BOX 840 BENMOSCHE RD","HARRIS","NY","12742-0840"]
["OPWDD  ","SDTC THE CENTER FOR DISCOVERY","E0213489","141395426","SDTC-THE CENTER FOR DISCOVERY INC","","",null,"PO BOX 840 BENMOSCHE RD","HARRIS","NY","12742-0840"]
["OPWDD  ","SDTC THE CENTER FOR DISCOVERY","E0211380","141395426","SDTC-THE CENTER FOR DISCOVERY INC","","",null,"PO BOX 840 BENMOSCHE RD","HARRIS","NY","12742-0840"]
["OPWDD  ","SDTC THE CENTER FOR DISCOVERY","E0188750","141395426","SDTC-THE CENTER FOR DISCOVERY INC","","",null,"PO BOX 840 BENMOSCHE RD","HARRIS","NY","12742-0840"]
["OPWDD  ","SDTC THE CENTER FOR DISCOVERY","E0195309","141395426","SDTC-THE CENTER FOR DISCOVERY INC","","",null,"PO BOX 840 BENMOSCHE RD","HARRIS","NY","12742-0840"]
["OPWDD  ","SDTC THE CENTER FOR DISCOVERY","E0211053","141395426","SDTC-THE CENTER FOR DISCOVERY INC","","",null,"PO BOX 840 BENMOSCHE RD","HARRIS","NY","12742-0840"]
["OPWDD  ","SDTC THE CENTER FOR DISCOVERY","E0194567","141395426","SDTC-THE CENTER FOR DISCOVERY INC","","",null,"PO BOX 840 BENMOSCHE RD","HARRIS","NY","12742-0840"]
["OPWDD  ","SDTC THE CENTER FOR DISCOVERY","E0196595","141395426","SDTC-THE CENTER FOR DISCOVERY INC","","",null,"PO BOX 840 BENMOSCHE RD","HARRIS","NY","12742-0840"]
["OPWDD  ","SDTC THE CENTER FOR DISCOVERY","E0045187","141395426","SDTC-THE CENTER FOR DISCOVERY INC","","",null,"PO BOX 840 BENMOSCHE RD","HARRIS","NY","12742-0840"]
["OPWDD  ","SDTC THE CENTER FOR DISCOVERY","E0081116","141395426","SDTC-THE CENTER FOR DISCOVERY INC","","",null,"PO BOX 840 BENMOSCHE RD","HARRIS","NY","12742-0840"]
["OPWDD  ","SDTC THE CENTER FOR DISCOVERY","E0114652","141395426","SDTC-THE CENTER FOR DISCOVERY INC","","",null,"PO BOX 840 BENMOSCHE RD","HARRIS","NY","12742-0840"]
["OPWDD  ","SDTC THE CENTER FOR DISCOVERY","E0082709","141395426","SDTC-THE CENTER FOR DISCOVERY INC","","",null,"PO BOX 840 BENMOSCHE RD","HARRIS","NY","12742-0840"]
["OPWDD  ","SDTC THE CENTER FOR DISCOVERY","E0114245","141395426","SDTC-THE CENTER FOR DISCOVERY INC","","",null,"PO BOX 840 BENMOSCHE RD","HARRIS","NY","12742-0840"]
["OPWDD  ","SDTC THE CENTER FOR DISCOVERY","E0081092","141395426","SDTC-THE CENTER FOR DISCOVERY INC","","",null,"PO BOX 840 BENMOSCHE RD","HARRIS","NY","12742-0840"]
["OPWDD  ","SDTC THE CENTER FOR DISCOVERY","E0228277","141395426","SDTC-THE CENTER FOR DISCOVERY INC","","",null,"PO BOX 840 BENMOSCHE RD","HARRIS","NY","12742-0840"]
["OPWDD  ","SDTC THE CENTER FOR DISCOVERY SLATE","E0007926","141395426","SDTC-THE CENTER FOR DISCOVERY INC","","",null,"PO BOX 840 BENMOSCHE RD","HARRIS","NY","12742-0840"]
["OPWDD  ","SDTC THE CTR/DISCOVERY DAY","E0029734","141395426","SDTC-THE CENTER FOR DISCOVERY INC","","",null,"PO BOX 840 BENMOSCHE RD","HARRIS","NY","12742-0840"]
["OPWDD  ","SDTC-CENTER FOR DISCOVERY","E0048513","141395426","SDTC-THE CENTER FOR DISCOVERY INC","","",null,"PO BOX 840 BENMOSCHE RD","HARRIS","NY","12742-0840"]
["OPWDD  ","SDTC-CTR F/ DISC ELM ICF","E0010248","141395426","SDTC-THE CENTER FOR DISCOVERY INC","","",null,"PO BOX 840 BENMOSCHE RD","HARRIS","NY","12742-0840"]
["OPWDD  ","SDTC-CTR F/ DISCOVERY 2 REDWOOD","E0010249","141395426","SDTC-THE CENTER FOR DISCOVERY INC","","",null,"PO BOX 840 BENMOSCHE RD","HARRIS","NY","12742-0840"]
["OPWDD  ","SDTC-CTR F/ DISCOVERY TULIP ICF","E0010246","141395426","SDTC-THE CENTER FOR DISCOVERY INC","","",null,"PO BOX 840 BENMOSCHE RD","HARRIS","NY","12742-0840"]
["OPWDD  ","SDTC-CTR F/DISCOVERY HARVEST","E0044345","141395426","SDTC-THE CENTER FOR DISCOVERY INC","","",null,"PO BOX 840 BENMOSCHE RD","HARRIS","NY","12742-0840"]
["OPWDD  ","SDTC-CTR F/DISCOVERY PARSLEY","E0047202","141395426","SDTC-THE CENTER FOR DISCOVERY INC","","",null,"PO BOX 840 BENMOSCHE RD","HARRIS","NY","12742-0840"]
["OPWDD  ","SDTC-CTR F/DISCOVERY ROSEMARY","E0047200","141395426","SDTC-THE CENTER FOR DISCOVERY INC","","",null,"PO BOX 840 BENMOSCHE RD","HARRIS","NY","12742-0840"]
["OPWDD  ","SDTC-CTR F/DISCOVERY SAGE ICF","E0047116","141395426","SDTC-THE CENTER FOR DISCOVERY INC","","",null,"PO BOX 840 BENMOSCHE RD","HARRIS","NY","12742-0840"]
["OPWDD  ","SDTC-CTR F/DISCOVERY SUNSET#1","E0047114","141395426","SDTC-THE CENTER FOR DISCOVERY INC","","",null,"PO BOX 840 BENMOSCHE RD","HARRIS","NY","12742-0840"]
["OPWDD  ","SDTC-CTR F/DISCOVERY SUNSET#2","E0047186","141395426","SDTC-THE CENTER FOR DISCOVERY INC","","",null,"PO BOX 840 BENMOSCHE RD","HARRIS","NY","12742-0840"]
["OPWDD  ","SDTC-CTR F/DISCOVERY THYME","E0047108","141395426","SDTC-THE CENTER FOR DISCOVERY INC","","",null,"PO BOX 840 BENMOSCHE RD","HARRIS","NY","12742-0840"]
["OPWDD  ","SDTC-CTR F/DISCVRY OTIS ARMST","E0047203","141395426","SDTC-THE CENTER FOR DISCOVERY INC","","",null,"PO BOX 840 BENMOSCHE RD","HARRIS","NY","12742-0840"]
["OPWDD  ","SDTC-THE CTR F/ DISC EVERGREEN ICF","E0010247","141395426","SDTC-THE CENTER FOR DISCOVERY INC","","",null,"PO BOX 840 BENMOSCHE RD","HARRIS","NY","12742-0840"]
["OPWDD  ","THE CENTER FOR DISCOVERY","E0302888","141395426","SDTC-THE CENTER FOR DISCOVERY INC","","",null,"PO BOX 840 BENMOSCHE RD","HARRIS","NY","12742-0840"]
["OPWDD  ","THE CENTER FOR DISCOVERY","E0326090","141395426","SDTC-THE CENTER FOR DISCOVERY INC","","",null,"PO BOX 840 BENMOSCHE RD","HARRIS","NY","12742-0840"]
["OPWDD  ","THE CENTER FOR DISCOVERY","E0316245","141395426","SDTC-THE CENTER FOR DISCOVERY INC","","",null,"PO BOX 840 BENMOSCHE RD","HARRIS","NY","12742-0840"]
["OPWDD  ","THE CENTER FOR DISCOVERY","E0302886","141395426","SDTC-THE CENTER FOR DISCOVERY INC","","",null,"PO BOX 840 BENMOSCHE RD","HARRIS","NY","12742-0840"]
["OPWDD  ","THE CENTER FOR DISCOVERY ASPEN ICF","E0303513","141395426","SDTC-THE CENTER FOR DISCOVERY INC","","",null,"PO BOX 840 BENMOSCHE RD","HARRIS","NY","12742-0840"]
["OPWDD  ","THE CENTER FOR DISCOVERY BALSAM ICF","E0311760","141395426","SDTC-THE CENTER FOR DISCOVERY INC","","",null,"PO BOX 840 BENMOSCHE RD","HARRIS","NY","12742-0840"]
["OPWDD  ","THE CENTER FOR DISCOVERY BRIARWOOD","E0303989","141395426","SDTC-THE CENTER FOR DISCOVERY INC","","",null,"PO BOX 840 BENMOSCHE RD","HARRIS","NY","12742-0840"]
["OPWDD  ","CARDINAL HAYES HM AMENIA ICF","E0182902","141395444","CARDINAL HAYES HM CHILD RSP","","","PO BOX CHHC","60 ST JOSEPH DR","MILLBROOK","NY","12545-0140"]
["OPWDD  ","CARDINAL HAYES HM BROWNING RD","E0224586","141395444","CARDINAL HAYES HM CHILD RSP","","","PO BOX CHHC","60 ST JOSEPH DR","MILLBROOK","NY","12545-0140"]
["OPWDD  ","CARDINAL HAYES HM GASPARRO DR","E0226821","141395444","CARDINAL HAYES HM CHILD RSP","","","PO BOX CHHC","60 ST JOSEPH DR","MILLBROOK","NY","12545-0140"]
["OPWDD  ","CARDINAL HAYES HM MILLBROOK","E0206111","141395444","CARDINAL HAYES HM CHILD RSP","","","PO BOX CHHC","60 ST JOSEPH DR","MILLBROOK","NY","12545-0140"]
["OPWDD  ","CARDINAL HAYES HM O'HARE DR","E0226820","141395444","CARDINAL HAYES HM CHILD RSP","","","PO BOX CHHC","60 ST JOSEPH DR","MILLBROOK","NY","12545-0140"]
["OPWDD  ","CARDINAL HAYES HM RED HOOK","E0182909","141395444","CARDINAL HAYES HM CHILD RSP","","","PO BOX CHHC","60 ST JOSEPH DR","MILLBROOK","NY","12545-0140"]
["OMH  ","ASTOR HOME FOR CHILDREN FBT","E0144364","141397918","ASTOR HOME FOR CHILDREN FBT","","","PO BOX 5005","CHIEF FINANCIAL OFFI","RHINEBECK","NY","12572-5005"]
["OPWDD  ","NYS ARC PUTNAM CO CHAPTER","E0030361","141426729","NYSARC INC PUTNAM COUNTY CHAPTER","","",null,"31 INTERNATIONAL BLVD","BREWSTER","NY","10509-2343"]
["OPWDD  ","PUTNAM ARC DAY","E0029819","141426729","NYSARC INC PUTNAM COUNTY CHAPTER","","",null,"31 INTERNATIONAL BLVD","BREWSTER","NY","10509-2343"]
["OPWDD  ","PUTNAM COUNTY CHAP NYSARC RSP","E0040404","141426729","NYSARC INC PUTNAM COUNTY CHAPTER","","",null,"31 INTERNATIONAL BLVD","BREWSTER","NY","10509-2343"]
["OPWDD  ","PUTNAM COUNTY CHAP NYSARC SPT","E0075253","141426729","NYSARC INC PUTNAM COUNTY CHAPTER","","",null,"31 INTERNATIONAL BLVD","BREWSTER","NY","10509-2343"]
["OPWDD  ","PUTNAM COUNTY CHAP NYSARC SPV","E0075257","141426729","NYSARC INC PUTNAM COUNTY CHAPTER","","",null,"31 INTERNATIONAL BLVD","BREWSTER","NY","10509-2343"]
["OPWDD  ","ULSTER GREEN ARC RSP","E0040770","141437657","NYSARC INC ULSTER-GREENE CO CHAPTER","","","44 HOLLAND AVE","SERVICE COORDINATOR","ALBANY","NY","12229-0001"]
["OPWDD  ","ULSTER GREEN NYSARC FLATBUSH BLD 2","E0306048","141437657","NYSARC INC ULSTER-GREENE CO CHAPTER","","","44 HOLLAND AVE","SERVICE COORDINATOR","ALBANY","NY","12229-0001"]
["OPWDD  ","ULSTER GREEN NYSARC FLATBUSH BLD 3","E0306039","141437657","NYSARC INC ULSTER-GREENE CO CHAPTER","","","44 HOLLAND AVE","SERVICE COORDINATOR","ALBANY","NY","12229-0001"]
["OPWDD  ","ULSTER GREENE ARC DAY","E0029838","141437657","NYSARC INC ULSTER-GREENE CO CHAPTER","","","44 HOLLAND AVE","SERVICE COORDINATOR","ALBANY","NY","12229-0001"]
["OPWDD  ","ULSTER GREENE ARC SPT","E0074821","141437657","NYSARC INC ULSTER-GREENE CO CHAPTER","","","44 HOLLAND AVE","SERVICE COORDINATOR","ALBANY","NY","12229-0001"]
["OPWDD  ","ULSTER GREENE ARC SPV","E0074823","141437657","NYSARC INC ULSTER-GREENE CO CHAPTER","","","44 HOLLAND AVE","SERVICE COORDINATOR","ALBANY","NY","12229-0001"]
["OPWDD  ","ULSTER-GREENE ARC","E0018788","141437657","NYSARC INC ULSTER-GREENE CO CHAPTER","","","44 HOLLAND AVE","SERVICE COORDINATOR","ALBANY","NY","12229-0001"]
["OPWDD  ","ULSTER-GREENE ARC PALMER ICF","E0213838","141437657","NYSARC INC ULSTER-GREENE CO CHAPTER","","","44 HOLLAND AVE","SERVICE COORDINATOR","ALBANY","NY","12229-0001"]
["OPWDD  ","ULSTER-GREENE ARC SMP","E0083230","141437657","NYSARC INC ULSTER-GREENE CO CHAPTER","","","44 HOLLAND AVE","SERVICE COORDINATOR","ALBANY","NY","12229-0001"]
["OPWDD  ","GATEWAY COMMUNITY IND   DAY","E0030241","141458757","GATEWAY COMMUNITY INDUSTRIES INC","","","PO BOX 5002","ONE AMY KAY PARKWAY","KINGSTON","NY","12402-5002"]
["OPWDD  ","GATEWAY COMMUNITY IND SPT","E0075386","141458757","GATEWAY COMMUNITY INDUSTRIES INC","","","PO BOX 5002","ONE AMY KAY PARKWAY","KINGSTON","NY","12402-5002"]
["OPWDD  ","GATEWAY COMMUNITY INDUSTRIES INC SP","E0323857","141458757","GATEWAY COMMUNITY INDUSTRIES INC","","","PO BOX 5002","ONE AMY KAY PARKWAY","KINGSTON","NY","12402-5002"]
["OPWDD  ","NYSARC INC ORANGE CNTY SMP","E0074221","141462340","NYSARC INC ORANGE CO CHAPTER","","",null,"249 BROADWAY","NEWBURGH","NY","12550-5452"]
["OPWDD  ","NYSARC INC ORANGE CNTY SPV","E0074140","141462340","NYSARC INC ORANGE CO CHAPTER","","",null,"249 BROADWAY","NEWBURGH","NY","12550-5452"]
["OPWDD  ","ORANGE CO CHAP NYS ARC DAY","E0030038","141462340","NYSARC INC ORANGE CO CHAPTER","","",null,"249 BROADWAY","NEWBURGH","NY","12550-5452"]
["OPWDD  ","REHAB PROGRAMS DAY","E0030043","141467427","REHAB PROGRAMS INC","","",null,"70 OVEROCKER RD","POUGHKEEPSIE","NY","12603-2035"]
["OPWDD  ","REHAB PROGRAMS INC SMP","E0082979","141467427","REHAB PROGRAMS INC","","",null,"70 OVEROCKER RD","POUGHKEEPSIE","NY","12603-2035"]
["OPWDD  ","REHAB PROGRAMS INC SPT","E0075199","141467427","REHAB PROGRAMS INC","","",null,"70 OVEROCKER RD","POUGHKEEPSIE","NY","12603-2035"]
["OPWDD  ","REHAB PROGRAMS INC SPV","E0075203","141467427","REHAB PROGRAMS INC","","",null,"70 OVEROCKER RD","POUGHKEEPSIE","NY","12603-2035"]
["OPWDD  ","OCCUPATIONS INC SPV","E0075196","141471097","OCCUPATIONS INC","","",null,"15 FORTUNE ROAD WEST","MIDDLETOWN","NY","10941-1697"]
["OPWDD  ","ORANGE REHAB OCCUP INC DAY","E0030803","141471097","OCCUPATIONS INC","","",null,"15 FORTUNE ROAD WEST","MIDDLETOWN","NY","10941-1697"]
["OPWDD  ","MULTI COUNTY CDC SPT","E0075224","141558673","MULTI-COUNTY CDC DAY","","",null,"5172 WESTERN TPKE","ALTAMONT","NY","12009-3810"]
["OPWDD  ","MULTI COUNTY CDC SPV","E0075227","141558673","MULTI-COUNTY CDC DAY","","",null,"5172 WESTERN TPKE","ALTAMONT","NY","12009-3810"]
["OPWDD  ","GREYSTONE HOUSE VANKIRK ICF","E0247790","141608318","GREYSTONE PROGRAMS INC.","","",null,"36 VIOLET AVE","POUGHKEEPSIE","NY","12601-1521"]
["OPWDD  ","GREYSTONE HOUSE VIOLET AV ICF","E0251949","141608318","GREYSTONE PROGRAMS INC.","","",null,"36 VIOLET AVE","POUGHKEEPSIE","NY","12601-1521"]
["OPWDD  ","GREYSTONE PROGRAMS INC  SPV","E0075379","141608318","GREYSTONE PROGRAMS INC.","","",null,"36 VIOLET AVE","POUGHKEEPSIE","NY","12601-1521"]
["OPWDD  ","GREYSTONE PROGRAMS INC DAY","E0030254","141608318","GREYSTONE PROGRAMS INC.","","",null,"36 VIOLET AVE","POUGHKEEPSIE","NY","12601-1521"]
["OMH  ","REHABILITATION SUPP SVCS C","E0165585","141609149","REHABILITATION SUPP SVCS C","","",null,"5172 WESTERN TPKE","ALTAMONT","NY","12009-3810"]
["Various Home Health","FAMILY CARE CERT SVCS NASSAU","E0134046","112734402","FAMILY CARE CERT SVCS NASSAU","","",null,"120 W JOHN ST","HICKSVILLE","NY","11801-1020"]
["Various Home Health","INFUSION OPTIONS INC","E0130854","112737231","INFUSION OPTIONS INC","","",null,"5924 13TH AVE","BROOKLYN","NY","11219-4934"]
["OPWDD  ","PROV-HAMASPIK ORANGE CO HCBS4","E0092212","141711583","HAMASPIK OF ORANGE COUNTY INC","","",null,"1 HAMASPIK WAY 3RD FLOOR","MONROE","NY","10950-8452"]
["OPWDD  ","PROVIDER HAMASPIK ORANGE CO HCBS 10","E0006799","141711583","HAMASPIK OF ORANGE COUNTY INC","","",null,"1 HAMASPIK WAY 3RD FLOOR","MONROE","NY","10950-8452"]
["OPWDD  ","PROVIDER HAMASPIK ORANGE RSP","E0040523","141711583","HAMASPIK OF ORANGE COUNTY INC","","",null,"1 HAMASPIK WAY 3RD FLOOR","MONROE","NY","10950-8452"]
["OPWDD  ","PROVIDER HAMASPIK ORANGE SPV","E0075265","141711583","HAMASPIK OF ORANGE COUNTY INC","","",null,"1 HAMASPIK WAY 3RD FLOOR","MONROE","NY","10950-8452"]
["OPWDD  ","PROVIDER HAMASPIK/ORANGE CO","E0155128","141711583","HAMASPIK OF ORANGE COUNTY INC","","",null,"1 HAMASPIK WAY 3RD FLOOR","MONROE","NY","10950-8452"]
["OPWDD  ","PROVIDER HAMISPIK ORNG HCBS9","E0011223","141711583","HAMASPIK OF ORANGE COUNTY INC","","",null,"1 HAMASPIK WAY 3RD FLOOR","MONROE","NY","10950-8452"]
["OPWDD  ","PROVIDER-HAMASPIK ORANGE DAY","E0030035","141711583","HAMASPIK OF ORANGE COUNTY INC","","",null,"1 HAMASPIK WAY 3RD FLOOR","MONROE","NY","10950-8452"]
["Various Home Health","GENTIVA HEALTH SERVICES","E0142633","112750425","QC-MEDI NEW YORK INC","","",null,"12900 FOSTER ST","OVERLAND PARK","KS","66213-2649"]
["OPWDD  ","MARANATHA HUMAN SERVICES SPV","E0075255","141755068","MARANATHA HUMAN SVCS INC DAY","","",null,"35 ACADEMY ST","POUGHKEEPSIE","NY","12601-3314"]
["OPWDD  ","MARANATHA HUMAN SVCS INC HCBS","E0150760","141755068","MARANATHA HUMAN SVCS INC DAY","","",null,"35 ACADEMY ST","POUGHKEEPSIE","NY","12601-3314"]
["OPWDD  ","ABILITY BEYOND DISAB SPV","E0075422","141758770","ABILITY BEYOND DISABILITY","","","4 BERKSHIRE BLVD","CLIENT ACCOUNTS","BETHEL","CT","06801-1001"]
["OPWDD  ","ABILITY BEYOND DISABILITY DAY","E0029789","141758770","ABILITY BEYOND DISABILITY","","","4 BERKSHIRE BLVD","CLIENT ACCOUNTS","BETHEL","CT","06801-1001"]
["OPWDD  ","ABILITY BEYOND DISABILITY INC SPT","E0316375","141758770","ABILITY BEYOND DISABILITY","","","4 BERKSHIRE BLVD","CLIENT ACCOUNTS","BETHEL","CT","06801-1001"]
["OPWDD  ","IN FLIGHT INC DAY","E0030263","141764481","IN FLIGHT INC","","",null,"PO BOX 650","PINE PLAINS","NY","12567-0650"]
["OPWDD  ","IN FLIGHT INC SPV","E0075365","141764481","IN FLIGHT INC","","",null,"PO BOX 650","PINE PLAINS","NY","12567-0650"]
["OPWDD  ","UCP ASSOC NYS ROBIN HILL DT","E0185962","141813412","UNITED CEREBRAL PALSY ASSOC PUTNAM","","",null,"40 JON BARRETT RD","PATTERSON","NY","12563-2164"]
["OPWDD  ","UCP NYS HIMES ICF","E0188152","141813412","UNITED CEREBRAL PALSY ASSOC PUTNAM","","",null,"40 JON BARRETT RD","PATTERSON","NY","12563-2164"]
["OPWDD  ","UCP NYS WATERMELON HILL ICF","E0178429","141813412","UNITED CEREBRAL PALSY ASSOC PUTNAM","","",null,"40 JON BARRETT RD","PATTERSON","NY","12563-2164"]
["OPWDD  ","UCP PUTNAM/S DUTCHESS CO DAY","E0029836","141813412","UNITED CEREBRAL PALSY ASSOC PUTNAM","","",null,"40 JON BARRETT RD","PATTERSON","NY","12563-2164"]
["OPWDD  ","UCP PUTNAM/S DUTCHESS SPV","E0074835","141813412","UNITED CEREBRAL PALSY ASSOC PUTNAM","","",null,"40 JON BARRETT RD","PATTERSON","NY","12563-2164"]
["OPWDD  ","UCPA OF PUTNAM & SO DUTCHESS","E0068790","141813412","UNITED CEREBRAL PALSY ASSOC PUTNAM","3952200R","02313115",null,"40 JON BARRETT RD","PATTERSON","NY","12563-2164"]
["Various Home Health","SOUTH SHORE HOME HEALTH SERV","E0191323","112775270","SOUTH SHORE HOME HEALTH SERV","","",null,"1225 MONTAUK HWY # 2","OAKDALE","NY","11769-1434"]
["OPWDD  ","HELP ON THE WAY INC","E0325308","141986513","HELP ON THE WAY INC","","",null,"PO BOX 351","BRONX","NY","10458-0351"]
["OPWDD  ","OMRDD PERSON CTR CARE SVCS","E0027673","146013200","STATE OF NEW YORK COMPTROLLERS OFFC","","",null,"110 STATE STREET","ALBANY","NY","12207-2004"]
["OPWDD  ","OMRDD/ MERCY DRIVE INC","E0027670","146013200","STATE OF NEW YORK COMPTROLLERS OFFC","","",null,"110 STATE STREET","ALBANY","NY","12207-2004"]
["OPWDD  ","OMRDD/A VERY SPECIAL PLACE","E0100616","146013200","STATE OF NEW YORK COMPTROLLERS OFFC","","",null,"110 STATE STREET","ALBANY","NY","12207-2004"]
["OPWDD  ","OMRDD/A-1 UNIVERSAL CARE","E0100615","146013200","STATE OF NEW YORK COMPTROLLERS OFFC","","",null,"110 STATE STREET","ALBANY","NY","12207-2004"]
["OPWDD  ","OMRDD/ABILITY BYND DISABIL-LV","E0100252","146013200","STATE OF NEW YORK COMPTROLLERS OFFC","","",null,"110 STATE STREET","ALBANY","NY","12207-2004"]
["OPWDD  ","OMRDD/ACLD","E0100610","146013200","STATE OF NEW YORK COMPTROLLERS OFFC","","",null,"110 STATE STREET","ALBANY","NY","12207-2004"]
["OPWDD  ","OMRDD/ADULT RETARDATES CTR","E0100606","146013200","STATE OF NEW YORK COMPTROLLERS OFFC","","",null,"110 STATE STREET","ALBANY","NY","12207-2004"]
["OPWDD  ","OMRDD/ADV F/T DISABLED MSC HV","E0040321","146013200","STATE OF NEW YORK COMPTROLLERS OFFC","","",null,"110 STATE STREET","ALBANY","NY","12207-2004"]
["OPWDD  ","OMRDD/ALLCARE PROVIDER SVC","E0288455","146013200","STATE OF NEW YORK COMPTROLLERS OFFC","","",null,"110 STATE STREET","ALBANY","NY","12207-2004"]
["OPWDD  ","OMRDD/ANDERSON EDUC FN TA","E0100471","146013200","STATE OF NEW YORK COMPTROLLERS OFFC","","",null,"110 STATE STREET","ALBANY","NY","12207-2004"]
["OPWDD  ","OMRDD/ANIBIC","E0100468","146013200","STATE OF NEW YORK COMPTROLLERS OFFC","","",null,"110 STATE STREET","ALBANY","NY","12207-2004"]
["OPWDD  ","OMRDD/ANOTHER STEP INC","E0100466","146013200","STATE OF NEW YORK COMPTROLLERS OFFC","","",null,"110 STATE STREET","ALBANY","NY","12207-2004"]
["OPWDD  ","OMRDD/ASSOC FOR CHILD WITH DO","E0100463","146013200","STATE OF NEW YORK COMPTROLLERS OFFC","","",null,"110 STATE STREET","ALBANY","NY","12207-2004"]
["OPWDD  ","OMRDD/BAIS EZRA INC NY","E0100458","146013200","STATE OF NEW YORK COMPTROLLERS OFFC","","",null,"110 STATE STREET","ALBANY","NY","12207-2004"]
["OPWDD  ","OMRDD/BANANA KELLY CIA","E0100455","146013200","STATE OF NEW YORK COMPTROLLERS OFFC","","",null,"110 STATE STREET","ALBANY","NY","12207-2004"]
["OPWDD  ","OMRDD/BFFY","E0100449","146013200","STATE OF NEW YORK COMPTROLLERS OFFC","","",null,"110 STATE STREET","ALBANY","NY","12207-2004"]
["OPWDD  ","OMRDD/BKLYN BUREAU OF COMM SV","E0100446","146013200","STATE OF NEW YORK COMPTROLLERS OFFC","","",null,"110 STATE STREET","ALBANY","NY","12207-2004"]
["OPWDD  ","OMRDD/BLOCK INSTITUTE INC MSC","E0099567","146013200","STATE OF NEW YORK COMPTROLLERS OFFC","","",null,"110 STATE STREET","ALBANY","NY","12207-2004"]
["OPWDD  ","OMRDD/CAMP VENTURE","E0100428","146013200","STATE OF NEW YORK COMPTROLLERS OFFC","","",null,"110 STATE STREET","ALBANY","NY","12207-2004"]
["OPWDD  ","OMRDD/CENTER F/FAM SUPP - LI","E0082147","146013200","STATE OF NEW YORK COMPTROLLERS OFFC","","",null,"110 STATE STREET","ALBANY","NY","12207-2004"]
["OPWDD  ","OMRDD/CENTER FOR FAMILY SUPP","E0100352","146013200","STATE OF NEW YORK COMPTROLLERS OFFC","","",null,"110 STATE STREET","ALBANY","NY","12207-2004"]
["OPWDD  ","OMRDD/CENTRO SOCIAL LA ESPERA","E0100349","146013200","STATE OF NEW YORK COMPTROLLERS OFFC","","",null,"110 STATE STREET","ALBANY","NY","12207-2004"]
["OPWDD  ","OMRDD/CHILD FAM SUP SER BXMSC","E0047651","146013200","STATE OF NEW YORK COMPTROLLERS OFFC","","",null,"110 STATE STREET","ALBANY","NY","12207-2004"]
["OPWDD  ","OMRDD/COMM RES & SVC/CHILDREN","E0100311","146013200","STATE OF NEW YORK COMPTROLLERS OFFC","","",null,"110 STATE STREET","ALBANY","NY","12207-2004"]
["OPWDD  ","OMRDD/COMMUNITY ASSTNCE EXTD SVCS","E0002122","146013200","STATE OF NEW YORK COMPTROLLERS OFFC","","",null,"110 STATE STREET","ALBANY","NY","12207-2004"]
["OPWDD  ","OMRDD/CONTEMP GUIDANCE SVC","E0078390","146013200","STATE OF NEW YORK COMPTROLLERS OFFC","","",null,"110 STATE STREET","ALBANY","NY","12207-2004"]
["OPWDD  ","OMRDD/CREATIVE LIFESTYLES INC","E0100262","146013200","STATE OF NEW YORK COMPTROLLERS OFFC","","",null,"110 STATE STREET","ALBANY","NY","12207-2004"]
["OPWDD  ","OMRDD/CRYSTAL RUN VILLAGE-LV","E0100260","146013200","STATE OF NEW YORK COMPTROLLERS OFFC","","",null,"110 STATE STREET","ALBANY","NY","12207-2004"]
["OPWDD  ","OMRDD/DEVELOPTL DIS INST-LI","E0100247","146013200","STATE OF NEW YORK COMPTROLLERS OFFC","","",null,"110 STATE STREET","ALBANY","NY","12207-2004"]
["OPWDD  ","OMRDD/DUTCHESS CO ARC","E0100243","146013200","STATE OF NEW YORK COMPTROLLERS OFFC","","",null,"110 STATE STREET","ALBANY","NY","12207-2004"]
["OPWDD  ","OMRDD/E DOUGLIN CTR/SERV PPLE","E0100242","146013200","STATE OF NEW YORK COMPTROLLERS OFFC","","",null,"110 STATE STREET","ALBANY","NY","12207-2004"]
["OPWDD  ","OMRDD/EAGLE CASE MGMT INC-TA","E0100240","146013200","STATE OF NEW YORK COMPTROLLERS OFFC","","",null,"110 STATE STREET","ALBANY","NY","12207-2004"]
["OPWDD  ","OMRDD/EAST END DISABILITY ASC","E0100233","146013200","STATE OF NEW YORK COMPTROLLERS OFFC","","",null,"110 STATE STREET","ALBANY","NY","12207-2004"]
["OPWDD  ","OMRDD/EAST HARLEM COUNCIL","E0100231","146013200","STATE OF NEW YORK COMPTROLLERS OFFC","","",null,"110 STATE STREET","ALBANY","NY","12207-2004"]
["OPWDD  ","OMRDD/EIHAB HUMAN SERVICES IN","E0100213","146013200","STATE OF NEW YORK COMPTROLLERS OFFC","","",null,"110 STATE STREET","ALBANY","NY","12207-2004"]
["OPWDD  ","OMRDD/ELMY'S SPECIAL SVS INC","E0063010","146013200","STATE OF NEW YORK COMPTROLLERS OFFC","","",null,"110 STATE STREET","ALBANY","NY","12207-2004"]
["OPWDD  ","OMRDD/FAM EMPOWERMENT COUNCIL","E0100186","146013200","STATE OF NEW YORK COMPTROLLERS OFFC","","",null,"110 STATE STREET","ALBANY","NY","12207-2004"]
["OPWDD  ","OMRDD/FEGS-NY","E0099856","146013200","STATE OF NEW YORK COMPTROLLERS OFFC","","",null,"110 STATE STREET","ALBANY","NY","12207-2004"]
["OPWDD  ","OMRDD/FREE","E0100168","146013200","STATE OF NEW YORK COMPTROLLERS OFFC","","",null,"110 STATE STREET","ALBANY","NY","12207-2004"]
["OPWDD  ","OMRDD/GENERAL HUMAN OUTREACH","E0100163","146013200","STATE OF NEW YORK COMPTROLLERS OFFC","","",null,"110 STATE STREET","ALBANY","NY","12207-2004"]
["OPWDD  ","OMRDD/GOODWILL INDUSTRIES NY","E0078391","146013200","STATE OF NEW YORK COMPTROLLERS OFFC","","",null,"110 STATE STREET","ALBANY","NY","12207-2004"]
["OPWDD  ","OMRDD/GUILD/EXCEPTIONAL CHDN","E0100153","146013200","STATE OF NEW YORK COMPTROLLERS OFFC","","",null,"110 STATE STREET","ALBANY","NY","12207-2004"]
["OPWDD  ","OMRDD/HASC CENTER-NY","E0100129","146013200","STATE OF NEW YORK COMPTROLLERS OFFC","","",null,"110 STATE STREET","ALBANY","NY","12207-2004"]
["OPWDD  ","OMRDD/HEARTSHARE HUMAN SVCS","E0100126","146013200","STATE OF NEW YORK COMPTROLLERS OFFC","","",null,"110 STATE STREET","ALBANY","NY","12207-2004"]
["OPWDD  ","OMRDD/HEAVENS HAND QN MSC","E0047979","146013200","STATE OF NEW YORK COMPTROLLERS OFFC","","",null,"110 STATE STREET","ALBANY","NY","12207-2004"]
["OPWDD  ","OMRDD/HELP ON THE WAY","E0287536","146013200","STATE OF NEW YORK COMPTROLLERS OFFC","","",null,"110 STATE STREET","ALBANY","NY","12207-2004"]
["OPWDD  ","OMRDD/HISPANIC COUNSEL CTR","E0100046","146013200","STATE OF NEW YORK COMPTROLLERS OFFC","","",null,"110 STATE STREET","ALBANY","NY","12207-2004"]
["OPWDD  ","OMRDD/HUMAN CARE SER FAM CHIL","E0100035","146013200","STATE OF NEW YORK COMPTROLLERS OFFC","","",null,"110 STATE STREET","ALBANY","NY","12207-2004"]
["OPWDD  ","OMRDD/HUMAN FIRST","E0085096","146013200","STATE OF NEW YORK COMPTROLLERS OFFC","","",null,"110 STATE STREET","ALBANY","NY","12207-2004"]
["OPWDD  ","OMRDD/HUMAN FIRST - NY","E0080358","146013200","STATE OF NEW YORK COMPTROLLERS OFFC","","",null,"110 STATE STREET","ALBANY","NY","12207-2004"]
["OPWDD  ","OMRDD/IKAN INC-HV MSC","E0013360","146013200","STATE OF NEW YORK COMPTROLLERS OFFC","","",null,"110 STATE STREET","ALBANY","NY","12207-2004"]
["OPWDD  ","OMRDD/ILA","E0099989","146013200","STATE OF NEW YORK COMPTROLLERS OFFC","","",null,"110 STATE STREET","ALBANY","NY","12207-2004"]
["OPWDD  ","OMRDD/INDEP GR HM LIV","E0099979","146013200","STATE OF NEW YORK COMPTROLLERS OFFC","","",null,"110 STATE STREET","ALBANY","NY","12207-2004"]
["OPWDD  ","OMRDD/IYAHO SOCIAL SERVICES","E0002097","146013200","STATE OF NEW YORK COMPTROLLERS OFFC","","",null,"110 STATE STREET","ALBANY","NY","12207-2004"]
["OPWDD  ","OMRDD/JAWONIO INC","E0099889","146013200","STATE OF NEW YORK COMPTROLLERS OFFC","","",null,"110 STATE STREET","ALBANY","NY","12207-2004"]
["OPWDD  ","OMRDD/JOB PATH","E0099879","146013200","STATE OF NEW YORK COMPTROLLERS OFFC","","",null,"110 STATE STREET","ALBANY","NY","12207-2004"]
["OPWDD  ","OMRDD/KENNEDY CHILD STUDY CTR","E0099864","146013200","STATE OF NEW YORK COMPTROLLERS OFFC","","",null,"110 STATE STREET","ALBANY","NY","12207-2004"]
["OPWDD  ","OMRDD/LEAKE AND WATTS NYC MSC","E0050622","146013200","STATE OF NEW YORK COMPTROLLERS OFFC","","",null,"110 STATE STREET","ALBANY","NY","12207-2004"]
["OPWDD  ","OMRDD/LIFESPIRE INC","E0100609","146013200","STATE OF NEW YORK COMPTROLLERS OFFC","","",null,"110 STATE STREET","ALBANY","NY","12207-2004"]
["OPWDD  ","OMRDD/LIFESTYLES F/T DISABLED","E0099845","146013200","STATE OF NEW YORK COMPTROLLERS OFFC","","",null,"110 STATE STREET","ALBANY","NY","12207-2004"]
["OPWDD  ","OMRDD/LONG ISLAND HEAD INJURY","E0099823","146013200","STATE OF NEW YORK COMPTROLLERS OFFC","","",null,"110 STATE STREET","ALBANY","NY","12207-2004"]
["OPWDD  ","OMRDD/MARANATHA HUMAN SVCS-NY","E0099810","146013200","STATE OF NEW YORK COMPTROLLERS OFFC","","",null,"110 STATE STREET","ALBANY","NY","12207-2004"]
["OPWDD  ","OMRDD/MARYHAVEN CTR","E0099805","146013200","STATE OF NEW YORK COMPTROLLERS OFFC","","",null,"110 STATE STREET","ALBANY","NY","12207-2004"]
["OPWDD  ","OMRDD/NASSAU CO AHRC LI","E0312041","146013200","STATE OF NEW YORK COMPTROLLERS OFFC","","",null,"110 STATE STREET","ALBANY","NY","12207-2004"]
["OPWDD  ","OMRDD/NEW HOPE COMMUNITY-LV","E0099777","146013200","STATE OF NEW YORK COMPTROLLERS OFFC","","",null,"110 STATE STREET","ALBANY","NY","12207-2004"]
["OPWDD  ","OMRDD/NEW HORIZONS","E0099775","146013200","STATE OF NEW YORK COMPTROLLERS OFFC","","",null,"110 STATE STREET","ALBANY","NY","12207-2004"]
["OPWDD  ","OMRDD/NY FAMILIES AUT CHILDRN","E0079503","146013200","STATE OF NEW YORK COMPTROLLERS OFFC","","",null,"110 STATE STREET","ALBANY","NY","12207-2004"]
["OPWDD  ","OMRDD/NYC AHRC","E0099688","146013200","STATE OF NEW YORK COMPTROLLERS OFFC","","",null,"110 STATE STREET","ALBANY","NY","12207-2004"]
["OPWDD  ","OMRDD/NYSARC INC SUFFOLK CHAP","E0099686","146013200","STATE OF NEW YORK COMPTROLLERS OFFC","","",null,"110 STATE STREET","ALBANY","NY","12207-2004"]
["OPWDD  ","OMRDD/ON YOUR MARK INC","E0099684","146013200","STATE OF NEW YORK COMPTROLLERS OFFC","","",null,"110 STATE STREET","ALBANY","NY","12207-2004"]
["OPWDD  ","OMRDD/ORANGE CHAP NYSARC-HV","E0099663","146013200","STATE OF NEW YORK COMPTROLLERS OFFC","","",null,"110 STATE STREET","ALBANY","NY","12207-2004"]
["OPWDD  ","OMRDD/ORANGE CO CP ASSOC","E0099657","146013200","STATE OF NEW YORK COMPTROLLERS OFFC","","",null,"110 STATE STREET","ALBANY","NY","12207-2004"]
["OPWDD  ","OMRDD/PROF SVC CTR HANDI","E0099594","146013200","STATE OF NEW YORK COMPTROLLERS OFFC","","",null,"110 STATE STREET","ALBANY","NY","12207-2004"]
["OPWDD  ","OMRDD/PROGRAM DEVELOPMENT SVC","E0099584","146013200","STATE OF NEW YORK COMPTROLLERS OFFC","","",null,"110 STATE STREET","ALBANY","NY","12207-2004"]
["OPWDD  ","OMRDD/PROVIDER HAMASPIK ROCKL","E0099578","146013200","STATE OF NEW YORK COMPTROLLERS OFFC","","",null,"110 STATE STREET","ALBANY","NY","12207-2004"]
["OPWDD  ","OMRDD/PROVIDER-HAMASPIK KINGS","E0099576","146013200","STATE OF NEW YORK COMPTROLLERS OFFC","","",null,"110 STATE STREET","ALBANY","NY","12207-2004"]
["OPWDD  ","OMRDD/PROVIDER-HAMASPIK ORANG","E0099572","146013200","STATE OF NEW YORK COMPTROLLERS OFFC","","",null,"110 STATE STREET","ALBANY","NY","12207-2004"]
["OPWDD  ","OMRDD/PUTNAM ARC","E0099569","146013200","STATE OF NEW YORK COMPTROLLERS OFFC","","",null,"110 STATE STREET","ALBANY","NY","12207-2004"]
["OPWDD  ","OMRDD/QSAC","E0099566","146013200","STATE OF NEW YORK COMPTROLLERS OFFC","","",null,"110 STATE STREET","ALBANY","NY","12207-2004"]
["OPWDD  ","OMRDD/QUAL SVCS BEYOND COMP","E0093876","146013200","STATE OF NEW YORK COMPTROLLERS OFFC","","",null,"110 STATE STREET","ALBANY","NY","12207-2004"]
["OPWDD  ","OMRDD/QUEENS PARENT RESOURCE","E0099563","146013200","STATE OF NEW YORK COMPTROLLERS OFFC","","",null,"110 STATE STREET","ALBANY","NY","12207-2004"]
["OPWDD  ","OMRDD/REHAB PROGRAMS","E0099560","146013200","STATE OF NEW YORK COMPTROLLERS OFFC","","",null,"110 STATE STREET","ALBANY","NY","12207-2004"]
["OPWDD  ","OMRDD/RESOURCE CTR/ACC LIV-TA","E0099550","146013200","STATE OF NEW YORK COMPTROLLERS OFFC","","",null,"110 STATE STREET","ALBANY","NY","12207-2004"]
["OPWDD  ","OMRDD/ROCKLAND CO ASSOC F/T L","E0099544","146013200","STATE OF NEW YORK COMPTROLLERS OFFC","","",null,"110 STATE STREET","ALBANY","NY","12207-2004"]
["OPWDD  ","OMRDD/ROCKLAND CO CHAP NYSARC","E0099543","146013200","STATE OF NEW YORK COMPTROLLERS OFFC","","",null,"110 STATE STREET","ALBANY","NY","12207-2004"]
["OPWDD  ","OMRDD/SELECT HUMAN SYC INC HV","E0302457","146013200","STATE OF NEW YORK COMPTROLLERS OFFC","","",null,"110 STATE STREET","ALBANY","NY","12207-2004"]
["OPWDD  ","OMRDD/SERVICES FOR UNDERSRVD","E0099521","146013200","STATE OF NEW YORK COMPTROLLERS OFFC","","",null,"110 STATE STREET","ALBANY","NY","12207-2004"]
["OPWDD  ","OMRDD/SINERGIA INC","E0099513","146013200","STATE OF NEW YORK COMPTROLLERS OFFC","","",null,"110 STATE STREET","ALBANY","NY","12207-2004"]
["OPWDD  ","OMRDD/SKIP OF NEW YORK-FL","E0099503","146013200","STATE OF NEW YORK COMPTROLLERS OFFC","","",null,"110 STATE STREET","ALBANY","NY","12207-2004"]
["OPWDD  ","OMRDD/SKIP OF NEW YORK-NY","E0099507","146013200","STATE OF NEW YORK COMPTROLLERS OFFC","","",null,"110 STATE STREET","ALBANY","NY","12207-2004"]
["OPWDD  ","OMRDD/SKIP OF NEW YORK-WNY","E0099832","146013200","STATE OF NEW YORK COMPTROLLERS OFFC","","",null,"110 STATE STREET","ALBANY","NY","12207-2004"]
["OPWDD  ","OMRDD/SOCIAL ACTION CTR","E0080361","146013200","STATE OF NEW YORK COMPTROLLERS OFFC","","",null,"110 STATE STREET","ALBANY","NY","12207-2004"]
["OPWDD  ","OMRDD/SOUTHEAST BRONX NGBHD","E0099820","146013200","STATE OF NEW YORK COMPTROLLERS OFFC","","",null,"110 STATE STREET","ALBANY","NY","12207-2004"]
["OPWDD  ","OMRDD/SPEC CARE F/FAM&CHLD-NY","E0099757","146013200","STATE OF NEW YORK COMPTROLLERS OFFC","","",null,"110 STATE STREET","ALBANY","NY","12207-2004"]
["OPWDD  ","OMRDD/SPEC CITIZEN FUT UNLMTD","E0099737","146013200","STATE OF NEW YORK COMPTROLLERS OFFC","","",null,"110 STATE STREET","ALBANY","NY","12207-2004"]
["OPWDD  ","OMRDD/ST CHRIST OTTILIE-LI","E0099731","146013200","STATE OF NEW YORK COMPTROLLERS OFFC","","",null,"110 STATE STREET","ALBANY","NY","12207-2004"]
["OPWDD  ","OMRDD/STATEN ISLAND AID INC","E0099698","146013200","STATE OF NEW YORK COMPTROLLERS OFFC","","",null,"110 STATE STREET","ALBANY","NY","12207-2004"]
["OPWDD  ","OMRDD/SULLIVAN CNTY ARC-LV","E0099337","146013200","STATE OF NEW YORK COMPTROLLERS OFFC","","",null,"110 STATE STREET","ALBANY","NY","12207-2004"]
["OPWDD  ","OMRDD/SVCS F/DEVLOP CHALLGD","E0099342","146013200","STATE OF NEW YORK COMPTROLLERS OFFC","","",null,"110 STATE STREET","ALBANY","NY","12207-2004"]
["OPWDD  ","OMRDD/TENDER CARE HUMAN SVS","E0079118","146013200","STATE OF NEW YORK COMPTROLLERS OFFC","","",null,"110 STATE STREET","ALBANY","NY","12207-2004"]
["OPWDD  ","OMRDD/THE SHIELD INSTITUTE","E0099591","146013200","STATE OF NEW YORK COMPTROLLERS OFFC","","",null,"110 STATE STREET","ALBANY","NY","12207-2004"]
["OPWDD  ","OMRDD/UCP ASSOC OF NASSAU","E0099556","146013200","STATE OF NEW YORK COMPTROLLERS OFFC","","",null,"110 STATE STREET","ALBANY","NY","12207-2004"]
["OPWDD  ","OMRDD/UCP ASSOC OF NYS-NY","E0099554","146013200","STATE OF NEW YORK COMPTROLLERS OFFC","","",null,"110 STATE STREET","ALBANY","NY","12207-2004"]
["OPWDD  ","OMRDD/UCP NEW YORK CITY","E0099527","146013200","STATE OF NEW YORK COMPTROLLERS OFFC","","",null,"110 STATE STREET","ALBANY","NY","12207-2004"]
["OPWDD  ","OMRDD/UCP OF WESTCHESTER","E0099509","146013200","STATE OF NEW YORK COMPTROLLERS OFFC","","",null,"110 STATE STREET","ALBANY","NY","12207-2004"]
["OPWDD  ","OMRDD/UCP QUEENS","E0099508","146013200","STATE OF NEW YORK COMPTROLLERS OFFC","","",null,"110 STATE STREET","ALBANY","NY","12207-2004"]
["OPWDD  ","OMRDD/UCPA OF GTR SUFFOLK","E0099491","146013200","STATE OF NEW YORK COMPTROLLERS OFFC","","",null,"110 STATE STREET","ALBANY","NY","12207-2004"]
["OPWDD  ","OMRDD/ULSTER-GREENE ARC-TA","E0099485","146013200","STATE OF NEW YORK COMPTROLLERS OFFC","","",null,"110 STATE STREET","ALBANY","NY","12207-2004"]
["OPWDD  ","OMRDD/UNIQUE LIFE-BX MSC","E0048245","146013200","STATE OF NEW YORK COMPTROLLERS OFFC","","",null,"110 STATE STREET","ALBANY","NY","12207-2004"]
["OPWDD  ","OMRDD/WEST CO OPT MENTAL HLTH","E0099481","146013200","STATE OF NEW YORK COMPTROLLERS OFFC","","",null,"110 STATE STREET","ALBANY","NY","12207-2004"]
["OPWDD  ","OMRDD/WESTCHESTER ARC","E0099479","146013200","STATE OF NEW YORK COMPTROLLERS OFFC","","",null,"110 STATE STREET","ALBANY","NY","12207-2004"]
["OPWDD  ","OMRDD/WJCS COMMUNITY PROG","E0099468","146013200","STATE OF NEW YORK COMPTROLLERS OFFC","","",null,"110 STATE STREET","ALBANY","NY","12207-2004"]
["OPWDD  ","OMRDD/WOMENS LEAGUE","E0099466","146013200","STATE OF NEW YORK COMPTROLLERS OFFC","","",null,"110 STATE STREET","ALBANY","NY","12207-2004"]
["OPWDD  ","OMRDD/WORC-LI","E0099457","146013200","STATE OF NEW YORK COMPTROLLERS OFFC","","",null,"110 STATE STREET","ALBANY","NY","12207-2004"]
["OPWDD  ","OMRDD/YEDEI CHESED INC","E0099452","146013200","STATE OF NEW YORK COMPTROLLERS OFFC","","",null,"110 STATE STREET","ALBANY","NY","12207-2004"]
["OPWDD  ","OMRDD/YOUNG ADULT INST-LI","E0099446","146013200","STATE OF NEW YORK COMPTROLLERS OFFC","","",null,"110 STATE STREET","ALBANY","NY","12207-2004"]
["OPWDD  ","OMRDD/YOUNG ADULT INST-NY","E0099448","146013200","STATE OF NEW YORK COMPTROLLERS OFFC","","",null,"110 STATE STREET","ALBANY","NY","12207-2004"]
["Various Home Health","LEWIN SERVICES            INC","E0204956","112783243","LEWIN SERVICES INC","","",null,"189 MAIN RD","RIVERHEAD","NY","11901-1957"]
["Various Home Health","L I ASSOC FOR AIDS CARE AI","E0125681","112809739","L I ASSOC FOR AIDS CARE AI","","",null,"60 ADAMS AVE","HAUPPAUGE","NY","11788-3611"]
["Various Home Health","PTS OF BROOKLYN LTHHCP","E0002320","112811983","PERSONAL TOUCH HOME AIDES OF NY INC","","",null,"2701 EMMONS AVE","BROOKLYN","NY","11235-2209"]
["Various Home Health","SOCIAL CONCRN COM SPRINFLD GD","E0207235","112829972","SOCIAL CONCRN COM SPRINFLD GD","","",null,"22618 MERRICK BLVD","LAURELTON","NY","11413-2101"]
["Various Home Health","BROADLAWN MANOR NH ADHC","E0139455","112837244","THE LONG ISLAND HOME","","",null,"400 SUNRISE HWY","AMITYVILLE","NY","11701-2508"]
["Various Home Health","MARYHAVEN CENTER OF HOPE","E0011962","112861698","MARYHAVEN CENTER OF HOPE","","","51 TERRYVILLE RD","VP OF FINANCE","PORT JEFFERSON STATION","NY","11776-1331"]
["OPWDD  ","SULLIVAN CO CHAP NYSARC DAY","E0029972","146028767","SULLIVAN COUNTY NYS ARC","","","162 E BROADWAY",null,"MONTICELLO","NY","12701-8815"]
["OPWDD  ","SULLIVAN CO CHAP NYSARC RSP","E0027916","146028767","SULLIVAN COUNTY NYS ARC","","","162 E BROADWAY",null,"MONTICELLO","NY","12701-8815"]
["OPWDD  ","SULLIVAN CO CHAP NYSARC SPV","E0075108","146028767","SULLIVAN COUNTY NYS ARC","","","162 E BROADWAY",null,"MONTICELLO","NY","12701-8815"]
["OPWDD  ","SULLIVAN COUNTY NYS ARC","E0021991","146028767","SULLIVAN COUNTY NYS ARC","","","162 E BROADWAY",null,"MONTICELLO","NY","12701-8815"]
["OPWDD  ","NYSARC DUTCHESS CNTY CHAP SPT","E0074726","146077915","NYSARC INC-DUTCHESS COUNTY CHAPTER","","",null,"1435 ROUTE 44","PLEASANT VALLEY","NY","12569-7812"]
["OPWDD  ","NYSARC DUTCHESS CNTY SPV","E0074727","146077915","NYSARC INC-DUTCHESS COUNTY CHAPTER","","",null,"1435 ROUTE 44","PLEASANT VALLEY","NY","12569-7812"]
["OPWDD  ","NYSARC DUTCHESS COUNTY DAY","E0029698","146077915","NYSARC INC-DUTCHESS COUNTY CHAPTER","","",null,"1435 ROUTE 44","PLEASANT VALLEY","NY","12569-7812"]
["OPWDD  ","NYSARC INC DUTCHESS CNTY SMP","E0083231","146077915","NYSARC INC-DUTCHESS COUNTY CHAPTER","","",null,"1435 ROUTE 44","PLEASANT VALLEY","NY","12569-7812"]
["OPWDD  ","NYSARC INC-DUTCHESS COUNTY","E0015952","146077915","NYSARC INC-DUTCHESS COUNTY CHAPTER","","",null,"1435 ROUTE 44","PLEASANT VALLEY","NY","12569-7812"]
["Various Home Health","MARYHAVEN CENTER OF HOPE","E0302946","112861698","MARYHAVEN CENTER OF HOPE","","","51 TERRYVILLE RD","VP OF FINANCE","PORT JEFFERSON STATION","NY","11776-1331"]
["OPWDD  ","PROVIDER HAMASPIK KINGS DAY","E0018078","161522895","PROVIDER HAMASPIK KINGS CO HCBS 4","","",null,"69 SOUTH 9TH STREET","BROOKLYN","NY","11211"]
["OPWDD  ","PROVIDER HAMASPIK KINGS SPV","E0075267","161522895","PROVIDER HAMASPIK KINGS CO HCBS 4","","",null,"69 SOUTH 9TH STREET","BROOKLYN","NY","11211"]
["OPWDD  ","PROVIDER-HAMASPIK KINGS HCBS1","E0124389","161522895","PROVIDER HAMASPIK KINGS CO HCBS 4","","",null,"69 SOUTH 9TH STREET","BROOKLYN","NY","11211"]
["Various Home Health","MARYHAVEN CENTER OF HOPE","E0302938","112861698","MARYHAVEN CENTER OF HOPE","","","51 TERRYVILLE RD","VP OF FINANCE","PORT JEFFERSON STATION","NY","11776-1331"]
["OPWDD  ","HEAVENS HANDS COMM SVCS DAY","E0029823","200225064","HEAVENS HANDS COMM SVCS RSP","","",null,"882 THIRD AVE 10TH","BROOKLYN","NY","11232"]
["OPWDD  ","HEAVENS HANDS COMM SVCS RSP","E0018999","200225064","HEAVENS HANDS COMM SVCS RSP","","",null,"882 THIRD AVE 10TH","BROOKLYN","NY","11232"]
["Various Home Health","SI UNIV HOSP UNIV HOSPICE","E0164722","112868878","STATEN ISLAND UNIVERSITY HOSPITAL",7004502,"01352230","1 EDGEWATER ST","PATIENT ACCOUNTS 6TH FL","STATEN ISLAND","NY","10305-4900"]
["Various Home Health","CABBAD MICHAEL FREDERICK MD","E0196336","112869893","CABBAD MICHAEL FREDERICK MD","","",null,"PO BOX 30212","NEW YORK","NY","10087-0212"]
["Various Home Health","BETTER HOME HEALTH CARE INC.","E0175216","112899595","BETTER HOME HEALTH CARE INC.","","",null,"53 N PARK AVE","ROCKVILLE CENTRE","NY","11570-4100"]
["Various Home Health","ABUNDANT LIFE AGENCY INC","E0174410","112904722","CONNECT ABUNDANT LIFE AGNCY","","",null,"827 CLARKSON AVE","BROOKLYN","NY","11203-2256"]
["Various Home Health","CHRISTIAN NURSG REGISTRY INC","E0178976","112944358","CHRISTIAN NURSING REGISTRY","","",null,"14 BELLEMEADE AVE","SMITHTOWN","NY","11787-1857"]
["Various Home Health","GOOD SHEPHERD HOSPICE","E0175546","112958438","GOOD SHEPHERD HOSPICE","5151501","01243585","245 OLD COUNTRY ROAD","ADMINISTRATOR","MEILVILLE","NY","11747-2003"]
["Various Home Health","G.E.M. HEALTH CARE AGENCY","E0151209","112990506","G.E.M. HEALTH CARE AGENCY","","","STE 101","450 SUNRISE HWY","ROCKVILLE CTR","NY","11570-5051"]
["Various Home Health","ADVANCED CARE INC","E0181774","112997132","ADVANCED CARE INC","","",null,"25 S SERVICE RD","JERICHO","NY","11753-1041"]
["OPWDD  ","HARMONY SERVICES INC","E0286723","201134350","HARMONY SERVICES INC DAY","","",null,"1070 E 17TH ST","BROOKLYN","NY","11230-4413"]
["OPWDD  ","HARMONY SERVICES INC DAY","E0016333","201134350","HARMONY SERVICES INC DAY","","",null,"1070 E 17TH ST","BROOKLYN","NY","11230-4413"]
["Various Home Health","DOSHI DIAGNOSTIC IMAGING SRV","E0119387","113023313","DOSHI DIAGNOSTIC IMAGING SRV","","",null,"PO BOX 129","LAUREL","NY","11948-0129"]
["Various Home Health","BAY RIDGE MEDICAL IMAGING PC","E0061120","113045841","BAY RIDGE MEDICAL IMAGING PC","","",null,"7601 4TH AVE","BROOKLYN","NY","11209-3207"]
["Various Home Health","ADVANCED RADIOLOGICAL IMAGING","E0055847","113075742","ADVANCED RADIOLOGICAL IMAGING","","",null,"PO BOX 6257","ASTORIA","NY","11106-0257"]
["Various Home Health","FIRST CHOICE HOME CARE","E0158073","113106262","FIRST CHOICE HOME CARE","","",null,"11 MIDDLE NECK RD","GREAT NECK","NY","11021-2301"]
["Various Home Health","ST JOHNLAND NH LTHHP","E0170809","113109867","ST JOHNLAND NURSING CENTER IN","","","395 SUNKEN MEADOW RD","ANDREW BRESLOW CONTR","KINGS PARK","NY","11754-1000"]
["Various Home Health","ST JOHNLAND NH NON-OCC","E0193435","113109867","ST JOHNLAND NURSING CENTER IN","","","395 SUNKEN MEADOW RD","ANDREW BRESLOW CONTR","KINGS PARK","NY","11754-1000"]
["Various Home Health","DIASPORA COMMUNITY SERVICES  AI","E0038721","113122295","DIASPORA COMMUNITY SERVICES AI","","",null,"182 4TH AVE","BROOKLYN","NY","11217-3110"]
["Various Home Health","WEHBEH HASSAN A MD","E0164761","113160046","WEHBEH HASSAN A MD","","",null,"8405 FORT HAMILTON PKWY","BROOKLYN","NY","11209-4805"]
["OPWDD  ","PERSON CENTERED CARE DAY","E0025182","202878791","PERSON CENTERED CARE SERVICES SPV","","",null,"76 BOONE STREET","STATEN ISLAND","NY","10314"]
["OPWDD  ","PERSON CENTERED CARE SERVICES SPV","E0003468","202878791","PERSON CENTERED CARE SERVICES SPV","","",null,"76 BOONE STREET","STATEN ISLAND","NY","10314"]
["Various Home Health","KRIS AGENCY AND HOME CARE INC","E0171120","113175479","KRIS AGENCY AND HOME CARE INC","","","16914 HILLSIDE AVE","MAHADAI DEOKI","JAMAICA","NY","11432-4435"]
["Various Home Health","NEW YORK CONG NUR CTR LTHHCP","E0010053","113188802","NEW YORK CONG NUR CTR LTHHCP","","",null,"135 LINDEN BLVD","BROOKLYN","NY","11226-3302"]
["Various Home Health","UNIVERSITY PHYSICIANS BKLYN","E0066147","113190652","UNIVERSITY PHYSICIANS OF BROOKLYN","","",null,"PO BOX 27079","NEW YORK","NY","10087-0000"]
["OPWDD  ","COMMUNITY ASSISTANCE RESOURCES DAY","E0007761","203368734","COMMUNITY ASSISTANCE RESOURCES DAY","","",null,"465 GRAND ST SECOND FLOOR","NEW YORK","NY","10002-4800"]
["OPWDD  ","COMMUNITY ASSISTANCE RESOURCES RSP","E0007765","203368734","COMMUNITY ASSISTANCE RESOURCES DAY","","",null,"465 GRAND ST SECOND FLOOR","NEW YORK","NY","10002-4800"]
["Various Home Health","ELM YORK ALP","E0155150","113195029","ELM YORK ALP","","",null,"100 30 DITMARS BLVD","EAST ELMHURST","NY","11369-1230"]
["Various Home Health","AMBER COURT OF BROOKLYN ALP","E0301727","113195350","THOMAS JEFFERSON ALP","","",null,"650 E 104TH ST","BROOKLYN","NY","11236-2504"]
["Various Home Health","LI HEBREW LIV CTR ALP","E0154742","113199069",{"$error":"#N/A"},"",""]
["Various Home Health","FOREST VIEW CTR REH NRS ADHC","E0114575","113199456","FOREST VIEW CTR REH NRS ADHC","","","7120 110TH ST","ADC FISCAL","FOREST HILLS","NY","11375-4844"]
["Various Home Health","FEIGI TAUB HALBERSTAN AUDIO & SPEEC","E0022019","113224714","FEIGI TAUB HALBERSTAN AUDIO & SPEEC","","","1651 CONEY ISLAND AVE","FEIGI HALBERSTAM","BROOKLYN","NY","11230-5849"]
["OPWDD  ","CITY ACCESS NY INC DAY","E0014040","203786663","CITY ACCESS NY INC HCBS 1","","",null,"16 CRESCENT AVE","STATEN ISLAND","NY","10301-1706"]
["Various Home Health","JACOB NURSING HEALTHCARE","E0104402","113235898","JACOB NURSING HEALTHCARE","","",null,"2505 TILDEN AVE","BROOKLYN","NY","11226-5015"]
["Various Home Health","FRIENDS HOME CARE INC","E0094444","113258788","FHC HOME CARE INC","","",null,"55 E MAIN ST","BAY SHORE","NY","11706-8366"]
["Various Home Health","WHITE GLOVE COMMUNITY CARE","E0128193","113270257","WHITE GLOVE COMMUNITY CARE","","",null,"85 BARTLETT ST","BROOKLYN","NY","11206-4429"]
["Various Home Health","OUR LADY OF CONSOLATION CC","E0216700","113284066","OUR LADY OF CONSOLATION CC","","","111 BEACH DR","PETER LEVITAN","WEST ISLIP","NY","11795-4929"]
["OPWDD  ","HAND IN HAND FAMILY SERVICES DAY","E0296836","204157876","HAND IN HAND FAM/SVCS RSP","","","FLOOR 1","390 KINGS HWY","BROOKLYN","NY","11223-1614"]
["Various Home Health","COMPLETE HOME CARE SERV INC","E0140138","113337107","COMPLETE HOME CARE SERV INC","","","STE 204","20514 LINDEN BLVD","SAINT ALBANS","NY","11412-2934"]
["Various Home Health","JOS-ELINC","E0127315","113361995","JOS-EL CARE AGENCY","","","13 CLEVELAND ST","ELIZABETH CONSALVES","VALLEY STREAM","NY","11580-6003"]
["Various Home Health","BROOKLYN HOME CARE INC","E0093549","113383207","BROOKLYN HOME CARE INC","","",null,"218 SMITH ST","BROOKLYN","NY","11201-6437"]
["OPWDD  ","REWARDING ENVIRONMENTS FOR ADULT LI","E0321551","204778868","REWARDING ENVIRONMENTS FOR ADULT LI","","",null,"32 BELMONT BLVD","ELMONT","NY","11003-1805"]
["Various Home Health","WOODHAVEN HOME ADULTS ALP","E0063845","113480386","WOODHAVEN HOME ADULTS ALP","","",null,"1360 ROUTE 112","PORT JEFFERSON STATION","NY","11776-3078"]
["Various Home Health","ETIENNE HOME CARE SERVICES INC","E0018012","113564400","ETIENNE HOME CARE SERVICES INC","","",null,"PO BOX 4619","RENSSELAER","NY","12144-8614"]
["Various Home Health","SWEET P HOME CARE","E0041253","113624987","SWEET P HOME CARE","","",null,"16937 144TH RD","JAMAICA","NY","11434-5929"]
["Various Home Health","SELFHELP COMMUNITY SERVICES","E0207620","131624178","SELFHELP COMMUNITY SERVICES","","",null,"520 8TH AVE FL 5","NEW YORK","NY","10018-6553"]
["Various Home Health","UNITED HEBREW GERI CTR","E0220374","131663975","UNITED HOME FOR AGED HEBREWS","","",null,"60 WILLOW DR","NEW ROCHELLE","NY","10805-2307"]
["Various Home Health","UNITED ODD FELLOW/REBEKAH HM LTHHCP","E0001509","131740053","UNITED ODD FELLOW/REBEKAH HM LTHHCP","","",null,"1070 HAVEMEYER AVE","BRONX","NY","10462"]
["Various Home Health","MOUNT VERNON HOSPITAL","E0062602","131740115","MOUNT VERNON HOSPITAL","","","12 N 7TH AVE FL 3","DIR PATIENT ACCTS","MOUNT VERNON","NY","10550-2026"]
["Various Home Health","ST BARNABAS HOSPITAL ACT","E0060991","131740122","ST BARNABAS HOSPITAL ACT RC","","","FL 6","2021 GRAND CONCOURSE","BRONX","NY","10453-4304"]
["Various Home Health","SAINT JOSEPHS MEDICAL CENTER MH","E0313600","131740127","ST JOSEPHS HOPITAL YONKERS","","",null,"127 S BROADWAY","YONKERS","NY","10701-4006"]
["Various Home Health","FRANCES SCHERVIER LTHHCP","E0223301","131740397","FRANCES SCHERVIER HOME & HOSP","","","2975 INDEPENDENCE AVE","ASSISTANT CONTROLLER","BRONX","NY","10463-4620"]
["Various Home Health","BRONX LEBANON HOSPITAL ACT","E0033035","131974191","BRONX-LEBANON HOSPITAL CENTER","","",null,"1276 FULTON AVE","BRONX","NY","10456-3402"]
["OPWDD  ","COMM ACTION F/HUMAN SVCS ND1","E0022956","222317376","COMM ACTION F/HUMAN SVCS ND1","","",null,"2225 LODOVICK AVE","BRONX","NY","10469-6445"]
["OPWDD  ","COMM ACTION/HUMAN SVCS DAY","E0029704","222317376","COMM ACTION F/HUMAN SVCS ND1","","",null,"2225 LODOVICK AVE","BRONX","NY","10469-6445"]
["OPWDD  ","COMMUNITY ACTION F/HUM SV SPV","E0072115","222317376","COMM ACTION F/HUMAN SVCS ND1","","",null,"2225 LODOVICK AVE","BRONX","NY","10469-6445"]
["OPWDD  ","COMMUNITY ACTION HUMAN SVCS","E0227926","222317376","COMM ACTION F/HUMAN SVCS ND1","","",null,"2225 LODOVICK AVE","BRONX","NY","10469-6445"]
["OMH  ","LOEB HOUSE INC","E0168926","222609761","LOEB HOUSE INC","","","PO BOX 1648",null,"PEARL RIVER","NY","10965-8648"]
["OPWDD  ","NEW HOPE COMM INC ICF 101","E0089090","222871755","NEW HOPE COMMUNITY INC","","",null,"PO BOX 289","LOCH SHELDRAKE","NY","12759-0289"]
["OPWDD  ","NEW HOPE COMM INC ICF 103","E0089088","222871755","NEW HOPE COMMUNITY INC","","",null,"PO BOX 289","LOCH SHELDRAKE","NY","12759-0289"]
["OPWDD  ","NEW HOPE COMM INC ICF 204","E0089087","222871755","NEW HOPE COMMUNITY INC","","",null,"PO BOX 289","LOCH SHELDRAKE","NY","12759-0289"]
["OPWDD  ","NEW HOPE COMM INC ICF 306","E0100055","222871755","NEW HOPE COMMUNITY INC","","",null,"PO BOX 289","LOCH SHELDRAKE","NY","12759-0289"]
["OPWDD  ","NEW HOPE COMM INC ICF 307","E0100053","222871755","NEW HOPE COMMUNITY INC","","",null,"PO BOX 289","LOCH SHELDRAKE","NY","12759-0289"]
["OPWDD  ","NEW HOPE COMM INC ICF 308","E0100052","222871755","NEW HOPE COMMUNITY INC","","",null,"PO BOX 289","LOCH SHELDRAKE","NY","12759-0289"]
["OPWDD  ","NEW HOPE COMM INC ICF 409","E0100051","222871755","NEW HOPE COMMUNITY INC","","",null,"PO BOX 289","LOCH SHELDRAKE","NY","12759-0289"]
["OPWDD  ","NEW HOPE COMM INC ICF 410","E0100050","222871755","NEW HOPE COMMUNITY INC","","",null,"PO BOX 289","LOCH SHELDRAKE","NY","12759-0289"]
["OPWDD  ","NEW HOPE COMM INC ICF 411","E0100049","222871755","NEW HOPE COMMUNITY INC","","",null,"PO BOX 289","LOCH SHELDRAKE","NY","12759-0289"]
["OPWDD  ","NEW HOPE COMMUNITY INC DAY","E0327055","222871755","NEW HOPE COMMUNITY INC","","",null,"PO BOX 289","LOCH SHELDRAKE","NY","12759-0289"]
["OPWDD  ","NEW HOPE COMMUNITY INC ICF","E0079590","222871755","NEW HOPE COMMUNITY INC","","",null,"PO BOX 289","LOCH SHELDRAKE","NY","12759-0289"]
["OPWDD  ","NEW HOPE COMMUNITY INC ICF","E0079543","222871755","NEW HOPE COMMUNITY INC","","",null,"PO BOX 289","LOCH SHELDRAKE","NY","12759-0289"]
["OPWDD  ","NEW HOPE COMMUNITY INC SMP","E0083074","222871755","NEW HOPE COMMUNITY INC","","",null,"PO BOX 289","LOCH SHELDRAKE","NY","12759-0289"]
["OPWDD  ","NEW HOPE COMMUNITY INC SPT","E0075222","222871755","NEW HOPE COMMUNITY INC","","",null,"PO BOX 289","LOCH SHELDRAKE","NY","12759-0289"]
["OPWDD  ","NEW HOPE COMMUNITY INC SPV","E0075215","222871755","NEW HOPE COMMUNITY INC","","",null,"PO BOX 289","LOCH SHELDRAKE","NY","12759-0289"]
["OPWDD  ","INDEPENDENT LIVING INC DAY","E0030047","222894558","INDEPENDENT LIVING INC DAY","","",null,"5 WASHINGTON TER","NEWBURGH","NY","12550-5383"]
["OPWDD  ","ANDERSON FND F/AUTISM DAY","E0029398","222923873","ANDERSON CENTER SERVICES, INC.","","",null,"PO BOX 367","STAATSBURG","NY","12580-0367"]
["OPWDD  ","ANDERSON FND F/AUTISM SPV","E0075525","222923873","ANDERSON CENTER SERVICES, INC.","","",null,"PO BOX 367","STAATSBURG","NY","12580-0367"]
["Various Home Health","BRONX LEBANON HOSPITAL SCM","E0142816","131974191","BRONX-LEBANON HOSPITAL CENTER","","",null,"1276 FULTON AVE","BRONX","NY","10456-3402"]
["Various Home Health","HOMEMAKERS STATEN ISLAND INC","E0205262","132582475","HOMEMAKERS STATEN ISLAND INC","","","1477 HYLAN BLVD","MAUREEN LENIHAN","STATEN ISLAND","NY","10305-1906"]
["Various Home Health","BRONX MUNICIPAL HOSP LTHHCP","E0229135","132655001","NYC HEALTH AND HOSPITALS CORP","","",null,"230 W 41ST ST RM 508","NEW YORK","NY","10036-7207"]
["Various Home Health","CONEY ISLAND HOSPITAL ACT RISP","E0028422","132655001","NYC HEALTH AND HOSPITALS CORP","","",null,"230 W 41ST ST RM 508","NEW YORK","NY","10036-7207"]
["OPWDD  ","TACONIC INNOVATIONS INC DAY","E0029931","223729121","TACONIC INNOVATIONS INC","","",null,"872 ROUTE 376","WAPPINGERS FALLS","NY","12590-2817"]
["OPWDD  ","TACONIC INNOVATIONS RSP","E0040493","223729121","TACONIC INNOVATIONS INC","","",null,"872 ROUTE 376","WAPPINGERS FALLS","NY","12590-2817"]
["Various Home Health","DR SUSAN S MCKINNEY NRS ADHC","E0106523","132655001","NYC HEALTH AND HOSPITALS CORP","","",null,"230 W 41ST ST RM 508","NEW YORK","NY","10036-7207"]
["OPWDD  ","DEVEREUX FND RICHMOND ICF","E0177297","231390618","DEVEREUX FOUNDATION","","","40 DEVEREUX WAY","SR BOOKKEEPER AR","RED HOOK","NY","12571-2268"]
["OPWDD  ","DEVEREUX FND WITTENBERG ICF","E0177298","231390618","DEVEREUX FOUNDATION","","","40 DEVEREUX WAY","SR BOOKKEEPER AR","RED HOOK","NY","12571-2268"]
["OPWDD  ","DEVEREUX FOUNDATION DAY","E0030342","231390618","DEVEREUX FOUNDATION","","","40 DEVEREUX WAY","SR BOOKKEEPER AR","RED HOOK","NY","12571-2268"]
["OPWDD  ","DEVEREUX FOUNDATION SPV","E0075419","231390618","DEVEREUX FOUNDATION","","","40 DEVEREUX WAY","SR BOOKKEEPER AR","RED HOOK","NY","12571-2268"]
["OPWDD  ","THE DEVEREUX FOUNDATION","E0324120","231390618","DEVEREUX FOUNDATION","","","40 DEVEREUX WAY","SR BOOKKEEPER AR","RED HOOK","NY","12571-2268"]
["OPWDD  ","THE DEVEREUX FOUNDATION","E0328576","231390618","DEVEREUX FOUNDATION","","","40 DEVEREUX WAY","SR BOOKKEEPER AR","RED HOOK","NY","12571-2268"]
["Various Home Health","HHC BELLEVUE HSP CTR COBRA AI","E0104467","132655001","NYC HEALTH AND HOSPITALS CORP","","",null,"230 W 41ST ST RM 508","NEW YORK","NY","10036-7207"]
["Various Home Health","HHC WOODHULL MED CTR COBRA AI","E0104466","132655001","NYC HEALTH AND HOSPITALS CORP","","",null,"230 W 41ST ST RM 508","NEW YORK","NY","10036-7207"]
["Various Home Health","HHC/BELIEVUE HSP CTR SCM","E0140308","132655001","NYC HEALTH AND HOSPITALS CORP","","",null,"230 W 41ST ST RM 508","NEW YORK","NY","10036-7207"]
["Various Home Health","JACOBI MEDICAL CTR ACT RESP CNSTA","E0028431","132655001","NYC HEALTH AND HOSPITALS CORP","","",null,"230 W 41ST ST RM 508","NEW YORK","NY","10036-7207"]
["Various Home Health","LINCOLN MED MENTAL HLTH CTR AI","E0026664","132655001","NYC HEALTH AND HOSPITALS CORP","","",null,"230 W 41ST ST RM 508","NEW YORK","NY","10036-7207"]
["Various Home Health","METROPOLITAN HOSP ACT RISP CNSTA","E0027972","132655001","NYC HEALTH AND HOSPITALS CORP","","",null,"230 W 41ST ST RM 508","NEW YORK","NY","10036-7207"]
["Various Home Health","N CENTRAL BRONX HOSP ACT RC","E0022275","132655001","NYC HEALTH AND HOSPITALS CORP","","",null,"230 W 41ST ST RM 508","NEW YORK","NY","10036-7207"]
["Various Home Health","SEA VIEW HOSP & HME NON OCCUP","E0211240","132655001","NYC HEALTH AND HOSPITALS CORP","","",null,"230 W 41ST ST RM 508","NEW YORK","NY","10036-7207"]
["Various Home Health","WOODHALL HOSP ACT RISP CNSTA","E0027970","132655001","NYC HEALTH AND HOSPITALS CORP","","",null,"230 W 41ST ST RM 508","NEW YORK","NY","10036-7207"]
["OPWDD  ","ASSOC F/CHILD W/DOWN SYN SPV","E0074702","237175975","ASSOC FOR CHILDREN WITH DOWNS RSP","","",null,"4 FERN PLACE","PLAINVIEW","NY","11803"]
["OPWDD  ","ASSOC FOR CHILDREN WITH DOWN DAY/AH","E0310894","237175975","ASSOC FOR CHILDREN WITH DOWNS RSP","","",null,"4 FERN PLACE","PLAINVIEW","NY","11803"]
["Various Home Health","KINGSBRIDGE HGHTS NH LTHHCP","E0219890","132678696","KINGSBRIDGE HGHTS NH LTHHCP","","",null,"3400 CANNON PL","BRONX","NY","10463-4302"]
["Various Home Health","RICHMOND HOME NEED SERV   INC","E0207532","132688124","RICHMOND HOME NEED SVCS AI","","","3155 AMBOY RD","NANCY BIENES","STATEN ISLAND","NY","10306-2799"]
["Various Home Health","RICHMOND HOME NEED SVCS AI","E0172300","132688124","RICHMOND HOME NEED SVCS AI","","","3155 AMBOY RD","NANCY BIENES","STATEN ISLAND","NY","10306-2799"]
["OPWDD  ","LIFES WORC DAY","E0030167","237209731","WORKING ORGANIZATION FOR RETARDED","","",null,"PO BOX 8165","GARDEN CITY","NY","11530-8165"]
["OPWDD  ","WORCA INC  SPV","E0074815","237209731","WORKING ORGANIZATION FOR RETARDED","","",null,"PO BOX 8165","GARDEN CITY","NY","11530-8165"]
["Various Home Health","NARCO FREEDOM CN AI","E0177676","132690403","NARCO FREEDOM INC MR","","","250 GRAND CONCOURSE","CHIEF EXEC OFFICER","BRONX","NY","10451-5430"]
["Various Home Health","PEOPLE CARE INC","E0088112","132860748","PEOPLE CARE INC","","",null,"116 W 32ND ST FL 15","NEW YORK","NY","10001-3212"]
["Various Home Health","PEOPLE CARE INC","E0088105","132860748","PEOPLE CARE INC","","",null,"116 W 32ND ST FL 15","NEW YORK","NY","10001-3212"]
["Various Home Health","PEOPLE CARE INC","E0191144","132860748","PEOPLE CARE INC","","",null,"116 W 32ND ST FL 15","NEW YORK","NY","10001-3212"]
["OMH  ","ASSOC REHAB CM & HOUSING INC","E0169539","237293784","ASSOC/REHAB CASE MGNT HOU MH","","",null,"254 W 31ST ST 9TH FL","NEW YORK","NY","10001-2813"]
["OMH  ","ASSOC/REHAB CASE MGNT HOU  MH","E0081360","237293784","ASSOC/REHAB CASE MGNT HOU MH","","",null,"254 W 31ST ST 9TH FL","NEW YORK","NY","10001-2813"]
["OMH  ","ARGUS COMMUNITY INC","E0311781","237359002","ARGUS COMMUNITY INC","","",null,"760 E 160TH ST","BRONX","NY","10456-7815"]
["OMH  ","ARGUS COMMUNITY,INC","E0189515","237359002","ARGUS COMMUNITY INC","","",null,"760 E 160TH ST","BRONX","NY","10456-7815"]
["Various Home Health","PEOPLE CARE INC.","E0088108","132860748","PEOPLE CARE INC","","",null,"116 W 32ND ST FL 15","NEW YORK","NY","10001-3212"]
["OASAS  ","VOCATIONAL INST PROJ COMM SVC","E0216844","237360304","VOCATIONAL INST PROJ COMM SVC","7000240R","00828919","1910 ARTHUR SRVS 4FL","VIP COMMUNITY SRVS","BRONX","NY","10457"]
["Various Home Health","VILLAGE CENTER FOR CARE AI","E0146062","132911059","VILLAGE CENTER FOR CARE","","",null,"154 CHRISTOPHER ST, STE 2D","NEW YORK","NY","10014-2840"]
["Various Home Health","VILLAGE CTR FOR CARE LTHHCP","E0042258","132911059","VILLAGE CENTER FOR CARE","","",null,"154 CHRISTOPHER ST, STE 2D","NEW YORK","NY","10014-2840"]
["OMH  ","COMMUNITY ACCESS,INC.","E0169580","237399839","COMMUNITY ACCESS,INC.","","",null,"2 WASHINGTON ST, 9 FL","NEW YORK","NY","10004-3412"]
["OPWDD  ","COMM MAINSTREAMING INC SPT","E0074141","237448487","COMMUNITY MAINSTREAMING DAY","","","SUITE 200","99 QUENTIN ROOSEVELT BLVD","GARDEN CITY","NY","11530"]
["OPWDD  ","COMM MAINSTREAMING INC SPV","E0074142","237448487","COMMUNITY MAINSTREAMING DAY","","","SUITE 200","99 QUENTIN ROOSEVELT BLVD","GARDEN CITY","NY","11530"]
["Various Home Health","FIRST CHINESE PRESB COM AFFAI","E0206515","132933482","FIRST CHINESE PRESB COM AFFAI","","","PO BOX 1072","61 HENRY STREET","NEW YORK","NY","10002-0913"]
["Various Home Health","URBAN PATHWAYS","E0312043","132933675","URBAN PATHWAYS","","",null,"575 8TH AVE","NEW YORK","NY","10018-3011"]
["Various Home Health","ASSOC FOR SERVICES F/T AGED","E0207222","132951640","ASSOC FOR SERVICES F/T AGED","","",null,"3636 33RD ST # S305","LONG ISLAND CITY","NY","11106-2329"]
["OASAS  ","SANCIA RECOVERY, INC","E0031029","260459169","SANCIA RECOVERY, INC","","",null,"20 CHURCH ST 2ND","WHITE PLAINS","NY","10601"]
["Various Home Health","SO BRONX HOUSEKEEPER VENDOR","E0207230","132957043","SOUTH BRONX HOUSEKEEPER VEN PRO","","",null,"2804 THIRD AVE 1ST FL","BRONX","NY","10455-4000"]
["Various Home Health","CHRISTIAN COMMUNITY IN ACTION","E0207626","133006649","CHRISTIAN COMM IN ACTION INC","","",null,"910 EAST 172ND STREET 4TH FLOOR","BRONX","NY","10460-5802"]
["Various Home Health","RAIN HOME ATTENDANT SER   INC","E0207619","133008330","RAIN HOME ATTENDANT SER","","",null,"1380 METROPOLITAN AVE","BRONX","NY","10462"]
["OPWDD  ","AHIVIM INC DAY","E0003467","261488729","AHIVIM INC DAY","","","6 MOUNTAIN RD UNIT 204","FISCAL OFFICE","MONROE","NY","10950-5917"]
["Various Home Health","FIRST CHINESE PRESBY CAHAC","E0207419","133011752","FIRST CHINESE PRESBY CAHAC","","","121 AVE OF AMERICAS","DIRECTOR #504","NEW YORK","NY","10013"]
["OPWDD  ","NASSAU CO AHRC INC","E0314294","261520311","NASSAU CO AHRC INC SPV","","","ACCOUNTING DEPT 5","189 WHEATLEY RD","GLEN HEAD","NY","11545-2641"]
["OPWDD  ","NASSAU CO AHRC INC RSP","E0286708","261520311","NASSAU CO AHRC INC SPV","","","ACCOUNTING DEPT 5","189 WHEATLEY RD","GLEN HEAD","NY","11545-2641"]
["OPWDD  ","NASSAU CO AHRC INC SPV","E0286637","261520311","NASSAU CO AHRC INC SPV","","","ACCOUNTING DEPT 5","189 WHEATLEY RD","GLEN HEAD","NY","11545-2641"]
["OPWDD  ","NASSAU COUNTY ASSOCIATION FOR THE H","E0315691","261520311","NASSAU CO AHRC INC SPV","","","ACCOUNTING DEPT 5","189 WHEATLEY RD","GLEN HEAD","NY","11545-2641"]
["Various Home Health","MOBILIZATION YOUTH HLTH SERV","E0206517","133015246","MOBILIZATION YOUTH HLTH SERV","","",null,"199 AVEB STORE FRONT","NEW YORK","NY","10009"]
["Various Home Health","HOME ATTENDANT VENDOR AGENCY","E0207322","133019997","HOME ATTENDANT VENDOR AGENCY","","",null,"3036B NOSTRAND AVE","BROOKLYN","NY","11229"]
["Various Home Health","HOME HEALTH MANAGEMENT SERVCE","E0207617","133020559","HOME HEALTH MANAGEMENT SERVCE","","",null,"30 BROAD ST FL 12","NEW YORK","NY","10004-2911"]
["Various Home Health","CIDNY INDEPENDENT LIVING SRV","E0207224","133028816","CIDNY INDEPENDENT LIVING SRV","","","841 BROADWAY STE 303",null,"NEW YORK","NY","10003-4704"]
["Various Home Health","NORTH GENERAL HM ATTENDANT","E0085905","133047556","NORTH GENERAL HM ATTENDANT","","",null,"205 E 122ND ST","NEW YORK","NY","10035-2003"]
["OPWDD  ","DAYBREAK INDEPENDENT SRVS DAY/AHRH","E0290256","262564855","DAYBREAK INDEPENDENT SERVICES","","",null,"8606 121ST ST","RICHMOND HILL","NY","11418-2503"]
["OPWDD  ","SELECT HUMAN SERVICES INC DAY/AHRH","E0310772","262571066","SELECT HUMAN SERVICES INC DAY/AHRH","","",null,"115 TOMPKINS AVE","PLEASANTVILLE","NY","10570-3127"]
["OPWDD  ","SELECT HUMAN SERVICES INC RSP","E0310775","262571066","SELECT HUMAN SERVICES INC DAY/AHRH","","",null,"115 TOMPKINS AVE","PLEASANTVILLE","NY","10570-3127"]
["Various Home Health","COMMUNITY HLTHCARE NETWORK AI","E0189629","133083068","COMMUNITY HEALTHCARE NETWORK INC","","","5TH FLOOR","60 MADISON AVE","NEW YORK","NY","10010-1600"]
["Various Home Health","N Y FOUN CITIZENS INC      SR","E0207228","133083582","N Y FOUN CITIZENS INC SR","","",null,"11 PARK PL RM 1416","NEW YORK","NY","10007-2817"]
["Various Home Health","COUNCIL FOR HUMAN SERVICES","E0206687","133097062","COUNCIL FOR HUMAN SERVICES","","",null,"2253 3RD AVE FRNT 4","NEW YORK","NY","10035-2206"]
["Various Home Health","UNITED JEWISH COUNCIL HASC","E0207373","133101108","UNITED JEWISH COUNCIL HASC","","",null,"500 GRAND ST # A","NEW YORK","NY","10002-4181"]
["Various Home Health","BESTCARE                  INC","E0220887","133121904","BESTCARE INC","","",null,"3000 HEMPSTEAD TPK","LEVITTOWN","NY","11756-9010"]
["Various Home Health","BESTCARE INC","E0088122","133121904","BESTCARE INC","","",null,"3000 HEMPSTEAD TPK","LEVITTOWN","NY","11756-9010"]
["Various Home Health","BESTCARE INC","E0135605","133121904","BESTCARE INC","","",null,"3000 HEMPSTEAD TPK","LEVITTOWN","NY","11756-9010"]
["Various Home Health","GAY MENS HLTH CRISIS AIDS AI","E0157693","133130146","GAY MENS HLTH CRISIS AIDS AI","","",null,"446 WEST 33RD ST 6TH FL","NEW YORK","NY","10001-2601"]
["Various Home Health","NEW BROADVIEW MANOR ALP","E0062585","133135889","NEW BROADVIEW MANOR ALP","","",null,"70 FATHER CAPODANNO BLVD","STATEN ISLAND","NY","10305-4803"]
["Various Home Health","STELLA ORTON HOME CARE NEEDS","E0207531","133137595","STELLA ORTON HOME CARE NEEDS","","","3155 AMBOY RD","ASST DIR ADMIN SER","STATEN ISLAND","NY","10306-2799"]
["Various Home Health","FEGS HOME ATTENDANT SER INC","E0013126","133161675","FEGS HOME ATTENDAT SER INC","","",null,"240 EAST 123RD STREET 3RD FLOOR","NEW YORK","NY","10035-2050"]
["Various Home Health","FEGS HOME ATTENDANT SERVICES","E0207527","133161675","FEGS HOME ATTENDAT SER INC","","",null,"240 EAST 123RD STREET 3RD FLOOR","NEW YORK","NY","10035-2050"]
["Various Home Health","BAILEY HOUSE AI","E0017904","133165181","BAILEY HOUSE INC","","",null,"1751 PARK AVE","NEW YORK","NY","10035-2831"]
["OMH  ","FIFTH AVENUE COUNSELING CENTER INC","E0291190","264445416","FIFTH AVENUE COUNSELING CENTER INC","","",null,"50 W 23RD ST FL 9","NEW YORK","NY","10010-5271"]
["Various Home Health","CHINESE AMERICAN PLAN COUNCIL","E0207236","133203211","CHINESE-AMERICAN PLANNING COUNCIL","","","SUITE 1301","40 WORTH ST","NEW YORK","NY","10013-2986"]
["Various Home Health","CHINESE AMERICAN PLANNING COUNCIL","E0003524","133203211","CHINESE-AMERICAN PLANNING COUNCIL","","","SUITE 1301","40 WORTH ST","NEW YORK","NY","10013-2986"]
["Various Home Health","CHINESE-AMERICAN PLANNING COUNCIL","E0001692","133203211","CHINESE-AMERICAN PLANNING COUNCIL","","","SUITE 1301","40 WORTH ST","NEW YORK","NY","10013-2986"]
["Various Home Health","CHINESE-AMERICAN PLNG CNCL","E0088115","133203211","CHINESE-AMERICAN PLANNING COUNCIL","","","SUITE 1301","40 WORTH ST","NEW YORK","NY","10013-2986"]
["Various Home Health","CHINESE-AMERICAN PLNG COUNCIL","E0055917","133203211","CHINESE-AMERICAN PLANNING COUNCIL","","","SUITE 1301","40 WORTH ST","NEW YORK","NY","10013-2986"]
["Various Home Health","DENNELISSE CORP  AI","E0154978","133224954","THE DENNELISSE CORPORATION","","",null,"16 E 40TH ST 12TH FLOOR","NEW YORK","NY","10016-0113"]
["Various Home Health","PROJECT HOSPITALITY INC AI","E0125471","133234441","PROJECT HOSPITALITY INC AI","","","100 PARK AVE","EXEC DIR","STATEN ISLAND","NY","10302-1440"]
["Various Home Health","COOPERATIVE CARE","E0004335","133238142","COOPERATIVE HOME CARE ASSOCIATES","","","5TH FLOOR","349 E 149TH ST","BRONX","NY","10451"]
["Various Home Health","CITIZENS ADVICE BUREAU AI","E0168368","133254484","BRONXWORKS INC AI","","",null,"2054 MORRIS AVE","BRONX","NY","10453-3538"]
["Various Home Health","PROGRESSIVE HM HLTH SVCS","E0088022","133291989","PROGRESSIVE HM HLTH SVCS","","",null,"132 W 31ST ST FL 7","NEW YORK","NY","10001-3406"]
["Various Home Health","INSTITUTE FOR COMMUNITY LIVING","E0296517","133306195","INSTITUTE FOR COMMUNITY LIVING INC","","","40 RECTOR ST","FL 8","NEW YORK","NY","10006-1733"]
["Various Home Health","WEST SIDE RADIOLOGY ASSOC  PC","E0257375","133351625","WEST SIDE RADIOLOGY ASSOC PC","","",null,"PO BOX 10268","UNIONDALE","NY","11555-0268"]
["Various Home Health","HOPE HOME CARE INC","E0176666","133421265","HOPE HOME CARE INC","","",null,"26 DUMONT AVE","STATEN ISLAND","NY","10305-1450"]
["Various Home Health","ABSOLUTE HOME HEALTH CARE INC","E0156428","133459840","ABSOLUTE HOME HEALTH CARE INC","","",null,"3401 ENTERPRISE PKWY FL 5","CLEVELAND","OH","44122-7342"]
["Various Home Health","HARLEM UNITED COM AIDS CTR AI","E0124369","133461695","HARLEM UNITED COM AIDS CTR AI","","","123 W 124TH ST # 125",null,"NEW YORK","NY","10027-4920"]
["OASAS  ","CATHOLIC CHARITIES COMMUNITY","E0026257","320151827","CATHOLIC CHARITIES COMMUNITY","","","224 MAIN ST","SUPPORT SERVICES SUP","GOSHEN","NY","10924-2157"]
["Various Home Health","HIGHFIELD GARDENS CR CT ADHC","E0028417","133552550","WEDGEWOOD CARE CENTER INC","","",null,"199 COMMUNITY DR","GREAT NECK","NY","11021-5502"]
["Various Home Health","COMMUNITY HEALTH ACTION OF SI","E0158183","133556132","COMMUNITY HLTHACTION STATEN I","","","FLOOR 4","56 BAY ST","STATEN ISLAND","NY","10301-2563"]
["OPWDD  ","CHEMLU DEV DISAB CTR","E0029726","352198039","CHEMLU DEV DISAB CTR RSP","","","PO BOX 2100",null,"MONROE","NY","10949-8600"]
["Various Home Health","AIDS SVC CTR MANHATTEN AI","E0151585","133562071","AIDS SVC CTR MANHATTEN AI","","",null,"41 E 11TH ST FL 5","NEW YORK","NY","10003-4602"]
["Various Home Health","HOUSING WORKS INC AI","E0164894","133584089","HOUSING WORKS INC AI","","","594 BROADWAY","RM 700","NEW YORK","NY","10012-3257"]
["Various Home Health","FOSTER NURSES AGENCY","E0178827","133588229","FOSTER NURSES AGENCY","","",null,"316 5TH AVE STE 404","NEW YORK","NY","10001-3615"]
["Various Home Health","RIVINGTON HS HLTH CR AADC","E0142833","133590465","RIVINGTON HS HLTH CR AADC","","","154 CHRISTOPHER ST","EMMA DEVITO CFO #3A","NEW YORK","NY","10014-2840"]
["Various Home Health","ST MARYS CENTER INC AADC","E0125070","133591762","ST MARYS CENTER INC AADC","","","512 W 126TH ST",null,"NEW YORK","NY","10027-2406"]
["Various Home Health","ISABELLA GERIATRIC CTR LTHHCP","E0188365","133623808","ISABELLA GERIATRIC CENTER INC","","",null,"515 AUDUBON AVE","NEW YORK","NY","10040-3403"]
["Various Home Health","CASA PROMESA NRS HOME ADHC","E0064337","133676681","CASA PROMESA NRS HOME ADHC","","","1776 CLAY AVE",null,"BRONX","NY","10457-7239"]
["Various Home Health","J&K HEALTHCARE SERVICES","E0132091","133702396","J & K HEALTHCARE SERVICES","","",null,"140 HUGUENOT ST","NEW ROCHELLE","NY","10801-5215"]
["Various Home Health","CABRINI CTR NRS & REHAB ADHC","E0081032","133742893","CABRINI CTR NRS & REHAB ADHC","","","227 E 19TH ST",null,"NEW YORK","NY","10003-2674"]
["Various Home Health","HEBREW HOSPITAL HOME INC","E0215393","133785703","HEBREW HOSPITAL HOME WESTCHEST ADHC","","","55 GRASSLANDS ROAD","FINANCE ADC","VALHALLA","NY","10595"]
["Various Home Health","CANAL RADIOLOGY ASSOCIATES PC","E0028739","133842255","CANAL RADIOLOGY ASSOCIATES PC","","","210 CANAL ST","RM 206","NEW YORK","NY","10013-4156"]
["Various Home Health","PIONEER HOMECARE CORP","E0124725","133871817","PIONEER HOME CARE CORP","","",null,"2052 TILLOTSON AVE","BRONX","NY","10475-1560"]
["Various Home Health","LAKESIDE MANOR HOME FOR ADULTS INC","E0309853","133917111","LAKESIDE MANOR HOME FOR ADULTS INC","","",null,"797 BRIGHTON AVE","STATEN ISLAND","NY","10301-2736"]
["Various Home Health","EGER HARBOR HOUSE ALP","E0041952","133999654","EGER HARBOR HOUSE ALP","","","140 MEISNER AVE","SR VP FINANCE","STATEN ISLAND","NY","10306-1236"]
["Various Home Health","PRESTIGE HOME ATTENDANT","E0088216","134027190","PRESTIGE HOME ATTENDANT","","",null,"377 BROADWAY FL 2","NEW YORK","NY","10013-3907"]
["Various Home Health","PRESTIGE HOME ATTENDANT","E0088215","134027190","PRESTIGE HOME ATTENDANT","","",null,"377 BROADWAY FL 2","NEW YORK","NY","10013-3907"]
["Various Home Health","A & T HEALTHCARE LLC","E0094813","134090123","A & T HEALTHCARE LLC","","","339 N MAIN ST","TONI BABINGTON","NEW CITY","NY","10956-4300"]
["Various Home Health","REV ROBERT V LOTT ASSISTED LIV CTR","E0092668","134131087","REV ROBERT V LOTT ASSISTED LIV CTR","","","1261 5TH AVE",null,"NEW YORK","NY","10029-3822"]
["Various Home Health","S I BEHAVIORAL NETWORK  MH","E0081359","134182492","S I BEHAVIORAL NETWORK MH","","",null,"777 SEAVIEW AVE BLDG 2","STATEN ISLAND","NY","10305-3409"]
["OPWDD  ","COMMUNITY ENTERPRISES DAY","E0029746","510178661","COMMUNITY ENTERPRISES DAY","","",null,"441 PLEASANT ST","NORTHAMPTON","MA","01060-3976"]
["Various Home Health","PARK GARDENS REHAB/NURSING LTHHCP","E0001558","134199211","PARK GARDENS REHAB/NURSING LTHHCP","","",null,"6585 BROADWAY","BRONX","NY","10471-2099"]
["Various Home Health","HENRY ST HOUSEKEEPING ASSIS SERVICE","E0206443","134316332","HENRY ST HOUSEKEEPING ASSIS SERVICE","","",null,"265 HENRY ST","NEW YORK","NY","10002-4808"]
["Various Home Health","VNA OF STATEN ISLAND","E0232514","135562377","VNA OF STATEN ISLAND","","",null,"400 LAKE AVE # E","STATEN ISLAND","NY","10303-2629"]
["Various Home Health","VNA OF STATEN ISLAND","E0265420","135562377","VNA OF STATEN ISLAND","","",null,"400 LAKE AVE # E","STATEN ISLAND","NY","10303-2629"]
["Various Home Health","WESTCHESTER COUNTY DOH","E0266942","136007353","WESTCHESTER CNTY DC MH","","","112 E POST RD","DIR ADMIN SER","WHITE PLAINS","NY","10601-5113"]
["Various Home Health","NYC DEPT OF MH EARLY INTERVEN","E0157278","136400434","NYC DEPT HEALTH","","","253 BROADWAY BOX 48","H ELHIFNAWI NYC/DOH","NEW YORK","NY","10007-2300"]
["Various Home Health","OMRDD/MARYGOLDEN HOUSE","E0036868","146013200","STATE OF NEW YORK COMPTROLLERS OFFC","","",null,"110 STATE STREET","ALBANY","NY","12207-2004"]
["Various Home Health","THE MEDFORD HAMLET ASSISTED LIVING","E0001334","200994609","MEDFORD HAMLET LLC","","",null,"1529 N OCEAN AVENUE","MEDFORD","NY","11763"]
["Various Home Health","CP ADVANCED IMAGING PLLC","E0026485","201840938","CP ADVANCED IMAGING PLLC","","","STE B205","33 BOWERY","NEW YORK","NY","10002-6745"]
["OPWDD  ","NEW HORIZON RESOURCES INC","E0062061","524862107","NEW HORIZONS RESOURCES INC.","","",null,"123 WEST ROAD","PLEASANT VALLEY","NY","12569-7927"]
["OPWDD  ","NEW HORIZONS RESOURCES DAY","E0030808","524862107","NEW HORIZONS RESOURCES INC.","","",null,"123 WEST ROAD","PLEASANT VALLEY","NY","12569-7927"]
["OPWDD  ","NEW HORIZONS RESOURCES SPV","E0075213","524862107","NEW HORIZONS RESOURCES INC.","","",null,"123 WEST ROAD","PLEASANT VALLEY","NY","12569-7927"]
["Various Home Health","CENTRAL ASSISTED LIVING ALP","E0284765","203075020","CENTRAL ASSISTED LIVING LLC TBI","","",null,"1509 CENTRAL AVENUE","FAR ROCKAWAY","NY","11691-4734"]
["Various Home Health","GIRLING HEALTH CARE OF NEW YORK INC","E0193758","204644129","GIRLING HEALTH CARE OF NEW YORK INC","","",null,"P O BOX 974775","DALLAS","TX","75397-0001"]
["OPWDD  ","RAYIM OF HUDSON VALLEY DAY","E0030055","562331735","RAYIM OF HUDSON VALLEY INC","","",null,"149 ELM ST","MONROE","NY","10950"]
["OPWDD  ","RAYIM OF HUDSON VALLEY INC SPT IRA","E0303522","562331735","RAYIM OF HUDSON VALLEY INC","","",null,"149 ELM ST","MONROE","NY","10950"]
["OPWDD  ","RAYIM OF HUDSON VALLEY RSP","E0040521","562331735","RAYIM OF HUDSON VALLEY INC","","",null,"149 ELM ST","MONROE","NY","10950"]
["Various Home Health","TRINITY HOME CARE LLC","E0114147","223345167","TRINITY HOME CARE LLC","","",null,"1962 PAYSPHERE CIR","CHICAGO","IL","60674-0019"]
["OPWDD  ","VOLUNTEERS OF AMERICA GNY SPT","E0071664","581959781","VOLUNTEERS OF AMERICA-GREATER NY","","",null,"340 W 85TH ST OFC R","NEW YORK","NY","10024-6265"]
["Various Home Health","LUTHERAN LONG TERM HM HLTH PROGRAM","E0311728","223408456","LUTHERAN CENTER POUGHKEEPS AD","","",null,"277 NORTH AVENUE SUITE 201","NEW ROCHELLE","NY","10801-5123"]
["OPWDD  ","IYAHO SOCIAL SERVICES INC DAY/AHRH","E0296840","593806132","IYAHO SOCIAL SVCS INC HCBS 1","","",null,"10446 200TH ST","SAINT ALBANS","NY","11412-1222"]
["Various Home Health","QUEST DIAGNOSTICS CLIN LABS","E0068763","232773941","QUEST DIAGNOSTICS CLIN LABS","","",null,"12018 COLLECTIONS CT","CHICAGO","IL","60693-0001"]
["Various Home Health","JEWISH HM/HSP LCS-BRONX LTHHCP","E0228883","237071900","JEWISH HOME & HSP BX DIV","","",null,"2545 UNIVERSITY AVE","BRONX","NY","10468-4066"]
["Various Home Health","JEWISH HOME & HOSP BRONX DIV","E0267716","237071900","JEWISH HOME & HSP BX DIV","","",null,"2545 UNIVERSITY AVE","BRONX","NY","10468-4066"]
["Various Home Health","MORNINGSIDE HOUSE NH LTHHCP","E0179097","237176564","MORNINGSIDE HOUSE NH CO INC","","","1000 PELHAM PKWY S","KAREN F HOWARD","BRONX","NY","10461-1003"]
["Various Home Health","MORNINGSIDE HOUSE NON OCC","E0199221","237176564","MORNINGSIDE HOUSE NH CO INC","","","1000 PELHAM PKWY S","KAREN F HOWARD","BRONX","NY","10461-1003"]
["OPWDD  ","CROSSROADS UNLIMITED ND 2","E0027338","710967724","CROSSROADS UNLIMITED ND 3","","","279 SUFFOLK AVE",null,"STATEN ISLAND","NY","10314-6948"]
["OPWDD  ","BROOKVILLE CTR FOR CHILDREN ICF","E0297465","731662897","BROOKVILLE CTR FOR CHILDREN RSP","","",null,"189 WHEATLEY RD","GLEN HEAD","NY","11545-2641"]
["OPWDD  ","BROOKVILLE CTR FOR CHILDREN ICF","E0297459","731662897","BROOKVILLE CTR FOR CHILDREN RSP","","",null,"189 WHEATLEY RD","GLEN HEAD","NY","11545-2641"]
["OPWDD  ","BROOKVILLE CTR FOR CHILDREN ICF 26","E0297460","731662897","BROOKVILLE CTR FOR CHILDREN RSP","","",null,"189 WHEATLEY RD","GLEN HEAD","NY","11545-2641"]
["OPWDD  ","BROOKVILLE CTR FOR CHILDREN ICF 28","E0297463","731662897","BROOKVILLE CTR FOR CHILDREN RSP","","",null,"189 WHEATLEY RD","GLEN HEAD","NY","11545-2641"]
["Various Home Health","ARGUS COMMUNITY INC AI","E0162867","237359002","ARGUS COMMUNITY INC","","",null,"760 E 160TH ST","BRONX","NY","10456-7815"]
["Various Home Health","CASTLE SENIOR LIVING  FOREST HILLS","E0290082","260630878","MIDWAY AL LLC","","",null,"10825 HORACE HARDING EXPY","FOREST HILLS","NY","11368-4532"]
["Various Home Health","PALM GARDENS CENTER NRS & REH ADHC","E0146048","261537536","PALM GARDENS CENTER NRS & REH ADHC","","",null,"615 AVENUE C","BROOKLYN","NY","11218-4101"]
["Various Home Health","THE GLEN AT MAPLE POINTE ALP","E0309786","262012990","MAPLE POINT SENIOR CARE LLC","","",null,"316 SOUTH AVE","FANWOOD","NJ","07023-1325"]
["Various Home Health","ALPINE HOME HEALTH CARE LLC","E0287872","262262317","ALPINE HOME HEALTH CARE","","",null,"4260 BRONX BLVD","BRONX","NY","10466-2611"]
["Various Home Health","FLUSHING MANOR LTHHC","E0299574","262491970","FMNH","","",null,"35-15 PARSON BLVD","FLUSHING","NY","11354-4236"]
["Various Home Health","MADISON AVENUE RADIOLOGY PC","E0302011","263739469","MADISON AVENUE RADIOLOGY PC","","",null,"1825 MADISON AVE","NEW YORK","NY","10035-3829"]
["Various Home Health","THE VILLAGE AT 46TH AND TEN ALP","E0294311","311619096","VILLAGE HOUSING DEVT FUND CORP","","",null,"154 CHRISTOPHER ST 1ST FL","NEW YORK","NY","10014-2840"]
["Various Home Health","MJG NURSING HOME CO INC LTHHCP","E0317317","320060822","METROPOLITAN JEWISH HM CARE","","","6323 7TH AVE","DIRECTOR A/R 2ND FL","BROOKLYN","NY","11220-4742"]
["Various Home Health","MADISON YORK ASSISTED LVG CM","E0022131","412088529","MADISON YORK ASSISTED LVG CM","","","9610 23RD AVE","FINANCIAL OFFICE","EAST ELMHURST","NY","11369-1230"]
["Various Home Health","CONCEPTS OF INDEPENDENCE  INC","E0207420","510239824","CONCEPTS OF INDEPENDENCE INC","","","120 WALL ST","STE 1010","NEW YORK","NY","10005-3979"]
["Various Home Health","FORT TRYON LTHHCP","E0002385","522384249","FORT TRYON CTR FOR REHAB AND NURSIN","","",null,"801 WEST 190TH ST","NEW YORK","NY","10040"]
["Various Home Health","CONCEPTS INDEPENDENT CHOICES","E0059348","571144402","CONCEPTS INDEPENDENT CHOICES","","",null,"120 WALL ST # S1010","NEW YORK","NY","10005-3904"]
["Various Home Health","HELPFUL HAND AGENCY INC","E0061477","743085028","HELPFUL HAND AGENCY INC","","",null,"1809 NOSTRAND AVE 2ND FL SUITE 1","BROOKLYN","NY","11226-7181"]
["Various Home Health","HARBOR TERRACE ADULT HM & ASSIST LV","E0303142","800392370","BAYWOOD LLC","","",null,"110 HENDERSON AVE","STATEN ISLAND","NY","10301-2108"]
["Various Home Health","ALL METRO HOME CARE SERVICES OF NEW","E0028175","841623899","ALL METRO HOME CARE SERVICES OF NEW","","",null,"50 BROADWAY","LYNBROOK","NY","11563-2519"]
[]
[null,"Grand Total"]